{"text_format":"1","workbook":"xlsx","n_sheets":8,"sheets":["Summary","Bristol","Cambridge","Leicester","London","Manchester","Newcastle","Portsmouth"],"not_rendered":{"charts":0,"images":0,"macros":1,"external_links":0,"defined_names":0,"comments":0,"pivot_tables":0},"unopened":[],"bounds":{"document_bytes":16777216,"sheet_cells":100000,"rows_first":2000,"rows_last":500,"rows_between":2000,"halvings":0,"cell_chars":16384,"cell_head_chars":4096},"cells_cut":0,"cells_raw":0,"read":"whole","date_system":"1900"}

{"sheet":"Summary","index":0,"n_rows":2,"n_cols":3,"rows_kept":2,"cut":false,"hidden":false,"merged":[]}
[]
[null,"Sheet Name","No of Printed Pages"]

{"sheet":"Bristol","index":1,"n_rows":321,"n_cols":11,"rows_kept":321,"cut":false,"hidden":false,"merged":[]}
["Order ID","Order Date","Customer Name","Country","Product Name","Product Category","Unit Price","Units Sold","Discount","Total Sales Value","Sales Rep"]
[10248,"2015-12-11","Vins et alcools Chevalier","France","Mozzarella di Giovanni","Dairy Products",34.799999999999997,5,0,{"$f":"ROUND((G2*H2)*(1-I2),2)","v":174},"Steven Buchanan"]
[10248,"2015-12-11","Vins et alcools Chevalier","France","Singaporean Hokkien Fried Mee","Grains/Cereals",14,10,0,{"$f":"ROUND((G3*H3)*(1-I3),2)","v":140},"Steven Buchanan"]
[10248,"2015-12-11","Vins et alcools Chevalier","France","Queso Cabrales","Dairy Products",21,12,0,252,"Steven Buchanan"]
[10249,"2015-12-12","Toms Spezialitäten","Germany","Manjimup Dried Apples","Produce",53,40,0,2120,"Michael Suyama"]
[10249,"2015-12-12","Toms Spezialitäten","Germany","Tofu","Produce",23.25,9,0,209.25,"Michael Suyama"]
[10250,"2015-12-15","Hanari Carnes","Brazil","Manjimup Dried Apples","Produce",53,35,0.15,1576.75,"Margaret Peacock"]
[10250,"2015-12-15","Hanari Carnes","Brazil","Jack's New England Clam Chowder","Seafood",9.65,10,0,96.5,"Margaret Peacock"]
[10250,"2015-12-15","Hanari Carnes","Brazil","Louisiana Fiery Hot Pepper Sauce","Condiments",21.05,15,0.15,268.39,"Margaret Peacock"]
[10251,"2015-12-15","Victuailles en stock","France","Gustaf's Knäckebröd","Grains/Cereals",21,6,0.05,119.7,"Janet Leverling"]
[10251,"2015-12-15","Victuailles en stock","France","Louisiana Fiery Hot Pepper Sauce","Condiments",21.05,20,0,421,"Janet Leverling"]
[10251,"2015-12-15","Victuailles en stock","France","Ravioli Angelo","Grains/Cereals",19.5,15,0.05,277.88,"Janet Leverling"]
[10252,"2015-12-16","Suprêmes délices","Belgium","Geitost","Dairy Products",2.5,25,0.05,59.38,"Margaret Peacock"]
[10252,"2015-12-16","Suprêmes délices","Belgium","Camembert Pierrot","Dairy Products",34,40,0,1360,"Margaret Peacock"]
[10252,"2015-12-16","Suprêmes délices","Belgium","Sir Rodney's Marmalade","Confections",81,40,0.05,3078,"Margaret Peacock"]
[10253,"2015-12-17","Hanari Carnes","Brazil","Chartreuse verte","Beverages",18,42,0,756,"Janet Leverling"]
[10253,"2015-12-17","Hanari Carnes","Brazil","Gorgonzola Telino","Dairy Products",12.5,20,0,250,"Janet Leverling"]
[10253,"2015-12-17","Hanari Carnes","Brazil","Maxilaku","Confections",20,40,0,800,"Janet Leverling"]
[10254,"2015-12-18","Chop-suey Chinese","Switzerland","Longlife Tofu","Produce",10,21,0,210,"Steven Buchanan"]
[10254,"2015-12-18","Chop-suey Chinese","Switzerland","Pâté chinois","Meat/Poultry",24,21,0.15,428.4,"Steven Buchanan"]
[10254,"2015-12-18","Chop-suey Chinese","Switzerland","Guaraná Fantástica","Beverages",4.5,15,0.15,57.38,"Steven Buchanan"]
[10255,"2015-12-19","Richter Supermarkt","Switzerland","Chang","Beverages",19,20,0,380,"Anne Dodsworth"]
[10255,"2015-12-19","Richter Supermarkt","Switzerland","Raclette Courdavault","Dairy Products",55,30,0,1650,"Anne Dodsworth"]
[10255,"2015-12-19","Richter Supermarkt","Switzerland","Pavlova","Confections",17.45,35,0,610.75,"Anne Dodsworth"]
[10255,"2015-12-19","Richter Supermarkt","Switzerland","Inlagd Sill","Seafood",19,25,0,475,"Anne Dodsworth"]
[10256,"2015-12-22","Wellington Importadora","Brazil","Perth Pasties","Meat/Poultry",32.799999999999997,15,0,492,"Janet Leverling"]
[10256,"2015-12-22","Wellington Importadora","Brazil","Original Frankfurter grüne Soße","Condiments",13,12,0,156,"Janet Leverling"]
[10257,"2015-12-23","HILARIÓN-Abastos","Venezuela","Schoggi Schokolade","Confections",43.9,25,0,1097.5,"Margaret Peacock"]
[10257,"2015-12-23","HILARIÓN-Abastos","Venezuela","Chartreuse verte","Beverages",18,6,0,108,"Margaret Peacock"]
[10257,"2015-12-23","HILARIÓN-Abastos","Venezuela","Original Frankfurter grüne Soße","Condiments",13,15,0,195,"Margaret Peacock"]
[10258,"2015-12-24","Ernst Handel","Austria","Chef Anton's Gumbo Mix","Condiments",21.35,65,0.2,1110.2,"Nancy Davolio"]
[10258,"2015-12-24","Ernst Handel","Austria","Chang","Beverages",19,50,0.2,760,"Nancy Davolio"]
[10258,"2015-12-24","Ernst Handel","Austria","Mascarpone Fabioli","Dairy Products",32,6,0.2,153.6,"Nancy Davolio"]
[10259,"2015-12-25","Centro comercial Moctezuma","Mexico","Sir Rodney's Scones","Confections",10,10,0,100,"Margaret Peacock"]
[10259,"2015-12-25","Centro comercial Moctezuma","Mexico","Gravad lax","Seafood",26,1,0,26,"Margaret Peacock"]
[10260,"2015-12-26","Ottilies Käseladen","Germany","Outback Lager","Beverages",15,21,0.25,236.25,"Margaret Peacock"]
[10260,"2015-12-26","Ottilies Käseladen","Germany","Ravioli Angelo","Grains/Cereals",19.5,50,0,975,"Margaret Peacock"]
[10260,"2015-12-26","Ottilies Käseladen","Germany","Tarte au sucre","Confections",49.3,15,0.25,554.63,"Margaret Peacock"]
[10260,"2015-12-26","Ottilies Käseladen","Germany","Jack's New England Clam Chowder","Seafood",9.65,16,0.25,115.8,"Margaret Peacock"]
[10261,"2015-12-26","Que Delícia","Brazil","Steeleye Stout","Beverages",18,20,0,360,"Margaret Peacock"]
[10261,"2015-12-26","Que Delícia","Brazil","Sir Rodney's Scones","Confections",10,20,0,200,"Margaret Peacock"]
[10262,"2015-12-29","Rattlesnake Canyon Grocery","USA","Chef Anton's Gumbo Mix","Condiments",21.35,12,0.2,204.96,"Laura Callahan"]
[10262,"2015-12-29","Rattlesnake Canyon Grocery","USA","Uncle Bob's Organic Dried Pears","Produce",30,15,0,450,"Laura Callahan"]
[10262,"2015-12-29","Rattlesnake Canyon Grocery","USA","Gnocchi di nonna Alice","Grains/Cereals",38,2,0,76,"Laura Callahan"]
[10263,"2015-12-30","Ernst Handel","Austria","Pavlova","Confections",17.45,60,0.25,785.25,"Anne Dodsworth"]
[10263,"2015-12-30","Ernst Handel","Austria","Nord-Ost Matjeshering","Seafood",25.89,60,0.25,1165.05,"Anne Dodsworth"]
[10263,"2015-12-30","Ernst Handel","Austria","Guaraná Fantástica","Beverages",4.5,28,0,126,"Anne Dodsworth"]
[10263,"2015-12-30","Ernst Handel","Austria","Longlife Tofu","Produce",10,36,0.25,270,"Anne Dodsworth"]
[10264,"2015-12-31","Folk och fä HB","Sweden","Chang","Beverages",19,35,0,665,"Michael Suyama"]
[10264,"2015-12-31","Folk och fä HB","Sweden","Jack's New England Clam Chowder","Seafood",9.65,25,0.15,205.06,"Michael Suyama"]
[10265,"2016-01-01","Blondel père et fils","France","Alice Mutton","Meat/Poultry",39,30,0,1170,"Andrew Fuller"]
[10265,"2016-01-01","Blondel père et fils","France","Outback Lager","Beverages",15,20,0,300,"Andrew Fuller"]
[10266,"2016-01-02","Wartian Herkku","Finland","Queso Manchego La Pastora","Dairy Products",38,12,0.05,433.2,"Janet Leverling"]
[10267,"2016-01-05","Frankenversand","Germany","Lakkalikööri","Beverages",18,15,0.15,229.5,"Margaret Peacock"]
[10267,"2016-01-05","Frankenversand","Germany","Boston Crab Meat","Seafood",18.399999999999999,50,0,920,"Margaret Peacock"]
[10267,"2016-01-05","Frankenversand","Germany","Raclette Courdavault","Dairy Products",55,70,0.15,3272.5,"Margaret Peacock"]
[10268,"2016-01-06","GROSELLA-Restaurante","Venezuela","Mozzarella di Giovanni","Dairy Products",34.799999999999997,4,0,139.19999999999999,"Laura Callahan"]
[10268,"2016-01-06","GROSELLA-Restaurante","Venezuela","Thüringer Rostbratwurst","Meat/Poultry",123.79,10,0,1237.9000000000001,"Laura Callahan"]
[10269,"2016-01-07","White Clover Markets","USA","Mozzarella di Giovanni","Dairy Products",34.799999999999997,20,0.05,661.2,"Steven Buchanan"]
[10269,"2016-01-07","White Clover Markets","USA","Geitost","Dairy Products",2.5,60,0.05,142.5,"Steven Buchanan"]
[10270,"2016-01-08","Wartian Herkku","Finland","Inlagd Sill","Seafood",19,30,0,570,"Nancy Davolio"]
[10270,"2016-01-08","Wartian Herkku","Finland","Ipoh Coffee","Beverages",46,25,0,1150,"Nancy Davolio"]
[10271,"2016-01-08","Split Rail Beer & Ale","USA","Geitost","Dairy Products",2.5,24,0,60,"Michael Suyama"]
[10272,"2016-01-09","Rattlesnake Canyon Grocery","USA","Gorgonzola Telino","Dairy Products",12.5,40,0,500,"Michael Suyama"]
[10272,"2016-01-09","Rattlesnake Canyon Grocery","USA","Sir Rodney's Marmalade","Confections",81,6,0,486,"Michael Suyama"]
[10272,"2016-01-09","Rattlesnake Canyon Grocery","USA","Mozzarella di Giovanni","Dairy Products",34.799999999999997,24,0,835.2,"Michael Suyama"]
[10273,"2016-01-12","QUICK-Stop","Germany","Boston Crab Meat","Seafood",18.399999999999999,60,0.05,{"$f":"ROUND((G67*H67)*(1-I67),2)","v":1048.8},"Janet Leverling"]
[10273,"2016-01-12","QUICK-Stop","Germany","Geitost","Dairy Products",2.5,20,0,50,"Janet Leverling"]
[10273,"2016-01-12","QUICK-Stop","Germany","Gorgonzola Telino","Dairy Products",12.5,15,0.05,178.13,"Janet Leverling"]
[10273,"2016-01-12","QUICK-Stop","Germany","Ikura","Seafood",31,24,0.05,706.8,"Janet Leverling"]
[10273,"2016-01-12","QUICK-Stop","Germany","Lakkalikööri","Beverages",18,33,0.05,564.29999999999995,"Janet Leverling"]
[10274,"2016-01-13","Vins et alcools Chevalier","France","Fløtemysost","Dairy Products",21.5,20,0,430,"Michael Suyama"]
[10274,"2016-01-13","Vins et alcools Chevalier","France","Mozzarella di Giovanni","Dairy Products",34.799999999999997,7,0,243.6,"Michael Suyama"]
[10275,"2016-01-14","Magazzini Alimentari Riuniti","Italy","Guaraná Fantástica","Beverages",4.5,12,0.05,51.3,"Nancy Davolio"]
[10275,"2016-01-14","Magazzini Alimentari Riuniti","Italy","Raclette Courdavault","Dairy Products",55,6,0.05,313.5,"Nancy Davolio"]
[10276,"2016-01-15","Tortuga Restaurante","Mexico","Ikura","Seafood",31,15,0,465,"Laura Callahan"]
[10276,"2016-01-15","Tortuga Restaurante","Mexico","Konbu","Seafood",6,10,0,60,"Laura Callahan"]
[10277,"2016-01-16","Morgenstern Gesundkost","Germany","Rössle Sauerkraut","Produce",45.6,20,0,912,"Andrew Fuller"]
[10277,"2016-01-16","Morgenstern Gesundkost","Germany","Tarte au sucre","Confections",49.3,12,0,591.6,"Andrew Fuller"]
[10278,"2016-01-19","Berglunds snabbköp","Sweden","Raclette Courdavault","Dairy Products",55,15,0,825,"Laura Callahan"]
[10278,"2016-01-19","Berglunds snabbköp","Sweden","Röd Kaviar","Seafood",15,25,0,375,"Laura Callahan"]
[10278,"2016-01-19","Berglunds snabbköp","Sweden","Gula Malacca","Condiments",19.45,16,0,311.2,"Laura Callahan"]
[10278,"2016-01-19","Berglunds snabbköp","Sweden","Vegie-spread","Condiments",43.9,8,0,351.2,"Laura Callahan"]
[10279,"2016-01-20","Lehmanns Marktstand","Germany","Alice Mutton","Meat/Poultry",39,15,0.25,438.75,"Laura Callahan"]
[10280,"2016-01-21","Berglunds snabbköp","Sweden","Pâté chinois","Meat/Poultry",24,20,0,480,"Andrew Fuller"]
[10280,"2016-01-21","Berglunds snabbköp","Sweden","Rhönbräu Klosterbier","Beverages",7.75,30,0,232.5,"Andrew Fuller"]
[10280,"2016-01-21","Berglunds snabbköp","Sweden","Guaraná Fantástica","Beverages",4.5,12,0,54,"Andrew Fuller"]
[10281,"2016-01-21","Romero y tomillo","Spain","Guaraná Fantástica","Beverages",4.5,6,0,27,"Margaret Peacock"]
[10281,"2016-01-21","Romero y tomillo","Spain","Steeleye Stout","Beverages",18,4,0,72,"Margaret Peacock"]
[10281,"2016-01-21","Romero y tomillo","Spain","Teatime Chocolate Biscuits","Confections",9.1999999999999993,1,0,9.1999999999999993,"Margaret Peacock"]
[10282,"2016-01-22","Romero y tomillo","Spain","Ravioli Angelo","Grains/Cereals",19.5,2,0,39,"Margaret Peacock"]
[10282,"2016-01-22","Romero y tomillo","Spain","Nord-Ost Matjeshering","Seafood",25.89,6,0,155.34,"Margaret Peacock"]
[10283,"2016-01-23","LILA-Supermercado","Venezuela","Teatime Chocolate Biscuits","Confections",9.1999999999999993,18,0,165.6,"Janet Leverling"]
[10283,"2016-01-23","LILA-Supermercado","Venezuela","Camembert Pierrot","Dairy Products",34,35,0,1190,"Janet Leverling"]
[10283,"2016-01-23","LILA-Supermercado","Venezuela","Genen Shouyu","Condiments",15.5,20,0,310,"Janet Leverling"]
[10283,"2016-01-23","LILA-Supermercado","Venezuela","Mozzarella di Giovanni","Dairy Products",34.799999999999997,3,0,104.4,"Janet Leverling"]
[10284,"2016-01-26","Lehmanns Marktstand","Germany","Laughing Lumberjack Lager","Beverages",14,5,0.25,52.5,"Margaret Peacock"]
[10284,"2016-01-26","Lehmanns Marktstand","Germany","Gula Malacca","Condiments",19.45,21,0,408.45,"Margaret Peacock"]
[10284,"2016-01-26","Lehmanns Marktstand","Germany","Camembert Pierrot","Dairy Products",34,20,0.25,510,"Margaret Peacock"]
[10284,"2016-01-26","Lehmanns Marktstand","Germany","Schoggi Schokolade","Confections",43.9,15,0.25,493.88,"Margaret Peacock"]
[10285,"2016-01-27","QUICK-Stop","Germany","Chai","Beverages",18,45,0.2,648,"Nancy Davolio"]
[10285,"2016-01-27","QUICK-Stop","Germany","Boston Crab Meat","Seafood",18.399999999999999,40,0.2,588.79999999999995,"Nancy Davolio"]
[10285,"2016-01-27","QUICK-Stop","Germany","Perth Pasties","Meat/Poultry",32.799999999999997,36,0.2,944.64,"Nancy Davolio"]
[10286,"2016-01-28","QUICK-Stop","Germany","Tarte au sucre","Confections",49.3,40,0,1972,"Laura Callahan"]
[10286,"2016-01-28","QUICK-Stop","Germany","Steeleye Stout","Beverages",18,100,0,1800,"Laura Callahan"]
[10287,"2016-01-29","Ricardo Adocicados","Brazil","Spegesild","Seafood",12,15,0.15,153,"Laura Callahan"]
[10287,"2016-01-29","Ricardo Adocicados","Brazil","Pavlova","Confections",17.45,40,0.15,593.29999999999995,"Laura Callahan"]
[10287,"2016-01-29","Ricardo Adocicados","Brazil","Sasquatch Ale","Beverages",14,20,0,280,"Laura Callahan"]
[10288,"2016-01-30","Reggiani Caseifici","Italy","Scottish Longbreads","Confections",12.5,3,0.1,33.75,"Margaret Peacock"]
[10288,"2016-01-30","Reggiani Caseifici","Italy","Tourtière","Meat/Poultry",7.45,10,0.1,67.05,"Margaret Peacock"]
[10289,"2016-02-02","B's Beverages","UK","Aniseed Syrup","Condiments",10,30,0,300,"Robert King"]
[10289,"2016-02-02","B's Beverages","UK","Wimmers gute Semmelknödel","Grains/Cereals",33.25,9,0,299.25,"Robert King"]
[10290,"2016-02-03","Comércio Mineiro","Brazil","Original Frankfurter grüne Soße","Condiments",13,10,0,130,"Laura Callahan"]
[10290,"2016-02-03","Comércio Mineiro","Brazil","Thüringer Rostbratwurst","Meat/Poultry",123.79,15,0,1856.85,"Laura Callahan"]
[10290,"2016-02-03","Comércio Mineiro","Brazil","Maxilaku","Confections",20,15,0,300,"Laura Callahan"]
[10290,"2016-02-03","Comércio Mineiro","Brazil","Chef Anton's Gumbo Mix","Condiments",21.35,20,0,427,"Laura Callahan"]
[10291,"2016-02-03","Que Delícia","Brazil","Gula Malacca","Condiments",19.45,24,0.1,420.12,"Michael Suyama"]
[10291,"2016-02-03","Que Delícia","Brazil","Konbu","Seafood",6,20,0.1,108,"Michael Suyama"]
[10291,"2016-02-03","Que Delícia","Brazil","Manjimup Dried Apples","Produce",53,2,0.1,95.4,"Michael Suyama"]
[10292,"2016-02-04","Tradição Hipermercados","Brazil","Sir Rodney's Marmalade","Confections",81,20,0,1620,"Nancy Davolio"]
[10293,"2016-02-05","Tortuga Restaurante","Mexico","Carnarvon Tigers","Seafood",62.5,12,0,750,"Nancy Davolio"]
[10293,"2016-02-05","Tortuga Restaurante","Mexico","Rhönbräu Klosterbier","Beverages",7.75,6,0,46.5,"Nancy Davolio"]
[10293,"2016-02-05","Tortuga Restaurante","Mexico","Guaraná Fantástica","Beverages",4.5,10,0,45,"Nancy Davolio"]
[10293,"2016-02-05","Tortuga Restaurante","Mexico","Vegie-spread","Condiments",43.9,5,0,219.5,"Nancy Davolio"]
[10294,"2016-02-06","Rattlesnake Canyon Grocery","USA","Camembert Pierrot","Dairy Products",34,21,0,714,"Margaret Peacock"]
[10294,"2016-02-06","Rattlesnake Canyon Grocery","USA","Rhönbräu Klosterbier","Beverages",7.75,6,0,46.5,"Margaret Peacock"]
[10294,"2016-02-06","Rattlesnake Canyon Grocery","USA","Chai","Beverages",18,18,0,324,"Margaret Peacock"]
[10294,"2016-02-06","Rattlesnake Canyon Grocery","USA","Ipoh Coffee","Beverages",46,15,0,690,"Margaret Peacock"]
[10294,"2016-02-06","Rattlesnake Canyon Grocery","USA","Alice Mutton","Meat/Poultry",39,15,0,585,"Margaret Peacock"]
[10295,"2016-02-09","Vins et alcools Chevalier","France","Gnocchi di nonna Alice","Grains/Cereals",38,4,0,152,"Andrew Fuller"]
[10296,"2016-02-10","LILA-Supermercado","Venezuela","Gudbrandsdalsost","Dairy Products",36,15,0,{"$f":"ROUND((G131*H131)*(1-I131),2)","v":540},"Michael Suyama"]
[10296,"2016-02-10","LILA-Supermercado","Venezuela","Queso Cabrales","Dairy Products",21,12,0,252,"Michael Suyama"]
[10296,"2016-02-10","LILA-Supermercado","Venezuela","Pavlova","Confections",17.45,30,0,523.5,"Michael Suyama"]
[10297,"2016-02-11","Blondel père et fils","France","Mozzarella di Giovanni","Dairy Products",34.799999999999997,20,0,696,"Steven Buchanan"]
[10297,"2016-02-11","Blondel père et fils","France","Chartreuse verte","Beverages",18,60,0,1080,"Steven Buchanan"]
[10298,"2016-02-12","Hungry Owl All-Night Grocers","Ireland","Chang","Beverages",19,40,0,760,"Michael Suyama"]
[10298,"2016-02-12","Hungry Owl All-Night Grocers","Ireland","Inlagd Sill","Seafood",19,40,0.25,570,"Michael Suyama"]
[10298,"2016-02-12","Hungry Owl All-Night Grocers","Ireland","Tarte au sucre","Confections",49.3,15,0,739.5,"Michael Suyama"]
[10298,"2016-02-12","Hungry Owl All-Night Grocers","Ireland","Raclette Courdavault","Dairy Products",55,30,0.25,1237.5,"Michael Suyama"]
[10299,"2016-02-13","Ricardo Adocicados","Brazil","Outback Lager","Beverages",15,20,0,300,"Margaret Peacock"]
[10299,"2016-02-13","Ricardo Adocicados","Brazil","Teatime Chocolate Biscuits","Confections",9.1999999999999993,15,0,138,"Margaret Peacock"]
[10300,"2016-02-16","Magazzini Alimentari Riuniti","Italy","Scottish Longbreads","Confections",12.5,20,0,250,"Andrew Fuller"]
[10300,"2016-02-16","Magazzini Alimentari Riuniti","Italy","Louisiana Hot Spiced Okra","Condiments",17,30,0,510,"Andrew Fuller"]
[10301,"2016-02-16","Die Wandernde Kuh","Germany","Gnocchi di nonna Alice","Grains/Cereals",38,20,0,760,"Laura Callahan"]
[10301,"2016-02-16","Die Wandernde Kuh","Germany","Boston Crab Meat","Seafood",18.399999999999999,10,0,184,"Laura Callahan"]
[10302,"2016-02-17","Suprêmes délices","Belgium","Ipoh Coffee","Beverages",46,12,0,552,"Margaret Peacock"]
[10302,"2016-02-17","Suprêmes délices","Belgium","Rössle Sauerkraut","Produce",45.6,28,0,1276.8,"Margaret Peacock"]
[10302,"2016-02-17","Suprêmes délices","Belgium","Alice Mutton","Meat/Poultry",39,40,0,1560,"Margaret Peacock"]
[10303,"2016-02-18","Godos Cocina Típica","Spain","Louisiana Fiery Hot Pepper Sauce","Condiments",21.05,30,0.1,568.35,"Robert King"]
[10303,"2016-02-18","Godos Cocina Típica","Spain","Boston Crab Meat","Seafood",18.399999999999999,40,0.1,662.4,"Robert King"]
[10303,"2016-02-18","Godos Cocina Típica","Spain","Scottish Longbreads","Confections",12.5,15,0.1,168.75,"Robert King"]
[10304,"2016-02-19","Tortuga Restaurante","Mexico","Maxilaku","Confections",20,30,0,600,"Nancy Davolio"]
[10304,"2016-02-19","Tortuga Restaurante","Mexico","Raclette Courdavault","Dairy Products",55,10,0,550,"Nancy Davolio"]
[10304,"2016-02-19","Tortuga Restaurante","Mexico","Fløtemysost","Dairy Products",21.5,2,0,43,"Nancy Davolio"]
[10305,"2016-02-20","Old World Delicatessen","USA","Chartreuse verte","Beverages",18,30,0.1,486,"Laura Callahan"]
[10305,"2016-02-20","Old World Delicatessen","USA","Thüringer Rostbratwurst","Meat/Poultry",123.79,25,0.1,2785.28,"Laura Callahan"]
[10305,"2016-02-20","Old World Delicatessen","USA","Carnarvon Tigers","Seafood",62.5,25,0.1,1406.25,"Laura Callahan"]
[10306,"2016-02-23","Romero y tomillo","Spain","Nord-Ost Matjeshering","Seafood",25.89,10,0,258.89999999999998,"Nancy Davolio"]
[10306,"2016-02-23","Romero y tomillo","Spain","Perth Pasties","Meat/Poultry",32.799999999999997,10,0,328,"Nancy Davolio"]
[10306,"2016-02-23","Romero y tomillo","Spain","Tourtière","Meat/Poultry",7.45,5,0,37.25,"Nancy Davolio"]
[10307,"2016-02-24","Lonesome Pine Restaurant","USA","Tarte au sucre","Confections",49.3,10,0,493,"Andrew Fuller"]
[10307,"2016-02-24","Lonesome Pine Restaurant","USA","Scottish Longbreads","Confections",12.5,3,0,37.5,"Andrew Fuller"]
[10308,"2016-02-25","Ana Trujillo Emparedados y helados","Mexico","Outback Lager","Beverages",15,5,0,75,"Robert King"]
[10308,"2016-02-25","Ana Trujillo Emparedados y helados","Mexico","Gudbrandsdalsost","Dairy Products",36,1,0,36,"Robert King"]
[10309,"2016-02-26","Hungry Owl All-Night Grocers","Ireland","Singaporean Hokkien Fried Mee","Grains/Cereals",14,2,0,28,"Janet Leverling"]
[10309,"2016-02-26","Hungry Owl All-Night Grocers","Ireland","Ipoh Coffee","Beverages",46,20,0,920,"Janet Leverling"]
[10309,"2016-02-26","Hungry Owl All-Night Grocers","Ireland","Grandma's Boysenberry Spread","Condiments",25,30,0,750,"Janet Leverling"]
[10309,"2016-02-26","Hungry Owl All-Night Grocers","Ireland","Chef Anton's Cajun Seasoning","Condiments",22,20,0,440,"Janet Leverling"]
[10309,"2016-02-26","Hungry Owl All-Night Grocers","Ireland","Fløtemysost","Dairy Products",21.5,3,0,64.5,"Janet Leverling"]
[10310,"2016-02-27","The Big Cheese","USA","Pavlova","Confections",17.45,10,0,174.5,"Laura Callahan"]
[10310,"2016-02-27","The Big Cheese","USA","Tarte au sucre","Confections",49.3,5,0,246.5,"Laura Callahan"]
[10311,"2016-02-27","Du monde entier","France","Gudbrandsdalsost","Dairy Products",36,7,0,252,"Nancy Davolio"]
[10311,"2016-02-27","Du monde entier","France","Singaporean Hokkien Fried Mee","Grains/Cereals",14,6,0,84,"Nancy Davolio"]
[10312,"2016-03-01","Die Wandernde Kuh","Germany","Rhönbräu Klosterbier","Beverages",7.75,10,0,77.5,"Andrew Fuller"]
[10312,"2016-03-01","Die Wandernde Kuh","Germany","Rössle Sauerkraut","Produce",45.6,4,0,182.4,"Andrew Fuller"]
[10312,"2016-03-01","Die Wandernde Kuh","Germany","Ipoh Coffee","Beverages",46,24,0,1104,"Andrew Fuller"]
[10312,"2016-03-01","Die Wandernde Kuh","Germany","Perth Pasties","Meat/Poultry",32.799999999999997,20,0,656,"Andrew Fuller"]
[10313,"2016-03-02","QUICK-Stop","Germany","Inlagd Sill","Seafood",19,12,0,228,"Andrew Fuller"]
[10314,"2016-03-03","Rattlesnake Canyon Grocery","USA","Tarte au sucre","Confections",49.3,25,0.1,1109.25,"Nancy Davolio"]
[10314,"2016-03-03","Rattlesnake Canyon Grocery","USA","Escargots de Bourgogne","Seafood",13.25,30,0.1,357.75,"Nancy Davolio"]
[10314,"2016-03-03","Rattlesnake Canyon Grocery","USA","Mascarpone Fabioli","Dairy Products",32,40,0.1,1152,"Nancy Davolio"]
[10315,"2016-03-04","Island Trading","UK","Outback Lager","Beverages",15,30,0,450,"Margaret Peacock"]
[10315,"2016-03-04","Island Trading","UK","Sasquatch Ale","Beverages",14,14,0,196,"Margaret Peacock"]
[10316,"2016-03-05","Rattlesnake Canyon Grocery","USA","Tarte au sucre","Confections",49.3,70,0,3451,"Nancy Davolio"]
[10316,"2016-03-05","Rattlesnake Canyon Grocery","USA","Jack's New England Clam Chowder","Seafood",9.65,10,0,96.5,"Nancy Davolio"]
[10317,"2016-03-08","Lonesome Pine Restaurant","USA","Chai","Beverages",18,20,0,360,"Michael Suyama"]
[10318,"2016-03-09","Island Trading","UK","Jack's New England Clam Chowder","Seafood",9.65,20,0,193,"Laura Callahan"]
[10318,"2016-03-09","Island Trading","UK","Lakkalikööri","Beverages",18,6,0,108,"Laura Callahan"]
[10319,"2016-03-10","Tortuga Restaurante","Mexico","Alice Mutton","Meat/Poultry",39,8,0,312,"Robert King"]
[10319,"2016-03-10","Tortuga Restaurante","Mexico","Rössle Sauerkraut","Produce",45.6,14,0,638.4,"Robert King"]
[10319,"2016-03-10","Tortuga Restaurante","Mexico","Lakkalikööri","Beverages",18,30,0,540,"Robert King"]
[10320,"2016-03-11","Wartian Herkku","Finland","Fløtemysost","Dairy Products",21.5,30,0,645,"Steven Buchanan"]
[10321,"2016-03-11","Island Trading","UK","Steeleye Stout","Beverages",18,10,0,180,"Janet Leverling"]
[10322,"2016-03-12","Pericles Comidas clásicas","Mexico","Filo Mix","Grains/Cereals",7,20,0,140,"Robert King"]
[10323,"2016-03-15","Königlich Essen","Germany","NuNuCa Nuß-Nougat-Creme","Confections",14,4,0,{"$f":"ROUND((G195*H195)*(1-I195),2)","v":56},"Margaret Peacock"]
[10323,"2016-03-15","Königlich Essen","Germany","Genen Shouyu","Condiments",15.5,5,0,77.5,"Margaret Peacock"]
[10323,"2016-03-15","Königlich Essen","Germany","Chartreuse verte","Beverages",18,4,0,72,"Margaret Peacock"]
[10324,"2016-03-16","Save-a-lot Markets","USA","Spegesild","Seafood",12,30,0,360,"Anne Dodsworth"]
[10324,"2016-03-16","Save-a-lot Markets","USA","Vegie-spread","Condiments",43.9,80,0.15,2985.2,"Anne Dodsworth"]
[10324,"2016-03-16","Save-a-lot Markets","USA","Raclette Courdavault","Dairy Products",55,40,0.15,1870,"Anne Dodsworth"]
[10324,"2016-03-16","Save-a-lot Markets","USA","Pavlova","Confections",17.45,21,0.15,311.48,"Anne Dodsworth"]
[10324,"2016-03-16","Save-a-lot Markets","USA","Steeleye Stout","Beverages",18,70,0.15,1071,"Anne Dodsworth"]
[10325,"2016-03-17","Königlich Essen","Germany","Tofu","Produce",23.25,9,0,209.25,"Nancy Davolio"]
[10325,"2016-03-17","Königlich Essen","Germany","Grandma's Boysenberry Spread","Condiments",25,6,0,150,"Nancy Davolio"]
[10325,"2016-03-17","Königlich Essen","Germany","Mozzarella di Giovanni","Dairy Products",34.799999999999997,40,0,1392,"Nancy Davolio"]
[10325,"2016-03-17","Königlich Essen","Germany","Gorgonzola Telino","Dairy Products",12.5,4,0,50,"Nancy Davolio"]
[10325,"2016-03-17","Königlich Essen","Germany","Konbu","Seafood",6,12,0,72,"Nancy Davolio"]
[10326,"2016-03-18","Bólido Comidas preparadas","Spain","Ravioli Angelo","Grains/Cereals",19.5,16,0,312,"Margaret Peacock"]
[10326,"2016-03-18","Bólido Comidas preparadas","Spain","Chef Anton's Cajun Seasoning","Condiments",22,24,0,528,"Margaret Peacock"]
[10326,"2016-03-18","Bólido Comidas preparadas","Spain","Rhönbräu Klosterbier","Beverages",7.75,50,0,387.5,"Margaret Peacock"]
[10327,"2016-03-19","Folk och fä HB","Sweden","Queso Cabrales","Dairy Products",21,50,0.2,840,"Andrew Fuller"]
[10327,"2016-03-19","Folk och fä HB","Sweden","Chang","Beverages",19,25,0.2,380,"Andrew Fuller"]
[10327,"2016-03-19","Folk och fä HB","Sweden","Nord-Ost Matjeshering","Seafood",25.89,35,0.2,724.92,"Andrew Fuller"]
[10327,"2016-03-19","Folk och fä HB","Sweden","Escargots de Bourgogne","Seafood",13.25,30,0.2,318,"Andrew Fuller"]
[10328,"2016-03-22","Furia Bacalhau e Frutos do Mar","Portugal","Raclette Courdavault","Dairy Products",55,9,0,495,"Margaret Peacock"]
[10328,"2016-03-22","Furia Bacalhau e Frutos do Mar","Portugal","Louisiana Fiery Hot Pepper Sauce","Condiments",21.05,40,0,842,"Margaret Peacock"]
[10328,"2016-03-22","Furia Bacalhau e Frutos do Mar","Portugal","Scottish Longbreads","Confections",12.5,10,0,125,"Margaret Peacock"]
[10329,"2016-03-23","Split Rail Beer & Ale","USA","Gnocchi di nonna Alice","Grains/Cereals",38,12,0.05,433.2,"Margaret Peacock"]
[10329,"2016-03-23","Split Rail Beer & Ale","USA","Côte de Blaye","Beverages",263.5,20,0.05,5006.5,"Margaret Peacock"]
[10329,"2016-03-23","Split Rail Beer & Ale","USA","Nord-Ost Matjeshering","Seafood",25.89,8,0.05,196.76,"Margaret Peacock"]
[10329,"2016-03-23","Split Rail Beer & Ale","USA","Teatime Chocolate Biscuits","Confections",9.1999999999999993,10,0.05,87.4,"Margaret Peacock"]
[10330,"2016-03-24","LILA-Supermercado","Venezuela","Gumbär Gummibärchen","Confections",31.23,50,0.15,1327.28,"Janet Leverling"]
[10330,"2016-03-24","LILA-Supermercado","Venezuela","Mozzarella di Giovanni","Dairy Products",34.799999999999997,25,0.15,739.5,"Janet Leverling"]
[10331,"2016-03-24","Bon app'","France","Tourtière","Meat/Poultry",7.45,15,0,111.75,"Anne Dodsworth"]
[10332,"2016-03-25","Mère Paillarde","Canada","Zaanse koeken","Confections",9.5,16,0.2,121.6,"Janet Leverling"]
[10332,"2016-03-25","Mère Paillarde","Canada","Singaporean Hokkien Fried Mee","Grains/Cereals",14,10,0.2,112,"Janet Leverling"]
[10332,"2016-03-25","Mère Paillarde","Canada","Carnarvon Tigers","Seafood",62.5,40,0.2,2000,"Janet Leverling"]
[10333,"2016-03-26","Wartian Herkku","Finland","Fløtemysost","Dairy Products",21.5,40,0.1,774,"Steven Buchanan"]
[10333,"2016-03-26","Wartian Herkku","Finland","Tofu","Produce",23.25,10,0,232.5,"Steven Buchanan"]
[10333,"2016-03-26","Wartian Herkku","Finland","Sir Rodney's Scones","Confections",10,10,0.1,90,"Steven Buchanan"]
[10334,"2016-03-29","Victuailles en stock","France","Filo Mix","Grains/Cereals",7,8,0,56,"Laura Callahan"]
[10334,"2016-03-29","Victuailles en stock","France","Scottish Longbreads","Confections",12.5,10,0,125,"Laura Callahan"]
[10335,"2016-03-30","Hungry Owl All-Night Grocers","Ireland","Mascarpone Fabioli","Dairy Products",32,6,0.2,153.6,"Robert King"]
[10335,"2016-03-30","Hungry Owl All-Night Grocers","Ireland","Gorgonzola Telino","Dairy Products",12.5,25,0.2,250,"Robert King"]
[10335,"2016-03-30","Hungry Owl All-Night Grocers","Ireland","Chang","Beverages",19,7,0.2,106.4,"Robert King"]
[10335,"2016-03-30","Hungry Owl All-Night Grocers","Ireland","Manjimup Dried Apples","Produce",53,48,0.2,2035.2,"Robert King"]
[10336,"2016-03-31","Princesa Isabel Vinhos","Portugal","Chef Anton's Cajun Seasoning","Condiments",22,18,0.1,356.4,"Robert King"]
[10337,"2016-04-01","Frankenversand","Germany","Tunnbröd","Grains/Cereals",9,40,0,360,"Margaret Peacock"]
[10337,"2016-04-01","Frankenversand","Germany","Gumbär Gummibärchen","Confections",31.23,24,0,749.52,"Margaret Peacock"]
[10337,"2016-04-01","Frankenversand","Germany","Inlagd Sill","Seafood",19,20,0,380,"Margaret Peacock"]
[10337,"2016-04-01","Frankenversand","Germany","Gravad lax","Seafood",26,28,0,728,"Margaret Peacock"]
[10337,"2016-04-01","Frankenversand","Germany","Mozzarella di Giovanni","Dairy Products",34.799999999999997,25,0,870,"Margaret Peacock"]
[10338,"2016-04-02","Old World Delicatessen","USA","Nord-Ost Matjeshering","Seafood",25.89,15,0,388.35,"Margaret Peacock"]
[10338,"2016-04-02","Old World Delicatessen","USA","Alice Mutton","Meat/Poultry",39,20,0,780,"Margaret Peacock"]
[10339,"2016-04-05","Mère Paillarde","Canada","Alice Mutton","Meat/Poultry",39,70,0.05,2593.5,"Andrew Fuller"]
[10339,"2016-04-05","Mère Paillarde","Canada","Tarte au sucre","Confections",49.3,28,0,1380.4,"Andrew Fuller"]
[10339,"2016-04-05","Mère Paillarde","Canada","Chef Anton's Cajun Seasoning","Condiments",22,10,0,220,"Andrew Fuller"]
[10340,"2016-04-06","Bon app'","France","Carnarvon Tigers","Seafood",62.5,20,0.05,1187.5,"Nancy Davolio"]
[10340,"2016-04-06","Bon app'","France","Ipoh Coffee","Beverages",46,40,0.05,1748,"Nancy Davolio"]
[10340,"2016-04-06","Bon app'","France","Jack's New England Clam Chowder","Seafood",9.65,12,0.05,110.01,"Nancy Davolio"]
[10341,"2016-04-06","Simons bistro","Denmark","Raclette Courdavault","Dairy Products",55,9,0.15,420.75,"Robert King"]
[10341,"2016-04-06","Simons bistro","Denmark","Geitost","Dairy Products",2.5,8,0,20,"Robert King"]
[10342,"2016-04-07","Frankenversand","Germany","Pâté chinois","Meat/Poultry",24,40,0.2,768,"Margaret Peacock"]
[10342,"2016-04-07","Frankenversand","Germany","Chang","Beverages",19,24,0.2,364.8,"Margaret Peacock"]
[10342,"2016-04-07","Frankenversand","Germany","Inlagd Sill","Seafood",19,40,0.2,608,"Margaret Peacock"]
[10342,"2016-04-07","Frankenversand","Germany","Gorgonzola Telino","Dairy Products",12.5,56,0.2,560,"Margaret Peacock"]
[10343,"2016-04-08","Lehmanns Marktstand","Germany","Lakkalikööri","Beverages",18,15,0,270,"Margaret Peacock"]
[10343,"2016-04-08","Lehmanns Marktstand","Germany","Scottish Longbreads","Confections",12.5,4,0.05,47.5,"Margaret Peacock"]
[10343,"2016-04-08","Lehmanns Marktstand","Germany","Wimmers gute Semmelknödel","Grains/Cereals",33.25,50,0,{"$f":"ROUND((G259*H259)*(1-I259),2)","v":1662.5},"Margaret Peacock"]
[10344,"2016-04-09","White Clover Markets","USA","Chef Anton's Cajun Seasoning","Condiments",22,35,0,770,"Margaret Peacock"]
[10344,"2016-04-09","White Clover Markets","USA","Northwoods Cranberry Sauce","Condiments",40,70,0.25,2100,"Margaret Peacock"]
[10345,"2016-04-12","QUICK-Stop","Germany","Northwoods Cranberry Sauce","Condiments",40,70,0,2800,"Andrew Fuller"]
[10345,"2016-04-12","QUICK-Stop","Germany","Teatime Chocolate Biscuits","Confections",9.1999999999999993,80,0,736,"Andrew Fuller"]
[10345,"2016-04-12","QUICK-Stop","Germany","Singaporean Hokkien Fried Mee","Grains/Cereals",14,9,0,126,"Andrew Fuller"]
[10346,"2016-04-13","Rattlesnake Canyon Grocery","USA","Alice Mutton","Meat/Poultry",39,36,0.1,1263.5999999999999,"Janet Leverling"]
[10346,"2016-04-13","Rattlesnake Canyon Grocery","USA","Gnocchi di nonna Alice","Grains/Cereals",38,20,0,760,"Janet Leverling"]
[10347,"2016-04-14","Familia Arquibaldo","Brazil","NuNuCa Nuß-Nougat-Creme","Confections",14,10,0,140,"Margaret Peacock"]
[10347,"2016-04-14","Familia Arquibaldo","Brazil","Rhönbräu Klosterbier","Beverages",7.75,6,0.15,39.53,"Margaret Peacock"]
[10347,"2016-04-14","Familia Arquibaldo","Brazil","Boston Crab Meat","Seafood",18.399999999999999,4,0,73.599999999999994,"Margaret Peacock"]
[10347,"2016-04-14","Familia Arquibaldo","Brazil","Chartreuse verte","Beverages",18,50,0.15,765,"Margaret Peacock"]
[10348,"2016-04-15","Die Wandernde Kuh","Germany","Chai","Beverages",18,15,0.15,229.5,"Margaret Peacock"]
[10348,"2016-04-15","Die Wandernde Kuh","Germany","Tunnbröd","Grains/Cereals",9,25,0,225,"Margaret Peacock"]
[10349,"2016-04-16","Split Rail Beer & Ale","USA","Tourtière","Meat/Poultry",7.45,24,0,178.8,"Robert King"]
[10350,"2016-04-19","La maison d'Asie","France","Valkoinen suklaa","Confections",16.25,15,0.1,219.38,"Michael Suyama"]
[10350,"2016-04-19","La maison d'Asie","France","Gudbrandsdalsost","Dairy Products",36,18,0.1,583.20000000000005,"Michael Suyama"]
[10351,"2016-04-19","Ernst Handel","Austria","Côte de Blaye","Beverages",263.5,20,0.05,5006.5,"Nancy Davolio"]
[10351,"2016-04-19","Ernst Handel","Austria","Gula Malacca","Condiments",19.45,77,0.05,1422.77,"Nancy Davolio"]
[10351,"2016-04-19","Ernst Handel","Austria","Louisiana Fiery Hot Pepper Sauce","Condiments",21.05,10,0.05,199.98,"Nancy Davolio"]
[10351,"2016-04-19","Ernst Handel","Austria","Jack's New England Clam Chowder","Seafood",9.65,13,0,125.45,"Nancy Davolio"]
[10352,"2016-04-20","Furia Bacalhau e Frutos do Mar","Portugal","Tourtière","Meat/Poultry",7.45,20,0.15,126.65,"Janet Leverling"]
[10352,"2016-04-20","Furia Bacalhau e Frutos do Mar","Portugal","Guaraná Fantástica","Beverages",4.5,10,0,45,"Janet Leverling"]
[10353,"2016-04-21","Piccolo und mehr","Austria","Côte de Blaye","Beverages",263.5,50,0.2,10540,"Robert King"]
[10353,"2016-04-21","Piccolo und mehr","Austria","Queso Cabrales","Dairy Products",21,12,0.2,201.6,"Robert King"]
[10354,"2016-04-22","Pericles Comidas clásicas","Mexico","Thüringer Rostbratwurst","Meat/Poultry",123.79,4,0,495.16,"Laura Callahan"]
[10354,"2016-04-22","Pericles Comidas clásicas","Mexico","Chai","Beverages",18,12,0,216,"Laura Callahan"]
[10355,"2016-04-23","Around the Horn","UK","Guaraná Fantástica","Beverages",4.5,25,0,112.5,"Michael Suyama"]
[10355,"2016-04-23","Around the Horn","UK","Ravioli Angelo","Grains/Cereals",19.5,25,0,487.5,"Michael Suyama"]
[10356,"2016-04-26","Die Wandernde Kuh","Germany","Gorgonzola Telino","Dairy Products",12.5,30,0,375,"Michael Suyama"]
[10356,"2016-04-26","Die Wandernde Kuh","Germany","Gudbrandsdalsost","Dairy Products",36,20,0,720,"Michael Suyama"]
[10356,"2016-04-26","Die Wandernde Kuh","Germany","Pâté chinois","Meat/Poultry",24,12,0,288,"Michael Suyama"]
[10357,"2016-04-27","LILA-Supermercado","Venezuela","Camembert Pierrot","Dairy Products",34,8,0.2,217.6,"Nancy Davolio"]
[10357,"2016-04-27","LILA-Supermercado","Venezuela","Gumbär Gummibärchen","Confections",31.23,16,0,499.68,"Nancy Davolio"]
[10357,"2016-04-27","LILA-Supermercado","Venezuela","Ikura","Seafood",31,30,0.2,744,"Nancy Davolio"]
[10358,"2016-04-28","La maison d'Asie","France","Inlagd Sill","Seafood",19,20,0.05,361,"Steven Buchanan"]
[10358,"2016-04-28","La maison d'Asie","France","Sasquatch Ale","Beverages",14,10,0.05,133,"Steven Buchanan"]
[10358,"2016-04-28","La maison d'Asie","France","Guaraná Fantástica","Beverages",4.5,10,0.05,42.75,"Steven Buchanan"]
[10359,"2016-04-29","Seven Seas Imports","UK","Pavlova","Confections",17.45,56,0.05,928.34,"Steven Buchanan"]
[10359,"2016-04-29","Seven Seas Imports","UK","Camembert Pierrot","Dairy Products",34,80,0.05,2584,"Steven Buchanan"]
[10359,"2016-04-29","Seven Seas Imports","UK","Gorgonzola Telino","Dairy Products",12.5,70,0.05,831.25,"Steven Buchanan"]
[10360,"2016-04-30","Blondel père et fils","France","Maxilaku","Confections",20,35,0,700,"Margaret Peacock"]
[10360,"2016-04-30","Blondel père et fils","France","Côte de Blaye","Beverages",263.5,10,0,2635,"Margaret Peacock"]
[10360,"2016-04-30","Blondel père et fils","France","Rössle Sauerkraut","Produce",45.6,30,0,1368,"Margaret Peacock"]
[10360,"2016-04-30","Blondel père et fils","France","Thüringer Rostbratwurst","Meat/Poultry",123.79,35,0,4332.6499999999996,"Margaret Peacock"]
[10360,"2016-04-30","Blondel père et fils","France","Tourtière","Meat/Poultry",7.45,28,0,208.6,"Margaret Peacock"]
[10361,"2016-04-30","QUICK-Stop","Germany","Camembert Pierrot","Dairy Products",34,55,0.1,1683,"Nancy Davolio"]
[10361,"2016-04-30","QUICK-Stop","Germany","Chartreuse verte","Beverages",18,54,0.1,874.8,"Nancy Davolio"]
[10362,"2016-05-03","Bon app'","France","Tourtière","Meat/Poultry",7.45,24,0,178.8,"Janet Leverling"]
[10362,"2016-05-03","Bon app'","France","Manjimup Dried Apples","Produce",53,20,0,1060,"Janet Leverling"]
[10362,"2016-05-03","Bon app'","France","NuNuCa Nuß-Nougat-Creme","Confections",14,50,0,700,"Janet Leverling"]
[10363,"2016-05-04","Drachenblut Delikatessen","Germany","Gorgonzola Telino","Dairy Products",12.5,20,0,250,"Margaret Peacock"]
[10363,"2016-05-04","Drachenblut Delikatessen","Germany","Lakkalikööri","Beverages",18,12,0,216,"Margaret Peacock"]
[10363,"2016-05-04","Drachenblut Delikatessen","Germany","Rhönbräu Klosterbier","Beverages",7.75,12,0,93,"Margaret Peacock"]
[10364,"2016-05-04","Eastern Connection","UK","Gudbrandsdalsost","Dairy Products",36,30,0,1080,"Nancy Davolio"]
[10364,"2016-05-04","Eastern Connection","UK","Fløtemysost","Dairy Products",21.5,5,0,107.5,"Nancy Davolio"]
[10365,"2016-05-05","Antonio Moreno Taquería","Mexico","Queso Cabrales","Dairy Products",21,24,0,504,"Janet Leverling"]
[10366,"2016-05-06","Galería del gastrónomo","Spain","Louisiana Fiery Hot Pepper Sauce","Condiments",21.05,5,0,105.25,"Laura Callahan"]
[10366,"2016-05-06","Galería del gastrónomo","Spain","Original Frankfurter grüne Soße","Condiments",13,5,0,65,"Laura Callahan"]
[10367,"2016-05-06","Vaffeljernet","Denmark","Original Frankfurter grüne Soße","Condiments",13,7,0,91,"Robert King"]
[10367,"2016-05-06","Vaffeljernet","Denmark","Louisiana Fiery Hot Pepper Sauce","Condiments",21.05,15,0,315.75,"Robert King"]
[10367,"2016-05-06","Vaffeljernet","Denmark","Sasquatch Ale","Beverages",14,36,0,504,"Robert King"]
[10367,"2016-05-06","Vaffeljernet","Denmark","Tourtière","Meat/Poultry",7.45,18,0,134.1,"Robert King"]

{"sheet":"Cambridge","index":2,"n_rows":500,"n_cols":11,"rows_kept":500,"cut":false,"hidden":false,"merged":[]}
["Order ID","Order Date","Customer Name","Country","Product Name","Product Category","Unit Price","Units Sold","Discount","Total Sales Value","Sales Rep"]
[10248,"2015-12-11","Vins et alcools Chevalier","France","Mozzarella di Giovanni","Dairy Products",34.799999999999997,5,0,{"$f":"ROUND((G2*H2)*(1-I2),2)","v":174},"Steven Buchanan"]
[10248,"2015-12-11","Vins et alcools Chevalier","France","Singaporean Hokkien Fried Mee","Grains/Cereals",14,10,0,{"$f":"ROUND((G3*H3)*(1-I3),2)","v":140},"Steven Buchanan"]
[10248,"2015-12-11","Vins et alcools Chevalier","France","Queso Cabrales","Dairy Products",21,12,0,252,"Steven Buchanan"]
[10249,"2015-12-12","Toms Spezialitäten","Germany","Manjimup Dried Apples","Produce",53,40,0,2120,"Michael Suyama"]
[10249,"2015-12-12","Toms Spezialitäten","Germany","Tofu","Produce",23.25,9,0,209.25,"Michael Suyama"]
[10250,"2015-12-15","Hanari Carnes","Brazil","Manjimup Dried Apples","Produce",53,35,0.15,1576.75,"Margaret Peacock"]
[10250,"2015-12-15","Hanari Carnes","Brazil","Jack's New England Clam Chowder","Seafood",9.65,10,0,96.5,"Margaret Peacock"]
[10250,"2015-12-15","Hanari Carnes","Brazil","Louisiana Fiery Hot Pepper Sauce","Condiments",21.05,15,0.15,268.39,"Margaret Peacock"]
[10251,"2015-12-15","Victuailles en stock","France","Gustaf's Knäckebröd","Grains/Cereals",21,6,0.05,119.7,"Janet Leverling"]
[10251,"2015-12-15","Victuailles en stock","France","Louisiana Fiery Hot Pepper Sauce","Condiments",21.05,20,0,421,"Janet Leverling"]
[10251,"2015-12-15","Victuailles en stock","France","Ravioli Angelo","Grains/Cereals",19.5,15,0.05,277.88,"Janet Leverling"]
[10252,"2015-12-16","Suprêmes délices","Belgium","Geitost","Dairy Products",2.5,25,0.05,59.38,"Margaret Peacock"]
[10252,"2015-12-16","Suprêmes délices","Belgium","Camembert Pierrot","Dairy Products",34,40,0,1360,"Margaret Peacock"]
[10252,"2015-12-16","Suprêmes délices","Belgium","Sir Rodney's Marmalade","Confections",81,40,0.05,3078,"Margaret Peacock"]
[10253,"2015-12-17","Hanari Carnes","Brazil","Chartreuse verte","Beverages",18,42,0,756,"Janet Leverling"]
[10253,"2015-12-17","Hanari Carnes","Brazil","Gorgonzola Telino","Dairy Products",12.5,20,0,250,"Janet Leverling"]
[10253,"2015-12-17","Hanari Carnes","Brazil","Maxilaku","Confections",20,40,0,800,"Janet Leverling"]
[10254,"2015-12-18","Chop-suey Chinese","Switzerland","Longlife Tofu","Produce",10,21,0,210,"Steven Buchanan"]
[10254,"2015-12-18","Chop-suey Chinese","Switzerland","Pâté chinois","Meat/Poultry",24,21,0.15,428.4,"Steven Buchanan"]
[10254,"2015-12-18","Chop-suey Chinese","Switzerland","Guaraná Fantástica","Beverages",4.5,15,0.15,57.38,"Steven Buchanan"]
[10255,"2015-12-19","Richter Supermarkt","Switzerland","Chang","Beverages",19,20,0,380,"Anne Dodsworth"]
[10255,"2015-12-19","Richter Supermarkt","Switzerland","Raclette Courdavault","Dairy Products",55,30,0,1650,"Anne Dodsworth"]
[10255,"2015-12-19","Richter Supermarkt","Switzerland","Pavlova","Confections",17.45,35,0,610.75,"Anne Dodsworth"]
[10255,"2015-12-19","Richter Supermarkt","Switzerland","Inlagd Sill","Seafood",19,25,0,475,"Anne Dodsworth"]
[10256,"2015-12-22","Wellington Importadora","Brazil","Perth Pasties","Meat/Poultry",32.799999999999997,15,0,492,"Janet Leverling"]
[10256,"2015-12-22","Wellington Importadora","Brazil","Original Frankfurter grüne Soße","Condiments",13,12,0,156,"Janet Leverling"]
[10257,"2015-12-23","HILARIÓN-Abastos","Venezuela","Schoggi Schokolade","Confections",43.9,25,0,1097.5,"Margaret Peacock"]
[10257,"2015-12-23","HILARIÓN-Abastos","Venezuela","Chartreuse verte","Beverages",18,6,0,108,"Margaret Peacock"]
[10257,"2015-12-23","HILARIÓN-Abastos","Venezuela","Original Frankfurter grüne Soße","Condiments",13,15,0,195,"Margaret Peacock"]
[10258,"2015-12-24","Ernst Handel","Austria","Chef Anton's Gumbo Mix","Condiments",21.35,65,0.2,1110.2,"Nancy Davolio"]
[10258,"2015-12-24","Ernst Handel","Austria","Chang","Beverages",19,50,0.2,760,"Nancy Davolio"]
[10258,"2015-12-24","Ernst Handel","Austria","Mascarpone Fabioli","Dairy Products",32,6,0.2,153.6,"Nancy Davolio"]
[10259,"2015-12-25","Centro comercial Moctezuma","Mexico","Sir Rodney's Scones","Confections",10,10,0,100,"Margaret Peacock"]
[10259,"2015-12-25","Centro comercial Moctezuma","Mexico","Gravad lax","Seafood",26,1,0,26,"Margaret Peacock"]
[10260,"2015-12-26","Ottilies Käseladen","Germany","Outback Lager","Beverages",15,21,0.25,236.25,"Margaret Peacock"]
[10260,"2015-12-26","Ottilies Käseladen","Germany","Ravioli Angelo","Grains/Cereals",19.5,50,0,975,"Margaret Peacock"]
[10260,"2015-12-26","Ottilies Käseladen","Germany","Tarte au sucre","Confections",49.3,15,0.25,554.63,"Margaret Peacock"]
[10260,"2015-12-26","Ottilies Käseladen","Germany","Jack's New England Clam Chowder","Seafood",9.65,16,0.25,115.8,"Margaret Peacock"]
[10261,"2015-12-26","Que Delícia","Brazil","Steeleye Stout","Beverages",18,20,0,360,"Margaret Peacock"]
[10261,"2015-12-26","Que Delícia","Brazil","Sir Rodney's Scones","Confections",10,20,0,200,"Margaret Peacock"]
[10262,"2015-12-29","Rattlesnake Canyon Grocery","USA","Chef Anton's Gumbo Mix","Condiments",21.35,12,0.2,204.96,"Laura Callahan"]
[10262,"2015-12-29","Rattlesnake Canyon Grocery","USA","Uncle Bob's Organic Dried Pears","Produce",30,15,0,450,"Laura Callahan"]
[10262,"2015-12-29","Rattlesnake Canyon Grocery","USA","Gnocchi di nonna Alice","Grains/Cereals",38,2,0,76,"Laura Callahan"]
[10263,"2015-12-30","Ernst Handel","Austria","Pavlova","Confections",17.45,60,0.25,785.25,"Anne Dodsworth"]
[10263,"2015-12-30","Ernst Handel","Austria","Nord-Ost Matjeshering","Seafood",25.89,60,0.25,1165.05,"Anne Dodsworth"]
[10263,"2015-12-30","Ernst Handel","Austria","Guaraná Fantástica","Beverages",4.5,28,0,126,"Anne Dodsworth"]
[10263,"2015-12-30","Ernst Handel","Austria","Longlife Tofu","Produce",10,36,0.25,270,"Anne Dodsworth"]
[10264,"2015-12-31","Folk och fä HB","Sweden","Chang","Beverages",19,35,0,665,"Michael Suyama"]
[10264,"2015-12-31","Folk och fä HB","Sweden","Jack's New England Clam Chowder","Seafood",9.65,25,0.15,205.06,"Michael Suyama"]
[10265,"2016-01-01","Blondel père et fils","France","Alice Mutton","Meat/Poultry",39,30,0,1170,"Andrew Fuller"]
[10265,"2016-01-01","Blondel père et fils","France","Outback Lager","Beverages",15,20,0,300,"Andrew Fuller"]
[10266,"2016-01-02","Wartian Herkku","Finland","Queso Manchego La Pastora","Dairy Products",38,12,0.05,433.2,"Janet Leverling"]
[10267,"2016-01-05","Frankenversand","Germany","Lakkalikööri","Beverages",18,15,0.15,229.5,"Margaret Peacock"]
[10267,"2016-01-05","Frankenversand","Germany","Boston Crab Meat","Seafood",18.399999999999999,50,0,920,"Margaret Peacock"]
[10267,"2016-01-05","Frankenversand","Germany","Raclette Courdavault","Dairy Products",55,70,0.15,3272.5,"Margaret Peacock"]
[10268,"2016-01-06","GROSELLA-Restaurante","Venezuela","Mozzarella di Giovanni","Dairy Products",34.799999999999997,4,0,139.19999999999999,"Laura Callahan"]
[10268,"2016-01-06","GROSELLA-Restaurante","Venezuela","Thüringer Rostbratwurst","Meat/Poultry",123.79,10,0,1237.9000000000001,"Laura Callahan"]
[10269,"2016-01-07","White Clover Markets","USA","Mozzarella di Giovanni","Dairy Products",34.799999999999997,20,0.05,661.2,"Steven Buchanan"]
[10269,"2016-01-07","White Clover Markets","USA","Geitost","Dairy Products",2.5,60,0.05,142.5,"Steven Buchanan"]
[10270,"2016-01-08","Wartian Herkku","Finland","Inlagd Sill","Seafood",19,30,0,570,"Nancy Davolio"]
[10270,"2016-01-08","Wartian Herkku","Finland","Ipoh Coffee","Beverages",46,25,0,1150,"Nancy Davolio"]
[10271,"2016-01-08","Split Rail Beer & Ale","USA","Geitost","Dairy Products",2.5,24,0,60,"Michael Suyama"]
[10272,"2016-01-09","Rattlesnake Canyon Grocery","USA","Gorgonzola Telino","Dairy Products",12.5,40,0,500,"Michael Suyama"]
[10272,"2016-01-09","Rattlesnake Canyon Grocery","USA","Sir Rodney's Marmalade","Confections",81,6,0,486,"Michael Suyama"]
[10272,"2016-01-09","Rattlesnake Canyon Grocery","USA","Mozzarella di Giovanni","Dairy Products",34.799999999999997,24,0,835.2,"Michael Suyama"]
[10273,"2016-01-12","QUICK-Stop","Germany","Boston Crab Meat","Seafood",18.399999999999999,60,0.05,{"$f":"ROUND((G67*H67)*(1-I67),2)","v":1048.8},"Janet Leverling"]
[10273,"2016-01-12","QUICK-Stop","Germany","Geitost","Dairy Products",2.5,20,0,50,"Janet Leverling"]
[10273,"2016-01-12","QUICK-Stop","Germany","Gorgonzola Telino","Dairy Products",12.5,15,0.05,178.13,"Janet Leverling"]
[10273,"2016-01-12","QUICK-Stop","Germany","Ikura","Seafood",31,24,0.05,706.8,"Janet Leverling"]
[10273,"2016-01-12","QUICK-Stop","Germany","Lakkalikööri","Beverages",18,33,0.05,564.29999999999995,"Janet Leverling"]
[10274,"2016-01-13","Vins et alcools Chevalier","France","Fløtemysost","Dairy Products",21.5,20,0,430,"Michael Suyama"]
[10274,"2016-01-13","Vins et alcools Chevalier","France","Mozzarella di Giovanni","Dairy Products",34.799999999999997,7,0,243.6,"Michael Suyama"]
[10275,"2016-01-14","Magazzini Alimentari Riuniti","Italy","Guaraná Fantástica","Beverages",4.5,12,0.05,51.3,"Nancy Davolio"]
[10275,"2016-01-14","Magazzini Alimentari Riuniti","Italy","Raclette Courdavault","Dairy Products",55,6,0.05,313.5,"Nancy Davolio"]
[10276,"2016-01-15","Tortuga Restaurante","Mexico","Ikura","Seafood",31,15,0,465,"Laura Callahan"]
[10276,"2016-01-15","Tortuga Restaurante","Mexico","Konbu","Seafood",6,10,0,60,"Laura Callahan"]
[10277,"2016-01-16","Morgenstern Gesundkost","Germany","Rössle Sauerkraut","Produce",45.6,20,0,912,"Andrew Fuller"]
[10277,"2016-01-16","Morgenstern Gesundkost","Germany","Tarte au sucre","Confections",49.3,12,0,591.6,"Andrew Fuller"]
[10278,"2016-01-19","Berglunds snabbköp","Sweden","Raclette Courdavault","Dairy Products",55,15,0,825,"Laura Callahan"]
[10278,"2016-01-19","Berglunds snabbköp","Sweden","Röd Kaviar","Seafood",15,25,0,375,"Laura Callahan"]
[10278,"2016-01-19","Berglunds snabbköp","Sweden","Gula Malacca","Condiments",19.45,16,0,311.2,"Laura Callahan"]
[10278,"2016-01-19","Berglunds snabbköp","Sweden","Vegie-spread","Condiments",43.9,8,0,351.2,"Laura Callahan"]
[10279,"2016-01-20","Lehmanns Marktstand","Germany","Alice Mutton","Meat/Poultry",39,15,0.25,438.75,"Laura Callahan"]
[10280,"2016-01-21","Berglunds snabbköp","Sweden","Pâté chinois","Meat/Poultry",24,20,0,480,"Andrew Fuller"]
[10280,"2016-01-21","Berglunds snabbköp","Sweden","Rhönbräu Klosterbier","Beverages",7.75,30,0,232.5,"Andrew Fuller"]
[10280,"2016-01-21","Berglunds snabbköp","Sweden","Guaraná Fantástica","Beverages",4.5,12,0,54,"Andrew Fuller"]
[10281,"2016-01-21","Romero y tomillo","Spain","Guaraná Fantástica","Beverages",4.5,6,0,27,"Margaret Peacock"]
[10281,"2016-01-21","Romero y tomillo","Spain","Steeleye Stout","Beverages",18,4,0,72,"Margaret Peacock"]
[10281,"2016-01-21","Romero y tomillo","Spain","Teatime Chocolate Biscuits","Confections",9.1999999999999993,1,0,9.1999999999999993,"Margaret Peacock"]
[10282,"2016-01-22","Romero y tomillo","Spain","Ravioli Angelo","Grains/Cereals",19.5,2,0,39,"Margaret Peacock"]
[10282,"2016-01-22","Romero y tomillo","Spain","Nord-Ost Matjeshering","Seafood",25.89,6,0,155.34,"Margaret Peacock"]
[10283,"2016-01-23","LILA-Supermercado","Venezuela","Teatime Chocolate Biscuits","Confections",9.1999999999999993,18,0,165.6,"Janet Leverling"]
[10283,"2016-01-23","LILA-Supermercado","Venezuela","Camembert Pierrot","Dairy Products",34,35,0,1190,"Janet Leverling"]
[10283,"2016-01-23","LILA-Supermercado","Venezuela","Genen Shouyu","Condiments",15.5,20,0,310,"Janet Leverling"]
[10283,"2016-01-23","LILA-Supermercado","Venezuela","Mozzarella di Giovanni","Dairy Products",34.799999999999997,3,0,104.4,"Janet Leverling"]
[10284,"2016-01-26","Lehmanns Marktstand","Germany","Laughing Lumberjack Lager","Beverages",14,5,0.25,52.5,"Margaret Peacock"]
[10284,"2016-01-26","Lehmanns Marktstand","Germany","Gula Malacca","Condiments",19.45,21,0,408.45,"Margaret Peacock"]
[10284,"2016-01-26","Lehmanns Marktstand","Germany","Camembert Pierrot","Dairy Products",34,20,0.25,510,"Margaret Peacock"]
[10284,"2016-01-26","Lehmanns Marktstand","Germany","Schoggi Schokolade","Confections",43.9,15,0.25,493.88,"Margaret Peacock"]
[10285,"2016-01-27","QUICK-Stop","Germany","Chai","Beverages",18,45,0.2,648,"Nancy Davolio"]
[10285,"2016-01-27","QUICK-Stop","Germany","Boston Crab Meat","Seafood",18.399999999999999,40,0.2,588.79999999999995,"Nancy Davolio"]
[10285,"2016-01-27","QUICK-Stop","Germany","Perth Pasties","Meat/Poultry",32.799999999999997,36,0.2,944.64,"Nancy Davolio"]
[10286,"2016-01-28","QUICK-Stop","Germany","Tarte au sucre","Confections",49.3,40,0,1972,"Laura Callahan"]
[10286,"2016-01-28","QUICK-Stop","Germany","Steeleye Stout","Beverages",18,100,0,1800,"Laura Callahan"]
[10287,"2016-01-29","Ricardo Adocicados","Brazil","Spegesild","Seafood",12,15,0.15,153,"Laura Callahan"]
[10287,"2016-01-29","Ricardo Adocicados","Brazil","Pavlova","Confections",17.45,40,0.15,593.29999999999995,"Laura Callahan"]
[10287,"2016-01-29","Ricardo Adocicados","Brazil","Sasquatch Ale","Beverages",14,20,0,280,"Laura Callahan"]
[10288,"2016-01-30","Reggiani Caseifici","Italy","Scottish Longbreads","Confections",12.5,3,0.1,33.75,"Margaret Peacock"]
[10288,"2016-01-30","Reggiani Caseifici","Italy","Tourtière","Meat/Poultry",7.45,10,0.1,67.05,"Margaret Peacock"]
[10289,"2016-02-02","B's Beverages","UK","Aniseed Syrup","Condiments",10,30,0,300,"Robert King"]
[10289,"2016-02-02","B's Beverages","UK","Wimmers gute Semmelknödel","Grains/Cereals",33.25,9,0,299.25,"Robert King"]
[10290,"2016-02-03","Comércio Mineiro","Brazil","Original Frankfurter grüne Soße","Condiments",13,10,0,130,"Laura Callahan"]
[10290,"2016-02-03","Comércio Mineiro","Brazil","Thüringer Rostbratwurst","Meat/Poultry",123.79,15,0,1856.85,"Laura Callahan"]
[10290,"2016-02-03","Comércio Mineiro","Brazil","Maxilaku","Confections",20,15,0,300,"Laura Callahan"]
[10290,"2016-02-03","Comércio Mineiro","Brazil","Chef Anton's Gumbo Mix","Condiments",21.35,20,0,427,"Laura Callahan"]
[10291,"2016-02-03","Que Delícia","Brazil","Gula Malacca","Condiments",19.45,24,0.1,420.12,"Michael Suyama"]
[10291,"2016-02-03","Que Delícia","Brazil","Konbu","Seafood",6,20,0.1,108,"Michael Suyama"]
[10291,"2016-02-03","Que Delícia","Brazil","Manjimup Dried Apples","Produce",53,2,0.1,95.4,"Michael Suyama"]
[10292,"2016-02-04","Tradição Hipermercados","Brazil","Sir Rodney's Marmalade","Confections",81,20,0,1620,"Nancy Davolio"]
[10293,"2016-02-05","Tortuga Restaurante","Mexico","Carnarvon Tigers","Seafood",62.5,12,0,750,"Nancy Davolio"]
[10293,"2016-02-05","Tortuga Restaurante","Mexico","Rhönbräu Klosterbier","Beverages",7.75,6,0,46.5,"Nancy Davolio"]
[10293,"2016-02-05","Tortuga Restaurante","Mexico","Guaraná Fantástica","Beverages",4.5,10,0,45,"Nancy Davolio"]
[10293,"2016-02-05","Tortuga Restaurante","Mexico","Vegie-spread","Condiments",43.9,5,0,219.5,"Nancy Davolio"]
[10294,"2016-02-06","Rattlesnake Canyon Grocery","USA","Camembert Pierrot","Dairy Products",34,21,0,714,"Margaret Peacock"]
[10294,"2016-02-06","Rattlesnake Canyon Grocery","USA","Rhönbräu Klosterbier","Beverages",7.75,6,0,46.5,"Margaret Peacock"]
[10294,"2016-02-06","Rattlesnake Canyon Grocery","USA","Chai","Beverages",18,18,0,324,"Margaret Peacock"]
[10294,"2016-02-06","Rattlesnake Canyon Grocery","USA","Ipoh Coffee","Beverages",46,15,0,690,"Margaret Peacock"]
[10294,"2016-02-06","Rattlesnake Canyon Grocery","USA","Alice Mutton","Meat/Poultry",39,15,0,585,"Margaret Peacock"]
[10295,"2016-02-09","Vins et alcools Chevalier","France","Gnocchi di nonna Alice","Grains/Cereals",38,4,0,152,"Andrew Fuller"]
[10296,"2016-02-10","LILA-Supermercado","Venezuela","Gudbrandsdalsost","Dairy Products",36,15,0,{"$f":"ROUND((G131*H131)*(1-I131),2)","v":540},"Michael Suyama"]
[10296,"2016-02-10","LILA-Supermercado","Venezuela","Queso Cabrales","Dairy Products",21,12,0,252,"Michael Suyama"]
[10296,"2016-02-10","LILA-Supermercado","Venezuela","Pavlova","Confections",17.45,30,0,523.5,"Michael Suyama"]
[10297,"2016-02-11","Blondel père et fils","France","Mozzarella di Giovanni","Dairy Products",34.799999999999997,20,0,696,"Steven Buchanan"]
[10297,"2016-02-11","Blondel père et fils","France","Chartreuse verte","Beverages",18,60,0,1080,"Steven Buchanan"]
[10298,"2016-02-12","Hungry Owl All-Night Grocers","Ireland","Chang","Beverages",19,40,0,760,"Michael Suyama"]
[10298,"2016-02-12","Hungry Owl All-Night Grocers","Ireland","Inlagd Sill","Seafood",19,40,0.25,570,"Michael Suyama"]
[10298,"2016-02-12","Hungry Owl All-Night Grocers","Ireland","Tarte au sucre","Confections",49.3,15,0,739.5,"Michael Suyama"]
[10298,"2016-02-12","Hungry Owl All-Night Grocers","Ireland","Raclette Courdavault","Dairy Products",55,30,0.25,1237.5,"Michael Suyama"]
[10299,"2016-02-13","Ricardo Adocicados","Brazil","Outback Lager","Beverages",15,20,0,300,"Margaret Peacock"]
[10299,"2016-02-13","Ricardo Adocicados","Brazil","Teatime Chocolate Biscuits","Confections",9.1999999999999993,15,0,138,"Margaret Peacock"]
[10300,"2016-02-16","Magazzini Alimentari Riuniti","Italy","Scottish Longbreads","Confections",12.5,20,0,250,"Andrew Fuller"]
[10300,"2016-02-16","Magazzini Alimentari Riuniti","Italy","Louisiana Hot Spiced Okra","Condiments",17,30,0,510,"Andrew Fuller"]
[10301,"2016-02-16","Die Wandernde Kuh","Germany","Gnocchi di nonna Alice","Grains/Cereals",38,20,0,760,"Laura Callahan"]
[10301,"2016-02-16","Die Wandernde Kuh","Germany","Boston Crab Meat","Seafood",18.399999999999999,10,0,184,"Laura Callahan"]
[10302,"2016-02-17","Suprêmes délices","Belgium","Ipoh Coffee","Beverages",46,12,0,552,"Margaret Peacock"]
[10302,"2016-02-17","Suprêmes délices","Belgium","Rössle Sauerkraut","Produce",45.6,28,0,1276.8,"Margaret Peacock"]
[10302,"2016-02-17","Suprêmes délices","Belgium","Alice Mutton","Meat/Poultry",39,40,0,1560,"Margaret Peacock"]
[10303,"2016-02-18","Godos Cocina Típica","Spain","Louisiana Fiery Hot Pepper Sauce","Condiments",21.05,30,0.1,568.35,"Robert King"]
[10303,"2016-02-18","Godos Cocina Típica","Spain","Boston Crab Meat","Seafood",18.399999999999999,40,0.1,662.4,"Robert King"]
[10303,"2016-02-18","Godos Cocina Típica","Spain","Scottish Longbreads","Confections",12.5,15,0.1,168.75,"Robert King"]
[10304,"2016-02-19","Tortuga Restaurante","Mexico","Maxilaku","Confections",20,30,0,600,"Nancy Davolio"]
[10304,"2016-02-19","Tortuga Restaurante","Mexico","Raclette Courdavault","Dairy Products",55,10,0,550,"Nancy Davolio"]
[10304,"2016-02-19","Tortuga Restaurante","Mexico","Fløtemysost","Dairy Products",21.5,2,0,43,"Nancy Davolio"]
[10305,"2016-02-20","Old World Delicatessen","USA","Chartreuse verte","Beverages",18,30,0.1,486,"Laura Callahan"]
[10305,"2016-02-20","Old World Delicatessen","USA","Thüringer Rostbratwurst","Meat/Poultry",123.79,25,0.1,2785.28,"Laura Callahan"]
[10305,"2016-02-20","Old World Delicatessen","USA","Carnarvon Tigers","Seafood",62.5,25,0.1,1406.25,"Laura Callahan"]
[10306,"2016-02-23","Romero y tomillo","Spain","Nord-Ost Matjeshering","Seafood",25.89,10,0,258.89999999999998,"Nancy Davolio"]
[10306,"2016-02-23","Romero y tomillo","Spain","Perth Pasties","Meat/Poultry",32.799999999999997,10,0,328,"Nancy Davolio"]
[10306,"2016-02-23","Romero y tomillo","Spain","Tourtière","Meat/Poultry",7.45,5,0,37.25,"Nancy Davolio"]
[10307,"2016-02-24","Lonesome Pine Restaurant","USA","Tarte au sucre","Confections",49.3,10,0,493,"Andrew Fuller"]
[10307,"2016-02-24","Lonesome Pine Restaurant","USA","Scottish Longbreads","Confections",12.5,3,0,37.5,"Andrew Fuller"]
[10308,"2016-02-25","Ana Trujillo Emparedados y helados","Mexico","Outback Lager","Beverages",15,5,0,75,"Robert King"]
[10308,"2016-02-25","Ana Trujillo Emparedados y helados","Mexico","Gudbrandsdalsost","Dairy Products",36,1,0,36,"Robert King"]
[10309,"2016-02-26","Hungry Owl All-Night Grocers","Ireland","Singaporean Hokkien Fried Mee","Grains/Cereals",14,2,0,28,"Janet Leverling"]
[10309,"2016-02-26","Hungry Owl All-Night Grocers","Ireland","Ipoh Coffee","Beverages",46,20,0,920,"Janet Leverling"]
[10309,"2016-02-26","Hungry Owl All-Night Grocers","Ireland","Grandma's Boysenberry Spread","Condiments",25,30,0,750,"Janet Leverling"]
[10309,"2016-02-26","Hungry Owl All-Night Grocers","Ireland","Chef Anton's Cajun Seasoning","Condiments",22,20,0,440,"Janet Leverling"]
[10309,"2016-02-26","Hungry Owl All-Night Grocers","Ireland","Fløtemysost","Dairy Products",21.5,3,0,64.5,"Janet Leverling"]
[10310,"2016-02-27","The Big Cheese","USA","Pavlova","Confections",17.45,10,0,174.5,"Laura Callahan"]
[10310,"2016-02-27","The Big Cheese","USA","Tarte au sucre","Confections",49.3,5,0,246.5,"Laura Callahan"]
[10311,"2016-02-27","Du monde entier","France","Gudbrandsdalsost","Dairy Products",36,7,0,252,"Nancy Davolio"]
[10311,"2016-02-27","Du monde entier","France","Singaporean Hokkien Fried Mee","Grains/Cereals",14,6,0,84,"Nancy Davolio"]
[10312,"2016-03-01","Die Wandernde Kuh","Germany","Rhönbräu Klosterbier","Beverages",7.75,10,0,77.5,"Andrew Fuller"]
[10312,"2016-03-01","Die Wandernde Kuh","Germany","Rössle Sauerkraut","Produce",45.6,4,0,182.4,"Andrew Fuller"]
[10312,"2016-03-01","Die Wandernde Kuh","Germany","Ipoh Coffee","Beverages",46,24,0,1104,"Andrew Fuller"]
[10312,"2016-03-01","Die Wandernde Kuh","Germany","Perth Pasties","Meat/Poultry",32.799999999999997,20,0,656,"Andrew Fuller"]
[10313,"2016-03-02","QUICK-Stop","Germany","Inlagd Sill","Seafood",19,12,0,228,"Andrew Fuller"]
[10314,"2016-03-03","Rattlesnake Canyon Grocery","USA","Tarte au sucre","Confections",49.3,25,0.1,1109.25,"Nancy Davolio"]
[10314,"2016-03-03","Rattlesnake Canyon Grocery","USA","Escargots de Bourgogne","Seafood",13.25,30,0.1,357.75,"Nancy Davolio"]
[10314,"2016-03-03","Rattlesnake Canyon Grocery","USA","Mascarpone Fabioli","Dairy Products",32,40,0.1,1152,"Nancy Davolio"]
[10315,"2016-03-04","Island Trading","UK","Outback Lager","Beverages",15,30,0,450,"Margaret Peacock"]
[10315,"2016-03-04","Island Trading","UK","Sasquatch Ale","Beverages",14,14,0,196,"Margaret Peacock"]
[10316,"2016-03-05","Rattlesnake Canyon Grocery","USA","Tarte au sucre","Confections",49.3,70,0,3451,"Nancy Davolio"]
[10316,"2016-03-05","Rattlesnake Canyon Grocery","USA","Jack's New England Clam Chowder","Seafood",9.65,10,0,96.5,"Nancy Davolio"]
[10317,"2016-03-08","Lonesome Pine Restaurant","USA","Chai","Beverages",18,20,0,360,"Michael Suyama"]
[10318,"2016-03-09","Island Trading","UK","Jack's New England Clam Chowder","Seafood",9.65,20,0,193,"Laura Callahan"]
[10318,"2016-03-09","Island Trading","UK","Lakkalikööri","Beverages",18,6,0,108,"Laura Callahan"]
[10319,"2016-03-10","Tortuga Restaurante","Mexico","Alice Mutton","Meat/Poultry",39,8,0,312,"Robert King"]
[10319,"2016-03-10","Tortuga Restaurante","Mexico","Rössle Sauerkraut","Produce",45.6,14,0,638.4,"Robert King"]
[10319,"2016-03-10","Tortuga Restaurante","Mexico","Lakkalikööri","Beverages",18,30,0,540,"Robert King"]
[10320,"2016-03-11","Wartian Herkku","Finland","Fløtemysost","Dairy Products",21.5,30,0,645,"Steven Buchanan"]
[10321,"2016-03-11","Island Trading","UK","Steeleye Stout","Beverages",18,10,0,180,"Janet Leverling"]
[10322,"2016-03-12","Pericles Comidas clásicas","Mexico","Filo Mix","Grains/Cereals",7,20,0,140,"Robert King"]
[10323,"2016-03-15","Königlich Essen","Germany","NuNuCa Nuß-Nougat-Creme","Confections",14,4,0,{"$f":"ROUND((G195*H195)*(1-I195),2)","v":56},"Margaret Peacock"]
[10323,"2016-03-15","Königlich Essen","Germany","Genen Shouyu","Condiments",15.5,5,0,77.5,"Margaret Peacock"]
[10323,"2016-03-15","Königlich Essen","Germany","Chartreuse verte","Beverages",18,4,0,72,"Margaret Peacock"]
[10324,"2016-03-16","Save-a-lot Markets","USA","Spegesild","Seafood",12,30,0,360,"Anne Dodsworth"]
[10324,"2016-03-16","Save-a-lot Markets","USA","Vegie-spread","Condiments",43.9,80,0.15,2985.2,"Anne Dodsworth"]
[10324,"2016-03-16","Save-a-lot Markets","USA","Raclette Courdavault","Dairy Products",55,40,0.15,1870,"Anne Dodsworth"]
[10324,"2016-03-16","Save-a-lot Markets","USA","Pavlova","Confections",17.45,21,0.15,311.48,"Anne Dodsworth"]
[10324,"2016-03-16","Save-a-lot Markets","USA","Steeleye Stout","Beverages",18,70,0.15,1071,"Anne Dodsworth"]
[10325,"2016-03-17","Königlich Essen","Germany","Tofu","Produce",23.25,9,0,209.25,"Nancy Davolio"]
[10325,"2016-03-17","Königlich Essen","Germany","Grandma's Boysenberry Spread","Condiments",25,6,0,150,"Nancy Davolio"]
[10325,"2016-03-17","Königlich Essen","Germany","Mozzarella di Giovanni","Dairy Products",34.799999999999997,40,0,1392,"Nancy Davolio"]
[10325,"2016-03-17","Königlich Essen","Germany","Gorgonzola Telino","Dairy Products",12.5,4,0,50,"Nancy Davolio"]
[10325,"2016-03-17","Königlich Essen","Germany","Konbu","Seafood",6,12,0,72,"Nancy Davolio"]
[10326,"2016-03-18","Bólido Comidas preparadas","Spain","Ravioli Angelo","Grains/Cereals",19.5,16,0,312,"Margaret Peacock"]
[10326,"2016-03-18","Bólido Comidas preparadas","Spain","Chef Anton's Cajun Seasoning","Condiments",22,24,0,528,"Margaret Peacock"]
[10326,"2016-03-18","Bólido Comidas preparadas","Spain","Rhönbräu Klosterbier","Beverages",7.75,50,0,387.5,"Margaret Peacock"]
[10327,"2016-03-19","Folk och fä HB","Sweden","Queso Cabrales","Dairy Products",21,50,0.2,840,"Andrew Fuller"]
[10327,"2016-03-19","Folk och fä HB","Sweden","Chang","Beverages",19,25,0.2,380,"Andrew Fuller"]
[10327,"2016-03-19","Folk och fä HB","Sweden","Nord-Ost Matjeshering","Seafood",25.89,35,0.2,724.92,"Andrew Fuller"]
[10327,"2016-03-19","Folk och fä HB","Sweden","Escargots de Bourgogne","Seafood",13.25,30,0.2,318,"Andrew Fuller"]
[10328,"2016-03-22","Furia Bacalhau e Frutos do Mar","Portugal","Raclette Courdavault","Dairy Products",55,9,0,495,"Margaret Peacock"]
[10328,"2016-03-22","Furia Bacalhau e Frutos do Mar","Portugal","Louisiana Fiery Hot Pepper Sauce","Condiments",21.05,40,0,842,"Margaret Peacock"]
[10328,"2016-03-22","Furia Bacalhau e Frutos do Mar","Portugal","Scottish Longbreads","Confections",12.5,10,0,125,"Margaret Peacock"]
[10329,"2016-03-23","Split Rail Beer & Ale","USA","Gnocchi di nonna Alice","Grains/Cereals",38,12,0.05,433.2,"Margaret Peacock"]
[10329,"2016-03-23","Split Rail Beer & Ale","USA","Côte de Blaye","Beverages",263.5,20,0.05,5006.5,"Margaret Peacock"]
[10329,"2016-03-23","Split Rail Beer & Ale","USA","Nord-Ost Matjeshering","Seafood",25.89,8,0.05,196.76,"Margaret Peacock"]
[10329,"2016-03-23","Split Rail Beer & Ale","USA","Teatime Chocolate Biscuits","Confections",9.1999999999999993,10,0.05,87.4,"Margaret Peacock"]
[10330,"2016-03-24","LILA-Supermercado","Venezuela","Gumbär Gummibärchen","Confections",31.23,50,0.15,1327.28,"Janet Leverling"]
[10330,"2016-03-24","LILA-Supermercado","Venezuela","Mozzarella di Giovanni","Dairy Products",34.799999999999997,25,0.15,739.5,"Janet Leverling"]
[10331,"2016-03-24","Bon app'","France","Tourtière","Meat/Poultry",7.45,15,0,111.75,"Anne Dodsworth"]
[10332,"2016-03-25","Mère Paillarde","Canada","Zaanse koeken","Confections",9.5,16,0.2,121.6,"Janet Leverling"]
[10332,"2016-03-25","Mère Paillarde","Canada","Singaporean Hokkien Fried Mee","Grains/Cereals",14,10,0.2,112,"Janet Leverling"]
[10332,"2016-03-25","Mère Paillarde","Canada","Carnarvon Tigers","Seafood",62.5,40,0.2,2000,"Janet Leverling"]
[10333,"2016-03-26","Wartian Herkku","Finland","Fløtemysost","Dairy Products",21.5,40,0.1,774,"Steven Buchanan"]
[10333,"2016-03-26","Wartian Herkku","Finland","Tofu","Produce",23.25,10,0,232.5,"Steven Buchanan"]
[10333,"2016-03-26","Wartian Herkku","Finland","Sir Rodney's Scones","Confections",10,10,0.1,90,"Steven Buchanan"]
[10334,"2016-03-29","Victuailles en stock","France","Filo Mix","Grains/Cereals",7,8,0,56,"Laura Callahan"]
[10334,"2016-03-29","Victuailles en stock","France","Scottish Longbreads","Confections",12.5,10,0,125,"Laura Callahan"]
[10335,"2016-03-30","Hungry Owl All-Night Grocers","Ireland","Mascarpone Fabioli","Dairy Products",32,6,0.2,153.6,"Robert King"]
[10335,"2016-03-30","Hungry Owl All-Night Grocers","Ireland","Gorgonzola Telino","Dairy Products",12.5,25,0.2,250,"Robert King"]
[10335,"2016-03-30","Hungry Owl All-Night Grocers","Ireland","Chang","Beverages",19,7,0.2,106.4,"Robert King"]
[10335,"2016-03-30","Hungry Owl All-Night Grocers","Ireland","Manjimup Dried Apples","Produce",53,48,0.2,2035.2,"Robert King"]
[10336,"2016-03-31","Princesa Isabel Vinhos","Portugal","Chef Anton's Cajun Seasoning","Condiments",22,18,0.1,356.4,"Robert King"]
[10337,"2016-04-01","Frankenversand","Germany","Tunnbröd","Grains/Cereals",9,40,0,360,"Margaret Peacock"]
[10337,"2016-04-01","Frankenversand","Germany","Gumbär Gummibärchen","Confections",31.23,24,0,749.52,"Margaret Peacock"]
[10337,"2016-04-01","Frankenversand","Germany","Inlagd Sill","Seafood",19,20,0,380,"Margaret Peacock"]
[10337,"2016-04-01","Frankenversand","Germany","Gravad lax","Seafood",26,28,0,728,"Margaret Peacock"]
[10337,"2016-04-01","Frankenversand","Germany","Mozzarella di Giovanni","Dairy Products",34.799999999999997,25,0,870,"Margaret Peacock"]
[10338,"2016-04-02","Old World Delicatessen","USA","Nord-Ost Matjeshering","Seafood",25.89,15,0,388.35,"Margaret Peacock"]
[10338,"2016-04-02","Old World Delicatessen","USA","Alice Mutton","Meat/Poultry",39,20,0,780,"Margaret Peacock"]
[10339,"2016-04-05","Mère Paillarde","Canada","Alice Mutton","Meat/Poultry",39,70,0.05,2593.5,"Andrew Fuller"]
[10339,"2016-04-05","Mère Paillarde","Canada","Tarte au sucre","Confections",49.3,28,0,1380.4,"Andrew Fuller"]
[10339,"2016-04-05","Mère Paillarde","Canada","Chef Anton's Cajun Seasoning","Condiments",22,10,0,220,"Andrew Fuller"]
[10340,"2016-04-06","Bon app'","France","Carnarvon Tigers","Seafood",62.5,20,0.05,1187.5,"Nancy Davolio"]
[10340,"2016-04-06","Bon app'","France","Ipoh Coffee","Beverages",46,40,0.05,1748,"Nancy Davolio"]
[10340,"2016-04-06","Bon app'","France","Jack's New England Clam Chowder","Seafood",9.65,12,0.05,110.01,"Nancy Davolio"]
[10341,"2016-04-06","Simons bistro","Denmark","Raclette Courdavault","Dairy Products",55,9,0.15,420.75,"Robert King"]
[10341,"2016-04-06","Simons bistro","Denmark","Geitost","Dairy Products",2.5,8,0,20,"Robert King"]
[10342,"2016-04-07","Frankenversand","Germany","Pâté chinois","Meat/Poultry",24,40,0.2,768,"Margaret Peacock"]
[10342,"2016-04-07","Frankenversand","Germany","Chang","Beverages",19,24,0.2,364.8,"Margaret Peacock"]
[10342,"2016-04-07","Frankenversand","Germany","Inlagd Sill","Seafood",19,40,0.2,608,"Margaret Peacock"]
[10342,"2016-04-07","Frankenversand","Germany","Gorgonzola Telino","Dairy Products",12.5,56,0.2,560,"Margaret Peacock"]
[10343,"2016-04-08","Lehmanns Marktstand","Germany","Lakkalikööri","Beverages",18,15,0,270,"Margaret Peacock"]
[10343,"2016-04-08","Lehmanns Marktstand","Germany","Scottish Longbreads","Confections",12.5,4,0.05,47.5,"Margaret Peacock"]
[10343,"2016-04-08","Lehmanns Marktstand","Germany","Wimmers gute Semmelknödel","Grains/Cereals",33.25,50,0,{"$f":"ROUND((G259*H259)*(1-I259),2)","v":1662.5},"Margaret Peacock"]
[10344,"2016-04-09","White Clover Markets","USA","Chef Anton's Cajun Seasoning","Condiments",22,35,0,770,"Margaret Peacock"]
[10344,"2016-04-09","White Clover Markets","USA","Northwoods Cranberry Sauce","Condiments",40,70,0.25,2100,"Margaret Peacock"]
[10345,"2016-04-12","QUICK-Stop","Germany","Northwoods Cranberry Sauce","Condiments",40,70,0,2800,"Andrew Fuller"]
[10345,"2016-04-12","QUICK-Stop","Germany","Teatime Chocolate Biscuits","Confections",9.1999999999999993,80,0,736,"Andrew Fuller"]
[10345,"2016-04-12","QUICK-Stop","Germany","Singaporean Hokkien Fried Mee","Grains/Cereals",14,9,0,126,"Andrew Fuller"]
[10346,"2016-04-13","Rattlesnake Canyon Grocery","USA","Alice Mutton","Meat/Poultry",39,36,0.1,1263.5999999999999,"Janet Leverling"]
[10346,"2016-04-13","Rattlesnake Canyon Grocery","USA","Gnocchi di nonna Alice","Grains/Cereals",38,20,0,760,"Janet Leverling"]
[10347,"2016-04-14","Familia Arquibaldo","Brazil","NuNuCa Nuß-Nougat-Creme","Confections",14,10,0,140,"Margaret Peacock"]
[10347,"2016-04-14","Familia Arquibaldo","Brazil","Rhönbräu Klosterbier","Beverages",7.75,6,0.15,39.53,"Margaret Peacock"]
[10347,"2016-04-14","Familia Arquibaldo","Brazil","Boston Crab Meat","Seafood",18.399999999999999,4,0,73.599999999999994,"Margaret Peacock"]
[10347,"2016-04-14","Familia Arquibaldo","Brazil","Chartreuse verte","Beverages",18,50,0.15,765,"Margaret Peacock"]
[10348,"2016-04-15","Die Wandernde Kuh","Germany","Chai","Beverages",18,15,0.15,229.5,"Margaret Peacock"]
[10348,"2016-04-15","Die Wandernde Kuh","Germany","Tunnbröd","Grains/Cereals",9,25,0,225,"Margaret Peacock"]
[10349,"2016-04-16","Split Rail Beer & Ale","USA","Tourtière","Meat/Poultry",7.45,24,0,178.8,"Robert King"]
[10350,"2016-04-19","La maison d'Asie","France","Valkoinen suklaa","Confections",16.25,15,0.1,219.38,"Michael Suyama"]
[10350,"2016-04-19","La maison d'Asie","France","Gudbrandsdalsost","Dairy Products",36,18,0.1,583.20000000000005,"Michael Suyama"]
[10351,"2016-04-19","Ernst Handel","Austria","Côte de Blaye","Beverages",263.5,20,0.05,5006.5,"Nancy Davolio"]
[10351,"2016-04-19","Ernst Handel","Austria","Gula Malacca","Condiments",19.45,77,0.05,1422.77,"Nancy Davolio"]
[10351,"2016-04-19","Ernst Handel","Austria","Louisiana Fiery Hot Pepper Sauce","Condiments",21.05,10,0.05,199.98,"Nancy Davolio"]
[10351,"2016-04-19","Ernst Handel","Austria","Jack's New England Clam Chowder","Seafood",9.65,13,0,125.45,"Nancy Davolio"]
[10352,"2016-04-20","Furia Bacalhau e Frutos do Mar","Portugal","Tourtière","Meat/Poultry",7.45,20,0.15,126.65,"Janet Leverling"]
[10352,"2016-04-20","Furia Bacalhau e Frutos do Mar","Portugal","Guaraná Fantástica","Beverages",4.5,10,0,45,"Janet Leverling"]
[10353,"2016-04-21","Piccolo und mehr","Austria","Côte de Blaye","Beverages",263.5,50,0.2,10540,"Robert King"]
[10353,"2016-04-21","Piccolo und mehr","Austria","Queso Cabrales","Dairy Products",21,12,0.2,201.6,"Robert King"]
[10354,"2016-04-22","Pericles Comidas clásicas","Mexico","Thüringer Rostbratwurst","Meat/Poultry",123.79,4,0,495.16,"Laura Callahan"]
[10354,"2016-04-22","Pericles Comidas clásicas","Mexico","Chai","Beverages",18,12,0,216,"Laura Callahan"]
[10355,"2016-04-23","Around the Horn","UK","Guaraná Fantástica","Beverages",4.5,25,0,112.5,"Michael Suyama"]
[10355,"2016-04-23","Around the Horn","UK","Ravioli Angelo","Grains/Cereals",19.5,25,0,487.5,"Michael Suyama"]
[10356,"2016-04-26","Die Wandernde Kuh","Germany","Gorgonzola Telino","Dairy Products",12.5,30,0,375,"Michael Suyama"]
[10356,"2016-04-26","Die Wandernde Kuh","Germany","Gudbrandsdalsost","Dairy Products",36,20,0,720,"Michael Suyama"]
[10356,"2016-04-26","Die Wandernde Kuh","Germany","Pâté chinois","Meat/Poultry",24,12,0,288,"Michael Suyama"]
[10357,"2016-04-27","LILA-Supermercado","Venezuela","Camembert Pierrot","Dairy Products",34,8,0.2,217.6,"Nancy Davolio"]
[10357,"2016-04-27","LILA-Supermercado","Venezuela","Gumbär Gummibärchen","Confections",31.23,16,0,499.68,"Nancy Davolio"]
[10357,"2016-04-27","LILA-Supermercado","Venezuela","Ikura","Seafood",31,30,0.2,744,"Nancy Davolio"]
[10358,"2016-04-28","La maison d'Asie","France","Inlagd Sill","Seafood",19,20,0.05,361,"Steven Buchanan"]
[10358,"2016-04-28","La maison d'Asie","France","Sasquatch Ale","Beverages",14,10,0.05,133,"Steven Buchanan"]
[10358,"2016-04-28","La maison d'Asie","France","Guaraná Fantástica","Beverages",4.5,10,0.05,42.75,"Steven Buchanan"]
[10359,"2016-04-29","Seven Seas Imports","UK","Pavlova","Confections",17.45,56,0.05,928.34,"Steven Buchanan"]
[10359,"2016-04-29","Seven Seas Imports","UK","Camembert Pierrot","Dairy Products",34,80,0.05,2584,"Steven Buchanan"]
[10359,"2016-04-29","Seven Seas Imports","UK","Gorgonzola Telino","Dairy Products",12.5,70,0.05,831.25,"Steven Buchanan"]
[10360,"2016-04-30","Blondel père et fils","France","Maxilaku","Confections",20,35,0,700,"Margaret Peacock"]
[10360,"2016-04-30","Blondel père et fils","France","Côte de Blaye","Beverages",263.5,10,0,2635,"Margaret Peacock"]
[10360,"2016-04-30","Blondel père et fils","France","Rössle Sauerkraut","Produce",45.6,30,0,1368,"Margaret Peacock"]
[10360,"2016-04-30","Blondel père et fils","France","Thüringer Rostbratwurst","Meat/Poultry",123.79,35,0,4332.6499999999996,"Margaret Peacock"]
[10360,"2016-04-30","Blondel père et fils","France","Tourtière","Meat/Poultry",7.45,28,0,208.6,"Margaret Peacock"]
[10361,"2016-04-30","QUICK-Stop","Germany","Camembert Pierrot","Dairy Products",34,55,0.1,1683,"Nancy Davolio"]
[10361,"2016-04-30","QUICK-Stop","Germany","Chartreuse verte","Beverages",18,54,0.1,874.8,"Nancy Davolio"]
[10362,"2016-05-03","Bon app'","France","Tourtière","Meat/Poultry",7.45,24,0,178.8,"Janet Leverling"]
[10362,"2016-05-03","Bon app'","France","Manjimup Dried Apples","Produce",53,20,0,1060,"Janet Leverling"]
[10362,"2016-05-03","Bon app'","France","NuNuCa Nuß-Nougat-Creme","Confections",14,50,0,700,"Janet Leverling"]
[10363,"2016-05-04","Drachenblut Delikatessen","Germany","Gorgonzola Telino","Dairy Products",12.5,20,0,250,"Margaret Peacock"]
[10363,"2016-05-04","Drachenblut Delikatessen","Germany","Lakkalikööri","Beverages",18,12,0,216,"Margaret Peacock"]
[10363,"2016-05-04","Drachenblut Delikatessen","Germany","Rhönbräu Klosterbier","Beverages",7.75,12,0,93,"Margaret Peacock"]
[10364,"2016-05-04","Eastern Connection","UK","Gudbrandsdalsost","Dairy Products",36,30,0,1080,"Nancy Davolio"]
[10364,"2016-05-04","Eastern Connection","UK","Fløtemysost","Dairy Products",21.5,5,0,107.5,"Nancy Davolio"]
[10365,"2016-05-05","Antonio Moreno Taquería","Mexico","Queso Cabrales","Dairy Products",21,24,0,504,"Janet Leverling"]
[10366,"2016-05-06","Galería del gastrónomo","Spain","Louisiana Fiery Hot Pepper Sauce","Condiments",21.05,5,0,105.25,"Laura Callahan"]
[10366,"2016-05-06","Galería del gastrónomo","Spain","Original Frankfurter grüne Soße","Condiments",13,5,0,65,"Laura Callahan"]
[10367,"2016-05-06","Vaffeljernet","Denmark","Original Frankfurter grüne Soße","Condiments",13,7,0,91,"Robert King"]
[10367,"2016-05-06","Vaffeljernet","Denmark","Louisiana Fiery Hot Pepper Sauce","Condiments",21.05,15,0,315.75,"Robert King"]
[10367,"2016-05-06","Vaffeljernet","Denmark","Sasquatch Ale","Beverages",14,36,0,504,"Robert King"]
[10367,"2016-05-06","Vaffeljernet","Denmark","Tourtière","Meat/Poultry",7.45,18,0,134.1,"Robert King"]
[10368,"2016-05-07","Ernst Handel","Austria","Wimmers gute Semmelknödel","Grains/Cereals",33.25,35,0.1,1047.3800000000001,"Andrew Fuller"]
[10368,"2016-05-07","Ernst Handel","Austria","Rössle Sauerkraut","Produce",45.6,13,0.1,{"$f":"ROUND((G323*H323)*(1-I323),2)","v":533.52},"Andrew Fuller"]
[10368,"2016-05-07","Ernst Handel","Austria","Ravioli Angelo","Grains/Cereals",19.5,25,0,487.5,"Andrew Fuller"]
[10368,"2016-05-07","Ernst Handel","Austria","Sir Rodney's Scones","Confections",10,5,0.1,45,"Andrew Fuller"]
[10369,"2016-05-10","Split Rail Beer & Ale","USA","Gnocchi di nonna Alice","Grains/Cereals",38,18,0.25,513,"Laura Callahan"]
[10369,"2016-05-10","Split Rail Beer & Ale","USA","Thüringer Rostbratwurst","Meat/Poultry",123.79,20,0,2475.8000000000002,"Laura Callahan"]
[10370,"2016-05-11","Chop-suey Chinese","Switzerland","Longlife Tofu","Produce",10,20,0.15,170,"Michael Suyama"]
[10370,"2016-05-11","Chop-suey Chinese","Switzerland","Chai","Beverages",18,15,0.15,229.5,"Michael Suyama"]
[10370,"2016-05-11","Chop-suey Chinese","Switzerland","Wimmers gute Semmelknödel","Grains/Cereals",33.25,30,0,997.5,"Michael Suyama"]
[10371,"2016-05-11","La maison d'Asie","France","Inlagd Sill","Seafood",19,6,0.2,91.2,"Nancy Davolio"]
[10372,"2016-05-12","Queen Cozinha","Brazil","Côte de Blaye","Beverages",263.5,40,0.25,7905,"Steven Buchanan"]
[10372,"2016-05-12","Queen Cozinha","Brazil","Mozzarella di Giovanni","Dairy Products",34.799999999999997,42,0.25,1096.2,"Steven Buchanan"]
[10372,"2016-05-12","Queen Cozinha","Brazil","Camembert Pierrot","Dairy Products",34,70,0.25,1785,"Steven Buchanan"]
[10372,"2016-05-12","Queen Cozinha","Brazil","Sir Rodney's Marmalade","Confections",81,12,0.25,729,"Steven Buchanan"]
[10373,"2016-05-13","Hungry Owl All-Night Grocers","Ireland","Fløtemysost","Dairy Products",21.5,50,0.2,860,"Margaret Peacock"]
[10373,"2016-05-13","Hungry Owl All-Night Grocers","Ireland","Escargots de Bourgogne","Seafood",13.25,80,0.2,848,"Margaret Peacock"]
[10374,"2016-05-13","Wolski  Zajazd","Poland","Escargots de Bourgogne","Seafood",13.25,15,0,198.75,"Nancy Davolio"]
[10374,"2016-05-13","Wolski  Zajazd","Poland","Gorgonzola Telino","Dairy Products",12.5,30,0,375,"Nancy Davolio"]
[10375,"2016-05-14","Hungry Coyote Import Store","USA","Tourtière","Meat/Poultry",7.45,10,0,74.5,"Janet Leverling"]
[10375,"2016-05-14","Hungry Coyote Import Store","USA","Tofu","Produce",23.25,15,0,348.75,"Janet Leverling"]
[10376,"2016-05-17","Mère Paillarde","Canada","Gorgonzola Telino","Dairy Products",12.5,42,0.05,498.75,"Nancy Davolio"]
[10377,"2016-05-17","Seven Seas Imports","UK","Chartreuse verte","Beverages",18,20,0.15,306,"Nancy Davolio"]
[10377,"2016-05-17","Seven Seas Imports","UK","Rössle Sauerkraut","Produce",45.6,20,0.15,775.2,"Nancy Davolio"]
[10378,"2016-05-18","Folk och fä HB","Sweden","Fløtemysost","Dairy Products",21.5,6,0,129,"Steven Buchanan"]
[10379,"2016-05-19","Que Delícia","Brazil","Jack's New England Clam Chowder","Seafood",9.65,8,0.1,69.48,"Andrew Fuller"]
[10379,"2016-05-19","Que Delícia","Brazil","Louisiana Fiery Hot Pepper Sauce","Condiments",21.05,20,0.1,378.9,"Andrew Fuller"]
[10379,"2016-05-19","Que Delícia","Brazil","Vegie-spread","Condiments",43.9,16,0.1,632.16,"Andrew Fuller"]
[10380,"2016-05-20","Hungry Owl All-Night Grocers","Ireland","Nord-Ost Matjeshering","Seafood",25.89,18,0.1,419.42,"Laura Callahan"]
[10380,"2016-05-20","Hungry Owl All-Night Grocers","Ireland","Camembert Pierrot","Dairy Products",34,6,0.1,183.6,"Laura Callahan"]
[10380,"2016-05-20","Hungry Owl All-Night Grocers","Ireland","Perth Pasties","Meat/Poultry",32.799999999999997,20,0.1,590.4,"Laura Callahan"]
[10380,"2016-05-20","Hungry Owl All-Night Grocers","Ireland","Outback Lager","Beverages",15,30,0,450,"Laura Callahan"]
[10381,"2016-05-20","LILA-Supermercado","Venezuela","Longlife Tofu","Produce",10,14,0,140,"Janet Leverling"]
[10382,"2016-05-21","Ernst Handel","Austria","Geitost","Dairy Products",2.5,60,0,150,"Margaret Peacock"]
[10382,"2016-05-21","Ernst Handel","Austria","Thüringer Rostbratwurst","Meat/Poultry",123.79,14,0,1733.06,"Margaret Peacock"]
[10382,"2016-05-21","Ernst Handel","Austria","Chef Anton's Gumbo Mix","Condiments",21.35,32,0,683.2,"Margaret Peacock"]
[10382,"2016-05-21","Ernst Handel","Austria","Longlife Tofu","Produce",10,50,0,500,"Margaret Peacock"]
[10382,"2016-05-21","Ernst Handel","Austria","Carnarvon Tigers","Seafood",62.5,9,0,562.5,"Margaret Peacock"]
[10383,"2016-05-24","Around the Horn","UK","Valkoinen suklaa","Confections",16.25,15,0,243.75,"Laura Callahan"]
[10383,"2016-05-24","Around the Horn","UK","Gnocchi di nonna Alice","Grains/Cereals",38,20,0,760,"Laura Callahan"]
[10383,"2016-05-24","Around the Horn","UK","Konbu","Seafood",6,20,0,120,"Laura Callahan"]
[10384,"2016-05-24","Berglunds snabbköp","Sweden","Camembert Pierrot","Dairy Products",34,15,0,510,"Janet Leverling"]
[10384,"2016-05-24","Berglunds snabbköp","Sweden","Sir Rodney's Marmalade","Confections",81,28,0,2268,"Janet Leverling"]
[10385,"2016-05-25","Split Rail Beer & Ale","USA","Scottish Longbreads","Confections",12.5,8,0.2,80,"Nancy Davolio"]
[10385,"2016-05-25","Split Rail Beer & Ale","USA","Uncle Bob's Organic Dried Pears","Produce",30,10,0.2,240,"Nancy Davolio"]
[10385,"2016-05-25","Split Rail Beer & Ale","USA","Camembert Pierrot","Dairy Products",34,20,0.2,544,"Nancy Davolio"]
[10386,"2016-05-26","Familia Arquibaldo","Brazil","Sasquatch Ale","Beverages",14,10,0,140,"Anne Dodsworth"]
[10386,"2016-05-26","Familia Arquibaldo","Brazil","Guaraná Fantástica","Beverages",4.5,15,0,67.5,"Anne Dodsworth"]
[10387,"2016-05-26","Santé Gourmet","Norway","Fløtemysost","Dairy Products",21.5,15,0,322.5,"Nancy Davolio"]
[10387,"2016-05-26","Santé Gourmet","Norway","Rössle Sauerkraut","Produce",45.6,6,0,273.60000000000002,"Nancy Davolio"]
[10387,"2016-05-26","Santé Gourmet","Norway","Guaraná Fantástica","Beverages",4.5,15,0,67.5,"Nancy Davolio"]
[10387,"2016-05-26","Santé Gourmet","Norway","Raclette Courdavault","Dairy Products",55,12,0,660,"Nancy Davolio"]
[10388,"2016-05-27","Seven Seas Imports","UK","Filo Mix","Grains/Cereals",7,20,0.2,112,"Andrew Fuller"]
[10388,"2016-05-27","Seven Seas Imports","UK","Røgede sild","Seafood",9.5,15,0.2,114,"Andrew Fuller"]
[10388,"2016-05-27","Seven Seas Imports","UK","Perth Pasties","Meat/Poultry",32.799999999999997,40,0,1312,"Andrew Fuller"]
[10389,"2016-05-28","Bottom-Dollar Markets","Canada","Tarte au sucre","Confections",49.3,20,0,986,"Margaret Peacock"]
[10389,"2016-05-28","Bottom-Dollar Markets","Canada","Outback Lager","Beverages",15,30,0,450,"Margaret Peacock"]
[10389,"2016-05-28","Bottom-Dollar Markets","Canada","Ikura","Seafood",31,16,0,496,"Margaret Peacock"]
[10389,"2016-05-28","Bottom-Dollar Markets","Canada","Pâté chinois","Meat/Poultry",24,15,0,360,"Margaret Peacock"]
[10390,"2016-05-31","Ernst Handel","Austria","Mozzarella di Giovanni","Dairy Products",34.799999999999997,24,0.1,751.68,"Michael Suyama"]
[10390,"2016-05-31","Ernst Handel","Austria","Steeleye Stout","Beverages",18,40,0.1,648,"Michael Suyama"]
[10390,"2016-05-31","Ernst Handel","Austria","Spegesild","Seafood",12,45,0,540,"Michael Suyama"]
[10390,"2016-05-31","Ernst Handel","Austria","Gorgonzola Telino","Dairy Products",12.5,60,0.1,675,"Michael Suyama"]
[10391,"2016-05-31","Drachenblut Delikatessen","Germany","Konbu","Seafood",6,18,0,108,"Janet Leverling"]
[10392,"2016-06-01","Piccolo und mehr","Austria","Gudbrandsdalsost","Dairy Products",36,50,0,1800,"Andrew Fuller"]
[10393,"2016-06-02","Save-a-lot Markets","USA","Gorgonzola Telino","Dairy Products",12.5,32,0,400,"Nancy Davolio"]
[10393,"2016-06-02","Save-a-lot Markets","USA","NuNuCa Nuß-Nougat-Creme","Confections",14,7,0.25,{"$f":"ROUND((G387*H387)*(1-I387),2)","v":73.5},"Nancy Davolio"]
[10393,"2016-06-02","Save-a-lot Markets","USA","Gumbär Gummibärchen","Confections",31.23,70,0.25,1639.58,"Nancy Davolio"]
[10393,"2016-06-02","Save-a-lot Markets","USA","Tofu","Produce",23.25,42,0.25,732.38,"Nancy Davolio"]
[10393,"2016-06-02","Save-a-lot Markets","USA","Chang","Beverages",19,25,0.25,356.25,"Nancy Davolio"]
[10394,"2016-06-02","Hungry Coyote Import Store","USA","Konbu","Seafood",6,10,0,60,"Nancy Davolio"]
[10394,"2016-06-02","Hungry Coyote Import Store","USA","Tarte au sucre","Confections",49.3,10,0,493,"Nancy Davolio"]
[10395,"2016-06-03","HILARIÓN-Abastos","Venezuela","Perth Pasties","Meat/Poultry",32.799999999999997,70,0.1,2066.4,"Michael Suyama"]
[10395,"2016-06-03","HILARIÓN-Abastos","Venezuela","Spegesild","Seafood",12,28,0.1,302.39999999999998,"Michael Suyama"]
[10395,"2016-06-03","HILARIÓN-Abastos","Venezuela","Gudbrandsdalsost","Dairy Products",36,8,0,288,"Michael Suyama"]
[10396,"2016-06-04","Frankenversand","Germany","Tunnbröd","Grains/Cereals",9,40,0,360,"Nancy Davolio"]
[10396,"2016-06-04","Frankenversand","Germany","Mozzarella di Giovanni","Dairy Products",34.799999999999997,21,0,730.8,"Nancy Davolio"]
[10396,"2016-06-04","Frankenversand","Germany","Fløtemysost","Dairy Products",21.5,60,0,1290,"Nancy Davolio"]
[10397,"2016-06-04","Princesa Isabel Vinhos","Portugal","Sir Rodney's Scones","Confections",10,10,0.15,85,"Steven Buchanan"]
[10397,"2016-06-04","Princesa Isabel Vinhos","Portugal","Manjimup Dried Apples","Produce",53,18,0.15,810.9,"Steven Buchanan"]
[10398,"2016-06-07","Save-a-lot Markets","USA","Steeleye Stout","Beverages",18,30,0,540,"Andrew Fuller"]
[10398,"2016-06-07","Save-a-lot Markets","USA","Pâté chinois","Meat/Poultry",24,120,0.1,2592,"Andrew Fuller"]
[10399,"2016-06-08","Vaffeljernet","Denmark","Scottish Longbreads","Confections",12.5,60,0,750,"Laura Callahan"]
[10399,"2016-06-08","Vaffeljernet","Denmark","Lakkalikööri","Beverages",18,35,0,630,"Laura Callahan"]
[10399,"2016-06-08","Vaffeljernet","Denmark","Original Frankfurter grüne Soße","Condiments",13,14,0,182,"Laura Callahan"]
[10399,"2016-06-08","Vaffeljernet","Denmark","Fløtemysost","Dairy Products",21.5,30,0,645,"Laura Callahan"]
[10400,"2016-06-09","Eastern Connection","UK","Maxilaku","Confections",20,30,0,600,"Nancy Davolio"]
[10400,"2016-06-09","Eastern Connection","UK","Steeleye Stout","Beverages",18,35,0,630,"Nancy Davolio"]
[10400,"2016-06-09","Eastern Connection","UK","Thüringer Rostbratwurst","Meat/Poultry",123.79,21,0,2599.59,"Nancy Davolio"]
[10401,"2016-06-09","Rattlesnake Canyon Grocery","USA","Nord-Ost Matjeshering","Seafood",25.89,18,0,466.02,"Nancy Davolio"]
[10401,"2016-06-09","Rattlesnake Canyon Grocery","USA","Gnocchi di nonna Alice","Grains/Cereals",38,70,0,2660,"Nancy Davolio"]
[10401,"2016-06-09","Rattlesnake Canyon Grocery","USA","Fløtemysost","Dairy Products",21.5,60,0,1290,"Nancy Davolio"]
[10401,"2016-06-09","Rattlesnake Canyon Grocery","USA","Louisiana Fiery Hot Pepper Sauce","Condiments",21.05,20,0,421,"Nancy Davolio"]
[10402,"2016-06-10","Ernst Handel","Austria","Tunnbröd","Grains/Cereals",9,60,0,540,"Laura Callahan"]
[10402,"2016-06-10","Ernst Handel","Austria","Vegie-spread","Condiments",43.9,65,0,2853.5,"Laura Callahan"]
[10403,"2016-06-11","Ernst Handel","Austria","Pavlova","Confections",17.45,21,0.15,311.48,"Margaret Peacock"]
[10403,"2016-06-11","Ernst Handel","Austria","Chocolade","Confections",12.75,70,0.15,758.63,"Margaret Peacock"]
[10404,"2016-06-11","Magazzini Alimentari Riuniti","Italy","Singaporean Hokkien Fried Mee","Grains/Cereals",14,40,0.05,532,"Andrew Fuller"]
[10404,"2016-06-11","Magazzini Alimentari Riuniti","Italy","Gumbär Gummibärchen","Confections",31.23,30,0.05,890.06,"Andrew Fuller"]
[10404,"2016-06-11","Magazzini Alimentari Riuniti","Italy","Maxilaku","Confections",20,30,0.05,570,"Andrew Fuller"]
[10405,"2016-06-14","LINO-Delicateses","Venezuela","Aniseed Syrup","Condiments",10,50,0,500,"Nancy Davolio"]
[10406,"2016-06-15","Queen Cozinha","Brazil","Inlagd Sill","Seafood",19,5,0.1,85.5,"Robert King"]
[10406,"2016-06-15","Queen Cozinha","Brazil","Sir Rodney's Scones","Confections",10,30,0.1,270,"Robert King"]
[10406,"2016-06-15","Queen Cozinha","Brazil","Chai","Beverages",18,10,0,180,"Robert King"]
[10406,"2016-06-15","Queen Cozinha","Brazil","Boston Crab Meat","Seafood",18.399999999999999,2,0.1,33.119999999999997,"Robert King"]
[10406,"2016-06-15","Queen Cozinha","Brazil","Rössle Sauerkraut","Produce",45.6,42,0.1,1723.68,"Robert King"]
[10407,"2016-06-15","Ottilies Käseladen","Germany","Gudbrandsdalsost","Dairy Products",36,15,0,540,"Andrew Fuller"]
[10407,"2016-06-15","Ottilies Käseladen","Germany","Fløtemysost","Dairy Products",21.5,15,0,322.5,"Andrew Fuller"]
[10407,"2016-06-15","Ottilies Käseladen","Germany","Queso Cabrales","Dairy Products",21,30,0,630,"Andrew Fuller"]
[10408,"2016-06-16","Folies gourmandes","France","Gravad lax","Seafood",26,10,0,260,"Laura Callahan"]
[10408,"2016-06-16","Folies gourmandes","France","Tourtière","Meat/Poultry",7.45,6,0,44.7,"Laura Callahan"]
[10408,"2016-06-16","Folies gourmandes","France","Tarte au sucre","Confections",49.3,35,0,1725.5,"Laura Callahan"]
[10409,"2016-06-17","Océano Atlántico Ltda.","Argentina","Sir Rodney's Scones","Confections",10,12,0,120,"Janet Leverling"]
[10409,"2016-06-17","Océano Atlántico Ltda.","Argentina","Tofu","Produce",23.25,12,0,279,"Janet Leverling"]
[10410,"2016-06-18","Bottom-Dollar Markets","Canada","Raclette Courdavault","Dairy Products",55,16,0,880,"Janet Leverling"]
[10410,"2016-06-18","Bottom-Dollar Markets","Canada","Geitost","Dairy Products",2.5,49,0,122.5,"Janet Leverling"]
[10411,"2016-06-18","Bottom-Dollar Markets","Canada","Gula Malacca","Condiments",19.45,40,0.2,622.4,"Anne Dodsworth"]
[10411,"2016-06-18","Bottom-Dollar Markets","Canada","Jack's New England Clam Chowder","Seafood",9.65,25,0.2,193,"Anne Dodsworth"]
[10411,"2016-06-18","Bottom-Dollar Markets","Canada","Raclette Courdavault","Dairy Products",55,9,0.2,396,"Anne Dodsworth"]
[10412,"2016-06-21","Wartian Herkku","Finland","Tofu","Produce",23.25,20,0.1,418.5,"Laura Callahan"]
[10413,"2016-06-22","La maison d'Asie","France","Tarte au sucre","Confections",49.3,40,0,1972,"Janet Leverling"]
[10413,"2016-06-22","La maison d'Asie","France","Chai","Beverages",18,24,0,432,"Janet Leverling"]
[10413,"2016-06-22","La maison d'Asie","France","Lakkalikööri","Beverages",18,14,0,252,"Janet Leverling"]
[10414,"2016-06-22","Familia Arquibaldo","Brazil","Geitost","Dairy Products",2.5,50,0,125,"Andrew Fuller"]
[10414,"2016-06-22","Familia Arquibaldo","Brazil","Teatime Chocolate Biscuits","Confections",9.1999999999999993,18,0.05,157.32,"Andrew Fuller"]
[10415,"2016-06-23","Hungry Coyote Import Store","USA","Alice Mutton","Meat/Poultry",39,2,0,78,"Janet Leverling"]
[10415,"2016-06-23","Hungry Coyote Import Store","USA","Geitost","Dairy Products",2.5,20,0,50,"Janet Leverling"]
[10416,"2016-06-24","Wartian Herkku","Finland","Perth Pasties","Meat/Poultry",32.799999999999997,10,0,328,"Laura Callahan"]
[10416,"2016-06-24","Wartian Herkku","Finland","Teatime Chocolate Biscuits","Confections",9.1999999999999993,20,0,184,"Laura Callahan"]
[10416,"2016-06-24","Wartian Herkku","Finland","Ravioli Angelo","Grains/Cereals",19.5,20,0,390,"Laura Callahan"]
[10417,"2016-06-24","Simons bistro","Denmark","Scottish Longbreads","Confections",12.5,36,0.25,{"$f":"ROUND((G451*H451)*(1-I451),2)","v":337.5},"Margaret Peacock"]
[10417,"2016-06-24","Simons bistro","Denmark","Original Frankfurter grüne Soße","Condiments",13,35,0,455,"Margaret Peacock"]
[10417,"2016-06-24","Simons bistro","Denmark","Côte de Blaye","Beverages",263.5,50,0,13175,"Margaret Peacock"]
[10417,"2016-06-24","Simons bistro","Denmark","Spegesild","Seafood",12,2,0.25,18,"Margaret Peacock"]
[10418,"2016-06-25","QUICK-Stop","Germany","Sirop d'érable","Condiments",28.5,16,0,456,"Margaret Peacock"]
[10418,"2016-06-25","QUICK-Stop","Germany","Chang","Beverages",19,60,0,1140,"Margaret Peacock"]
[10418,"2016-06-25","QUICK-Stop","Germany","Longlife Tofu","Produce",10,15,0,150,"Margaret Peacock"]
[10418,"2016-06-25","QUICK-Stop","Germany","Zaanse koeken","Confections",9.5,55,0,522.5,"Margaret Peacock"]
[10419,"2016-06-28","Richter Supermarkt","Switzerland","Camembert Pierrot","Dairy Products",34,60,0.05,1938,"Margaret Peacock"]
[10419,"2016-06-28","Richter Supermarkt","Switzerland","Gudbrandsdalsost","Dairy Products",36,20,0.05,684,"Margaret Peacock"]
[10420,"2016-06-29","Wellington Importadora","Brazil","Mishi Kobe Niku","Meat/Poultry",97,20,0.1,1746,"Janet Leverling"]
[10420,"2016-06-29","Wellington Importadora","Brazil","Outback Lager","Beverages",15,8,0.1,108,"Janet Leverling"]
[10420,"2016-06-29","Wellington Importadora","Brazil","Konbu","Seafood",6,2,0.1,10.8,"Janet Leverling"]
[10420,"2016-06-29","Wellington Importadora","Brazil","Röd Kaviar","Seafood",15,20,0.1,270,"Janet Leverling"]
[10421,"2016-06-29","Que Delícia","Brazil","Perth Pasties","Meat/Poultry",32.799999999999997,15,0.15,418.2,"Laura Callahan"]
[10421,"2016-06-29","Que Delícia","Brazil","Original Frankfurter grüne Soße","Condiments",13,10,0.15,110.5,"Laura Callahan"]
[10421,"2016-06-29","Que Delícia","Brazil","Gumbär Gummibärchen","Confections",31.23,30,0,936.9,"Laura Callahan"]
[10421,"2016-06-29","Que Delícia","Brazil","Teatime Chocolate Biscuits","Confections",9.1999999999999993,4,0.15,31.28,"Laura Callahan"]
[10422,"2016-06-30","Franchi S.p.A.","Italy","Gumbär Gummibärchen","Confections",31.23,2,0,62.46,"Andrew Fuller"]
[10423,"2016-07-01","Gourmet Lanchonetes","Brazil","Gorgonzola Telino","Dairy Products",12.5,14,0,175,"Michael Suyama"]
[10423,"2016-07-01","Gourmet Lanchonetes","Brazil","Raclette Courdavault","Dairy Products",55,20,0,1100,"Michael Suyama"]
[10424,"2016-07-01","Mère Paillarde","Canada","Côte de Blaye","Beverages",263.5,49,0.2,10329.200000000001,"Robert King"]
[10424,"2016-07-01","Mère Paillarde","Canada","Steeleye Stout","Beverages",18,60,0.2,864,"Robert King"]
[10424,"2016-07-01","Mère Paillarde","Canada","Scottish Longbreads","Confections",12.5,30,0.2,300,"Robert King"]
[10425,"2016-07-02","La maison d'Asie","France","Pâté chinois","Meat/Poultry",24,10,0.25,180,"Michael Suyama"]
[10425,"2016-07-02","La maison d'Asie","France","Lakkalikööri","Beverages",18,20,0.25,270,"Michael Suyama"]
[10426,"2016-07-05","Galería del gastrónomo","Spain","Gnocchi di nonna Alice","Grains/Cereals",38,5,0,190,"Margaret Peacock"]
[10426,"2016-07-05","Galería del gastrónomo","Spain","Wimmers gute Semmelknödel","Grains/Cereals",33.25,7,0,232.75,"Margaret Peacock"]
[10427,"2016-07-05","Piccolo und mehr","Austria","Tofu","Produce",23.25,35,0,813.75,"Margaret Peacock"]
[10428,"2016-07-06","Reggiani Caseifici","Italy","Spegesild","Seafood",12,20,0,240,"Robert King"]
[10429,"2016-07-07","Hungry Owl All-Night Grocers","Ireland","Valkoinen suklaa","Confections",16.25,40,0,650,"Janet Leverling"]
[10429,"2016-07-07","Hungry Owl All-Night Grocers","Ireland","Vegie-spread","Condiments",43.9,35,0.25,1152.3800000000001,"Janet Leverling"]
[10430,"2016-07-08","Ernst Handel","Austria","Sir Rodney's Scones","Confections",10,50,0,500,"Margaret Peacock"]
[10430,"2016-07-08","Ernst Handel","Austria","Raclette Courdavault","Dairy Products",55,70,0.2,3080,"Margaret Peacock"]
[10430,"2016-07-08","Ernst Handel","Austria","Alice Mutton","Meat/Poultry",39,45,0.2,1404,"Margaret Peacock"]
[10430,"2016-07-08","Ernst Handel","Austria","Gnocchi di nonna Alice","Grains/Cereals",38,30,0,1140,"Margaret Peacock"]
[10431,"2016-07-08","Bottom-Dollar Markets","Canada","Alice Mutton","Meat/Poultry",39,50,0.25,1462.5,"Margaret Peacock"]
[10431,"2016-07-08","Bottom-Dollar Markets","Canada","Boston Crab Meat","Seafood",18.399999999999999,50,0.25,690,"Margaret Peacock"]
[10431,"2016-07-08","Bottom-Dollar Markets","Canada","Zaanse koeken","Confections",9.5,30,0.25,213.75,"Margaret Peacock"]
[10432,"2016-07-09","Split Rail Beer & Ale","USA","Gumbär Gummibärchen","Confections",31.23,10,0,312.3,"Janet Leverling"]
[10432,"2016-07-09","Split Rail Beer & Ale","USA","Tourtière","Meat/Poultry",7.45,40,0,298,"Janet Leverling"]
[10433,"2016-07-12","Princesa Isabel Vinhos","Portugal","Gnocchi di nonna Alice","Grains/Cereals",38,28,0,1064,"Janet Leverling"]
[10434,"2016-07-12","Folk och fä HB","Sweden","Queso Cabrales","Dairy Products",21,6,0,126,"Janet Leverling"]
[10434,"2016-07-12","Folk och fä HB","Sweden","Lakkalikööri","Beverages",18,18,0.15,275.39999999999998,"Janet Leverling"]
[10435,"2016-07-13","Consolidated Holdings","UK","Mozzarella di Giovanni","Dairy Products",34.799999999999997,10,0,348,"Laura Callahan"]
[10435,"2016-07-13","Consolidated Holdings","UK","Gustaf's Knäckebröd","Grains/Cereals",21,12,0,252,"Laura Callahan"]
[10435,"2016-07-13","Consolidated Holdings","UK","Chang","Beverages",19,10,0,190,"Laura Callahan"]
[10436,"2016-07-14","Blondel père et fils","France","Wimmers gute Semmelknödel","Grains/Cereals",33.25,30,0.1,897.75,"Janet Leverling"]
[10436,"2016-07-14","Blondel père et fils","France","Spegesild","Seafood",12,5,0,60,"Janet Leverling"]
[10436,"2016-07-14","Blondel père et fils","France","Rhönbräu Klosterbier","Beverages",7.75,24,0.1,167.4,"Janet Leverling"]

{"sheet":"Leicester","index":3,"n_rows":928,"n_cols":11,"rows_kept":928,"cut":false,"hidden":false,"merged":[]}
["Order ID","Order Date","Customer Name","Country","Product Name","Product Category","Unit Price","Units Sold","Discount","Total Sales Value","Sales Rep"]
[10248,"2015-12-11","Vins et alcools Chevalier","France","Mozzarella di Giovanni","Dairy Products",34.799999999999997,5,0,{"$f":"ROUND((G2*H2)*(1-I2),2)","v":174},"Steven Buchanan"]
[10248,"2015-12-11","Vins et alcools Chevalier","France","Singaporean Hokkien Fried Mee","Grains/Cereals",14,10,0,{"$f":"ROUND((G3*H3)*(1-I3),2)","v":140},"Steven Buchanan"]
[10248,"2015-12-11","Vins et alcools Chevalier","France","Queso Cabrales","Dairy Products",21,12,0,252,"Steven Buchanan"]
[10249,"2015-12-12","Toms Spezialitäten","Germany","Manjimup Dried Apples","Produce",53,40,0,2120,"Michael Suyama"]
[10249,"2015-12-12","Toms Spezialitäten","Germany","Tofu","Produce",23.25,9,0,209.25,"Michael Suyama"]
[10250,"2015-12-15","Hanari Carnes","Brazil","Manjimup Dried Apples","Produce",53,35,0.15,1576.75,"Margaret Peacock"]
[10250,"2015-12-15","Hanari Carnes","Brazil","Jack's New England Clam Chowder","Seafood",9.65,10,0,96.5,"Margaret Peacock"]
[10250,"2015-12-15","Hanari Carnes","Brazil","Louisiana Fiery Hot Pepper Sauce","Condiments",21.05,15,0.15,268.39,"Margaret Peacock"]
[10251,"2015-12-15","Victuailles en stock","France","Gustaf's Knäckebröd","Grains/Cereals",21,6,0.05,119.7,"Janet Leverling"]
[10251,"2015-12-15","Victuailles en stock","France","Louisiana Fiery Hot Pepper Sauce","Condiments",21.05,20,0,421,"Janet Leverling"]
[10251,"2015-12-15","Victuailles en stock","France","Ravioli Angelo","Grains/Cereals",19.5,15,0.05,277.88,"Janet Leverling"]
[10252,"2015-12-16","Suprêmes délices","Belgium","Geitost","Dairy Products",2.5,25,0.05,59.38,"Margaret Peacock"]
[10252,"2015-12-16","Suprêmes délices","Belgium","Camembert Pierrot","Dairy Products",34,40,0,1360,"Margaret Peacock"]
[10252,"2015-12-16","Suprêmes délices","Belgium","Sir Rodney's Marmalade","Confections",81,40,0.05,3078,"Margaret Peacock"]
[10253,"2015-12-17","Hanari Carnes","Brazil","Chartreuse verte","Beverages",18,42,0,756,"Janet Leverling"]
[10253,"2015-12-17","Hanari Carnes","Brazil","Gorgonzola Telino","Dairy Products",12.5,20,0,250,"Janet Leverling"]
[10253,"2015-12-17","Hanari Carnes","Brazil","Maxilaku","Confections",20,40,0,800,"Janet Leverling"]
[10254,"2015-12-18","Chop-suey Chinese","Switzerland","Longlife Tofu","Produce",10,21,0,210,"Steven Buchanan"]
[10254,"2015-12-18","Chop-suey Chinese","Switzerland","Pâté chinois","Meat/Poultry",24,21,0.15,428.4,"Steven Buchanan"]
[10254,"2015-12-18","Chop-suey Chinese","Switzerland","Guaraná Fantástica","Beverages",4.5,15,0.15,57.38,"Steven Buchanan"]
[10255,"2015-12-19","Richter Supermarkt","Switzerland","Chang","Beverages",19,20,0,380,"Anne Dodsworth"]
[10255,"2015-12-19","Richter Supermarkt","Switzerland","Raclette Courdavault","Dairy Products",55,30,0,1650,"Anne Dodsworth"]
[10255,"2015-12-19","Richter Supermarkt","Switzerland","Pavlova","Confections",17.45,35,0,610.75,"Anne Dodsworth"]
[10255,"2015-12-19","Richter Supermarkt","Switzerland","Inlagd Sill","Seafood",19,25,0,475,"Anne Dodsworth"]
[10256,"2015-12-22","Wellington Importadora","Brazil","Perth Pasties","Meat/Poultry",32.799999999999997,15,0,492,"Janet Leverling"]
[10256,"2015-12-22","Wellington Importadora","Brazil","Original Frankfurter grüne Soße","Condiments",13,12,0,156,"Janet Leverling"]
[10257,"2015-12-23","HILARIÓN-Abastos","Venezuela","Schoggi Schokolade","Confections",43.9,25,0,1097.5,"Margaret Peacock"]
[10257,"2015-12-23","HILARIÓN-Abastos","Venezuela","Chartreuse verte","Beverages",18,6,0,108,"Margaret Peacock"]
[10257,"2015-12-23","HILARIÓN-Abastos","Venezuela","Original Frankfurter grüne Soße","Condiments",13,15,0,195,"Margaret Peacock"]
[10258,"2015-12-24","Ernst Handel","Austria","Chef Anton's Gumbo Mix","Condiments",21.35,65,0.2,1110.2,"Nancy Davolio"]
[10258,"2015-12-24","Ernst Handel","Austria","Chang","Beverages",19,50,0.2,760,"Nancy Davolio"]
[10258,"2015-12-24","Ernst Handel","Austria","Mascarpone Fabioli","Dairy Products",32,6,0.2,153.6,"Nancy Davolio"]
[10259,"2015-12-25","Centro comercial Moctezuma","Mexico","Sir Rodney's Scones","Confections",10,10,0,100,"Margaret Peacock"]
[10259,"2015-12-25","Centro comercial Moctezuma","Mexico","Gravad lax","Seafood",26,1,0,26,"Margaret Peacock"]
[10260,"2015-12-26","Ottilies Käseladen","Germany","Outback Lager","Beverages",15,21,0.25,236.25,"Margaret Peacock"]
[10260,"2015-12-26","Ottilies Käseladen","Germany","Ravioli Angelo","Grains/Cereals",19.5,50,0,975,"Margaret Peacock"]
[10260,"2015-12-26","Ottilies Käseladen","Germany","Tarte au sucre","Confections",49.3,15,0.25,554.63,"Margaret Peacock"]
[10260,"2015-12-26","Ottilies Käseladen","Germany","Jack's New England Clam Chowder","Seafood",9.65,16,0.25,115.8,"Margaret Peacock"]
[10261,"2015-12-26","Que Delícia","Brazil","Steeleye Stout","Beverages",18,20,0,360,"Margaret Peacock"]
[10261,"2015-12-26","Que Delícia","Brazil","Sir Rodney's Scones","Confections",10,20,0,200,"Margaret Peacock"]
[10262,"2015-12-29","Rattlesnake Canyon Grocery","USA","Chef Anton's Gumbo Mix","Condiments",21.35,12,0.2,204.96,"Laura Callahan"]
[10262,"2015-12-29","Rattlesnake Canyon Grocery","USA","Uncle Bob's Organic Dried Pears","Produce",30,15,0,450,"Laura Callahan"]
[10262,"2015-12-29","Rattlesnake Canyon Grocery","USA","Gnocchi di nonna Alice","Grains/Cereals",38,2,0,76,"Laura Callahan"]
[10263,"2015-12-30","Ernst Handel","Austria","Pavlova","Confections",17.45,60,0.25,785.25,"Anne Dodsworth"]
[10263,"2015-12-30","Ernst Handel","Austria","Nord-Ost Matjeshering","Seafood",25.89,60,0.25,1165.05,"Anne Dodsworth"]
[10263,"2015-12-30","Ernst Handel","Austria","Guaraná Fantástica","Beverages",4.5,28,0,126,"Anne Dodsworth"]
[10263,"2015-12-30","Ernst Handel","Austria","Longlife Tofu","Produce",10,36,0.25,270,"Anne Dodsworth"]
[10264,"2015-12-31","Folk och fä HB","Sweden","Chang","Beverages",19,35,0,665,"Michael Suyama"]
[10264,"2015-12-31","Folk och fä HB","Sweden","Jack's New England Clam Chowder","Seafood",9.65,25,0.15,205.06,"Michael Suyama"]
[10265,"2016-01-01","Blondel père et fils","France","Alice Mutton","Meat/Poultry",39,30,0,1170,"Andrew Fuller"]
[10265,"2016-01-01","Blondel père et fils","France","Outback Lager","Beverages",15,20,0,300,"Andrew Fuller"]
[10266,"2016-01-02","Wartian Herkku","Finland","Queso Manchego La Pastora","Dairy Products",38,12,0.05,433.2,"Janet Leverling"]
[10267,"2016-01-05","Frankenversand","Germany","Lakkalikööri","Beverages",18,15,0.15,229.5,"Margaret Peacock"]
[10267,"2016-01-05","Frankenversand","Germany","Boston Crab Meat","Seafood",18.399999999999999,50,0,920,"Margaret Peacock"]
[10267,"2016-01-05","Frankenversand","Germany","Raclette Courdavault","Dairy Products",55,70,0.15,3272.5,"Margaret Peacock"]
[10268,"2016-01-06","GROSELLA-Restaurante","Venezuela","Mozzarella di Giovanni","Dairy Products",34.799999999999997,4,0,139.19999999999999,"Laura Callahan"]
[10268,"2016-01-06","GROSELLA-Restaurante","Venezuela","Thüringer Rostbratwurst","Meat/Poultry",123.79,10,0,1237.9000000000001,"Laura Callahan"]
[10269,"2016-01-07","White Clover Markets","USA","Mozzarella di Giovanni","Dairy Products",34.799999999999997,20,0.05,661.2,"Steven Buchanan"]
[10269,"2016-01-07","White Clover Markets","USA","Geitost","Dairy Products",2.5,60,0.05,142.5,"Steven Buchanan"]
[10270,"2016-01-08","Wartian Herkku","Finland","Inlagd Sill","Seafood",19,30,0,570,"Nancy Davolio"]
[10270,"2016-01-08","Wartian Herkku","Finland","Ipoh Coffee","Beverages",46,25,0,1150,"Nancy Davolio"]
[10271,"2016-01-08","Split Rail Beer & Ale","USA","Geitost","Dairy Products",2.5,24,0,60,"Michael Suyama"]
[10272,"2016-01-09","Rattlesnake Canyon Grocery","USA","Gorgonzola Telino","Dairy Products",12.5,40,0,500,"Michael Suyama"]
[10272,"2016-01-09","Rattlesnake Canyon Grocery","USA","Sir Rodney's Marmalade","Confections",81,6,0,486,"Michael Suyama"]
[10272,"2016-01-09","Rattlesnake Canyon Grocery","USA","Mozzarella di Giovanni","Dairy Products",34.799999999999997,24,0,835.2,"Michael Suyama"]
[10273,"2016-01-12","QUICK-Stop","Germany","Boston Crab Meat","Seafood",18.399999999999999,60,0.05,{"$f":"ROUND((G67*H67)*(1-I67),2)","v":1048.8},"Janet Leverling"]
[10273,"2016-01-12","QUICK-Stop","Germany","Geitost","Dairy Products",2.5,20,0,50,"Janet Leverling"]
[10273,"2016-01-12","QUICK-Stop","Germany","Gorgonzola Telino","Dairy Products",12.5,15,0.05,178.13,"Janet Leverling"]
[10273,"2016-01-12","QUICK-Stop","Germany","Ikura","Seafood",31,24,0.05,706.8,"Janet Leverling"]
[10273,"2016-01-12","QUICK-Stop","Germany","Lakkalikööri","Beverages",18,33,0.05,564.29999999999995,"Janet Leverling"]
[10274,"2016-01-13","Vins et alcools Chevalier","France","Fløtemysost","Dairy Products",21.5,20,0,430,"Michael Suyama"]
[10274,"2016-01-13","Vins et alcools Chevalier","France","Mozzarella di Giovanni","Dairy Products",34.799999999999997,7,0,243.6,"Michael Suyama"]
[10275,"2016-01-14","Magazzini Alimentari Riuniti","Italy","Guaraná Fantástica","Beverages",4.5,12,0.05,51.3,"Nancy Davolio"]
[10275,"2016-01-14","Magazzini Alimentari Riuniti","Italy","Raclette Courdavault","Dairy Products",55,6,0.05,313.5,"Nancy Davolio"]
[10276,"2016-01-15","Tortuga Restaurante","Mexico","Ikura","Seafood",31,15,0,465,"Laura Callahan"]
[10276,"2016-01-15","Tortuga Restaurante","Mexico","Konbu","Seafood",6,10,0,60,"Laura Callahan"]
[10277,"2016-01-16","Morgenstern Gesundkost","Germany","Rössle Sauerkraut","Produce",45.6,20,0,912,"Andrew Fuller"]
[10277,"2016-01-16","Morgenstern Gesundkost","Germany","Tarte au sucre","Confections",49.3,12,0,591.6,"Andrew Fuller"]
[10278,"2016-01-19","Berglunds snabbköp","Sweden","Raclette Courdavault","Dairy Products",55,15,0,825,"Laura Callahan"]
[10278,"2016-01-19","Berglunds snabbköp","Sweden","Röd Kaviar","Seafood",15,25,0,375,"Laura Callahan"]
[10278,"2016-01-19","Berglunds snabbköp","Sweden","Gula Malacca","Condiments",19.45,16,0,311.2,"Laura Callahan"]
[10278,"2016-01-19","Berglunds snabbköp","Sweden","Vegie-spread","Condiments",43.9,8,0,351.2,"Laura Callahan"]
[10279,"2016-01-20","Lehmanns Marktstand","Germany","Alice Mutton","Meat/Poultry",39,15,0.25,438.75,"Laura Callahan"]
[10280,"2016-01-21","Berglunds snabbköp","Sweden","Pâté chinois","Meat/Poultry",24,20,0,480,"Andrew Fuller"]
[10280,"2016-01-21","Berglunds snabbköp","Sweden","Rhönbräu Klosterbier","Beverages",7.75,30,0,232.5,"Andrew Fuller"]
[10280,"2016-01-21","Berglunds snabbköp","Sweden","Guaraná Fantástica","Beverages",4.5,12,0,54,"Andrew Fuller"]
[10281,"2016-01-21","Romero y tomillo","Spain","Guaraná Fantástica","Beverages",4.5,6,0,27,"Margaret Peacock"]
[10281,"2016-01-21","Romero y tomillo","Spain","Steeleye Stout","Beverages",18,4,0,72,"Margaret Peacock"]
[10281,"2016-01-21","Romero y tomillo","Spain","Teatime Chocolate Biscuits","Confections",9.1999999999999993,1,0,9.1999999999999993,"Margaret Peacock"]
[10282,"2016-01-22","Romero y tomillo","Spain","Ravioli Angelo","Grains/Cereals",19.5,2,0,39,"Margaret Peacock"]
[10282,"2016-01-22","Romero y tomillo","Spain","Nord-Ost Matjeshering","Seafood",25.89,6,0,155.34,"Margaret Peacock"]
[10283,"2016-01-23","LILA-Supermercado","Venezuela","Teatime Chocolate Biscuits","Confections",9.1999999999999993,18,0,165.6,"Janet Leverling"]
[10283,"2016-01-23","LILA-Supermercado","Venezuela","Camembert Pierrot","Dairy Products",34,35,0,1190,"Janet Leverling"]
[10283,"2016-01-23","LILA-Supermercado","Venezuela","Genen Shouyu","Condiments",15.5,20,0,310,"Janet Leverling"]
[10283,"2016-01-23","LILA-Supermercado","Venezuela","Mozzarella di Giovanni","Dairy Products",34.799999999999997,3,0,104.4,"Janet Leverling"]
[10284,"2016-01-26","Lehmanns Marktstand","Germany","Laughing Lumberjack Lager","Beverages",14,5,0.25,52.5,"Margaret Peacock"]
[10284,"2016-01-26","Lehmanns Marktstand","Germany","Gula Malacca","Condiments",19.45,21,0,408.45,"Margaret Peacock"]
[10284,"2016-01-26","Lehmanns Marktstand","Germany","Camembert Pierrot","Dairy Products",34,20,0.25,510,"Margaret Peacock"]
[10284,"2016-01-26","Lehmanns Marktstand","Germany","Schoggi Schokolade","Confections",43.9,15,0.25,493.88,"Margaret Peacock"]
[10285,"2016-01-27","QUICK-Stop","Germany","Chai","Beverages",18,45,0.2,648,"Nancy Davolio"]
[10285,"2016-01-27","QUICK-Stop","Germany","Boston Crab Meat","Seafood",18.399999999999999,40,0.2,588.79999999999995,"Nancy Davolio"]
[10285,"2016-01-27","QUICK-Stop","Germany","Perth Pasties","Meat/Poultry",32.799999999999997,36,0.2,944.64,"Nancy Davolio"]
[10286,"2016-01-28","QUICK-Stop","Germany","Tarte au sucre","Confections",49.3,40,0,1972,"Laura Callahan"]
[10286,"2016-01-28","QUICK-Stop","Germany","Steeleye Stout","Beverages",18,100,0,1800,"Laura Callahan"]
[10287,"2016-01-29","Ricardo Adocicados","Brazil","Spegesild","Seafood",12,15,0.15,153,"Laura Callahan"]
[10287,"2016-01-29","Ricardo Adocicados","Brazil","Pavlova","Confections",17.45,40,0.15,593.29999999999995,"Laura Callahan"]
[10287,"2016-01-29","Ricardo Adocicados","Brazil","Sasquatch Ale","Beverages",14,20,0,280,"Laura Callahan"]
[10288,"2016-01-30","Reggiani Caseifici","Italy","Scottish Longbreads","Confections",12.5,3,0.1,33.75,"Margaret Peacock"]
[10288,"2016-01-30","Reggiani Caseifici","Italy","Tourtière","Meat/Poultry",7.45,10,0.1,67.05,"Margaret Peacock"]
[10289,"2016-02-02","B's Beverages","UK","Aniseed Syrup","Condiments",10,30,0,300,"Robert King"]
[10289,"2016-02-02","B's Beverages","UK","Wimmers gute Semmelknödel","Grains/Cereals",33.25,9,0,299.25,"Robert King"]
[10290,"2016-02-03","Comércio Mineiro","Brazil","Original Frankfurter grüne Soße","Condiments",13,10,0,130,"Laura Callahan"]
[10290,"2016-02-03","Comércio Mineiro","Brazil","Thüringer Rostbratwurst","Meat/Poultry",123.79,15,0,1856.85,"Laura Callahan"]
[10290,"2016-02-03","Comércio Mineiro","Brazil","Maxilaku","Confections",20,15,0,300,"Laura Callahan"]
[10290,"2016-02-03","Comércio Mineiro","Brazil","Chef Anton's Gumbo Mix","Condiments",21.35,20,0,427,"Laura Callahan"]
[10291,"2016-02-03","Que Delícia","Brazil","Gula Malacca","Condiments",19.45,24,0.1,420.12,"Michael Suyama"]
[10291,"2016-02-03","Que Delícia","Brazil","Konbu","Seafood",6,20,0.1,108,"Michael Suyama"]
[10291,"2016-02-03","Que Delícia","Brazil","Manjimup Dried Apples","Produce",53,2,0.1,95.4,"Michael Suyama"]
[10292,"2016-02-04","Tradição Hipermercados","Brazil","Sir Rodney's Marmalade","Confections",81,20,0,1620,"Nancy Davolio"]
[10293,"2016-02-05","Tortuga Restaurante","Mexico","Carnarvon Tigers","Seafood",62.5,12,0,750,"Nancy Davolio"]
[10293,"2016-02-05","Tortuga Restaurante","Mexico","Rhönbräu Klosterbier","Beverages",7.75,6,0,46.5,"Nancy Davolio"]
[10293,"2016-02-05","Tortuga Restaurante","Mexico","Guaraná Fantástica","Beverages",4.5,10,0,45,"Nancy Davolio"]
[10293,"2016-02-05","Tortuga Restaurante","Mexico","Vegie-spread","Condiments",43.9,5,0,219.5,"Nancy Davolio"]
[10294,"2016-02-06","Rattlesnake Canyon Grocery","USA","Camembert Pierrot","Dairy Products",34,21,0,714,"Margaret Peacock"]
[10294,"2016-02-06","Rattlesnake Canyon Grocery","USA","Rhönbräu Klosterbier","Beverages",7.75,6,0,46.5,"Margaret Peacock"]
[10294,"2016-02-06","Rattlesnake Canyon Grocery","USA","Chai","Beverages",18,18,0,324,"Margaret Peacock"]
[10294,"2016-02-06","Rattlesnake Canyon Grocery","USA","Ipoh Coffee","Beverages",46,15,0,690,"Margaret Peacock"]
[10294,"2016-02-06","Rattlesnake Canyon Grocery","USA","Alice Mutton","Meat/Poultry",39,15,0,585,"Margaret Peacock"]
[10295,"2016-02-09","Vins et alcools Chevalier","France","Gnocchi di nonna Alice","Grains/Cereals",38,4,0,152,"Andrew Fuller"]
[10296,"2016-02-10","LILA-Supermercado","Venezuela","Gudbrandsdalsost","Dairy Products",36,15,0,{"$f":"ROUND((G131*H131)*(1-I131),2)","v":540},"Michael Suyama"]
[10296,"2016-02-10","LILA-Supermercado","Venezuela","Queso Cabrales","Dairy Products",21,12,0,252,"Michael Suyama"]
[10296,"2016-02-10","LILA-Supermercado","Venezuela","Pavlova","Confections",17.45,30,0,523.5,"Michael Suyama"]
[10297,"2016-02-11","Blondel père et fils","France","Mozzarella di Giovanni","Dairy Products",34.799999999999997,20,0,696,"Steven Buchanan"]
[10297,"2016-02-11","Blondel père et fils","France","Chartreuse verte","Beverages",18,60,0,1080,"Steven Buchanan"]
[10298,"2016-02-12","Hungry Owl All-Night Grocers","Ireland","Chang","Beverages",19,40,0,760,"Michael Suyama"]
[10298,"2016-02-12","Hungry Owl All-Night Grocers","Ireland","Inlagd Sill","Seafood",19,40,0.25,570,"Michael Suyama"]
[10298,"2016-02-12","Hungry Owl All-Night Grocers","Ireland","Tarte au sucre","Confections",49.3,15,0,739.5,"Michael Suyama"]
[10298,"2016-02-12","Hungry Owl All-Night Grocers","Ireland","Raclette Courdavault","Dairy Products",55,30,0.25,1237.5,"Michael Suyama"]
[10299,"2016-02-13","Ricardo Adocicados","Brazil","Outback Lager","Beverages",15,20,0,300,"Margaret Peacock"]
[10299,"2016-02-13","Ricardo Adocicados","Brazil","Teatime Chocolate Biscuits","Confections",9.1999999999999993,15,0,138,"Margaret Peacock"]
[10300,"2016-02-16","Magazzini Alimentari Riuniti","Italy","Scottish Longbreads","Confections",12.5,20,0,250,"Andrew Fuller"]
[10300,"2016-02-16","Magazzini Alimentari Riuniti","Italy","Louisiana Hot Spiced Okra","Condiments",17,30,0,510,"Andrew Fuller"]
[10301,"2016-02-16","Die Wandernde Kuh","Germany","Gnocchi di nonna Alice","Grains/Cereals",38,20,0,760,"Laura Callahan"]
[10301,"2016-02-16","Die Wandernde Kuh","Germany","Boston Crab Meat","Seafood",18.399999999999999,10,0,184,"Laura Callahan"]
[10302,"2016-02-17","Suprêmes délices","Belgium","Ipoh Coffee","Beverages",46,12,0,552,"Margaret Peacock"]
[10302,"2016-02-17","Suprêmes délices","Belgium","Rössle Sauerkraut","Produce",45.6,28,0,1276.8,"Margaret Peacock"]
[10302,"2016-02-17","Suprêmes délices","Belgium","Alice Mutton","Meat/Poultry",39,40,0,1560,"Margaret Peacock"]
[10303,"2016-02-18","Godos Cocina Típica","Spain","Louisiana Fiery Hot Pepper Sauce","Condiments",21.05,30,0.1,568.35,"Robert King"]
[10303,"2016-02-18","Godos Cocina Típica","Spain","Boston Crab Meat","Seafood",18.399999999999999,40,0.1,662.4,"Robert King"]
[10303,"2016-02-18","Godos Cocina Típica","Spain","Scottish Longbreads","Confections",12.5,15,0.1,168.75,"Robert King"]
[10304,"2016-02-19","Tortuga Restaurante","Mexico","Maxilaku","Confections",20,30,0,600,"Nancy Davolio"]
[10304,"2016-02-19","Tortuga Restaurante","Mexico","Raclette Courdavault","Dairy Products",55,10,0,550,"Nancy Davolio"]
[10304,"2016-02-19","Tortuga Restaurante","Mexico","Fløtemysost","Dairy Products",21.5,2,0,43,"Nancy Davolio"]
[10305,"2016-02-20","Old World Delicatessen","USA","Chartreuse verte","Beverages",18,30,0.1,486,"Laura Callahan"]
[10305,"2016-02-20","Old World Delicatessen","USA","Thüringer Rostbratwurst","Meat/Poultry",123.79,25,0.1,2785.28,"Laura Callahan"]
[10305,"2016-02-20","Old World Delicatessen","USA","Carnarvon Tigers","Seafood",62.5,25,0.1,1406.25,"Laura Callahan"]
[10306,"2016-02-23","Romero y tomillo","Spain","Nord-Ost Matjeshering","Seafood",25.89,10,0,258.89999999999998,"Nancy Davolio"]
[10306,"2016-02-23","Romero y tomillo","Spain","Perth Pasties","Meat/Poultry",32.799999999999997,10,0,328,"Nancy Davolio"]
[10306,"2016-02-23","Romero y tomillo","Spain","Tourtière","Meat/Poultry",7.45,5,0,37.25,"Nancy Davolio"]
[10307,"2016-02-24","Lonesome Pine Restaurant","USA","Tarte au sucre","Confections",49.3,10,0,493,"Andrew Fuller"]
[10307,"2016-02-24","Lonesome Pine Restaurant","USA","Scottish Longbreads","Confections",12.5,3,0,37.5,"Andrew Fuller"]
[10308,"2016-02-25","Ana Trujillo Emparedados y helados","Mexico","Outback Lager","Beverages",15,5,0,75,"Robert King"]
[10308,"2016-02-25","Ana Trujillo Emparedados y helados","Mexico","Gudbrandsdalsost","Dairy Products",36,1,0,36,"Robert King"]
[10309,"2016-02-26","Hungry Owl All-Night Grocers","Ireland","Singaporean Hokkien Fried Mee","Grains/Cereals",14,2,0,28,"Janet Leverling"]
[10309,"2016-02-26","Hungry Owl All-Night Grocers","Ireland","Ipoh Coffee","Beverages",46,20,0,920,"Janet Leverling"]
[10309,"2016-02-26","Hungry Owl All-Night Grocers","Ireland","Grandma's Boysenberry Spread","Condiments",25,30,0,750,"Janet Leverling"]
[10309,"2016-02-26","Hungry Owl All-Night Grocers","Ireland","Chef Anton's Cajun Seasoning","Condiments",22,20,0,440,"Janet Leverling"]
[10309,"2016-02-26","Hungry Owl All-Night Grocers","Ireland","Fløtemysost","Dairy Products",21.5,3,0,64.5,"Janet Leverling"]
[10310,"2016-02-27","The Big Cheese","USA","Pavlova","Confections",17.45,10,0,174.5,"Laura Callahan"]
[10310,"2016-02-27","The Big Cheese","USA","Tarte au sucre","Confections",49.3,5,0,246.5,"Laura Callahan"]
[10311,"2016-02-27","Du monde entier","France","Gudbrandsdalsost","Dairy Products",36,7,0,252,"Nancy Davolio"]
[10311,"2016-02-27","Du monde entier","France","Singaporean Hokkien Fried Mee","Grains/Cereals",14,6,0,84,"Nancy Davolio"]
[10312,"2016-03-01","Die Wandernde Kuh","Germany","Rhönbräu Klosterbier","Beverages",7.75,10,0,77.5,"Andrew Fuller"]
[10312,"2016-03-01","Die Wandernde Kuh","Germany","Rössle Sauerkraut","Produce",45.6,4,0,182.4,"Andrew Fuller"]
[10312,"2016-03-01","Die Wandernde Kuh","Germany","Ipoh Coffee","Beverages",46,24,0,1104,"Andrew Fuller"]
[10312,"2016-03-01","Die Wandernde Kuh","Germany","Perth Pasties","Meat/Poultry",32.799999999999997,20,0,656,"Andrew Fuller"]
[10313,"2016-03-02","QUICK-Stop","Germany","Inlagd Sill","Seafood",19,12,0,228,"Andrew Fuller"]
[10314,"2016-03-03","Rattlesnake Canyon Grocery","USA","Tarte au sucre","Confections",49.3,25,0.1,1109.25,"Nancy Davolio"]
[10314,"2016-03-03","Rattlesnake Canyon Grocery","USA","Escargots de Bourgogne","Seafood",13.25,30,0.1,357.75,"Nancy Davolio"]
[10314,"2016-03-03","Rattlesnake Canyon Grocery","USA","Mascarpone Fabioli","Dairy Products",32,40,0.1,1152,"Nancy Davolio"]
[10315,"2016-03-04","Island Trading","UK","Outback Lager","Beverages",15,30,0,450,"Margaret Peacock"]
[10315,"2016-03-04","Island Trading","UK","Sasquatch Ale","Beverages",14,14,0,196,"Margaret Peacock"]
[10316,"2016-03-05","Rattlesnake Canyon Grocery","USA","Tarte au sucre","Confections",49.3,70,0,3451,"Nancy Davolio"]
[10316,"2016-03-05","Rattlesnake Canyon Grocery","USA","Jack's New England Clam Chowder","Seafood",9.65,10,0,96.5,"Nancy Davolio"]
[10317,"2016-03-08","Lonesome Pine Restaurant","USA","Chai","Beverages",18,20,0,360,"Michael Suyama"]
[10318,"2016-03-09","Island Trading","UK","Jack's New England Clam Chowder","Seafood",9.65,20,0,193,"Laura Callahan"]
[10318,"2016-03-09","Island Trading","UK","Lakkalikööri","Beverages",18,6,0,108,"Laura Callahan"]
[10319,"2016-03-10","Tortuga Restaurante","Mexico","Alice Mutton","Meat/Poultry",39,8,0,312,"Robert King"]
[10319,"2016-03-10","Tortuga Restaurante","Mexico","Rössle Sauerkraut","Produce",45.6,14,0,638.4,"Robert King"]
[10319,"2016-03-10","Tortuga Restaurante","Mexico","Lakkalikööri","Beverages",18,30,0,540,"Robert King"]
[10320,"2016-03-11","Wartian Herkku","Finland","Fløtemysost","Dairy Products",21.5,30,0,645,"Steven Buchanan"]
[10321,"2016-03-11","Island Trading","UK","Steeleye Stout","Beverages",18,10,0,180,"Janet Leverling"]
[10322,"2016-03-12","Pericles Comidas clásicas","Mexico","Filo Mix","Grains/Cereals",7,20,0,140,"Robert King"]
[10323,"2016-03-15","Königlich Essen","Germany","NuNuCa Nuß-Nougat-Creme","Confections",14,4,0,{"$f":"ROUND((G195*H195)*(1-I195),2)","v":56},"Margaret Peacock"]
[10323,"2016-03-15","Königlich Essen","Germany","Genen Shouyu","Condiments",15.5,5,0,77.5,"Margaret Peacock"]
[10323,"2016-03-15","Königlich Essen","Germany","Chartreuse verte","Beverages",18,4,0,72,"Margaret Peacock"]
[10324,"2016-03-16","Save-a-lot Markets","USA","Spegesild","Seafood",12,30,0,360,"Anne Dodsworth"]
[10324,"2016-03-16","Save-a-lot Markets","USA","Vegie-spread","Condiments",43.9,80,0.15,2985.2,"Anne Dodsworth"]
[10324,"2016-03-16","Save-a-lot Markets","USA","Raclette Courdavault","Dairy Products",55,40,0.15,1870,"Anne Dodsworth"]
[10324,"2016-03-16","Save-a-lot Markets","USA","Pavlova","Confections",17.45,21,0.15,311.48,"Anne Dodsworth"]
[10324,"2016-03-16","Save-a-lot Markets","USA","Steeleye Stout","Beverages",18,70,0.15,1071,"Anne Dodsworth"]
[10325,"2016-03-17","Königlich Essen","Germany","Tofu","Produce",23.25,9,0,209.25,"Nancy Davolio"]
[10325,"2016-03-17","Königlich Essen","Germany","Grandma's Boysenberry Spread","Condiments",25,6,0,150,"Nancy Davolio"]
[10325,"2016-03-17","Königlich Essen","Germany","Mozzarella di Giovanni","Dairy Products",34.799999999999997,40,0,1392,"Nancy Davolio"]
[10325,"2016-03-17","Königlich Essen","Germany","Gorgonzola Telino","Dairy Products",12.5,4,0,50,"Nancy Davolio"]
[10325,"2016-03-17","Königlich Essen","Germany","Konbu","Seafood",6,12,0,72,"Nancy Davolio"]
[10326,"2016-03-18","Bólido Comidas preparadas","Spain","Ravioli Angelo","Grains/Cereals",19.5,16,0,312,"Margaret Peacock"]
[10326,"2016-03-18","Bólido Comidas preparadas","Spain","Chef Anton's Cajun Seasoning","Condiments",22,24,0,528,"Margaret Peacock"]
[10326,"2016-03-18","Bólido Comidas preparadas","Spain","Rhönbräu Klosterbier","Beverages",7.75,50,0,387.5,"Margaret Peacock"]
[10327,"2016-03-19","Folk och fä HB","Sweden","Queso Cabrales","Dairy Products",21,50,0.2,840,"Andrew Fuller"]
[10327,"2016-03-19","Folk och fä HB","Sweden","Chang","Beverages",19,25,0.2,380,"Andrew Fuller"]
[10327,"2016-03-19","Folk och fä HB","Sweden","Nord-Ost Matjeshering","Seafood",25.89,35,0.2,724.92,"Andrew Fuller"]
[10327,"2016-03-19","Folk och fä HB","Sweden","Escargots de Bourgogne","Seafood",13.25,30,0.2,318,"Andrew Fuller"]
[10328,"2016-03-22","Furia Bacalhau e Frutos do Mar","Portugal","Raclette Courdavault","Dairy Products",55,9,0,495,"Margaret Peacock"]
[10328,"2016-03-22","Furia Bacalhau e Frutos do Mar","Portugal","Louisiana Fiery Hot Pepper Sauce","Condiments",21.05,40,0,842,"Margaret Peacock"]
[10328,"2016-03-22","Furia Bacalhau e Frutos do Mar","Portugal","Scottish Longbreads","Confections",12.5,10,0,125,"Margaret Peacock"]
[10329,"2016-03-23","Split Rail Beer & Ale","USA","Gnocchi di nonna Alice","Grains/Cereals",38,12,0.05,433.2,"Margaret Peacock"]
[10329,"2016-03-23","Split Rail Beer & Ale","USA","Côte de Blaye","Beverages",263.5,20,0.05,5006.5,"Margaret Peacock"]
[10329,"2016-03-23","Split Rail Beer & Ale","USA","Nord-Ost Matjeshering","Seafood",25.89,8,0.05,196.76,"Margaret Peacock"]
[10329,"2016-03-23","Split Rail Beer & Ale","USA","Teatime Chocolate Biscuits","Confections",9.1999999999999993,10,0.05,87.4,"Margaret Peacock"]
[10330,"2016-03-24","LILA-Supermercado","Venezuela","Gumbär Gummibärchen","Confections",31.23,50,0.15,1327.28,"Janet Leverling"]
[10330,"2016-03-24","LILA-Supermercado","Venezuela","Mozzarella di Giovanni","Dairy Products",34.799999999999997,25,0.15,739.5,"Janet Leverling"]
[10331,"2016-03-24","Bon app'","France","Tourtière","Meat/Poultry",7.45,15,0,111.75,"Anne Dodsworth"]
[10332,"2016-03-25","Mère Paillarde","Canada","Zaanse koeken","Confections",9.5,16,0.2,121.6,"Janet Leverling"]
[10332,"2016-03-25","Mère Paillarde","Canada","Singaporean Hokkien Fried Mee","Grains/Cereals",14,10,0.2,112,"Janet Leverling"]
[10332,"2016-03-25","Mère Paillarde","Canada","Carnarvon Tigers","Seafood",62.5,40,0.2,2000,"Janet Leverling"]
[10333,"2016-03-26","Wartian Herkku","Finland","Fløtemysost","Dairy Products",21.5,40,0.1,774,"Steven Buchanan"]
[10333,"2016-03-26","Wartian Herkku","Finland","Tofu","Produce",23.25,10,0,232.5,"Steven Buchanan"]
[10333,"2016-03-26","Wartian Herkku","Finland","Sir Rodney's Scones","Confections",10,10,0.1,90,"Steven Buchanan"]
[10334,"2016-03-29","Victuailles en stock","France","Filo Mix","Grains/Cereals",7,8,0,56,"Laura Callahan"]
[10334,"2016-03-29","Victuailles en stock","France","Scottish Longbreads","Confections",12.5,10,0,125,"Laura Callahan"]
[10335,"2016-03-30","Hungry Owl All-Night Grocers","Ireland","Mascarpone Fabioli","Dairy Products",32,6,0.2,153.6,"Robert King"]
[10335,"2016-03-30","Hungry Owl All-Night Grocers","Ireland","Gorgonzola Telino","Dairy Products",12.5,25,0.2,250,"Robert King"]
[10335,"2016-03-30","Hungry Owl All-Night Grocers","Ireland","Chang","Beverages",19,7,0.2,106.4,"Robert King"]
[10335,"2016-03-30","Hungry Owl All-Night Grocers","Ireland","Manjimup Dried Apples","Produce",53,48,0.2,2035.2,"Robert King"]
[10336,"2016-03-31","Princesa Isabel Vinhos","Portugal","Chef Anton's Cajun Seasoning","Condiments",22,18,0.1,356.4,"Robert King"]
[10337,"2016-04-01","Frankenversand","Germany","Tunnbröd","Grains/Cereals",9,40,0,360,"Margaret Peacock"]
[10337,"2016-04-01","Frankenversand","Germany","Gumbär Gummibärchen","Confections",31.23,24,0,749.52,"Margaret Peacock"]
[10337,"2016-04-01","Frankenversand","Germany","Inlagd Sill","Seafood",19,20,0,380,"Margaret Peacock"]
[10337,"2016-04-01","Frankenversand","Germany","Gravad lax","Seafood",26,28,0,728,"Margaret Peacock"]
[10337,"2016-04-01","Frankenversand","Germany","Mozzarella di Giovanni","Dairy Products",34.799999999999997,25,0,870,"Margaret Peacock"]
[10338,"2016-04-02","Old World Delicatessen","USA","Nord-Ost Matjeshering","Seafood",25.89,15,0,388.35,"Margaret Peacock"]
[10338,"2016-04-02","Old World Delicatessen","USA","Alice Mutton","Meat/Poultry",39,20,0,780,"Margaret Peacock"]
[10339,"2016-04-05","Mère Paillarde","Canada","Alice Mutton","Meat/Poultry",39,70,0.05,2593.5,"Andrew Fuller"]
[10339,"2016-04-05","Mère Paillarde","Canada","Tarte au sucre","Confections",49.3,28,0,1380.4,"Andrew Fuller"]
[10339,"2016-04-05","Mère Paillarde","Canada","Chef Anton's Cajun Seasoning","Condiments",22,10,0,220,"Andrew Fuller"]
[10340,"2016-04-06","Bon app'","France","Carnarvon Tigers","Seafood",62.5,20,0.05,1187.5,"Nancy Davolio"]
[10340,"2016-04-06","Bon app'","France","Ipoh Coffee","Beverages",46,40,0.05,1748,"Nancy Davolio"]
[10340,"2016-04-06","Bon app'","France","Jack's New England Clam Chowder","Seafood",9.65,12,0.05,110.01,"Nancy Davolio"]
[10341,"2016-04-06","Simons bistro","Denmark","Raclette Courdavault","Dairy Products",55,9,0.15,420.75,"Robert King"]
[10341,"2016-04-06","Simons bistro","Denmark","Geitost","Dairy Products",2.5,8,0,20,"Robert King"]
[10342,"2016-04-07","Frankenversand","Germany","Pâté chinois","Meat/Poultry",24,40,0.2,768,"Margaret Peacock"]
[10342,"2016-04-07","Frankenversand","Germany","Chang","Beverages",19,24,0.2,364.8,"Margaret Peacock"]
[10342,"2016-04-07","Frankenversand","Germany","Inlagd Sill","Seafood",19,40,0.2,608,"Margaret Peacock"]
[10342,"2016-04-07","Frankenversand","Germany","Gorgonzola Telino","Dairy Products",12.5,56,0.2,560,"Margaret Peacock"]
[10343,"2016-04-08","Lehmanns Marktstand","Germany","Lakkalikööri","Beverages",18,15,0,270,"Margaret Peacock"]
[10343,"2016-04-08","Lehmanns Marktstand","Germany","Scottish Longbreads","Confections",12.5,4,0.05,47.5,"Margaret Peacock"]
[10343,"2016-04-08","Lehmanns Marktstand","Germany","Wimmers gute Semmelknödel","Grains/Cereals",33.25,50,0,{"$f":"ROUND((G259*H259)*(1-I259),2)","v":1662.5},"Margaret Peacock"]
[10344,"2016-04-09","White Clover Markets","USA","Chef Anton's Cajun Seasoning","Condiments",22,35,0,770,"Margaret Peacock"]
[10344,"2016-04-09","White Clover Markets","USA","Northwoods Cranberry Sauce","Condiments",40,70,0.25,2100,"Margaret Peacock"]
[10345,"2016-04-12","QUICK-Stop","Germany","Northwoods Cranberry Sauce","Condiments",40,70,0,2800,"Andrew Fuller"]
[10345,"2016-04-12","QUICK-Stop","Germany","Teatime Chocolate Biscuits","Confections",9.1999999999999993,80,0,736,"Andrew Fuller"]
[10345,"2016-04-12","QUICK-Stop","Germany","Singaporean Hokkien Fried Mee","Grains/Cereals",14,9,0,126,"Andrew Fuller"]
[10346,"2016-04-13","Rattlesnake Canyon Grocery","USA","Alice Mutton","Meat/Poultry",39,36,0.1,1263.5999999999999,"Janet Leverling"]
[10346,"2016-04-13","Rattlesnake Canyon Grocery","USA","Gnocchi di nonna Alice","Grains/Cereals",38,20,0,760,"Janet Leverling"]
[10347,"2016-04-14","Familia Arquibaldo","Brazil","NuNuCa Nuß-Nougat-Creme","Confections",14,10,0,140,"Margaret Peacock"]
[10347,"2016-04-14","Familia Arquibaldo","Brazil","Rhönbräu Klosterbier","Beverages",7.75,6,0.15,39.53,"Margaret Peacock"]
[10347,"2016-04-14","Familia Arquibaldo","Brazil","Boston Crab Meat","Seafood",18.399999999999999,4,0,73.599999999999994,"Margaret Peacock"]
[10347,"2016-04-14","Familia Arquibaldo","Brazil","Chartreuse verte","Beverages",18,50,0.15,765,"Margaret Peacock"]
[10348,"2016-04-15","Die Wandernde Kuh","Germany","Chai","Beverages",18,15,0.15,229.5,"Margaret Peacock"]
[10348,"2016-04-15","Die Wandernde Kuh","Germany","Tunnbröd","Grains/Cereals",9,25,0,225,"Margaret Peacock"]
[10349,"2016-04-16","Split Rail Beer & Ale","USA","Tourtière","Meat/Poultry",7.45,24,0,178.8,"Robert King"]
[10350,"2016-04-19","La maison d'Asie","France","Valkoinen suklaa","Confections",16.25,15,0.1,219.38,"Michael Suyama"]
[10350,"2016-04-19","La maison d'Asie","France","Gudbrandsdalsost","Dairy Products",36,18,0.1,583.20000000000005,"Michael Suyama"]
[10351,"2016-04-19","Ernst Handel","Austria","Côte de Blaye","Beverages",263.5,20,0.05,5006.5,"Nancy Davolio"]
[10351,"2016-04-19","Ernst Handel","Austria","Gula Malacca","Condiments",19.45,77,0.05,1422.77,"Nancy Davolio"]
[10351,"2016-04-19","Ernst Handel","Austria","Louisiana Fiery Hot Pepper Sauce","Condiments",21.05,10,0.05,199.98,"Nancy Davolio"]
[10351,"2016-04-19","Ernst Handel","Austria","Jack's New England Clam Chowder","Seafood",9.65,13,0,125.45,"Nancy Davolio"]
[10352,"2016-04-20","Furia Bacalhau e Frutos do Mar","Portugal","Tourtière","Meat/Poultry",7.45,20,0.15,126.65,"Janet Leverling"]
[10352,"2016-04-20","Furia Bacalhau e Frutos do Mar","Portugal","Guaraná Fantástica","Beverages",4.5,10,0,45,"Janet Leverling"]
[10353,"2016-04-21","Piccolo und mehr","Austria","Côte de Blaye","Beverages",263.5,50,0.2,10540,"Robert King"]
[10353,"2016-04-21","Piccolo und mehr","Austria","Queso Cabrales","Dairy Products",21,12,0.2,201.6,"Robert King"]
[10354,"2016-04-22","Pericles Comidas clásicas","Mexico","Thüringer Rostbratwurst","Meat/Poultry",123.79,4,0,495.16,"Laura Callahan"]
[10354,"2016-04-22","Pericles Comidas clásicas","Mexico","Chai","Beverages",18,12,0,216,"Laura Callahan"]
[10355,"2016-04-23","Around the Horn","UK","Guaraná Fantástica","Beverages",4.5,25,0,112.5,"Michael Suyama"]
[10355,"2016-04-23","Around the Horn","UK","Ravioli Angelo","Grains/Cereals",19.5,25,0,487.5,"Michael Suyama"]
[10356,"2016-04-26","Die Wandernde Kuh","Germany","Gorgonzola Telino","Dairy Products",12.5,30,0,375,"Michael Suyama"]
[10356,"2016-04-26","Die Wandernde Kuh","Germany","Gudbrandsdalsost","Dairy Products",36,20,0,720,"Michael Suyama"]
[10356,"2016-04-26","Die Wandernde Kuh","Germany","Pâté chinois","Meat/Poultry",24,12,0,288,"Michael Suyama"]
[10357,"2016-04-27","LILA-Supermercado","Venezuela","Camembert Pierrot","Dairy Products",34,8,0.2,217.6,"Nancy Davolio"]
[10357,"2016-04-27","LILA-Supermercado","Venezuela","Gumbär Gummibärchen","Confections",31.23,16,0,499.68,"Nancy Davolio"]
[10357,"2016-04-27","LILA-Supermercado","Venezuela","Ikura","Seafood",31,30,0.2,744,"Nancy Davolio"]
[10358,"2016-04-28","La maison d'Asie","France","Inlagd Sill","Seafood",19,20,0.05,361,"Steven Buchanan"]
[10358,"2016-04-28","La maison d'Asie","France","Sasquatch Ale","Beverages",14,10,0.05,133,"Steven Buchanan"]
[10358,"2016-04-28","La maison d'Asie","France","Guaraná Fantástica","Beverages",4.5,10,0.05,42.75,"Steven Buchanan"]
[10359,"2016-04-29","Seven Seas Imports","UK","Pavlova","Confections",17.45,56,0.05,928.34,"Steven Buchanan"]
[10359,"2016-04-29","Seven Seas Imports","UK","Camembert Pierrot","Dairy Products",34,80,0.05,2584,"Steven Buchanan"]
[10359,"2016-04-29","Seven Seas Imports","UK","Gorgonzola Telino","Dairy Products",12.5,70,0.05,831.25,"Steven Buchanan"]
[10360,"2016-04-30","Blondel père et fils","France","Maxilaku","Confections",20,35,0,700,"Margaret Peacock"]
[10360,"2016-04-30","Blondel père et fils","France","Côte de Blaye","Beverages",263.5,10,0,2635,"Margaret Peacock"]
[10360,"2016-04-30","Blondel père et fils","France","Rössle Sauerkraut","Produce",45.6,30,0,1368,"Margaret Peacock"]
[10360,"2016-04-30","Blondel père et fils","France","Thüringer Rostbratwurst","Meat/Poultry",123.79,35,0,4332.6499999999996,"Margaret Peacock"]
[10360,"2016-04-30","Blondel père et fils","France","Tourtière","Meat/Poultry",7.45,28,0,208.6,"Margaret Peacock"]
[10361,"2016-04-30","QUICK-Stop","Germany","Camembert Pierrot","Dairy Products",34,55,0.1,1683,"Nancy Davolio"]
[10361,"2016-04-30","QUICK-Stop","Germany","Chartreuse verte","Beverages",18,54,0.1,874.8,"Nancy Davolio"]
[10362,"2016-05-03","Bon app'","France","Tourtière","Meat/Poultry",7.45,24,0,178.8,"Janet Leverling"]
[10362,"2016-05-03","Bon app'","France","Manjimup Dried Apples","Produce",53,20,0,1060,"Janet Leverling"]
[10362,"2016-05-03","Bon app'","France","NuNuCa Nuß-Nougat-Creme","Confections",14,50,0,700,"Janet Leverling"]
[10363,"2016-05-04","Drachenblut Delikatessen","Germany","Gorgonzola Telino","Dairy Products",12.5,20,0,250,"Margaret Peacock"]
[10363,"2016-05-04","Drachenblut Delikatessen","Germany","Lakkalikööri","Beverages",18,12,0,216,"Margaret Peacock"]
[10363,"2016-05-04","Drachenblut Delikatessen","Germany","Rhönbräu Klosterbier","Beverages",7.75,12,0,93,"Margaret Peacock"]
[10364,"2016-05-04","Eastern Connection","UK","Gudbrandsdalsost","Dairy Products",36,30,0,1080,"Nancy Davolio"]
[10364,"2016-05-04","Eastern Connection","UK","Fløtemysost","Dairy Products",21.5,5,0,107.5,"Nancy Davolio"]
[10365,"2016-05-05","Antonio Moreno Taquería","Mexico","Queso Cabrales","Dairy Products",21,24,0,504,"Janet Leverling"]
[10366,"2016-05-06","Galería del gastrónomo","Spain","Louisiana Fiery Hot Pepper Sauce","Condiments",21.05,5,0,105.25,"Laura Callahan"]
[10366,"2016-05-06","Galería del gastrónomo","Spain","Original Frankfurter grüne Soße","Condiments",13,5,0,65,"Laura Callahan"]
[10367,"2016-05-06","Vaffeljernet","Denmark","Original Frankfurter grüne Soße","Condiments",13,7,0,91,"Robert King"]
[10367,"2016-05-06","Vaffeljernet","Denmark","Louisiana Fiery Hot Pepper Sauce","Condiments",21.05,15,0,315.75,"Robert King"]
[10367,"2016-05-06","Vaffeljernet","Denmark","Sasquatch Ale","Beverages",14,36,0,504,"Robert King"]
[10367,"2016-05-06","Vaffeljernet","Denmark","Tourtière","Meat/Poultry",7.45,18,0,134.1,"Robert King"]
[10368,"2016-05-07","Ernst Handel","Austria","Wimmers gute Semmelknödel","Grains/Cereals",33.25,35,0.1,1047.3800000000001,"Andrew Fuller"]
[10368,"2016-05-07","Ernst Handel","Austria","Rössle Sauerkraut","Produce",45.6,13,0.1,{"$f":"ROUND((G323*H323)*(1-I323),2)","v":533.52},"Andrew Fuller"]
[10368,"2016-05-07","Ernst Handel","Austria","Ravioli Angelo","Grains/Cereals",19.5,25,0,487.5,"Andrew Fuller"]
[10368,"2016-05-07","Ernst Handel","Austria","Sir Rodney's Scones","Confections",10,5,0.1,45,"Andrew Fuller"]
[10369,"2016-05-10","Split Rail Beer & Ale","USA","Gnocchi di nonna Alice","Grains/Cereals",38,18,0.25,513,"Laura Callahan"]
[10369,"2016-05-10","Split Rail Beer & Ale","USA","Thüringer Rostbratwurst","Meat/Poultry",123.79,20,0,2475.8000000000002,"Laura Callahan"]
[10370,"2016-05-11","Chop-suey Chinese","Switzerland","Longlife Tofu","Produce",10,20,0.15,170,"Michael Suyama"]
[10370,"2016-05-11","Chop-suey Chinese","Switzerland","Chai","Beverages",18,15,0.15,229.5,"Michael Suyama"]
[10370,"2016-05-11","Chop-suey Chinese","Switzerland","Wimmers gute Semmelknödel","Grains/Cereals",33.25,30,0,997.5,"Michael Suyama"]
[10371,"2016-05-11","La maison d'Asie","France","Inlagd Sill","Seafood",19,6,0.2,91.2,"Nancy Davolio"]
[10372,"2016-05-12","Queen Cozinha","Brazil","Côte de Blaye","Beverages",263.5,40,0.25,7905,"Steven Buchanan"]
[10372,"2016-05-12","Queen Cozinha","Brazil","Mozzarella di Giovanni","Dairy Products",34.799999999999997,42,0.25,1096.2,"Steven Buchanan"]
[10372,"2016-05-12","Queen Cozinha","Brazil","Camembert Pierrot","Dairy Products",34,70,0.25,1785,"Steven Buchanan"]
[10372,"2016-05-12","Queen Cozinha","Brazil","Sir Rodney's Marmalade","Confections",81,12,0.25,729,"Steven Buchanan"]
[10373,"2016-05-13","Hungry Owl All-Night Grocers","Ireland","Fløtemysost","Dairy Products",21.5,50,0.2,860,"Margaret Peacock"]
[10373,"2016-05-13","Hungry Owl All-Night Grocers","Ireland","Escargots de Bourgogne","Seafood",13.25,80,0.2,848,"Margaret Peacock"]
[10374,"2016-05-13","Wolski  Zajazd","Poland","Escargots de Bourgogne","Seafood",13.25,15,0,198.75,"Nancy Davolio"]
[10374,"2016-05-13","Wolski  Zajazd","Poland","Gorgonzola Telino","Dairy Products",12.5,30,0,375,"Nancy Davolio"]
[10375,"2016-05-14","Hungry Coyote Import Store","USA","Tourtière","Meat/Poultry",7.45,10,0,74.5,"Janet Leverling"]
[10375,"2016-05-14","Hungry Coyote Import Store","USA","Tofu","Produce",23.25,15,0,348.75,"Janet Leverling"]
[10376,"2016-05-17","Mère Paillarde","Canada","Gorgonzola Telino","Dairy Products",12.5,42,0.05,498.75,"Nancy Davolio"]
[10377,"2016-05-17","Seven Seas Imports","UK","Chartreuse verte","Beverages",18,20,0.15,306,"Nancy Davolio"]
[10377,"2016-05-17","Seven Seas Imports","UK","Rössle Sauerkraut","Produce",45.6,20,0.15,775.2,"Nancy Davolio"]
[10378,"2016-05-18","Folk och fä HB","Sweden","Fløtemysost","Dairy Products",21.5,6,0,129,"Steven Buchanan"]
[10379,"2016-05-19","Que Delícia","Brazil","Jack's New England Clam Chowder","Seafood",9.65,8,0.1,69.48,"Andrew Fuller"]
[10379,"2016-05-19","Que Delícia","Brazil","Louisiana Fiery Hot Pepper Sauce","Condiments",21.05,20,0.1,378.9,"Andrew Fuller"]
[10379,"2016-05-19","Que Delícia","Brazil","Vegie-spread","Condiments",43.9,16,0.1,632.16,"Andrew Fuller"]
[10380,"2016-05-20","Hungry Owl All-Night Grocers","Ireland","Nord-Ost Matjeshering","Seafood",25.89,18,0.1,419.42,"Laura Callahan"]
[10380,"2016-05-20","Hungry Owl All-Night Grocers","Ireland","Camembert Pierrot","Dairy Products",34,6,0.1,183.6,"Laura Callahan"]
[10380,"2016-05-20","Hungry Owl All-Night Grocers","Ireland","Perth Pasties","Meat/Poultry",32.799999999999997,20,0.1,590.4,"Laura Callahan"]
[10380,"2016-05-20","Hungry Owl All-Night Grocers","Ireland","Outback Lager","Beverages",15,30,0,450,"Laura Callahan"]
[10381,"2016-05-20","LILA-Supermercado","Venezuela","Longlife Tofu","Produce",10,14,0,140,"Janet Leverling"]
[10382,"2016-05-21","Ernst Handel","Austria","Geitost","Dairy Products",2.5,60,0,150,"Margaret Peacock"]
[10382,"2016-05-21","Ernst Handel","Austria","Thüringer Rostbratwurst","Meat/Poultry",123.79,14,0,1733.06,"Margaret Peacock"]
[10382,"2016-05-21","Ernst Handel","Austria","Chef Anton's Gumbo Mix","Condiments",21.35,32,0,683.2,"Margaret Peacock"]
[10382,"2016-05-21","Ernst Handel","Austria","Longlife Tofu","Produce",10,50,0,500,"Margaret Peacock"]
[10382,"2016-05-21","Ernst Handel","Austria","Carnarvon Tigers","Seafood",62.5,9,0,562.5,"Margaret Peacock"]
[10383,"2016-05-24","Around the Horn","UK","Valkoinen suklaa","Confections",16.25,15,0,243.75,"Laura Callahan"]
[10383,"2016-05-24","Around the Horn","UK","Gnocchi di nonna Alice","Grains/Cereals",38,20,0,760,"Laura Callahan"]
[10383,"2016-05-24","Around the Horn","UK","Konbu","Seafood",6,20,0,120,"Laura Callahan"]
[10384,"2016-05-24","Berglunds snabbköp","Sweden","Camembert Pierrot","Dairy Products",34,15,0,510,"Janet Leverling"]
[10384,"2016-05-24","Berglunds snabbköp","Sweden","Sir Rodney's Marmalade","Confections",81,28,0,2268,"Janet Leverling"]
[10385,"2016-05-25","Split Rail Beer & Ale","USA","Scottish Longbreads","Confections",12.5,8,0.2,80,"Nancy Davolio"]
[10385,"2016-05-25","Split Rail Beer & Ale","USA","Uncle Bob's Organic Dried Pears","Produce",30,10,0.2,240,"Nancy Davolio"]
[10385,"2016-05-25","Split Rail Beer & Ale","USA","Camembert Pierrot","Dairy Products",34,20,0.2,544,"Nancy Davolio"]
[10386,"2016-05-26","Familia Arquibaldo","Brazil","Sasquatch Ale","Beverages",14,10,0,140,"Anne Dodsworth"]
[10386,"2016-05-26","Familia Arquibaldo","Brazil","Guaraná Fantástica","Beverages",4.5,15,0,67.5,"Anne Dodsworth"]
[10387,"2016-05-26","Santé Gourmet","Norway","Fløtemysost","Dairy Products",21.5,15,0,322.5,"Nancy Davolio"]
[10387,"2016-05-26","Santé Gourmet","Norway","Rössle Sauerkraut","Produce",45.6,6,0,273.60000000000002,"Nancy Davolio"]
[10387,"2016-05-26","Santé Gourmet","Norway","Guaraná Fantástica","Beverages",4.5,15,0,67.5,"Nancy Davolio"]
[10387,"2016-05-26","Santé Gourmet","Norway","Raclette Courdavault","Dairy Products",55,12,0,660,"Nancy Davolio"]
[10388,"2016-05-27","Seven Seas Imports","UK","Filo Mix","Grains/Cereals",7,20,0.2,112,"Andrew Fuller"]
[10388,"2016-05-27","Seven Seas Imports","UK","Røgede sild","Seafood",9.5,15,0.2,114,"Andrew Fuller"]
[10388,"2016-05-27","Seven Seas Imports","UK","Perth Pasties","Meat/Poultry",32.799999999999997,40,0,1312,"Andrew Fuller"]
[10389,"2016-05-28","Bottom-Dollar Markets","Canada","Tarte au sucre","Confections",49.3,20,0,986,"Margaret Peacock"]
[10389,"2016-05-28","Bottom-Dollar Markets","Canada","Outback Lager","Beverages",15,30,0,450,"Margaret Peacock"]
[10389,"2016-05-28","Bottom-Dollar Markets","Canada","Ikura","Seafood",31,16,0,496,"Margaret Peacock"]
[10389,"2016-05-28","Bottom-Dollar Markets","Canada","Pâté chinois","Meat/Poultry",24,15,0,360,"Margaret Peacock"]
[10390,"2016-05-31","Ernst Handel","Austria","Mozzarella di Giovanni","Dairy Products",34.799999999999997,24,0.1,751.68,"Michael Suyama"]
[10390,"2016-05-31","Ernst Handel","Austria","Steeleye Stout","Beverages",18,40,0.1,648,"Michael Suyama"]
[10390,"2016-05-31","Ernst Handel","Austria","Spegesild","Seafood",12,45,0,540,"Michael Suyama"]
[10390,"2016-05-31","Ernst Handel","Austria","Gorgonzola Telino","Dairy Products",12.5,60,0.1,675,"Michael Suyama"]
[10391,"2016-05-31","Drachenblut Delikatessen","Germany","Konbu","Seafood",6,18,0,108,"Janet Leverling"]
[10392,"2016-06-01","Piccolo und mehr","Austria","Gudbrandsdalsost","Dairy Products",36,50,0,1800,"Andrew Fuller"]
[10393,"2016-06-02","Save-a-lot Markets","USA","Gorgonzola Telino","Dairy Products",12.5,32,0,400,"Nancy Davolio"]
[10393,"2016-06-02","Save-a-lot Markets","USA","NuNuCa Nuß-Nougat-Creme","Confections",14,7,0.25,{"$f":"ROUND((G387*H387)*(1-I387),2)","v":73.5},"Nancy Davolio"]
[10393,"2016-06-02","Save-a-lot Markets","USA","Gumbär Gummibärchen","Confections",31.23,70,0.25,1639.58,"Nancy Davolio"]
[10393,"2016-06-02","Save-a-lot Markets","USA","Tofu","Produce",23.25,42,0.25,732.38,"Nancy Davolio"]
[10393,"2016-06-02","Save-a-lot Markets","USA","Chang","Beverages",19,25,0.25,356.25,"Nancy Davolio"]
[10394,"2016-06-02","Hungry Coyote Import Store","USA","Konbu","Seafood",6,10,0,60,"Nancy Davolio"]
[10394,"2016-06-02","Hungry Coyote Import Store","USA","Tarte au sucre","Confections",49.3,10,0,493,"Nancy Davolio"]
[10395,"2016-06-03","HILARIÓN-Abastos","Venezuela","Perth Pasties","Meat/Poultry",32.799999999999997,70,0.1,2066.4,"Michael Suyama"]
[10395,"2016-06-03","HILARIÓN-Abastos","Venezuela","Spegesild","Seafood",12,28,0.1,302.39999999999998,"Michael Suyama"]
[10395,"2016-06-03","HILARIÓN-Abastos","Venezuela","Gudbrandsdalsost","Dairy Products",36,8,0,288,"Michael Suyama"]
[10396,"2016-06-04","Frankenversand","Germany","Tunnbröd","Grains/Cereals",9,40,0,360,"Nancy Davolio"]
[10396,"2016-06-04","Frankenversand","Germany","Mozzarella di Giovanni","Dairy Products",34.799999999999997,21,0,730.8,"Nancy Davolio"]
[10396,"2016-06-04","Frankenversand","Germany","Fløtemysost","Dairy Products",21.5,60,0,1290,"Nancy Davolio"]
[10397,"2016-06-04","Princesa Isabel Vinhos","Portugal","Sir Rodney's Scones","Confections",10,10,0.15,85,"Steven Buchanan"]
[10397,"2016-06-04","Princesa Isabel Vinhos","Portugal","Manjimup Dried Apples","Produce",53,18,0.15,810.9,"Steven Buchanan"]
[10398,"2016-06-07","Save-a-lot Markets","USA","Steeleye Stout","Beverages",18,30,0,540,"Andrew Fuller"]
[10398,"2016-06-07","Save-a-lot Markets","USA","Pâté chinois","Meat/Poultry",24,120,0.1,2592,"Andrew Fuller"]
[10399,"2016-06-08","Vaffeljernet","Denmark","Scottish Longbreads","Confections",12.5,60,0,750,"Laura Callahan"]
[10399,"2016-06-08","Vaffeljernet","Denmark","Lakkalikööri","Beverages",18,35,0,630,"Laura Callahan"]
[10399,"2016-06-08","Vaffeljernet","Denmark","Original Frankfurter grüne Soße","Condiments",13,14,0,182,"Laura Callahan"]
[10399,"2016-06-08","Vaffeljernet","Denmark","Fløtemysost","Dairy Products",21.5,30,0,645,"Laura Callahan"]
[10400,"2016-06-09","Eastern Connection","UK","Maxilaku","Confections",20,30,0,600,"Nancy Davolio"]
[10400,"2016-06-09","Eastern Connection","UK","Steeleye Stout","Beverages",18,35,0,630,"Nancy Davolio"]
[10400,"2016-06-09","Eastern Connection","UK","Thüringer Rostbratwurst","Meat/Poultry",123.79,21,0,2599.59,"Nancy Davolio"]
[10401,"2016-06-09","Rattlesnake Canyon Grocery","USA","Nord-Ost Matjeshering","Seafood",25.89,18,0,466.02,"Nancy Davolio"]
[10401,"2016-06-09","Rattlesnake Canyon Grocery","USA","Gnocchi di nonna Alice","Grains/Cereals",38,70,0,2660,"Nancy Davolio"]
[10401,"2016-06-09","Rattlesnake Canyon Grocery","USA","Fløtemysost","Dairy Products",21.5,60,0,1290,"Nancy Davolio"]
[10401,"2016-06-09","Rattlesnake Canyon Grocery","USA","Louisiana Fiery Hot Pepper Sauce","Condiments",21.05,20,0,421,"Nancy Davolio"]
[10402,"2016-06-10","Ernst Handel","Austria","Tunnbröd","Grains/Cereals",9,60,0,540,"Laura Callahan"]
[10402,"2016-06-10","Ernst Handel","Austria","Vegie-spread","Condiments",43.9,65,0,2853.5,"Laura Callahan"]
[10403,"2016-06-11","Ernst Handel","Austria","Pavlova","Confections",17.45,21,0.15,311.48,"Margaret Peacock"]
[10403,"2016-06-11","Ernst Handel","Austria","Chocolade","Confections",12.75,70,0.15,758.63,"Margaret Peacock"]
[10404,"2016-06-11","Magazzini Alimentari Riuniti","Italy","Singaporean Hokkien Fried Mee","Grains/Cereals",14,40,0.05,532,"Andrew Fuller"]
[10404,"2016-06-11","Magazzini Alimentari Riuniti","Italy","Gumbär Gummibärchen","Confections",31.23,30,0.05,890.06,"Andrew Fuller"]
[10404,"2016-06-11","Magazzini Alimentari Riuniti","Italy","Maxilaku","Confections",20,30,0.05,570,"Andrew Fuller"]
[10405,"2016-06-14","LINO-Delicateses","Venezuela","Aniseed Syrup","Condiments",10,50,0,500,"Nancy Davolio"]
[10406,"2016-06-15","Queen Cozinha","Brazil","Inlagd Sill","Seafood",19,5,0.1,85.5,"Robert King"]
[10406,"2016-06-15","Queen Cozinha","Brazil","Sir Rodney's Scones","Confections",10,30,0.1,270,"Robert King"]
[10406,"2016-06-15","Queen Cozinha","Brazil","Chai","Beverages",18,10,0,180,"Robert King"]
[10406,"2016-06-15","Queen Cozinha","Brazil","Boston Crab Meat","Seafood",18.399999999999999,2,0.1,33.119999999999997,"Robert King"]
[10406,"2016-06-15","Queen Cozinha","Brazil","Rössle Sauerkraut","Produce",45.6,42,0.1,1723.68,"Robert King"]
[10407,"2016-06-15","Ottilies Käseladen","Germany","Gudbrandsdalsost","Dairy Products",36,15,0,540,"Andrew Fuller"]
[10407,"2016-06-15","Ottilies Käseladen","Germany","Fløtemysost","Dairy Products",21.5,15,0,322.5,"Andrew Fuller"]
[10407,"2016-06-15","Ottilies Käseladen","Germany","Queso Cabrales","Dairy Products",21,30,0,630,"Andrew Fuller"]
[10408,"2016-06-16","Folies gourmandes","France","Gravad lax","Seafood",26,10,0,260,"Laura Callahan"]
[10408,"2016-06-16","Folies gourmandes","France","Tourtière","Meat/Poultry",7.45,6,0,44.7,"Laura Callahan"]
[10408,"2016-06-16","Folies gourmandes","France","Tarte au sucre","Confections",49.3,35,0,1725.5,"Laura Callahan"]
[10409,"2016-06-17","Océano Atlántico Ltda.","Argentina","Sir Rodney's Scones","Confections",10,12,0,120,"Janet Leverling"]
[10409,"2016-06-17","Océano Atlántico Ltda.","Argentina","Tofu","Produce",23.25,12,0,279,"Janet Leverling"]
[10410,"2016-06-18","Bottom-Dollar Markets","Canada","Raclette Courdavault","Dairy Products",55,16,0,880,"Janet Leverling"]
[10410,"2016-06-18","Bottom-Dollar Markets","Canada","Geitost","Dairy Products",2.5,49,0,122.5,"Janet Leverling"]
[10411,"2016-06-18","Bottom-Dollar Markets","Canada","Gula Malacca","Condiments",19.45,40,0.2,622.4,"Anne Dodsworth"]
[10411,"2016-06-18","Bottom-Dollar Markets","Canada","Jack's New England Clam Chowder","Seafood",9.65,25,0.2,193,"Anne Dodsworth"]
[10411,"2016-06-18","Bottom-Dollar Markets","Canada","Raclette Courdavault","Dairy Products",55,9,0.2,396,"Anne Dodsworth"]
[10412,"2016-06-21","Wartian Herkku","Finland","Tofu","Produce",23.25,20,0.1,418.5,"Laura Callahan"]
[10413,"2016-06-22","La maison d'Asie","France","Tarte au sucre","Confections",49.3,40,0,1972,"Janet Leverling"]
[10413,"2016-06-22","La maison d'Asie","France","Chai","Beverages",18,24,0,432,"Janet Leverling"]
[10413,"2016-06-22","La maison d'Asie","France","Lakkalikööri","Beverages",18,14,0,252,"Janet Leverling"]
[10414,"2016-06-22","Familia Arquibaldo","Brazil","Geitost","Dairy Products",2.5,50,0,125,"Andrew Fuller"]
[10414,"2016-06-22","Familia Arquibaldo","Brazil","Teatime Chocolate Biscuits","Confections",9.1999999999999993,18,0.05,157.32,"Andrew Fuller"]
[10415,"2016-06-23","Hungry Coyote Import Store","USA","Alice Mutton","Meat/Poultry",39,2,0,78,"Janet Leverling"]
[10415,"2016-06-23","Hungry Coyote Import Store","USA","Geitost","Dairy Products",2.5,20,0,50,"Janet Leverling"]
[10416,"2016-06-24","Wartian Herkku","Finland","Perth Pasties","Meat/Poultry",32.799999999999997,10,0,328,"Laura Callahan"]
[10416,"2016-06-24","Wartian Herkku","Finland","Teatime Chocolate Biscuits","Confections",9.1999999999999993,20,0,184,"Laura Callahan"]
[10416,"2016-06-24","Wartian Herkku","Finland","Ravioli Angelo","Grains/Cereals",19.5,20,0,390,"Laura Callahan"]
[10417,"2016-06-24","Simons bistro","Denmark","Scottish Longbreads","Confections",12.5,36,0.25,{"$f":"ROUND((G451*H451)*(1-I451),2)","v":337.5},"Margaret Peacock"]
[10417,"2016-06-24","Simons bistro","Denmark","Original Frankfurter grüne Soße","Condiments",13,35,0,455,"Margaret Peacock"]
[10417,"2016-06-24","Simons bistro","Denmark","Côte de Blaye","Beverages",263.5,50,0,13175,"Margaret Peacock"]
[10417,"2016-06-24","Simons bistro","Denmark","Spegesild","Seafood",12,2,0.25,18,"Margaret Peacock"]
[10418,"2016-06-25","QUICK-Stop","Germany","Sirop d'érable","Condiments",28.5,16,0,456,"Margaret Peacock"]
[10418,"2016-06-25","QUICK-Stop","Germany","Chang","Beverages",19,60,0,1140,"Margaret Peacock"]
[10418,"2016-06-25","QUICK-Stop","Germany","Longlife Tofu","Produce",10,15,0,150,"Margaret Peacock"]
[10418,"2016-06-25","QUICK-Stop","Germany","Zaanse koeken","Confections",9.5,55,0,522.5,"Margaret Peacock"]
[10419,"2016-06-28","Richter Supermarkt","Switzerland","Camembert Pierrot","Dairy Products",34,60,0.05,1938,"Margaret Peacock"]
[10419,"2016-06-28","Richter Supermarkt","Switzerland","Gudbrandsdalsost","Dairy Products",36,20,0.05,684,"Margaret Peacock"]
[10420,"2016-06-29","Wellington Importadora","Brazil","Mishi Kobe Niku","Meat/Poultry",97,20,0.1,1746,"Janet Leverling"]
[10420,"2016-06-29","Wellington Importadora","Brazil","Outback Lager","Beverages",15,8,0.1,108,"Janet Leverling"]
[10420,"2016-06-29","Wellington Importadora","Brazil","Konbu","Seafood",6,2,0.1,10.8,"Janet Leverling"]
[10420,"2016-06-29","Wellington Importadora","Brazil","Röd Kaviar","Seafood",15,20,0.1,270,"Janet Leverling"]
[10421,"2016-06-29","Que Delícia","Brazil","Perth Pasties","Meat/Poultry",32.799999999999997,15,0.15,418.2,"Laura Callahan"]
[10421,"2016-06-29","Que Delícia","Brazil","Original Frankfurter grüne Soße","Condiments",13,10,0.15,110.5,"Laura Callahan"]
[10421,"2016-06-29","Que Delícia","Brazil","Gumbär Gummibärchen","Confections",31.23,30,0,936.9,"Laura Callahan"]
[10421,"2016-06-29","Que Delícia","Brazil","Teatime Chocolate Biscuits","Confections",9.1999999999999993,4,0.15,31.28,"Laura Callahan"]
[10422,"2016-06-30","Franchi S.p.A.","Italy","Gumbär Gummibärchen","Confections",31.23,2,0,62.46,"Andrew Fuller"]
[10423,"2016-07-01","Gourmet Lanchonetes","Brazil","Gorgonzola Telino","Dairy Products",12.5,14,0,175,"Michael Suyama"]
[10423,"2016-07-01","Gourmet Lanchonetes","Brazil","Raclette Courdavault","Dairy Products",55,20,0,1100,"Michael Suyama"]
[10424,"2016-07-01","Mère Paillarde","Canada","Côte de Blaye","Beverages",263.5,49,0.2,10329.200000000001,"Robert King"]
[10424,"2016-07-01","Mère Paillarde","Canada","Steeleye Stout","Beverages",18,60,0.2,864,"Robert King"]
[10424,"2016-07-01","Mère Paillarde","Canada","Scottish Longbreads","Confections",12.5,30,0.2,300,"Robert King"]
[10425,"2016-07-02","La maison d'Asie","France","Pâté chinois","Meat/Poultry",24,10,0.25,180,"Michael Suyama"]
[10425,"2016-07-02","La maison d'Asie","France","Lakkalikööri","Beverages",18,20,0.25,270,"Michael Suyama"]
[10426,"2016-07-05","Galería del gastrónomo","Spain","Gnocchi di nonna Alice","Grains/Cereals",38,5,0,190,"Margaret Peacock"]
[10426,"2016-07-05","Galería del gastrónomo","Spain","Wimmers gute Semmelknödel","Grains/Cereals",33.25,7,0,232.75,"Margaret Peacock"]
[10427,"2016-07-05","Piccolo und mehr","Austria","Tofu","Produce",23.25,35,0,813.75,"Margaret Peacock"]
[10428,"2016-07-06","Reggiani Caseifici","Italy","Spegesild","Seafood",12,20,0,240,"Robert King"]
[10429,"2016-07-07","Hungry Owl All-Night Grocers","Ireland","Valkoinen suklaa","Confections",16.25,40,0,650,"Janet Leverling"]
[10429,"2016-07-07","Hungry Owl All-Night Grocers","Ireland","Vegie-spread","Condiments",43.9,35,0.25,1152.3800000000001,"Janet Leverling"]
[10430,"2016-07-08","Ernst Handel","Austria","Sir Rodney's Scones","Confections",10,50,0,500,"Margaret Peacock"]
[10430,"2016-07-08","Ernst Handel","Austria","Raclette Courdavault","Dairy Products",55,70,0.2,3080,"Margaret Peacock"]
[10430,"2016-07-08","Ernst Handel","Austria","Alice Mutton","Meat/Poultry",39,45,0.2,1404,"Margaret Peacock"]
[10430,"2016-07-08","Ernst Handel","Austria","Gnocchi di nonna Alice","Grains/Cereals",38,30,0,1140,"Margaret Peacock"]
[10431,"2016-07-08","Bottom-Dollar Markets","Canada","Alice Mutton","Meat/Poultry",39,50,0.25,1462.5,"Margaret Peacock"]
[10431,"2016-07-08","Bottom-Dollar Markets","Canada","Boston Crab Meat","Seafood",18.399999999999999,50,0.25,690,"Margaret Peacock"]
[10431,"2016-07-08","Bottom-Dollar Markets","Canada","Zaanse koeken","Confections",9.5,30,0.25,213.75,"Margaret Peacock"]
[10432,"2016-07-09","Split Rail Beer & Ale","USA","Gumbär Gummibärchen","Confections",31.23,10,0,312.3,"Janet Leverling"]
[10432,"2016-07-09","Split Rail Beer & Ale","USA","Tourtière","Meat/Poultry",7.45,40,0,298,"Janet Leverling"]
[10433,"2016-07-12","Princesa Isabel Vinhos","Portugal","Gnocchi di nonna Alice","Grains/Cereals",38,28,0,1064,"Janet Leverling"]
[10434,"2016-07-12","Folk och fä HB","Sweden","Queso Cabrales","Dairy Products",21,6,0,126,"Janet Leverling"]
[10434,"2016-07-12","Folk och fä HB","Sweden","Lakkalikööri","Beverages",18,18,0.15,275.39999999999998,"Janet Leverling"]
[10435,"2016-07-13","Consolidated Holdings","UK","Mozzarella di Giovanni","Dairy Products",34.799999999999997,10,0,348,"Laura Callahan"]
[10435,"2016-07-13","Consolidated Holdings","UK","Gustaf's Knäckebröd","Grains/Cereals",21,12,0,252,"Laura Callahan"]
[10435,"2016-07-13","Consolidated Holdings","UK","Chang","Beverages",19,10,0,190,"Laura Callahan"]
[10436,"2016-07-14","Blondel père et fils","France","Wimmers gute Semmelknödel","Grains/Cereals",33.25,30,0.1,897.75,"Janet Leverling"]
[10436,"2016-07-14","Blondel père et fils","France","Spegesild","Seafood",12,5,0,60,"Janet Leverling"]
[10436,"2016-07-14","Blondel père et fils","France","Rhönbräu Klosterbier","Beverages",7.75,24,0.1,167.4,"Janet Leverling"]
[10436,"2016-07-14","Blondel père et fils","France","Gnocchi di nonna Alice","Grains/Cereals",38,40,0.1,1368,"Janet Leverling"]
[10437,"2016-07-14","Wartian Herkku","Finland","Perth Pasties","Meat/Poultry",32.799999999999997,15,0,492,"Laura Callahan"]
[10438,"2016-07-15","Toms Spezialitäten","Germany","Ravioli Angelo","Grains/Cereals",19.5,15,0.2,234,"Janet Leverling"]
[10438,"2016-07-15","Toms Spezialitäten","Germany","Sasquatch Ale","Beverages",14,20,0.2,224,"Janet Leverling"]
[10438,"2016-07-15","Toms Spezialitäten","Germany","Teatime Chocolate Biscuits","Confections",9.1999999999999993,15,0.2,110.4,"Janet Leverling"]
[10439,"2016-07-16","Mère Paillarde","Canada","Queso Manchego La Pastora","Dairy Products",38,15,0,570,"Michael Suyama"]
[10439,"2016-07-16","Mère Paillarde","Canada","Longlife Tofu","Produce",10,30,0,300,"Michael Suyama"]
[10439,"2016-07-16","Mère Paillarde","Canada","Wimmers gute Semmelknödel","Grains/Cereals",33.25,6,0,199.5,"Michael Suyama"]
[10439,"2016-07-16","Mère Paillarde","Canada","Pavlova","Confections",17.45,16,0,279.2,"Michael Suyama"]
[10440,"2016-07-19","Save-a-lot Markets","USA","Sirop d'érable","Condiments",28.5,90,0.15,2180.25,"Margaret Peacock"]
[10440,"2016-07-19","Save-a-lot Markets","USA","Chang","Beverages",19,45,0.15,726.75,"Margaret Peacock"]
[10440,"2016-07-19","Save-a-lot Markets","USA","Pavlova","Confections",17.45,49,0.15,726.79,"Margaret Peacock"]
[10440,"2016-07-19","Save-a-lot Markets","USA","Thüringer Rostbratwurst","Meat/Poultry",123.79,24,0.15,2525.3200000000002,"Margaret Peacock"]
[10441,"2016-07-19","Old World Delicatessen","USA","Schoggi Schokolade","Confections",43.9,50,0,2195,"Janet Leverling"]
[10442,"2016-07-20","Ernst Handel","Austria","Louisiana Hot Spiced Okra","Condiments",17,60,0,{"$f":"ROUND((G515*H515)*(1-I515),2)","v":1020},"Janet Leverling"]
[10442,"2016-07-20","Ernst Handel","Austria","Queso Cabrales","Dairy Products",21,30,0,630,"Janet Leverling"]
[10442,"2016-07-20","Ernst Handel","Austria","Tourtière","Meat/Poultry",7.45,80,0,596,"Janet Leverling"]
[10443,"2016-07-21","Reggiani Caseifici","Italy","Rössle Sauerkraut","Produce",45.6,12,0,547.20000000000005,"Laura Callahan"]
[10443,"2016-07-21","Reggiani Caseifici","Italy","Queso Cabrales","Dairy Products",21,6,0.2,100.8,"Laura Callahan"]
[10444,"2016-07-21","Berglunds snabbköp","Sweden","Steeleye Stout","Beverages",18,8,0,144,"Janet Leverling"]
[10444,"2016-07-21","Berglunds snabbköp","Sweden","Alice Mutton","Meat/Poultry",39,10,0,390,"Janet Leverling"]
[10444,"2016-07-21","Berglunds snabbköp","Sweden","Jack's New England Clam Chowder","Seafood",9.65,30,0,289.5,"Janet Leverling"]
[10444,"2016-07-21","Berglunds snabbköp","Sweden","Gumbär Gummibärchen","Confections",31.23,15,0,468.45,"Janet Leverling"]
[10445,"2016-07-22","Berglunds snabbköp","Sweden","Tourtière","Meat/Poultry",7.45,15,0,111.75,"Janet Leverling"]
[10445,"2016-07-22","Berglunds snabbköp","Sweden","Chartreuse verte","Beverages",18,6,0,108,"Janet Leverling"]
[10446,"2016-07-23","Toms Spezialitäten","Germany","Guaraná Fantástica","Beverages",4.5,20,0.1,81,"Michael Suyama"]
[10446,"2016-07-23","Toms Spezialitäten","Germany","Teatime Chocolate Biscuits","Confections",9.1999999999999993,12,0.1,99.36,"Michael Suyama"]
[10446,"2016-07-23","Toms Spezialitäten","Germany","Filo Mix","Grains/Cereals",7,15,0.1,94.5,"Michael Suyama"]
[10446,"2016-07-23","Toms Spezialitäten","Germany","Gorgonzola Telino","Dairy Products",12.5,3,0.1,33.75,"Michael Suyama"]
[10447,"2016-07-23","Ricardo Adocicados","Brazil","Fløtemysost","Dairy Products",21.5,2,0,43,"Margaret Peacock"]
[10447,"2016-07-23","Ricardo Adocicados","Brazil","Teatime Chocolate Biscuits","Confections",9.1999999999999993,40,0,368,"Margaret Peacock"]
[10447,"2016-07-23","Ricardo Adocicados","Brazil","Louisiana Fiery Hot Pepper Sauce","Condiments",21.05,35,0,736.75,"Margaret Peacock"]
[10448,"2016-07-26","Rancho grande","Argentina","Gumbär Gummibärchen","Confections",31.23,6,0,187.38,"Margaret Peacock"]
[10448,"2016-07-26","Rancho grande","Argentina","Boston Crab Meat","Seafood",18.399999999999999,20,0,368,"Margaret Peacock"]
[10449,"2016-07-27","Blondel père et fils","France","Filo Mix","Grains/Cereals",7,20,0,140,"Janet Leverling"]
[10449,"2016-07-27","Blondel père et fils","France","Ikura","Seafood",31,14,0,434,"Janet Leverling"]
[10449,"2016-07-27","Blondel père et fils","France","Tarte au sucre","Confections",49.3,35,0,1725.5,"Janet Leverling"]
[10450,"2016-07-28","Victuailles en stock","France","Ikura","Seafood",31,20,0.2,496,"Laura Callahan"]
[10450,"2016-07-28","Victuailles en stock","France","Tourtière","Meat/Poultry",7.45,6,0.2,35.76,"Laura Callahan"]
[10451,"2016-07-28","QUICK-Stop","Germany","Pâté chinois","Meat/Poultry",24,120,0.1,2592,"Margaret Peacock"]
[10451,"2016-07-28","QUICK-Stop","Germany","Wimmers gute Semmelknödel","Grains/Cereals",33.25,35,0.1,1047.3800000000001,"Margaret Peacock"]
[10451,"2016-07-28","QUICK-Stop","Germany","Louisiana Fiery Hot Pepper Sauce","Condiments",21.05,28,0.1,530.46,"Margaret Peacock"]
[10451,"2016-07-28","QUICK-Stop","Germany","Original Frankfurter grüne Soße","Condiments",13,55,0.1,643.5,"Margaret Peacock"]
[10452,"2016-07-29","Save-a-lot Markets","USA","Rössle Sauerkraut","Produce",45.6,15,0,684,"Laura Callahan"]
[10452,"2016-07-29","Save-a-lot Markets","USA","Gula Malacca","Condiments",19.45,100,0.05,1847.75,"Laura Callahan"]
[10453,"2016-07-30","Around the Horn","UK","Outback Lager","Beverages",15,25,0.1,337.5,"Nancy Davolio"]
[10453,"2016-07-30","Around the Horn","UK","Chocolade","Confections",12.75,15,0.1,172.13,"Nancy Davolio"]
[10454,"2016-07-30","La maison d'Asie","France","Pavlova","Confections",17.45,20,0.2,279.2,"Margaret Peacock"]
[10454,"2016-07-30","La maison d'Asie","France","Geitost","Dairy Products",2.5,20,0.2,40,"Margaret Peacock"]
[10454,"2016-07-30","La maison d'Asie","France","Spegesild","Seafood",12,10,0.2,96,"Margaret Peacock"]
[10455,"2016-08-02","Wartian Herkku","Finland","Fløtemysost","Dairy Products",21.5,30,0,645,"Laura Callahan"]
[10455,"2016-08-02","Wartian Herkku","Finland","Chartreuse verte","Beverages",18,20,0,360,"Laura Callahan"]
[10455,"2016-08-02","Wartian Herkku","Finland","Sirop d'érable","Condiments",28.5,25,0,712.5,"Laura Callahan"]
[10455,"2016-08-02","Wartian Herkku","Finland","Perth Pasties","Meat/Poultry",32.799999999999997,50,0,1640,"Laura Callahan"]
[10456,"2016-08-03","Königlich Essen","Germany","Maxilaku","Confections",20,21,0.15,357,"Laura Callahan"]
[10456,"2016-08-03","Königlich Essen","Germany","Sir Rodney's Scones","Confections",10,40,0.15,340,"Laura Callahan"]
[10457,"2016-08-03","Königlich Essen","Germany","Raclette Courdavault","Dairy Products",55,36,0,1980,"Andrew Fuller"]
[10458,"2016-08-04","Suprêmes délices","Belgium","Gnocchi di nonna Alice","Grains/Cereals",38,15,0,570,"Robert King"]
[10458,"2016-08-04","Suprêmes délices","Belgium","Ipoh Coffee","Beverages",46,20,0,920,"Robert King"]
[10458,"2016-08-04","Suprêmes délices","Belgium","Gumbär Gummibärchen","Confections",31.23,30,0,936.9,"Robert King"]
[10458,"2016-08-04","Suprêmes délices","Belgium","Fløtemysost","Dairy Products",21.5,50,0,1075,"Robert King"]
[10458,"2016-08-04","Suprêmes délices","Belgium","Rössle Sauerkraut","Produce",45.6,30,0,1368,"Robert King"]
[10459,"2016-08-05","Victuailles en stock","France","Uncle Bob's Organic Dried Pears","Produce",30,16,0.05,456,"Margaret Peacock"]
[10459,"2016-08-05","Victuailles en stock","France","Spegesild","Seafood",12,20,0.05,228,"Margaret Peacock"]
[10459,"2016-08-05","Victuailles en stock","France","Mozzarella di Giovanni","Dairy Products",34.799999999999997,40,0,1392,"Margaret Peacock"]
[10460,"2016-08-06","Folk och fä HB","Sweden","Scottish Longbreads","Confections",12.5,21,0.25,196.88,"Laura Callahan"]
[10460,"2016-08-06","Folk och fä HB","Sweden","Rhönbräu Klosterbier","Beverages",7.75,4,0.25,23.25,"Laura Callahan"]
[10461,"2016-08-06","LILA-Supermercado","Venezuela","Sir Rodney's Scones","Confections",10,40,0.25,300,"Nancy Davolio"]
[10461,"2016-08-06","LILA-Supermercado","Venezuela","Nord-Ost Matjeshering","Seafood",25.89,28,0.25,543.69000000000005,"Nancy Davolio"]
[10461,"2016-08-06","LILA-Supermercado","Venezuela","Pâté chinois","Meat/Poultry",24,60,0.25,1080,"Nancy Davolio"]
[10462,"2016-08-09","Consolidated Holdings","UK","Konbu","Seafood",6,1,0,6,"Andrew Fuller"]
[10462,"2016-08-09","Consolidated Holdings","UK","Tunnbröd","Grains/Cereals",9,21,0,189,"Andrew Fuller"]
[10463,"2016-08-10","Suprêmes délices","Belgium","Singaporean Hokkien Fried Mee","Grains/Cereals",14,50,0,700,"Steven Buchanan"]
[10463,"2016-08-10","Suprêmes délices","Belgium","Teatime Chocolate Biscuits","Confections",9.1999999999999993,21,0,193.2,"Steven Buchanan"]
[10464,"2016-08-10","Furia Bacalhau e Frutos do Mar","Portugal","Chef Anton's Cajun Seasoning","Condiments",22,16,0.2,281.60000000000002,"Margaret Peacock"]
[10464,"2016-08-10","Furia Bacalhau e Frutos do Mar","Portugal","Gnocchi di nonna Alice","Grains/Cereals",38,30,0.2,912,"Margaret Peacock"]
[10464,"2016-08-10","Furia Bacalhau e Frutos do Mar","Portugal","Camembert Pierrot","Dairy Products",34,20,0,680,"Margaret Peacock"]
[10464,"2016-08-10","Furia Bacalhau e Frutos do Mar","Portugal","Ipoh Coffee","Beverages",46,3,0,138,"Margaret Peacock"]
[10465,"2016-08-11","Vaffeljernet","Denmark","Guaraná Fantástica","Beverages",4.5,25,0,{"$f":"ROUND((G579*H579)*(1-I579),2)","v":112.5},"Nancy Davolio"]
[10465,"2016-08-11","Vaffeljernet","Denmark","Røgede sild","Seafood",9.5,30,0.1,256.5,"Nancy Davolio"]
[10465,"2016-08-11","Vaffeljernet","Denmark","Valkoinen suklaa","Confections",16.25,25,0,406.25,"Nancy Davolio"]
[10465,"2016-08-11","Vaffeljernet","Denmark","Boston Crab Meat","Seafood",18.399999999999999,20,0,368,"Nancy Davolio"]
[10465,"2016-08-11","Vaffeljernet","Denmark","Thüringer Rostbratwurst","Meat/Poultry",123.79,18,0.1,2005.4,"Nancy Davolio"]
[10466,"2016-08-12","Comércio Mineiro","Brazil","Spegesild","Seafood",12,5,0,60,"Margaret Peacock"]
[10466,"2016-08-12","Comércio Mineiro","Brazil","Queso Cabrales","Dairy Products",21,10,0,210,"Margaret Peacock"]
[10467,"2016-08-12","Magazzini Alimentari Riuniti","Italy","NuNuCa Nuß-Nougat-Creme","Confections",14,12,0,168,"Laura Callahan"]
[10467,"2016-08-12","Magazzini Alimentari Riuniti","Italy","Guaraná Fantástica","Beverages",4.5,28,0,126,"Laura Callahan"]
[10468,"2016-08-13","Königlich Essen","Germany","Ipoh Coffee","Beverages",46,15,0,690,"Janet Leverling"]
[10468,"2016-08-13","Königlich Essen","Germany","Nord-Ost Matjeshering","Seafood",25.89,8,0,207.12,"Janet Leverling"]
[10469,"2016-08-16","White Clover Markets","USA","Pavlova","Confections",17.45,35,0.15,519.14,"Nancy Davolio"]
[10469,"2016-08-16","White Clover Markets","USA","Chang","Beverages",19,40,0.15,646,"Nancy Davolio"]
[10469,"2016-08-16","White Clover Markets","USA","Gula Malacca","Condiments",19.45,2,0.15,33.07,"Nancy Davolio"]
[10470,"2016-08-17","Bon app'","France","Tunnbröd","Grains/Cereals",9,15,0,135,"Margaret Peacock"]
[10470,"2016-08-17","Bon app'","France","Wimmers gute Semmelknödel","Grains/Cereals",33.25,8,0,266,"Margaret Peacock"]
[10470,"2016-08-17","Bon app'","France","Carnarvon Tigers","Seafood",62.5,30,0,1875,"Margaret Peacock"]
[10471,"2016-08-17","B's Beverages","UK","Uncle Bob's Organic Dried Pears","Produce",30,30,0,900,"Andrew Fuller"]
[10471,"2016-08-17","B's Beverages","UK","Gnocchi di nonna Alice","Grains/Cereals",38,20,0,760,"Andrew Fuller"]
[10472,"2016-08-18","Seven Seas Imports","UK","Manjimup Dried Apples","Produce",53,18,0,954,"Laura Callahan"]
[10472,"2016-08-18","Seven Seas Imports","UK","Guaraná Fantástica","Beverages",4.5,80,0.05,342,"Laura Callahan"]
[10473,"2016-08-19","Island Trading","UK","Fløtemysost","Dairy Products",21.5,12,0,258,"Nancy Davolio"]
[10473,"2016-08-19","Island Trading","UK","Geitost","Dairy Products",2.5,12,0,30,"Nancy Davolio"]
[10474,"2016-08-19","Pericles Comidas clásicas","Mexico","Rhönbräu Klosterbier","Beverages",7.75,10,0,77.5,"Steven Buchanan"]
[10474,"2016-08-19","Pericles Comidas clásicas","Mexico","Tofu","Produce",23.25,12,0,279,"Steven Buchanan"]
[10474,"2016-08-19","Pericles Comidas clásicas","Mexico","Rössle Sauerkraut","Produce",45.6,18,0,820.8,"Steven Buchanan"]
[10474,"2016-08-19","Pericles Comidas clásicas","Mexico","Boston Crab Meat","Seafood",18.399999999999999,21,0,386.4,"Steven Buchanan"]
[10475,"2016-08-20","Suprêmes délices","Belgium","Louisiana Hot Spiced Okra","Condiments",17,60,0.15,867,"Anne Dodsworth"]
[10475,"2016-08-20","Suprêmes délices","Belgium","Gorgonzola Telino","Dairy Products",12.5,35,0.15,371.88,"Anne Dodsworth"]
[10475,"2016-08-20","Suprêmes délices","Belgium","Lakkalikööri","Beverages",18,42,0.15,642.6,"Anne Dodsworth"]
[10476,"2016-08-23","HILARIÓN-Abastos","Venezuela","Pâté chinois","Meat/Poultry",24,2,0.05,45.6,"Laura Callahan"]
[10476,"2016-08-23","HILARIÓN-Abastos","Venezuela","Outback Lager","Beverages",15,12,0,180,"Laura Callahan"]
[10477,"2016-08-23","Princesa Isabel Vinhos","Portugal","Chai","Beverages",18,15,0,270,"Steven Buchanan"]
[10477,"2016-08-23","Princesa Isabel Vinhos","Portugal","Chartreuse verte","Beverages",18,20,0.25,270,"Steven Buchanan"]
[10477,"2016-08-23","Princesa Isabel Vinhos","Portugal","Sir Rodney's Scones","Confections",10,21,0.25,157.5,"Steven Buchanan"]
[10478,"2016-08-24","Victuailles en stock","France","Ikura","Seafood",31,20,0.05,589,"Andrew Fuller"]
[10479,"2016-08-25","Rattlesnake Canyon Grocery","USA","Perth Pasties","Meat/Poultry",32.799999999999997,28,0,918.4,"Janet Leverling"]
[10479,"2016-08-25","Rattlesnake Canyon Grocery","USA","Raclette Courdavault","Dairy Products",55,60,0,3300,"Janet Leverling"]
[10479,"2016-08-25","Rattlesnake Canyon Grocery","USA","Côte de Blaye","Beverages",263.5,30,0,7905,"Janet Leverling"]
[10479,"2016-08-25","Rattlesnake Canyon Grocery","USA","Wimmers gute Semmelknödel","Grains/Cereals",33.25,30,0,997.5,"Janet Leverling"]
[10480,"2016-08-26","Folies gourmandes","France","Zaanse koeken","Confections",9.5,30,0,285,"Michael Suyama"]
[10480,"2016-08-26","Folies gourmandes","France","Raclette Courdavault","Dairy Products",55,12,0,660,"Michael Suyama"]
[10481,"2016-08-26","Ricardo Adocicados","Brazil","Maxilaku","Confections",20,24,0,480,"Laura Callahan"]
[10481,"2016-08-26","Ricardo Adocicados","Brazil","Camembert Pierrot","Dairy Products",34,40,0,1360,"Laura Callahan"]
[10482,"2016-08-27","Lazy K Kountry Store","USA","Boston Crab Meat","Seafood",18.399999999999999,10,0,184,"Nancy Davolio"]
[10483,"2016-08-30","White Clover Markets","USA","Original Frankfurter grüne Soße","Condiments",13,30,0.05,370.5,"Robert King"]
[10483,"2016-08-30","White Clover Markets","USA","Sasquatch Ale","Beverages",14,35,0.05,465.5,"Robert King"]
[10484,"2016-08-30","B's Beverages","UK","Manjimup Dried Apples","Produce",53,3,0,159,"Janet Leverling"]
[10484,"2016-08-30","B's Beverages","UK","Sir Rodney's Scones","Confections",10,14,0,140,"Janet Leverling"]
[10484,"2016-08-30","B's Beverages","UK","Boston Crab Meat","Seafood",18.399999999999999,10,0,184,"Janet Leverling"]
[10485,"2016-08-31","LINO-Delicateses","Venezuela","Pâté chinois","Meat/Poultry",24,30,0.1,648,"Margaret Peacock"]
[10485,"2016-08-31","LINO-Delicateses","Venezuela","Chang","Beverages",19,20,0.1,342,"Margaret Peacock"]
[10485,"2016-08-31","LINO-Delicateses","Venezuela","Aniseed Syrup","Condiments",10,20,0.1,180,"Margaret Peacock"]
[10485,"2016-08-31","LINO-Delicateses","Venezuela","Outback Lager","Beverages",15,60,0.1,810,"Margaret Peacock"]
[10486,"2016-09-01","HILARIÓN-Abastos","Venezuela","Longlife Tofu","Produce",10,16,0,160,"Nancy Davolio"]
[10486,"2016-09-01","HILARIÓN-Abastos","Venezuela","Queso Cabrales","Dairy Products",21,5,0,105,"Nancy Davolio"]
[10486,"2016-09-01","HILARIÓN-Abastos","Venezuela","Manjimup Dried Apples","Produce",53,25,0,1325,"Nancy Davolio"]
[10487,"2016-09-01","Queen Cozinha","Brazil","Gumbär Gummibärchen","Confections",31.23,30,0,936.9,"Andrew Fuller"]
[10487,"2016-09-01","Queen Cozinha","Brazil","Tourtière","Meat/Poultry",7.45,24,0.25,134.1,"Andrew Fuller"]
[10487,"2016-09-01","Queen Cozinha","Brazil","Teatime Chocolate Biscuits","Confections",9.1999999999999993,5,0,46,"Andrew Fuller"]
[10488,"2016-09-02","Frankenversand","Germany","Raclette Courdavault","Dairy Products",55,30,0,1650,"Laura Callahan"]
[10488,"2016-09-02","Frankenversand","Germany","Röd Kaviar","Seafood",15,20,0.2,240,"Laura Callahan"]
[10489,"2016-09-03","Piccolo und mehr","Austria","Queso Cabrales","Dairy Products",21,15,0.25,236.25,"Michael Suyama"]
[10489,"2016-09-03","Piccolo und mehr","Austria","Pavlova","Confections",17.45,18,0,314.10000000000002,"Michael Suyama"]
[10490,"2016-09-06","HILARIÓN-Abastos","Venezuela","Raclette Courdavault","Dairy Products",55,60,0,{"$f":"ROUND((G643*H643)*(1-I643),2)","v":3300},"Robert King"]
[10490,"2016-09-06","HILARIÓN-Abastos","Venezuela","Scottish Longbreads","Confections",12.5,30,0,375,"Robert King"]
[10490,"2016-09-06","HILARIÓN-Abastos","Venezuela","Rhönbräu Klosterbier","Beverages",7.75,36,0,279,"Robert King"]
[10491,"2016-09-06","Furia Bacalhau e Frutos do Mar","Portugal","Gula Malacca","Condiments",19.45,15,0.15,247.99,"Laura Callahan"]
[10491,"2016-09-06","Furia Bacalhau e Frutos do Mar","Portugal","Original Frankfurter grüne Soße","Condiments",13,7,0.15,77.349999999999994,"Laura Callahan"]
[10492,"2016-09-07","Bottom-Dollar Markets","Canada","Singaporean Hokkien Fried Mee","Grains/Cereals",14,20,0.05,266,"Janet Leverling"]
[10492,"2016-09-07","Bottom-Dollar Markets","Canada","NuNuCa Nuß-Nougat-Creme","Confections",14,60,0.05,798,"Janet Leverling"]
[10493,"2016-09-08","La maison d'Asie","France","Louisiana Fiery Hot Pepper Sauce","Condiments",21.05,15,0.1,284.18,"Margaret Peacock"]
[10493,"2016-09-08","La maison d'Asie","France","Louisiana Hot Spiced Okra","Condiments",17,10,0.1,153,"Margaret Peacock"]
[10493,"2016-09-08","La maison d'Asie","France","Gudbrandsdalsost","Dairy Products",36,10,0.1,324,"Margaret Peacock"]
[10494,"2016-09-08","Comércio Mineiro","Brazil","Gnocchi di nonna Alice","Grains/Cereals",38,30,0,1140,"Margaret Peacock"]
[10495,"2016-09-09","Laughing Bacchus Wine Cellars","Canada","Original Frankfurter grüne Soße","Condiments",13,5,0,65,"Janet Leverling"]
[10495,"2016-09-09","Laughing Bacchus Wine Cellars","Canada","Jack's New England Clam Chowder","Seafood",9.65,20,0,193,"Janet Leverling"]
[10495,"2016-09-09","Laughing Bacchus Wine Cellars","Canada","Tunnbröd","Grains/Cereals",9,10,0,90,"Janet Leverling"]
[10496,"2016-09-10","Tradição Hipermercados","Brazil","Gorgonzola Telino","Dairy Products",12.5,20,0.05,237.5,"Robert King"]
[10497,"2016-09-10","Lehmanns Marktstand","Germany","Mozzarella di Giovanni","Dairy Products",34.799999999999997,25,0,870,"Robert King"]
[10497,"2016-09-10","Lehmanns Marktstand","Germany","Gnocchi di nonna Alice","Grains/Cereals",38,14,0,532,"Robert King"]
[10497,"2016-09-10","Lehmanns Marktstand","Germany","Original Frankfurter grüne Soße","Condiments",13,25,0,325,"Robert King"]
[10498,"2016-09-13","HILARIÓN-Abastos","Venezuela","Guaraná Fantástica","Beverages",4.5,14,0,63,"Laura Callahan"]
[10498,"2016-09-13","HILARIÓN-Abastos","Venezuela","Boston Crab Meat","Seafood",18.399999999999999,5,0,92,"Laura Callahan"]
[10498,"2016-09-13","HILARIÓN-Abastos","Venezuela","Singaporean Hokkien Fried Mee","Grains/Cereals",14,30,0,420,"Laura Callahan"]
[10499,"2016-09-14","LILA-Supermercado","Venezuela","Maxilaku","Confections",20,25,0,500,"Margaret Peacock"]
[10499,"2016-09-14","LILA-Supermercado","Venezuela","Rössle Sauerkraut","Produce",45.6,20,0,912,"Margaret Peacock"]
[10500,"2016-09-15","La maison d'Asie","France","Genen Shouyu","Condiments",15.5,12,0.05,176.7,"Michael Suyama"]
[10500,"2016-09-15","La maison d'Asie","France","Rössle Sauerkraut","Produce",45.6,8,0.05,346.56,"Michael Suyama"]
[10501,"2016-09-15","Blauer See Delikatessen","Germany","Tourtière","Meat/Poultry",7.45,20,0,149,"Anne Dodsworth"]
[10502,"2016-09-16","Pericles Comidas clásicas","Mexico","Perth Pasties","Meat/Poultry",32.799999999999997,6,0,196.8,"Andrew Fuller"]
[10502,"2016-09-16","Pericles Comidas clásicas","Mexico","Røgede sild","Seafood",9.5,21,0,199.5,"Andrew Fuller"]
[10502,"2016-09-16","Pericles Comidas clásicas","Mexico","Laughing Lumberjack Lager","Beverages",14,30,0,420,"Andrew Fuller"]
[10503,"2016-09-17","Hungry Owl All-Night Grocers","Ireland","Louisiana Fiery Hot Pepper Sauce","Condiments",21.05,20,0,421,"Michael Suyama"]
[10503,"2016-09-17","Hungry Owl All-Night Grocers","Ireland","Tofu","Produce",23.25,70,0,1627.5,"Michael Suyama"]
[10504,"2016-09-17","White Clover Markets","USA","Perth Pasties","Meat/Poultry",32.799999999999997,10,0,328,"Margaret Peacock"]
[10504,"2016-09-17","White Clover Markets","USA","Sirop d'érable","Condiments",28.5,25,0,712.5,"Margaret Peacock"]
[10504,"2016-09-17","White Clover Markets","USA","Sir Rodney's Scones","Confections",10,12,0,120,"Margaret Peacock"]
[10504,"2016-09-17","White Clover Markets","USA","Chang","Beverages",19,12,0,228,"Margaret Peacock"]
[10505,"2016-09-20","Mère Paillarde","Canada","Tarte au sucre","Confections",49.3,3,0,147.9,"Janet Leverling"]
[10506,"2016-09-21","Königlich Essen","Germany","NuNuCa Nuß-Nougat-Creme","Confections",14,18,0.1,226.8,"Anne Dodsworth"]
[10506,"2016-09-21","Königlich Essen","Germany","Outback Lager","Beverages",15,14,0.1,189,"Anne Dodsworth"]
[10507,"2016-09-21","Antonio Moreno Taquería","Mexico","Ipoh Coffee","Beverages",46,15,0.15,586.5,"Robert King"]
[10507,"2016-09-21","Antonio Moreno Taquería","Mexico","Chocolade","Confections",12.75,15,0.15,162.56,"Robert King"]
[10508,"2016-09-22","Ottilies Käseladen","Germany","Konbu","Seafood",6,10,0,60,"Nancy Davolio"]
[10508,"2016-09-22","Ottilies Käseladen","Germany","Chartreuse verte","Beverages",18,10,0,180,"Nancy Davolio"]
[10509,"2016-09-23","Blauer See Delikatessen","Germany","Rössle Sauerkraut","Produce",45.6,3,0,136.80000000000001,"Margaret Peacock"]
[10510,"2016-09-24","Save-a-lot Markets","USA","Rhönbräu Klosterbier","Beverages",7.75,36,0.1,251.1,"Michael Suyama"]
[10510,"2016-09-24","Save-a-lot Markets","USA","Thüringer Rostbratwurst","Meat/Poultry",123.79,36,0,4456.4399999999996,"Michael Suyama"]
[10511,"2016-09-24","Bon app'","France","Uncle Bob's Organic Dried Pears","Produce",30,50,0.15,1275,"Margaret Peacock"]
[10511,"2016-09-24","Bon app'","France","Chef Anton's Cajun Seasoning","Condiments",22,50,0.15,935,"Margaret Peacock"]
[10511,"2016-09-24","Bon app'","France","Northwoods Cranberry Sauce","Condiments",40,10,0.15,340,"Margaret Peacock"]
[10512,"2016-09-27","Familia Arquibaldo","Brazil","Guaraná Fantástica","Beverages",4.5,10,0.15,38.25,"Robert King"]
[10512,"2016-09-27","Familia Arquibaldo","Brazil","Camembert Pierrot","Dairy Products",34,12,0.15,346.8,"Robert King"]
[10512,"2016-09-27","Familia Arquibaldo","Brazil","Spegesild","Seafood",12,9,0.15,91.8,"Robert King"]
[10512,"2016-09-27","Familia Arquibaldo","Brazil","Zaanse koeken","Confections",9.5,6,0.15,48.45,"Robert King"]
[10513,"2016-09-28","Die Wandernde Kuh","Germany","Mascarpone Fabioli","Dairy Products",32,50,0.2,1280,"Robert King"]
[10513,"2016-09-28","Die Wandernde Kuh","Germany","Sirop d'érable","Condiments",28.5,15,0.2,342,"Robert King"]
[10513,"2016-09-28","Die Wandernde Kuh","Germany","Sir Rodney's Scones","Confections",10,40,0.2,320,"Robert King"]
[10514,"2016-09-28","Ernst Handel","Austria","Sir Rodney's Marmalade","Confections",81,39,0,3159,"Janet Leverling"]
[10514,"2016-09-28","Ernst Handel","Austria","Rhönbräu Klosterbier","Beverages",7.75,50,0,387.5,"Janet Leverling"]
[10514,"2016-09-28","Ernst Handel","Austria","Rössle Sauerkraut","Produce",45.6,35,0,1596,"Janet Leverling"]
[10514,"2016-09-28","Ernst Handel","Austria","Gnocchi di nonna Alice","Grains/Cereals",38,70,0,2660,"Janet Leverling"]
[10514,"2016-09-28","Ernst Handel","Austria","Louisiana Fiery Hot Pepper Sauce","Condiments",21.05,39,0,820.95,"Janet Leverling"]
[10515,"2016-09-29","QUICK-Stop","Germany","Schoggi Schokolade","Confections",43.9,120,0,5268,"Andrew Fuller"]
[10515,"2016-09-29","QUICK-Stop","Germany","Camembert Pierrot","Dairy Products",34,84,0.15,2427.6,"Andrew Fuller"]
[10515,"2016-09-29","QUICK-Stop","Germany","Pavlova","Confections",17.45,50,0,872.5,"Andrew Fuller"]
[10515,"2016-09-29","QUICK-Stop","Germany","Mishi Kobe Niku","Meat/Poultry",97,16,0.15,1319.2,"Andrew Fuller"]
[10515,"2016-09-29","QUICK-Stop","Germany","Geitost","Dairy Products",2.5,16,0.15,{"$f":"ROUND((G707*H707)*(1-I707),2)","v":34},"Andrew Fuller"]
[10516,"2016-09-30","Hungry Owl All-Night Grocers","Ireland","Singaporean Hokkien Fried Mee","Grains/Cereals",14,20,0,280,"Andrew Fuller"]
[10516,"2016-09-30","Hungry Owl All-Night Grocers","Ireland","Jack's New England Clam Chowder","Seafood",9.65,80,0.1,694.8,"Andrew Fuller"]
[10516,"2016-09-30","Hungry Owl All-Night Grocers","Ireland","Carnarvon Tigers","Seafood",62.5,25,0.1,1406.25,"Andrew Fuller"]
[10517,"2016-09-30","North/South","UK","Filo Mix","Grains/Cereals",7,6,0,42,"Janet Leverling"]
[10517,"2016-09-30","North/South","UK","Outback Lager","Beverages",15,6,0,90,"Janet Leverling"]
[10517,"2016-09-30","North/South","UK","Raclette Courdavault","Dairy Products",55,4,0,220,"Janet Leverling"]
[10518,"2016-10-01","Tortuga Restaurante","Mexico","Gula Malacca","Condiments",19.45,9,0,175.05,"Margaret Peacock"]
[10518,"2016-10-01","Tortuga Restaurante","Mexico","Guaraná Fantástica","Beverages",4.5,5,0,22.5,"Margaret Peacock"]
[10518,"2016-10-01","Tortuga Restaurante","Mexico","Côte de Blaye","Beverages",263.5,15,0,3952.5,"Margaret Peacock"]
[10519,"2016-10-04","Chop-suey Chinese","Switzerland","Ikura","Seafood",31,16,0.05,471.2,"Michael Suyama"]
[10519,"2016-10-04","Chop-suey Chinese","Switzerland","Gnocchi di nonna Alice","Grains/Cereals",38,40,0,1520,"Michael Suyama"]
[10519,"2016-10-04","Chop-suey Chinese","Switzerland","Camembert Pierrot","Dairy Products",34,10,0.05,323,"Michael Suyama"]
[10520,"2016-10-05","Santé Gourmet","Norway","Guaraná Fantástica","Beverages",4.5,8,0,36,"Robert King"]
[10520,"2016-10-05","Santé Gourmet","Norway","Perth Pasties","Meat/Poultry",32.799999999999997,5,0,164,"Robert King"]
[10521,"2016-10-05","Cactus Comidas para llevar","Argentina","Steeleye Stout","Beverages",18,3,0,54,"Laura Callahan"]
[10521,"2016-10-05","Cactus Comidas para llevar","Argentina","Scottish Longbreads","Confections",12.5,6,0,75,"Laura Callahan"]
[10521,"2016-10-05","Cactus Comidas para llevar","Argentina","Jack's New England Clam Chowder","Seafood",9.65,10,0,96.5,"Laura Callahan"]
[10522,"2016-10-06","Lehmanns Marktstand","Germany","Chai","Beverages",18,40,0.2,576,"Margaret Peacock"]
[10522,"2016-10-06","Lehmanns Marktstand","Germany","Nord-Ost Matjeshering","Seafood",25.89,20,0.2,414.24,"Margaret Peacock"]
[10522,"2016-10-06","Lehmanns Marktstand","Germany","Northwoods Cranberry Sauce","Condiments",40,24,0,960,"Margaret Peacock"]
[10522,"2016-10-06","Lehmanns Marktstand","Germany","Boston Crab Meat","Seafood",18.399999999999999,25,0.2,368,"Margaret Peacock"]
[10523,"2016-10-07","Seven Seas Imports","UK","Gravad lax","Seafood",26,18,0.1,421.2,"Robert King"]
[10523,"2016-10-07","Seven Seas Imports","UK","Jack's New England Clam Chowder","Seafood",9.65,6,0.1,52.11,"Robert King"]
[10523,"2016-10-07","Seven Seas Imports","UK","Alice Mutton","Meat/Poultry",39,25,0.1,877.5,"Robert King"]
[10523,"2016-10-07","Seven Seas Imports","UK","Sir Rodney's Marmalade","Confections",81,15,0.1,1093.5,"Robert King"]
[10524,"2016-10-07","Berglunds snabbköp","Sweden","Tourtière","Meat/Poultry",7.45,15,0,111.75,"Nancy Davolio"]
[10524,"2016-10-07","Berglunds snabbköp","Sweden","Ipoh Coffee","Beverages",46,60,0,2760,"Nancy Davolio"]
[10524,"2016-10-07","Berglunds snabbköp","Sweden","Nord-Ost Matjeshering","Seafood",25.89,10,0,258.89999999999998,"Nancy Davolio"]
[10524,"2016-10-07","Berglunds snabbköp","Sweden","Ikura","Seafood",31,2,0,62,"Nancy Davolio"]
[10525,"2016-10-08","Bon app'","France","Inlagd Sill","Seafood",19,30,0,570,"Nancy Davolio"]
[10525,"2016-10-08","Bon app'","France","Boston Crab Meat","Seafood",18.399999999999999,15,0.1,248.4,"Nancy Davolio"]
[10526,"2016-10-11","Wartian Herkku","Finland","Konbu","Seafood",6,10,0,60,"Margaret Peacock"]
[10526,"2016-10-11","Wartian Herkku","Finland","Chai","Beverages",18,8,0.15,122.4,"Margaret Peacock"]
[10526,"2016-10-11","Wartian Herkku","Finland","Gnocchi di nonna Alice","Grains/Cereals",38,30,0.15,969,"Margaret Peacock"]
[10527,"2016-10-11","QUICK-Stop","Germany","Chef Anton's Cajun Seasoning","Condiments",22,50,0.1,990,"Robert King"]
[10527,"2016-10-11","QUICK-Stop","Germany","Inlagd Sill","Seafood",19,30,0.1,513,"Robert King"]
[10528,"2016-10-12","Great Lakes Food Market","USA","Queso Cabrales","Dairy Products",21,3,0,63,"Michael Suyama"]
[10528,"2016-10-12","Great Lakes Food Market","USA","Mozzarella di Giovanni","Dairy Products",34.799999999999997,9,0,313.2,"Michael Suyama"]
[10528,"2016-10-12","Great Lakes Food Market","USA","Geitost","Dairy Products",2.5,8,0.2,16,"Michael Suyama"]
[10529,"2016-10-13","Maison Dewey","Belgium","Scottish Longbreads","Confections",12.5,20,0,250,"Steven Buchanan"]
[10529,"2016-10-13","Maison Dewey","Belgium","Gudbrandsdalsost","Dairy Products",36,10,0,360,"Steven Buchanan"]
[10529,"2016-10-13","Maison Dewey","Belgium","Pâté chinois","Meat/Poultry",24,14,0,336,"Steven Buchanan"]
[10530,"2016-10-14","Piccolo und mehr","Austria","Ipoh Coffee","Beverages",46,25,0,1150,"Janet Leverling"]
[10530,"2016-10-14","Piccolo und mehr","Austria","Alice Mutton","Meat/Poultry",39,40,0,1560,"Janet Leverling"]
[10530,"2016-10-14","Piccolo und mehr","Austria","Sirop d'érable","Condiments",28.5,20,0,570,"Janet Leverling"]
[10530,"2016-10-14","Piccolo und mehr","Austria","Lakkalikööri","Beverages",18,50,0,900,"Janet Leverling"]
[10531,"2016-10-14","Océano Atlántico Ltda.","Argentina","Raclette Courdavault","Dairy Products",55,2,0,110,"Robert King"]
[10532,"2016-10-15","Eastern Connection","UK","Louisiana Hot Spiced Okra","Condiments",17,24,0,408,"Robert King"]
[10532,"2016-10-15","Eastern Connection","UK","Nord-Ost Matjeshering","Seafood",25.89,15,0,388.35,"Robert King"]
[10533,"2016-10-18","Folk och fä HB","Sweden","Röd Kaviar","Seafood",15,24,0.05,342,"Laura Callahan"]
[10533,"2016-10-18","Folk och fä HB","Sweden","Chef Anton's Cajun Seasoning","Condiments",22,50,0.05,1045,"Laura Callahan"]
[10533,"2016-10-18","Folk och fä HB","Sweden","Mozzarella di Giovanni","Dairy Products",34.799999999999997,24,0,835.2,"Laura Callahan"]
[10534,"2016-10-18","Lehmanns Marktstand","Germany","Nord-Ost Matjeshering","Seafood",25.89,10,0,258.89999999999998,"Laura Callahan"]
[10534,"2016-10-18","Lehmanns Marktstand","Germany","Tourtière","Meat/Poultry",7.45,10,0.2,59.6,"Laura Callahan"]
[10534,"2016-10-18","Lehmanns Marktstand","Germany","Boston Crab Meat","Seafood",18.399999999999999,10,0.2,147.19999999999999,"Laura Callahan"]
[10535,"2016-10-19","Antonio Moreno Taquería","Mexico","Ravioli Angelo","Grains/Cereals",19.5,5,0.1,87.75,"Margaret Peacock"]
[10535,"2016-10-19","Antonio Moreno Taquería","Mexico","Raclette Courdavault","Dairy Products",55,15,0.1,742.5,"Margaret Peacock"]
[10535,"2016-10-19","Antonio Moreno Taquería","Mexico","Queso Cabrales","Dairy Products",21,50,0.1,945,"Margaret Peacock"]
[10535,"2016-10-19","Antonio Moreno Taquería","Mexico","Boston Crab Meat","Seafood",18.399999999999999,10,0.1,165.6,"Margaret Peacock"]
[10536,"2016-10-20","Lehmanns Marktstand","Germany","Geitost","Dairy Products",2.5,30,0,75,"Janet Leverling"]
[10536,"2016-10-20","Lehmanns Marktstand","Germany","Gorgonzola Telino","Dairy Products",12.5,20,0,250,"Janet Leverling"]
[10536,"2016-10-20","Lehmanns Marktstand","Germany","Queso Manchego La Pastora","Dairy Products",38,15,0.25,427.5,"Janet Leverling"]
[10536,"2016-10-20","Lehmanns Marktstand","Germany","Camembert Pierrot","Dairy Products",34,35,0.25,892.5,"Janet Leverling"]
[10537,"2016-10-20","Richter Supermarkt","Switzerland","Escargots de Bourgogne","Seafood",13.25,20,0,{"$f":"ROUND((G771*H771)*(1-I771),2)","v":265},"Nancy Davolio"]
[10537,"2016-10-20","Richter Supermarkt","Switzerland","Röd Kaviar","Seafood",15,9,0,135,"Nancy Davolio"]
[10537,"2016-10-20","Richter Supermarkt","Switzerland","Gorgonzola Telino","Dairy Products",12.5,30,0,375,"Nancy Davolio"]
[10537,"2016-10-20","Richter Supermarkt","Switzerland","Mozzarella di Giovanni","Dairy Products",34.799999999999997,21,0,730.8,"Nancy Davolio"]
[10537,"2016-10-20","Richter Supermarkt","Switzerland","Manjimup Dried Apples","Produce",53,6,0,318,"Nancy Davolio"]
[10538,"2016-10-21","B's Beverages","UK","Mozzarella di Giovanni","Dairy Products",34.799999999999997,1,0,34.799999999999997,"Anne Dodsworth"]
[10538,"2016-10-21","B's Beverages","UK","Outback Lager","Beverages",15,7,0,105,"Anne Dodsworth"]
[10539,"2016-10-22","B's Beverages","UK","Sir Rodney's Scones","Confections",10,15,0,150,"Michael Suyama"]
[10539,"2016-10-22","B's Beverages","UK","Konbu","Seafood",6,8,0,48,"Michael Suyama"]
[10539,"2016-10-22","B's Beverages","UK","Maxilaku","Confections",20,6,0,120,"Michael Suyama"]
[10539,"2016-10-22","B's Beverages","UK","Geitost","Dairy Products",2.5,15,0,37.5,"Michael Suyama"]
[10540,"2016-10-25","QUICK-Stop","Germany","Scottish Longbreads","Confections",12.5,35,0,437.5,"Janet Leverling"]
[10540,"2016-10-25","QUICK-Stop","Germany","Côte de Blaye","Beverages",263.5,30,0,7905,"Janet Leverling"]
[10540,"2016-10-25","QUICK-Stop","Germany","Gumbär Gummibärchen","Confections",31.23,40,0,1249.2,"Janet Leverling"]
[10540,"2016-10-25","QUICK-Stop","Germany","Aniseed Syrup","Condiments",10,60,0,600,"Janet Leverling"]
[10541,"2016-10-25","Hanari Carnes","Brazil","Côte de Blaye","Beverages",263.5,4,0.1,948.6,"Andrew Fuller"]
[10541,"2016-10-25","Hanari Carnes","Brazil","Guaraná Fantástica","Beverages",4.5,35,0.1,141.75,"Andrew Fuller"]
[10541,"2016-10-25","Hanari Carnes","Brazil","Louisiana Fiery Hot Pepper Sauce","Condiments",21.05,36,0.1,682.02,"Andrew Fuller"]
[10541,"2016-10-25","Hanari Carnes","Brazil","Fløtemysost","Dairy Products",21.5,9,0.1,174.15,"Andrew Fuller"]
[10542,"2016-10-26","Königlich Essen","Germany","Tourtière","Meat/Poultry",7.45,24,0.05,169.86,"Nancy Davolio"]
[10542,"2016-10-26","Königlich Essen","Germany","Queso Cabrales","Dairy Products",21,15,0.05,299.25,"Nancy Davolio"]
[10543,"2016-10-27","LILA-Supermercado","Venezuela","Queso Manchego La Pastora","Dairy Products",38,30,0.15,969,"Laura Callahan"]
[10543,"2016-10-27","LILA-Supermercado","Venezuela","Tunnbröd","Grains/Cereals",9,70,0.15,535.5,"Laura Callahan"]
[10544,"2016-10-27","Lonesome Pine Restaurant","USA","Rössle Sauerkraut","Produce",45.6,7,0,319.2,"Margaret Peacock"]
[10544,"2016-10-27","Lonesome Pine Restaurant","USA","Laughing Lumberjack Lager","Beverages",14,7,0,98,"Margaret Peacock"]
[10545,"2016-10-28","Lazy K Kountry Store","USA","Queso Cabrales","Dairy Products",21,10,0,210,"Laura Callahan"]
[10546,"2016-10-29","Victuailles en stock","France","Tarte au sucre","Confections",49.3,40,0,1972,"Nancy Davolio"]
[10546,"2016-10-29","Victuailles en stock","France","Steeleye Stout","Beverages",18,30,0,540,"Nancy Davolio"]
[10546,"2016-10-29","Victuailles en stock","France","Uncle Bob's Organic Dried Pears","Produce",30,10,0,300,"Nancy Davolio"]
[10547,"2016-10-29","Seven Seas Imports","UK","Mascarpone Fabioli","Dairy Products",32,24,0.15,652.79999999999995,"Janet Leverling"]
[10547,"2016-10-29","Seven Seas Imports","UK","Inlagd Sill","Seafood",19,60,0,1140,"Janet Leverling"]
[10548,"2016-11-01","Toms Spezialitäten","Germany","Jack's New England Clam Chowder","Seafood",9.65,14,0,135.1,"Janet Leverling"]
[10548,"2016-11-01","Toms Spezialitäten","Germany","Sasquatch Ale","Beverages",14,10,0.25,105,"Janet Leverling"]
[10549,"2016-11-02","QUICK-Stop","Germany","Manjimup Dried Apples","Produce",53,48,0.15,2162.4,"Steven Buchanan"]
[10549,"2016-11-02","QUICK-Stop","Germany","Røgede sild","Seafood",9.5,100,0.15,807.5,"Steven Buchanan"]
[10549,"2016-11-02","QUICK-Stop","Germany","Gorgonzola Telino","Dairy Products",12.5,55,0.15,584.38,"Steven Buchanan"]
[10550,"2016-11-03","Godos Cocina Típica","Spain","Sirop d'érable","Condiments",28.5,10,0.1,256.5,"Robert King"]
[10550,"2016-11-03","Godos Cocina Típica","Spain","Alice Mutton","Meat/Poultry",39,8,0.1,280.8,"Robert King"]
[10550,"2016-11-03","Godos Cocina Típica","Spain","Teatime Chocolate Biscuits","Confections",9.1999999999999993,10,0,92,"Robert King"]
[10550,"2016-11-03","Godos Cocina Típica","Spain","Sir Rodney's Scones","Confections",10,6,0.1,54,"Robert King"]
[10551,"2016-11-03","Furia Bacalhau e Frutos do Mar","Portugal","Steeleye Stout","Beverages",18,20,0.15,306,"Margaret Peacock"]
[10551,"2016-11-03","Furia Bacalhau e Frutos do Mar","Portugal","Gula Malacca","Condiments",19.45,40,0,778,"Margaret Peacock"]
[10551,"2016-11-03","Furia Bacalhau e Frutos do Mar","Portugal","Pavlova","Confections",17.45,40,0.15,593.29999999999995,"Margaret Peacock"]
[10552,"2016-11-04","HILARIÓN-Abastos","Venezuela","Gudbrandsdalsost","Dairy Products",36,18,0,648,"Andrew Fuller"]
[10552,"2016-11-04","HILARIÓN-Abastos","Venezuela","Rhönbräu Klosterbier","Beverages",7.75,30,0,232.5,"Andrew Fuller"]
[10553,"2016-11-05","Wartian Herkku","Finland","Queso Cabrales","Dairy Products",21,15,0,315,"Andrew Fuller"]
[10553,"2016-11-05","Wartian Herkku","Finland","Gorgonzola Telino","Dairy Products",12.5,30,0,375,"Andrew Fuller"]
[10553,"2016-11-05","Wartian Herkku","Finland","Steeleye Stout","Beverages",18,6,0,108,"Andrew Fuller"]
[10553,"2016-11-05","Wartian Herkku","Finland","Pavlova","Confections",17.45,14,0,244.3,"Andrew Fuller"]
[10553,"2016-11-05","Wartian Herkku","Finland","Gustaf's Knäckebröd","Grains/Cereals",21,24,0,504,"Andrew Fuller"]
[10554,"2016-11-05","Ottilies Käseladen","Germany","Original Frankfurter grüne Soße","Condiments",13,10,0.05,123.5,"Margaret Peacock"]
[10554,"2016-11-05","Ottilies Käseladen","Germany","Pavlova","Confections",17.45,30,0.05,497.33,"Margaret Peacock"]
[10554,"2016-11-05","Ottilies Käseladen","Germany","Tunnbröd","Grains/Cereals",9,20,0.05,171,"Margaret Peacock"]
[10554,"2016-11-05","Ottilies Käseladen","Germany","Tarte au sucre","Confections",49.3,20,0.05,936.7,"Margaret Peacock"]
[10555,"2016-11-08","Save-a-lot Markets","USA","Tofu","Produce",23.25,30,0.2,558,"Michael Suyama"]
[10555,"2016-11-08","Save-a-lot Markets","USA","Guaraná Fantástica","Beverages",4.5,18,0.2,64.8,"Michael Suyama"]
[10555,"2016-11-08","Save-a-lot Markets","USA","Teatime Chocolate Biscuits","Confections",9.1999999999999993,35,0.2,257.60000000000002,"Michael Suyama"]
[10555,"2016-11-08","Save-a-lot Markets","USA","Manjimup Dried Apples","Produce",53,20,0.2,848,"Michael Suyama"]
[10555,"2016-11-08","Save-a-lot Markets","USA","Gnocchi di nonna Alice","Grains/Cereals",38,40,0.2,1216,"Michael Suyama"]
[10556,"2016-11-09","Simons bistro","Denmark","Mozzarella di Giovanni","Dairy Products",34.799999999999997,24,0,835.2,"Andrew Fuller"]
[10557,"2016-11-09","Lehmanns Marktstand","Germany","Wimmers gute Semmelknödel","Grains/Cereals",33.25,30,0,997.5,"Anne Dodsworth"]
[10557,"2016-11-09","Lehmanns Marktstand","Germany","Rhönbräu Klosterbier","Beverages",7.75,20,0,155,"Anne Dodsworth"]
[10558,"2016-11-10","Around the Horn","UK","Filo Mix","Grains/Cereals",7,30,0,210,"Nancy Davolio"]
[10558,"2016-11-10","Around the Horn","UK","Perth Pasties","Meat/Poultry",32.799999999999997,18,0,590.4,"Nancy Davolio"]
[10558,"2016-11-10","Around the Horn","UK","Zaanse koeken","Confections",9.5,25,0,{"$f":"ROUND((G835*H835)*(1-I835),2)","v":237.5},"Nancy Davolio"]
[10558,"2016-11-10","Around the Horn","UK","Manjimup Dried Apples","Produce",53,20,0,1060,"Nancy Davolio"]
[10558,"2016-11-10","Around the Horn","UK","Röd Kaviar","Seafood",15,3,0,45,"Nancy Davolio"]
[10559,"2016-11-11","Blondel père et fils","France","Jack's New England Clam Chowder","Seafood",9.65,12,0.05,110.01,"Michael Suyama"]
[10559,"2016-11-11","Blondel père et fils","France","Pâté chinois","Meat/Poultry",24,18,0.05,410.4,"Michael Suyama"]
[10560,"2016-11-12","Frankenversand","Germany","Nord-Ost Matjeshering","Seafood",25.89,20,0,517.79999999999995,"Laura Callahan"]
[10560,"2016-11-12","Frankenversand","Germany","Tarte au sucre","Confections",49.3,15,0.25,554.63,"Laura Callahan"]
[10561,"2016-11-12","Folk och fä HB","Sweden","Gula Malacca","Condiments",19.45,10,0,194.5,"Andrew Fuller"]
[10561,"2016-11-12","Folk och fä HB","Sweden","Manjimup Dried Apples","Produce",53,50,0,2650,"Andrew Fuller"]
[10562,"2016-11-15","Reggiani Caseifici","Italy","Geitost","Dairy Products",2.5,20,0.1,45,"Nancy Davolio"]
[10562,"2016-11-15","Reggiani Caseifici","Italy","Tarte au sucre","Confections",49.3,10,0.1,443.7,"Nancy Davolio"]
[10563,"2016-11-16","Ricardo Adocicados","Brazil","Inlagd Sill","Seafood",19,25,0,475,"Andrew Fuller"]
[10563,"2016-11-16","Ricardo Adocicados","Brazil","Filo Mix","Grains/Cereals",7,70,0,490,"Andrew Fuller"]
[10564,"2016-11-16","Rattlesnake Canyon Grocery","USA","Gorgonzola Telino","Dairy Products",12.5,6,0.05,71.25,"Margaret Peacock"]
[10564,"2016-11-16","Rattlesnake Canyon Grocery","USA","Pâté chinois","Meat/Poultry",24,25,0.05,570,"Margaret Peacock"]
[10564,"2016-11-16","Rattlesnake Canyon Grocery","USA","Alice Mutton","Meat/Poultry",39,16,0.05,592.79999999999995,"Margaret Peacock"]
[10565,"2016-11-17","Mère Paillarde","Canada","Wimmers gute Semmelknödel","Grains/Cereals",33.25,18,0.1,538.65,"Laura Callahan"]
[10565,"2016-11-17","Mère Paillarde","Canada","Guaraná Fantástica","Beverages",4.5,25,0.1,101.25,"Laura Callahan"]
[10566,"2016-11-18","Blondel père et fils","France","Carnarvon Tigers","Seafood",62.5,18,0.15,956.25,"Anne Dodsworth"]
[10566,"2016-11-18","Blondel père et fils","France","Queso Cabrales","Dairy Products",21,35,0.15,624.75,"Anne Dodsworth"]
[10566,"2016-11-18","Blondel père et fils","France","Lakkalikööri","Beverages",18,10,0,180,"Anne Dodsworth"]
[10567,"2016-11-18","Hungry Owl All-Night Grocers","Ireland","Manjimup Dried Apples","Produce",53,3,0,159,"Nancy Davolio"]
[10567,"2016-11-18","Hungry Owl All-Night Grocers","Ireland","Gorgonzola Telino","Dairy Products",12.5,60,0.2,600,"Nancy Davolio"]
[10567,"2016-11-18","Hungry Owl All-Night Grocers","Ireland","Raclette Courdavault","Dairy Products",55,40,0.2,1760,"Nancy Davolio"]
[10568,"2016-11-19","Galería del gastrónomo","Spain","Ikura","Seafood",31,5,0,155,"Janet Leverling"]
[10569,"2016-11-22","Rattlesnake Canyon Grocery","USA","Lakkalikööri","Beverages",18,30,0,540,"Steven Buchanan"]
[10569,"2016-11-22","Rattlesnake Canyon Grocery","USA","Gorgonzola Telino","Dairy Products",12.5,35,0.2,350,"Steven Buchanan"]
[10570,"2016-11-23","Mère Paillarde","Canada","Gnocchi di nonna Alice","Grains/Cereals",38,60,0.05,2166,"Janet Leverling"]
[10570,"2016-11-23","Mère Paillarde","Canada","Queso Cabrales","Dairy Products",21,15,0.05,299.25,"Janet Leverling"]
[10571,"2016-11-23","Ernst Handel","Austria","Singaporean Hokkien Fried Mee","Grains/Cereals",14,28,0.15,333.2,"Laura Callahan"]
[10571,"2016-11-23","Ernst Handel","Austria","Tofu","Produce",23.25,11,0.15,217.39,"Laura Callahan"]
[10572,"2016-11-24","Berglunds snabbköp","Sweden","Mascarpone Fabioli","Dairy Products",32,10,0.1,288,"Janet Leverling"]
[10572,"2016-11-24","Berglunds snabbköp","Sweden","Rhönbräu Klosterbier","Beverages",7.75,15,0.1,104.63,"Janet Leverling"]
[10572,"2016-11-24","Berglunds snabbköp","Sweden","Pavlova","Confections",17.45,12,0.1,188.46,"Janet Leverling"]
[10572,"2016-11-24","Berglunds snabbköp","Sweden","Boston Crab Meat","Seafood",18.399999999999999,50,0,920,"Janet Leverling"]
[10573,"2016-11-25","Antonio Moreno Taquería","Mexico","Alice Mutton","Meat/Poultry",39,18,0,702,"Robert King"]
[10573,"2016-11-25","Antonio Moreno Taquería","Mexico","Perth Pasties","Meat/Poultry",32.799999999999997,25,0,820,"Robert King"]
[10573,"2016-11-25","Antonio Moreno Taquería","Mexico","Sasquatch Ale","Beverages",14,40,0,560,"Robert King"]
[10574,"2016-11-25","Trail's Head Gourmet Provisioners","USA","Tarte au sucre","Confections",49.3,10,0,493,"Margaret Peacock"]
[10574,"2016-11-25","Trail's Head Gourmet Provisioners","USA","Geitost","Dairy Products",2.5,14,0,35,"Margaret Peacock"]
[10574,"2016-11-25","Trail's Head Gourmet Provisioners","USA","Boston Crab Meat","Seafood",18.399999999999999,2,0,36.799999999999997,"Margaret Peacock"]
[10574,"2016-11-25","Trail's Head Gourmet Provisioners","USA","Wimmers gute Semmelknödel","Grains/Cereals",33.25,6,0,199.5,"Margaret Peacock"]
[10575,"2016-11-26","Morgenstern Gesundkost","Germany","Mozzarella di Giovanni","Dairy Products",34.799999999999997,30,0,1044,"Steven Buchanan"]
[10575,"2016-11-26","Morgenstern Gesundkost","Germany","Lakkalikööri","Beverages",18,10,0,180,"Steven Buchanan"]
[10575,"2016-11-26","Morgenstern Gesundkost","Germany","Vegie-spread","Condiments",43.9,6,0,263.39999999999998,"Steven Buchanan"]
[10575,"2016-11-26","Morgenstern Gesundkost","Germany","Raclette Courdavault","Dairy Products",55,12,0,660,"Steven Buchanan"]
[10576,"2016-11-29","Tortuga Restaurante","Mexico","Chai","Beverages",18,10,0,180,"Janet Leverling"]
[10576,"2016-11-29","Tortuga Restaurante","Mexico","Gula Malacca","Condiments",19.45,21,0,408.45,"Janet Leverling"]
[10576,"2016-11-29","Tortuga Restaurante","Mexico","Gorgonzola Telino","Dairy Products",12.5,20,0,250,"Janet Leverling"]
[10577,"2016-11-29","Trail's Head Gourmet Provisioners","USA","Chartreuse verte","Beverages",18,10,0,180,"Anne Dodsworth"]
[10577,"2016-11-29","Trail's Head Gourmet Provisioners","USA","Original Frankfurter grüne Soße","Condiments",13,18,0,234,"Anne Dodsworth"]
[10577,"2016-11-29","Trail's Head Gourmet Provisioners","USA","Rhönbräu Klosterbier","Beverages",7.75,20,0,155,"Anne Dodsworth"]
[10578,"2016-11-30","B's Beverages","UK","Steeleye Stout","Beverages",18,20,0,360,"Margaret Peacock"]
[10578,"2016-11-30","B's Beverages","UK","Ravioli Angelo","Grains/Cereals",19.5,6,0,117,"Margaret Peacock"]
[10579,"2016-12-01","Let's Stop N Shop","USA","Rhönbräu Klosterbier","Beverages",7.75,21,0,162.75,"Nancy Davolio"]
[10579,"2016-12-01","Let's Stop N Shop","USA","Genen Shouyu","Condiments",15.5,10,0,155,"Nancy Davolio"]
[10580,"2016-12-02","Ottilies Käseladen","Germany","Tofu","Produce",23.25,15,0.05,331.31,"Margaret Peacock"]
[10580,"2016-12-02","Ottilies Käseladen","Germany","Louisiana Fiery Hot Pepper Sauce","Condiments",21.05,30,0.05,599.92999999999995,"Margaret Peacock"]
[10580,"2016-12-02","Ottilies Käseladen","Germany","Jack's New England Clam Chowder","Seafood",9.65,9,0.05,82.51,"Margaret Peacock"]
[10581,"2016-12-02","Familia Arquibaldo","Brazil","Rhönbräu Klosterbier","Beverages",7.75,50,0.2,310,"Janet Leverling"]
[10582,"2016-12-03","Blauer See Delikatessen","Germany","Ravioli Angelo","Grains/Cereals",19.5,4,0,78,"Janet Leverling"]
[10582,"2016-12-03","Blauer See Delikatessen","Germany","Lakkalikööri","Beverages",18,14,0,252,"Janet Leverling"]
[10583,"2016-12-06","Wartian Herkku","Finland","Gudbrandsdalsost","Dairy Products",36,10,0.15,306,"Andrew Fuller"]
[10583,"2016-12-06","Wartian Herkku","Finland","Thüringer Rostbratwurst","Meat/Poultry",123.79,10,0,1237.9000000000001,"Andrew Fuller"]
[10583,"2016-12-06","Wartian Herkku","Finland","Camembert Pierrot","Dairy Products",34,24,0.15,{"$f":"ROUND((G899*H899)*(1-I899),2)","v":693.6},"Andrew Fuller"]
[10584,"2016-12-06","Blondel père et fils","France","Gorgonzola Telino","Dairy Products",12.5,50,0.05,593.75,"Margaret Peacock"]
[10585,"2016-12-07","Wellington Importadora","Brazil","Zaanse koeken","Confections",9.5,15,0,142.5,"Robert King"]
[10586,"2016-12-08","Reggiani Caseifici","Italy","Filo Mix","Grains/Cereals",7,4,0.15,23.8,"Anne Dodsworth"]
[10587,"2016-12-08","Que Delícia","Brazil","Gumbär Gummibärchen","Confections",31.23,6,0,187.38,"Nancy Davolio"]
[10587,"2016-12-08","Que Delícia","Brazil","Steeleye Stout","Beverages",18,20,0,360,"Nancy Davolio"]
[10587,"2016-12-08","Que Delícia","Brazil","Original Frankfurter grüne Soße","Condiments",13,20,0,260,"Nancy Davolio"]
[10588,"2016-12-09","QUICK-Stop","Germany","Carnarvon Tigers","Seafood",62.5,40,0.2,2000,"Andrew Fuller"]
[10588,"2016-12-09","QUICK-Stop","Germany","Singaporean Hokkien Fried Mee","Grains/Cereals",14,100,0.2,1120,"Andrew Fuller"]
[10589,"2016-12-10","Great Lakes Food Market","USA","Steeleye Stout","Beverages",18,4,0,72,"Laura Callahan"]
[10590,"2016-12-13","Mère Paillarde","Canada","Original Frankfurter grüne Soße","Condiments",13,60,0.05,741,"Margaret Peacock"]
[10590,"2016-12-13","Mère Paillarde","Canada","Chai","Beverages",18,20,0,360,"Margaret Peacock"]
[10591,"2016-12-13","Vaffeljernet","Denmark","Aniseed Syrup","Condiments",10,14,0,140,"Nancy Davolio"]
[10591,"2016-12-13","Vaffeljernet","Denmark","Uncle Bob's Organic Dried Pears","Produce",30,10,0,300,"Nancy Davolio"]
[10591,"2016-12-13","Vaffeljernet","Denmark","Tourtière","Meat/Poultry",7.45,50,0,372.5,"Nancy Davolio"]
[10592,"2016-12-14","Lehmanns Marktstand","Germany","Genen Shouyu","Condiments",15.5,25,0.05,368.13,"Janet Leverling"]
[10592,"2016-12-14","Lehmanns Marktstand","Germany","Gumbär Gummibärchen","Confections",31.23,5,0.05,148.34,"Janet Leverling"]
[10593,"2016-12-15","Lehmanns Marktstand","Germany","Gudbrandsdalsost","Dairy Products",36,20,0.2,576,"Robert King"]
[10593,"2016-12-15","Lehmanns Marktstand","Germany","Lakkalikööri","Beverages",18,4,0.2,57.6,"Robert King"]
[10593,"2016-12-15","Lehmanns Marktstand","Germany","Sir Rodney's Marmalade","Confections",81,21,0.2,1360.8,"Robert King"]
[10594,"2016-12-15","Old World Delicatessen","USA","Escargots de Bourgogne","Seafood",13.25,30,0,397.5,"Janet Leverling"]
[10594,"2016-12-15","Old World Delicatessen","USA","Filo Mix","Grains/Cereals",7,24,0,168,"Janet Leverling"]
[10595,"2016-12-16","Ernst Handel","Austria","Steeleye Stout","Beverages",18,30,0.25,405,"Andrew Fuller"]
[10595,"2016-12-16","Ernst Handel","Austria","Sirop d'érable","Condiments",28.5,120,0.25,2565,"Andrew Fuller"]
[10595,"2016-12-16","Ernst Handel","Austria","Gudbrandsdalsost","Dairy Products",36,65,0.25,1755,"Andrew Fuller"]
[10596,"2016-12-17","White Clover Markets","USA","Rhönbräu Klosterbier","Beverages",7.75,30,0.2,186,"Laura Callahan"]
[10596,"2016-12-17","White Clover Markets","USA","Vegie-spread","Condiments",43.9,24,0.2,842.88,"Laura Callahan"]
[10596,"2016-12-17","White Clover Markets","USA","Gnocchi di nonna Alice","Grains/Cereals",38,5,0.2,152,"Laura Callahan"]
[10597,"2016-12-17","Piccolo und mehr","Austria","Guaraná Fantástica","Beverages",4.5,35,0.2,126,"Robert King"]
[10597,"2016-12-17","Piccolo und mehr","Austria","Louisiana Fiery Hot Pepper Sauce","Condiments",21.05,12,0.2,202.08,"Robert King"]

{"sheet":"London","index":4,"n_rows":192,"n_cols":11,"rows_kept":192,"cut":false,"hidden":false,"merged":[]}
["Order ID","Order Date","Customer Name","Country","Product Name","Product Category","Unit Price","Units Sold","Discount","Total Sales Value","Sales Rep"]
[10248,"2015-12-11","Vins et alcools Chevalier","France","Mozzarella di Giovanni","Dairy Products",34.799999999999997,5,0,{"$f":"ROUND((G2*H2)*(1-I2),2)","v":174},"Steven Buchanan"]
[10248,"2015-12-11","Vins et alcools Chevalier","France","Singaporean Hokkien Fried Mee","Grains/Cereals",14,10,0,{"$f":"ROUND((G3*H3)*(1-I3),2)","v":140},"Steven Buchanan"]
[10248,"2015-12-11","Vins et alcools Chevalier","France","Queso Cabrales","Dairy Products",21,12,0,252,"Steven Buchanan"]
[10249,"2015-12-12","Toms Spezialitäten","Germany","Manjimup Dried Apples","Produce",53,40,0,2120,"Michael Suyama"]
[10249,"2015-12-12","Toms Spezialitäten","Germany","Tofu","Produce",23.25,9,0,209.25,"Michael Suyama"]
[10250,"2015-12-15","Hanari Carnes","Brazil","Manjimup Dried Apples","Produce",53,35,0.15,1576.75,"Margaret Peacock"]
[10250,"2015-12-15","Hanari Carnes","Brazil","Jack's New England Clam Chowder","Seafood",9.65,10,0,96.5,"Margaret Peacock"]
[10250,"2015-12-15","Hanari Carnes","Brazil","Louisiana Fiery Hot Pepper Sauce","Condiments",21.05,15,0.15,268.39,"Margaret Peacock"]
[10251,"2015-12-15","Victuailles en stock","France","Gustaf's Knäckebröd","Grains/Cereals",21,6,0.05,119.7,"Janet Leverling"]
[10251,"2015-12-15","Victuailles en stock","France","Louisiana Fiery Hot Pepper Sauce","Condiments",21.05,20,0,421,"Janet Leverling"]
[10251,"2015-12-15","Victuailles en stock","France","Ravioli Angelo","Grains/Cereals",19.5,15,0.05,277.88,"Janet Leverling"]
[10252,"2015-12-16","Suprêmes délices","Belgium","Geitost","Dairy Products",2.5,25,0.05,59.38,"Margaret Peacock"]
[10252,"2015-12-16","Suprêmes délices","Belgium","Camembert Pierrot","Dairy Products",34,40,0,1360,"Margaret Peacock"]
[10252,"2015-12-16","Suprêmes délices","Belgium","Sir Rodney's Marmalade","Confections",81,40,0.05,3078,"Margaret Peacock"]
[10253,"2015-12-17","Hanari Carnes","Brazil","Chartreuse verte","Beverages",18,42,0,756,"Janet Leverling"]
[10253,"2015-12-17","Hanari Carnes","Brazil","Gorgonzola Telino","Dairy Products",12.5,20,0,250,"Janet Leverling"]
[10253,"2015-12-17","Hanari Carnes","Brazil","Maxilaku","Confections",20,40,0,800,"Janet Leverling"]
[10254,"2015-12-18","Chop-suey Chinese","Switzerland","Longlife Tofu","Produce",10,21,0,210,"Steven Buchanan"]
[10254,"2015-12-18","Chop-suey Chinese","Switzerland","Pâté chinois","Meat/Poultry",24,21,0.15,428.4,"Steven Buchanan"]
[10254,"2015-12-18","Chop-suey Chinese","Switzerland","Guaraná Fantástica","Beverages",4.5,15,0.15,57.38,"Steven Buchanan"]
[10255,"2015-12-19","Richter Supermarkt","Switzerland","Chang","Beverages",19,20,0,380,"Anne Dodsworth"]
[10255,"2015-12-19","Richter Supermarkt","Switzerland","Raclette Courdavault","Dairy Products",55,30,0,1650,"Anne Dodsworth"]
[10255,"2015-12-19","Richter Supermarkt","Switzerland","Pavlova","Confections",17.45,35,0,610.75,"Anne Dodsworth"]
[10255,"2015-12-19","Richter Supermarkt","Switzerland","Inlagd Sill","Seafood",19,25,0,475,"Anne Dodsworth"]
[10256,"2015-12-22","Wellington Importadora","Brazil","Perth Pasties","Meat/Poultry",32.799999999999997,15,0,492,"Janet Leverling"]
[10256,"2015-12-22","Wellington Importadora","Brazil","Original Frankfurter grüne Soße","Condiments",13,12,0,156,"Janet Leverling"]
[10257,"2015-12-23","HILARIÓN-Abastos","Venezuela","Schoggi Schokolade","Confections",43.9,25,0,1097.5,"Margaret Peacock"]
[10257,"2015-12-23","HILARIÓN-Abastos","Venezuela","Chartreuse verte","Beverages",18,6,0,108,"Margaret Peacock"]
[10257,"2015-12-23","HILARIÓN-Abastos","Venezuela","Original Frankfurter grüne Soße","Condiments",13,15,0,195,"Margaret Peacock"]
[10258,"2015-12-24","Ernst Handel","Austria","Chef Anton's Gumbo Mix","Condiments",21.35,65,0.2,1110.2,"Nancy Davolio"]
[10258,"2015-12-24","Ernst Handel","Austria","Chang","Beverages",19,50,0.2,760,"Nancy Davolio"]
[10258,"2015-12-24","Ernst Handel","Austria","Mascarpone Fabioli","Dairy Products",32,6,0.2,153.6,"Nancy Davolio"]
[10259,"2015-12-25","Centro comercial Moctezuma","Mexico","Sir Rodney's Scones","Confections",10,10,0,100,"Margaret Peacock"]
[10259,"2015-12-25","Centro comercial Moctezuma","Mexico","Gravad lax","Seafood",26,1,0,26,"Margaret Peacock"]
[10260,"2015-12-26","Ottilies Käseladen","Germany","Outback Lager","Beverages",15,21,0.25,236.25,"Margaret Peacock"]
[10260,"2015-12-26","Ottilies Käseladen","Germany","Ravioli Angelo","Grains/Cereals",19.5,50,0,975,"Margaret Peacock"]
[10260,"2015-12-26","Ottilies Käseladen","Germany","Tarte au sucre","Confections",49.3,15,0.25,554.63,"Margaret Peacock"]
[10260,"2015-12-26","Ottilies Käseladen","Germany","Jack's New England Clam Chowder","Seafood",9.65,16,0.25,115.8,"Margaret Peacock"]
[10261,"2015-12-26","Que Delícia","Brazil","Steeleye Stout","Beverages",18,20,0,360,"Margaret Peacock"]
[10261,"2015-12-26","Que Delícia","Brazil","Sir Rodney's Scones","Confections",10,20,0,200,"Margaret Peacock"]
[10262,"2015-12-29","Rattlesnake Canyon Grocery","USA","Chef Anton's Gumbo Mix","Condiments",21.35,12,0.2,204.96,"Laura Callahan"]
[10262,"2015-12-29","Rattlesnake Canyon Grocery","USA","Uncle Bob's Organic Dried Pears","Produce",30,15,0,450,"Laura Callahan"]
[10262,"2015-12-29","Rattlesnake Canyon Grocery","USA","Gnocchi di nonna Alice","Grains/Cereals",38,2,0,76,"Laura Callahan"]
[10263,"2015-12-30","Ernst Handel","Austria","Pavlova","Confections",17.45,60,0.25,785.25,"Anne Dodsworth"]
[10263,"2015-12-30","Ernst Handel","Austria","Nord-Ost Matjeshering","Seafood",25.89,60,0.25,1165.05,"Anne Dodsworth"]
[10263,"2015-12-30","Ernst Handel","Austria","Guaraná Fantástica","Beverages",4.5,28,0,126,"Anne Dodsworth"]
[10263,"2015-12-30","Ernst Handel","Austria","Longlife Tofu","Produce",10,36,0.25,270,"Anne Dodsworth"]
[10264,"2015-12-31","Folk och fä HB","Sweden","Chang","Beverages",19,35,0,665,"Michael Suyama"]
[10264,"2015-12-31","Folk och fä HB","Sweden","Jack's New England Clam Chowder","Seafood",9.65,25,0.15,205.06,"Michael Suyama"]
[10265,"2016-01-01","Blondel père et fils","France","Alice Mutton","Meat/Poultry",39,30,0,1170,"Andrew Fuller"]
[10265,"2016-01-01","Blondel père et fils","France","Outback Lager","Beverages",15,20,0,300,"Andrew Fuller"]
[10266,"2016-01-02","Wartian Herkku","Finland","Queso Manchego La Pastora","Dairy Products",38,12,0.05,433.2,"Janet Leverling"]
[10267,"2016-01-05","Frankenversand","Germany","Lakkalikööri","Beverages",18,15,0.15,229.5,"Margaret Peacock"]
[10267,"2016-01-05","Frankenversand","Germany","Boston Crab Meat","Seafood",18.399999999999999,50,0,920,"Margaret Peacock"]
[10267,"2016-01-05","Frankenversand","Germany","Raclette Courdavault","Dairy Products",55,70,0.15,3272.5,"Margaret Peacock"]
[10268,"2016-01-06","GROSELLA-Restaurante","Venezuela","Mozzarella di Giovanni","Dairy Products",34.799999999999997,4,0,139.19999999999999,"Laura Callahan"]
[10268,"2016-01-06","GROSELLA-Restaurante","Venezuela","Thüringer Rostbratwurst","Meat/Poultry",123.79,10,0,1237.9000000000001,"Laura Callahan"]
[10269,"2016-01-07","White Clover Markets","USA","Mozzarella di Giovanni","Dairy Products",34.799999999999997,20,0.05,661.2,"Steven Buchanan"]
[10269,"2016-01-07","White Clover Markets","USA","Geitost","Dairy Products",2.5,60,0.05,142.5,"Steven Buchanan"]
[10270,"2016-01-08","Wartian Herkku","Finland","Inlagd Sill","Seafood",19,30,0,570,"Nancy Davolio"]
[10270,"2016-01-08","Wartian Herkku","Finland","Ipoh Coffee","Beverages",46,25,0,1150,"Nancy Davolio"]
[10271,"2016-01-08","Split Rail Beer & Ale","USA","Geitost","Dairy Products",2.5,24,0,60,"Michael Suyama"]
[10272,"2016-01-09","Rattlesnake Canyon Grocery","USA","Gorgonzola Telino","Dairy Products",12.5,40,0,500,"Michael Suyama"]
[10272,"2016-01-09","Rattlesnake Canyon Grocery","USA","Sir Rodney's Marmalade","Confections",81,6,0,486,"Michael Suyama"]
[10272,"2016-01-09","Rattlesnake Canyon Grocery","USA","Mozzarella di Giovanni","Dairy Products",34.799999999999997,24,0,835.2,"Michael Suyama"]
[10273,"2016-01-12","QUICK-Stop","Germany","Boston Crab Meat","Seafood",18.399999999999999,60,0.05,{"$f":"ROUND((G67*H67)*(1-I67),2)","v":1048.8},"Janet Leverling"]
[10273,"2016-01-12","QUICK-Stop","Germany","Geitost","Dairy Products",2.5,20,0,50,"Janet Leverling"]
[10273,"2016-01-12","QUICK-Stop","Germany","Gorgonzola Telino","Dairy Products",12.5,15,0.05,178.13,"Janet Leverling"]
[10273,"2016-01-12","QUICK-Stop","Germany","Ikura","Seafood",31,24,0.05,706.8,"Janet Leverling"]
[10273,"2016-01-12","QUICK-Stop","Germany","Lakkalikööri","Beverages",18,33,0.05,564.29999999999995,"Janet Leverling"]
[10274,"2016-01-13","Vins et alcools Chevalier","France","Fløtemysost","Dairy Products",21.5,20,0,430,"Michael Suyama"]
[10274,"2016-01-13","Vins et alcools Chevalier","France","Mozzarella di Giovanni","Dairy Products",34.799999999999997,7,0,243.6,"Michael Suyama"]
[10275,"2016-01-14","Magazzini Alimentari Riuniti","Italy","Guaraná Fantástica","Beverages",4.5,12,0.05,51.3,"Nancy Davolio"]
[10275,"2016-01-14","Magazzini Alimentari Riuniti","Italy","Raclette Courdavault","Dairy Products",55,6,0.05,313.5,"Nancy Davolio"]
[10276,"2016-01-15","Tortuga Restaurante","Mexico","Ikura","Seafood",31,15,0,465,"Laura Callahan"]
[10276,"2016-01-15","Tortuga Restaurante","Mexico","Konbu","Seafood",6,10,0,60,"Laura Callahan"]
[10277,"2016-01-16","Morgenstern Gesundkost","Germany","Rössle Sauerkraut","Produce",45.6,20,0,912,"Andrew Fuller"]
[10277,"2016-01-16","Morgenstern Gesundkost","Germany","Tarte au sucre","Confections",49.3,12,0,591.6,"Andrew Fuller"]
[10278,"2016-01-19","Berglunds snabbköp","Sweden","Raclette Courdavault","Dairy Products",55,15,0,825,"Laura Callahan"]
[10278,"2016-01-19","Berglunds snabbköp","Sweden","Röd Kaviar","Seafood",15,25,0,375,"Laura Callahan"]
[10278,"2016-01-19","Berglunds snabbköp","Sweden","Gula Malacca","Condiments",19.45,16,0,311.2,"Laura Callahan"]
[10278,"2016-01-19","Berglunds snabbköp","Sweden","Vegie-spread","Condiments",43.9,8,0,351.2,"Laura Callahan"]
[10279,"2016-01-20","Lehmanns Marktstand","Germany","Alice Mutton","Meat/Poultry",39,15,0.25,438.75,"Laura Callahan"]
[10280,"2016-01-21","Berglunds snabbköp","Sweden","Pâté chinois","Meat/Poultry",24,20,0,480,"Andrew Fuller"]
[10280,"2016-01-21","Berglunds snabbköp","Sweden","Rhönbräu Klosterbier","Beverages",7.75,30,0,232.5,"Andrew Fuller"]
[10280,"2016-01-21","Berglunds snabbköp","Sweden","Guaraná Fantástica","Beverages",4.5,12,0,54,"Andrew Fuller"]
[10281,"2016-01-21","Romero y tomillo","Spain","Guaraná Fantástica","Beverages",4.5,6,0,27,"Margaret Peacock"]
[10281,"2016-01-21","Romero y tomillo","Spain","Steeleye Stout","Beverages",18,4,0,72,"Margaret Peacock"]
[10281,"2016-01-21","Romero y tomillo","Spain","Teatime Chocolate Biscuits","Confections",9.1999999999999993,1,0,9.1999999999999993,"Margaret Peacock"]
[10282,"2016-01-22","Romero y tomillo","Spain","Ravioli Angelo","Grains/Cereals",19.5,2,0,39,"Margaret Peacock"]
[10282,"2016-01-22","Romero y tomillo","Spain","Nord-Ost Matjeshering","Seafood",25.89,6,0,155.34,"Margaret Peacock"]
[10283,"2016-01-23","LILA-Supermercado","Venezuela","Teatime Chocolate Biscuits","Confections",9.1999999999999993,18,0,165.6,"Janet Leverling"]
[10283,"2016-01-23","LILA-Supermercado","Venezuela","Camembert Pierrot","Dairy Products",34,35,0,1190,"Janet Leverling"]
[10283,"2016-01-23","LILA-Supermercado","Venezuela","Genen Shouyu","Condiments",15.5,20,0,310,"Janet Leverling"]
[10283,"2016-01-23","LILA-Supermercado","Venezuela","Mozzarella di Giovanni","Dairy Products",34.799999999999997,3,0,104.4,"Janet Leverling"]
[10284,"2016-01-26","Lehmanns Marktstand","Germany","Laughing Lumberjack Lager","Beverages",14,5,0.25,52.5,"Margaret Peacock"]
[10284,"2016-01-26","Lehmanns Marktstand","Germany","Gula Malacca","Condiments",19.45,21,0,408.45,"Margaret Peacock"]
[10284,"2016-01-26","Lehmanns Marktstand","Germany","Camembert Pierrot","Dairy Products",34,20,0.25,510,"Margaret Peacock"]
[10284,"2016-01-26","Lehmanns Marktstand","Germany","Schoggi Schokolade","Confections",43.9,15,0.25,493.88,"Margaret Peacock"]
[10285,"2016-01-27","QUICK-Stop","Germany","Chai","Beverages",18,45,0.2,648,"Nancy Davolio"]
[10285,"2016-01-27","QUICK-Stop","Germany","Boston Crab Meat","Seafood",18.399999999999999,40,0.2,588.79999999999995,"Nancy Davolio"]
[10285,"2016-01-27","QUICK-Stop","Germany","Perth Pasties","Meat/Poultry",32.799999999999997,36,0.2,944.64,"Nancy Davolio"]
[10286,"2016-01-28","QUICK-Stop","Germany","Tarte au sucre","Confections",49.3,40,0,1972,"Laura Callahan"]
[10286,"2016-01-28","QUICK-Stop","Germany","Steeleye Stout","Beverages",18,100,0,1800,"Laura Callahan"]
[10287,"2016-01-29","Ricardo Adocicados","Brazil","Spegesild","Seafood",12,15,0.15,153,"Laura Callahan"]
[10287,"2016-01-29","Ricardo Adocicados","Brazil","Pavlova","Confections",17.45,40,0.15,593.29999999999995,"Laura Callahan"]
[10287,"2016-01-29","Ricardo Adocicados","Brazil","Sasquatch Ale","Beverages",14,20,0,280,"Laura Callahan"]
[10288,"2016-01-30","Reggiani Caseifici","Italy","Scottish Longbreads","Confections",12.5,3,0.1,33.75,"Margaret Peacock"]
[10288,"2016-01-30","Reggiani Caseifici","Italy","Tourtière","Meat/Poultry",7.45,10,0.1,67.05,"Margaret Peacock"]
[10289,"2016-02-02","B's Beverages","UK","Aniseed Syrup","Condiments",10,30,0,300,"Robert King"]
[10289,"2016-02-02","B's Beverages","UK","Wimmers gute Semmelknödel","Grains/Cereals",33.25,9,0,299.25,"Robert King"]
[10290,"2016-02-03","Comércio Mineiro","Brazil","Original Frankfurter grüne Soße","Condiments",13,10,0,130,"Laura Callahan"]
[10290,"2016-02-03","Comércio Mineiro","Brazil","Thüringer Rostbratwurst","Meat/Poultry",123.79,15,0,1856.85,"Laura Callahan"]
[10290,"2016-02-03","Comércio Mineiro","Brazil","Maxilaku","Confections",20,15,0,300,"Laura Callahan"]
[10290,"2016-02-03","Comércio Mineiro","Brazil","Chef Anton's Gumbo Mix","Condiments",21.35,20,0,427,"Laura Callahan"]
[10291,"2016-02-03","Que Delícia","Brazil","Gula Malacca","Condiments",19.45,24,0.1,420.12,"Michael Suyama"]
[10291,"2016-02-03","Que Delícia","Brazil","Konbu","Seafood",6,20,0.1,108,"Michael Suyama"]
[10291,"2016-02-03","Que Delícia","Brazil","Manjimup Dried Apples","Produce",53,2,0.1,95.4,"Michael Suyama"]
[10292,"2016-02-04","Tradição Hipermercados","Brazil","Sir Rodney's Marmalade","Confections",81,20,0,1620,"Nancy Davolio"]
[10293,"2016-02-05","Tortuga Restaurante","Mexico","Carnarvon Tigers","Seafood",62.5,12,0,750,"Nancy Davolio"]
[10293,"2016-02-05","Tortuga Restaurante","Mexico","Rhönbräu Klosterbier","Beverages",7.75,6,0,46.5,"Nancy Davolio"]
[10293,"2016-02-05","Tortuga Restaurante","Mexico","Guaraná Fantástica","Beverages",4.5,10,0,45,"Nancy Davolio"]
[10293,"2016-02-05","Tortuga Restaurante","Mexico","Vegie-spread","Condiments",43.9,5,0,219.5,"Nancy Davolio"]
[10294,"2016-02-06","Rattlesnake Canyon Grocery","USA","Camembert Pierrot","Dairy Products",34,21,0,714,"Margaret Peacock"]
[10294,"2016-02-06","Rattlesnake Canyon Grocery","USA","Rhönbräu Klosterbier","Beverages",7.75,6,0,46.5,"Margaret Peacock"]
[10294,"2016-02-06","Rattlesnake Canyon Grocery","USA","Chai","Beverages",18,18,0,324,"Margaret Peacock"]
[10294,"2016-02-06","Rattlesnake Canyon Grocery","USA","Ipoh Coffee","Beverages",46,15,0,690,"Margaret Peacock"]
[10294,"2016-02-06","Rattlesnake Canyon Grocery","USA","Alice Mutton","Meat/Poultry",39,15,0,585,"Margaret Peacock"]
[10295,"2016-02-09","Vins et alcools Chevalier","France","Gnocchi di nonna Alice","Grains/Cereals",38,4,0,152,"Andrew Fuller"]
[10296,"2016-02-10","LILA-Supermercado","Venezuela","Gudbrandsdalsost","Dairy Products",36,15,0,{"$f":"ROUND((G131*H131)*(1-I131),2)","v":540},"Michael Suyama"]
[10296,"2016-02-10","LILA-Supermercado","Venezuela","Queso Cabrales","Dairy Products",21,12,0,252,"Michael Suyama"]
[10296,"2016-02-10","LILA-Supermercado","Venezuela","Pavlova","Confections",17.45,30,0,523.5,"Michael Suyama"]
[10297,"2016-02-11","Blondel père et fils","France","Mozzarella di Giovanni","Dairy Products",34.799999999999997,20,0,696,"Steven Buchanan"]
[10297,"2016-02-11","Blondel père et fils","France","Chartreuse verte","Beverages",18,60,0,1080,"Steven Buchanan"]
[10298,"2016-02-12","Hungry Owl All-Night Grocers","Ireland","Chang","Beverages",19,40,0,760,"Michael Suyama"]
[10298,"2016-02-12","Hungry Owl All-Night Grocers","Ireland","Inlagd Sill","Seafood",19,40,0.25,570,"Michael Suyama"]
[10298,"2016-02-12","Hungry Owl All-Night Grocers","Ireland","Tarte au sucre","Confections",49.3,15,0,739.5,"Michael Suyama"]
[10298,"2016-02-12","Hungry Owl All-Night Grocers","Ireland","Raclette Courdavault","Dairy Products",55,30,0.25,1237.5,"Michael Suyama"]
[10299,"2016-02-13","Ricardo Adocicados","Brazil","Outback Lager","Beverages",15,20,0,300,"Margaret Peacock"]
[10299,"2016-02-13","Ricardo Adocicados","Brazil","Teatime Chocolate Biscuits","Confections",9.1999999999999993,15,0,138,"Margaret Peacock"]
[10300,"2016-02-16","Magazzini Alimentari Riuniti","Italy","Scottish Longbreads","Confections",12.5,20,0,250,"Andrew Fuller"]
[10300,"2016-02-16","Magazzini Alimentari Riuniti","Italy","Louisiana Hot Spiced Okra","Condiments",17,30,0,510,"Andrew Fuller"]
[10301,"2016-02-16","Die Wandernde Kuh","Germany","Gnocchi di nonna Alice","Grains/Cereals",38,20,0,760,"Laura Callahan"]
[10301,"2016-02-16","Die Wandernde Kuh","Germany","Boston Crab Meat","Seafood",18.399999999999999,10,0,184,"Laura Callahan"]
[10302,"2016-02-17","Suprêmes délices","Belgium","Ipoh Coffee","Beverages",46,12,0,552,"Margaret Peacock"]
[10302,"2016-02-17","Suprêmes délices","Belgium","Rössle Sauerkraut","Produce",45.6,28,0,1276.8,"Margaret Peacock"]
[10302,"2016-02-17","Suprêmes délices","Belgium","Alice Mutton","Meat/Poultry",39,40,0,1560,"Margaret Peacock"]
[10303,"2016-02-18","Godos Cocina Típica","Spain","Louisiana Fiery Hot Pepper Sauce","Condiments",21.05,30,0.1,568.35,"Robert King"]
[10303,"2016-02-18","Godos Cocina Típica","Spain","Boston Crab Meat","Seafood",18.399999999999999,40,0.1,662.4,"Robert King"]
[10303,"2016-02-18","Godos Cocina Típica","Spain","Scottish Longbreads","Confections",12.5,15,0.1,168.75,"Robert King"]
[10304,"2016-02-19","Tortuga Restaurante","Mexico","Maxilaku","Confections",20,30,0,600,"Nancy Davolio"]
[10304,"2016-02-19","Tortuga Restaurante","Mexico","Raclette Courdavault","Dairy Products",55,10,0,550,"Nancy Davolio"]
[10304,"2016-02-19","Tortuga Restaurante","Mexico","Fløtemysost","Dairy Products",21.5,2,0,43,"Nancy Davolio"]
[10305,"2016-02-20","Old World Delicatessen","USA","Chartreuse verte","Beverages",18,30,0.1,486,"Laura Callahan"]
[10305,"2016-02-20","Old World Delicatessen","USA","Thüringer Rostbratwurst","Meat/Poultry",123.79,25,0.1,2785.28,"Laura Callahan"]
[10305,"2016-02-20","Old World Delicatessen","USA","Carnarvon Tigers","Seafood",62.5,25,0.1,1406.25,"Laura Callahan"]
[10306,"2016-02-23","Romero y tomillo","Spain","Nord-Ost Matjeshering","Seafood",25.89,10,0,258.89999999999998,"Nancy Davolio"]
[10306,"2016-02-23","Romero y tomillo","Spain","Perth Pasties","Meat/Poultry",32.799999999999997,10,0,328,"Nancy Davolio"]
[10306,"2016-02-23","Romero y tomillo","Spain","Tourtière","Meat/Poultry",7.45,5,0,37.25,"Nancy Davolio"]
[10307,"2016-02-24","Lonesome Pine Restaurant","USA","Tarte au sucre","Confections",49.3,10,0,493,"Andrew Fuller"]
[10307,"2016-02-24","Lonesome Pine Restaurant","USA","Scottish Longbreads","Confections",12.5,3,0,37.5,"Andrew Fuller"]
[10308,"2016-02-25","Ana Trujillo Emparedados y helados","Mexico","Outback Lager","Beverages",15,5,0,75,"Robert King"]
[10308,"2016-02-25","Ana Trujillo Emparedados y helados","Mexico","Gudbrandsdalsost","Dairy Products",36,1,0,36,"Robert King"]
[10309,"2016-02-26","Hungry Owl All-Night Grocers","Ireland","Singaporean Hokkien Fried Mee","Grains/Cereals",14,2,0,28,"Janet Leverling"]
[10309,"2016-02-26","Hungry Owl All-Night Grocers","Ireland","Ipoh Coffee","Beverages",46,20,0,920,"Janet Leverling"]
[10309,"2016-02-26","Hungry Owl All-Night Grocers","Ireland","Grandma's Boysenberry Spread","Condiments",25,30,0,750,"Janet Leverling"]
[10309,"2016-02-26","Hungry Owl All-Night Grocers","Ireland","Chef Anton's Cajun Seasoning","Condiments",22,20,0,440,"Janet Leverling"]
[10309,"2016-02-26","Hungry Owl All-Night Grocers","Ireland","Fløtemysost","Dairy Products",21.5,3,0,64.5,"Janet Leverling"]
[10310,"2016-02-27","The Big Cheese","USA","Pavlova","Confections",17.45,10,0,174.5,"Laura Callahan"]
[10310,"2016-02-27","The Big Cheese","USA","Tarte au sucre","Confections",49.3,5,0,246.5,"Laura Callahan"]
[10311,"2016-02-27","Du monde entier","France","Gudbrandsdalsost","Dairy Products",36,7,0,252,"Nancy Davolio"]
[10311,"2016-02-27","Du monde entier","France","Singaporean Hokkien Fried Mee","Grains/Cereals",14,6,0,84,"Nancy Davolio"]
[10312,"2016-03-01","Die Wandernde Kuh","Germany","Rhönbräu Klosterbier","Beverages",7.75,10,0,77.5,"Andrew Fuller"]
[10312,"2016-03-01","Die Wandernde Kuh","Germany","Rössle Sauerkraut","Produce",45.6,4,0,182.4,"Andrew Fuller"]
[10312,"2016-03-01","Die Wandernde Kuh","Germany","Ipoh Coffee","Beverages",46,24,0,1104,"Andrew Fuller"]
[10312,"2016-03-01","Die Wandernde Kuh","Germany","Perth Pasties","Meat/Poultry",32.799999999999997,20,0,656,"Andrew Fuller"]
[10313,"2016-03-02","QUICK-Stop","Germany","Inlagd Sill","Seafood",19,12,0,228,"Andrew Fuller"]
[10314,"2016-03-03","Rattlesnake Canyon Grocery","USA","Tarte au sucre","Confections",49.3,25,0.1,1109.25,"Nancy Davolio"]
[10314,"2016-03-03","Rattlesnake Canyon Grocery","USA","Escargots de Bourgogne","Seafood",13.25,30,0.1,357.75,"Nancy Davolio"]
[10314,"2016-03-03","Rattlesnake Canyon Grocery","USA","Mascarpone Fabioli","Dairy Products",32,40,0.1,1152,"Nancy Davolio"]
[10315,"2016-03-04","Island Trading","UK","Outback Lager","Beverages",15,30,0,450,"Margaret Peacock"]
[10315,"2016-03-04","Island Trading","UK","Sasquatch Ale","Beverages",14,14,0,196,"Margaret Peacock"]
[10316,"2016-03-05","Rattlesnake Canyon Grocery","USA","Tarte au sucre","Confections",49.3,70,0,3451,"Nancy Davolio"]
[10316,"2016-03-05","Rattlesnake Canyon Grocery","USA","Jack's New England Clam Chowder","Seafood",9.65,10,0,96.5,"Nancy Davolio"]
[10317,"2016-03-08","Lonesome Pine Restaurant","USA","Chai","Beverages",18,20,0,360,"Michael Suyama"]
[10318,"2016-03-09","Island Trading","UK","Jack's New England Clam Chowder","Seafood",9.65,20,0,193,"Laura Callahan"]
[10318,"2016-03-09","Island Trading","UK","Lakkalikööri","Beverages",18,6,0,108,"Laura Callahan"]
[10319,"2016-03-10","Tortuga Restaurante","Mexico","Alice Mutton","Meat/Poultry",39,8,0,312,"Robert King"]
[10319,"2016-03-10","Tortuga Restaurante","Mexico","Rössle Sauerkraut","Produce",45.6,14,0,638.4,"Robert King"]
[10319,"2016-03-10","Tortuga Restaurante","Mexico","Lakkalikööri","Beverages",18,30,0,540,"Robert King"]
[10320,"2016-03-11","Wartian Herkku","Finland","Fløtemysost","Dairy Products",21.5,30,0,645,"Steven Buchanan"]

{"sheet":"Manchester","index":5,"n_rows":768,"n_cols":11,"rows_kept":768,"cut":false,"hidden":false,"merged":[]}
["Order ID","Order Date","Customer Name","Country","Product Name","Product Category","Unit Price","Units Sold","Discount","Total Sales Value","Sales Rep"]
[10248,"2015-12-11","Vins et alcools Chevalier","France","Mozzarella di Giovanni","Dairy Products",34.799999999999997,5,0,{"$f":"ROUND((G2*H2)*(1-I2),2)","v":174},"Steven Buchanan"]
[10248,"2015-12-11","Vins et alcools Chevalier","France","Singaporean Hokkien Fried Mee","Grains/Cereals",14,10,0,{"$f":"ROUND((G3*H3)*(1-I3),2)","v":140},"Steven Buchanan"]
[10248,"2015-12-11","Vins et alcools Chevalier","France","Queso Cabrales","Dairy Products",21,12,0,252,"Steven Buchanan"]
[10249,"2015-12-12","Toms Spezialitäten","Germany","Manjimup Dried Apples","Produce",53,40,0,2120,"Michael Suyama"]
[10249,"2015-12-12","Toms Spezialitäten","Germany","Tofu","Produce",23.25,9,0,209.25,"Michael Suyama"]
[10250,"2015-12-15","Hanari Carnes","Brazil","Manjimup Dried Apples","Produce",53,35,0.15,1576.75,"Margaret Peacock"]
[10250,"2015-12-15","Hanari Carnes","Brazil","Jack's New England Clam Chowder","Seafood",9.65,10,0,96.5,"Margaret Peacock"]
[10250,"2015-12-15","Hanari Carnes","Brazil","Louisiana Fiery Hot Pepper Sauce","Condiments",21.05,15,0.15,268.39,"Margaret Peacock"]
[10251,"2015-12-15","Victuailles en stock","France","Gustaf's Knäckebröd","Grains/Cereals",21,6,0.05,119.7,"Janet Leverling"]
[10251,"2015-12-15","Victuailles en stock","France","Louisiana Fiery Hot Pepper Sauce","Condiments",21.05,20,0,421,"Janet Leverling"]
[10251,"2015-12-15","Victuailles en stock","France","Ravioli Angelo","Grains/Cereals",19.5,15,0.05,277.88,"Janet Leverling"]
[10252,"2015-12-16","Suprêmes délices","Belgium","Geitost","Dairy Products",2.5,25,0.05,59.38,"Margaret Peacock"]
[10252,"2015-12-16","Suprêmes délices","Belgium","Camembert Pierrot","Dairy Products",34,40,0,1360,"Margaret Peacock"]
[10252,"2015-12-16","Suprêmes délices","Belgium","Sir Rodney's Marmalade","Confections",81,40,0.05,3078,"Margaret Peacock"]
[10253,"2015-12-17","Hanari Carnes","Brazil","Chartreuse verte","Beverages",18,42,0,756,"Janet Leverling"]
[10253,"2015-12-17","Hanari Carnes","Brazil","Gorgonzola Telino","Dairy Products",12.5,20,0,250,"Janet Leverling"]
[10253,"2015-12-17","Hanari Carnes","Brazil","Maxilaku","Confections",20,40,0,800,"Janet Leverling"]
[10254,"2015-12-18","Chop-suey Chinese","Switzerland","Longlife Tofu","Produce",10,21,0,210,"Steven Buchanan"]
[10254,"2015-12-18","Chop-suey Chinese","Switzerland","Pâté chinois","Meat/Poultry",24,21,0.15,428.4,"Steven Buchanan"]
[10254,"2015-12-18","Chop-suey Chinese","Switzerland","Guaraná Fantástica","Beverages",4.5,15,0.15,57.38,"Steven Buchanan"]
[10255,"2015-12-19","Richter Supermarkt","Switzerland","Chang","Beverages",19,20,0,380,"Anne Dodsworth"]
[10255,"2015-12-19","Richter Supermarkt","Switzerland","Raclette Courdavault","Dairy Products",55,30,0,1650,"Anne Dodsworth"]
[10255,"2015-12-19","Richter Supermarkt","Switzerland","Pavlova","Confections",17.45,35,0,610.75,"Anne Dodsworth"]
[10255,"2015-12-19","Richter Supermarkt","Switzerland","Inlagd Sill","Seafood",19,25,0,475,"Anne Dodsworth"]
[10256,"2015-12-22","Wellington Importadora","Brazil","Perth Pasties","Meat/Poultry",32.799999999999997,15,0,492,"Janet Leverling"]
[10256,"2015-12-22","Wellington Importadora","Brazil","Original Frankfurter grüne Soße","Condiments",13,12,0,156,"Janet Leverling"]
[10257,"2015-12-23","HILARIÓN-Abastos","Venezuela","Schoggi Schokolade","Confections",43.9,25,0,1097.5,"Margaret Peacock"]
[10257,"2015-12-23","HILARIÓN-Abastos","Venezuela","Chartreuse verte","Beverages",18,6,0,108,"Margaret Peacock"]
[10257,"2015-12-23","HILARIÓN-Abastos","Venezuela","Original Frankfurter grüne Soße","Condiments",13,15,0,195,"Margaret Peacock"]
[10258,"2015-12-24","Ernst Handel","Austria","Chef Anton's Gumbo Mix","Condiments",21.35,65,0.2,1110.2,"Nancy Davolio"]
[10258,"2015-12-24","Ernst Handel","Austria","Chang","Beverages",19,50,0.2,760,"Nancy Davolio"]
[10258,"2015-12-24","Ernst Handel","Austria","Mascarpone Fabioli","Dairy Products",32,6,0.2,153.6,"Nancy Davolio"]
[10259,"2015-12-25","Centro comercial Moctezuma","Mexico","Sir Rodney's Scones","Confections",10,10,0,100,"Margaret Peacock"]
[10259,"2015-12-25","Centro comercial Moctezuma","Mexico","Gravad lax","Seafood",26,1,0,26,"Margaret Peacock"]
[10260,"2015-12-26","Ottilies Käseladen","Germany","Outback Lager","Beverages",15,21,0.25,236.25,"Margaret Peacock"]
[10260,"2015-12-26","Ottilies Käseladen","Germany","Ravioli Angelo","Grains/Cereals",19.5,50,0,975,"Margaret Peacock"]
[10260,"2015-12-26","Ottilies Käseladen","Germany","Tarte au sucre","Confections",49.3,15,0.25,554.63,"Margaret Peacock"]
[10260,"2015-12-26","Ottilies Käseladen","Germany","Jack's New England Clam Chowder","Seafood",9.65,16,0.25,115.8,"Margaret Peacock"]
[10261,"2015-12-26","Que Delícia","Brazil","Steeleye Stout","Beverages",18,20,0,360,"Margaret Peacock"]
[10261,"2015-12-26","Que Delícia","Brazil","Sir Rodney's Scones","Confections",10,20,0,200,"Margaret Peacock"]
[10262,"2015-12-29","Rattlesnake Canyon Grocery","USA","Chef Anton's Gumbo Mix","Condiments",21.35,12,0.2,204.96,"Laura Callahan"]
[10262,"2015-12-29","Rattlesnake Canyon Grocery","USA","Uncle Bob's Organic Dried Pears","Produce",30,15,0,450,"Laura Callahan"]
[10262,"2015-12-29","Rattlesnake Canyon Grocery","USA","Gnocchi di nonna Alice","Grains/Cereals",38,2,0,76,"Laura Callahan"]
[10263,"2015-12-30","Ernst Handel","Austria","Pavlova","Confections",17.45,60,0.25,785.25,"Anne Dodsworth"]
[10263,"2015-12-30","Ernst Handel","Austria","Nord-Ost Matjeshering","Seafood",25.89,60,0.25,1165.05,"Anne Dodsworth"]
[10263,"2015-12-30","Ernst Handel","Austria","Guaraná Fantástica","Beverages",4.5,28,0,126,"Anne Dodsworth"]
[10263,"2015-12-30","Ernst Handel","Austria","Longlife Tofu","Produce",10,36,0.25,270,"Anne Dodsworth"]
[10264,"2015-12-31","Folk och fä HB","Sweden","Chang","Beverages",19,35,0,665,"Michael Suyama"]
[10264,"2015-12-31","Folk och fä HB","Sweden","Jack's New England Clam Chowder","Seafood",9.65,25,0.15,205.06,"Michael Suyama"]
[10265,"2016-01-01","Blondel père et fils","France","Alice Mutton","Meat/Poultry",39,30,0,1170,"Andrew Fuller"]
[10265,"2016-01-01","Blondel père et fils","France","Outback Lager","Beverages",15,20,0,300,"Andrew Fuller"]
[10266,"2016-01-02","Wartian Herkku","Finland","Queso Manchego La Pastora","Dairy Products",38,12,0.05,433.2,"Janet Leverling"]
[10267,"2016-01-05","Frankenversand","Germany","Lakkalikööri","Beverages",18,15,0.15,229.5,"Margaret Peacock"]
[10267,"2016-01-05","Frankenversand","Germany","Boston Crab Meat","Seafood",18.399999999999999,50,0,920,"Margaret Peacock"]
[10267,"2016-01-05","Frankenversand","Germany","Raclette Courdavault","Dairy Products",55,70,0.15,3272.5,"Margaret Peacock"]
[10268,"2016-01-06","GROSELLA-Restaurante","Venezuela","Mozzarella di Giovanni","Dairy Products",34.799999999999997,4,0,139.19999999999999,"Laura Callahan"]
[10268,"2016-01-06","GROSELLA-Restaurante","Venezuela","Thüringer Rostbratwurst","Meat/Poultry",123.79,10,0,1237.9000000000001,"Laura Callahan"]
[10269,"2016-01-07","White Clover Markets","USA","Mozzarella di Giovanni","Dairy Products",34.799999999999997,20,0.05,661.2,"Steven Buchanan"]
[10269,"2016-01-07","White Clover Markets","USA","Geitost","Dairy Products",2.5,60,0.05,142.5,"Steven Buchanan"]
[10270,"2016-01-08","Wartian Herkku","Finland","Inlagd Sill","Seafood",19,30,0,570,"Nancy Davolio"]
[10270,"2016-01-08","Wartian Herkku","Finland","Ipoh Coffee","Beverages",46,25,0,1150,"Nancy Davolio"]
[10271,"2016-01-08","Split Rail Beer & Ale","USA","Geitost","Dairy Products",2.5,24,0,60,"Michael Suyama"]
[10272,"2016-01-09","Rattlesnake Canyon Grocery","USA","Gorgonzola Telino","Dairy Products",12.5,40,0,500,"Michael Suyama"]
[10272,"2016-01-09","Rattlesnake Canyon Grocery","USA","Sir Rodney's Marmalade","Confections",81,6,0,486,"Michael Suyama"]
[10272,"2016-01-09","Rattlesnake Canyon Grocery","USA","Mozzarella di Giovanni","Dairy Products",34.799999999999997,24,0,835.2,"Michael Suyama"]
[10273,"2016-01-12","QUICK-Stop","Germany","Boston Crab Meat","Seafood",18.399999999999999,60,0.05,{"$f":"ROUND((G67*H67)*(1-I67),2)","v":1048.8},"Janet Leverling"]
[10273,"2016-01-12","QUICK-Stop","Germany","Geitost","Dairy Products",2.5,20,0,50,"Janet Leverling"]
[10273,"2016-01-12","QUICK-Stop","Germany","Gorgonzola Telino","Dairy Products",12.5,15,0.05,178.13,"Janet Leverling"]
[10273,"2016-01-12","QUICK-Stop","Germany","Ikura","Seafood",31,24,0.05,706.8,"Janet Leverling"]
[10273,"2016-01-12","QUICK-Stop","Germany","Lakkalikööri","Beverages",18,33,0.05,564.29999999999995,"Janet Leverling"]
[10274,"2016-01-13","Vins et alcools Chevalier","France","Fløtemysost","Dairy Products",21.5,20,0,430,"Michael Suyama"]
[10274,"2016-01-13","Vins et alcools Chevalier","France","Mozzarella di Giovanni","Dairy Products",34.799999999999997,7,0,243.6,"Michael Suyama"]
[10275,"2016-01-14","Magazzini Alimentari Riuniti","Italy","Guaraná Fantástica","Beverages",4.5,12,0.05,51.3,"Nancy Davolio"]
[10275,"2016-01-14","Magazzini Alimentari Riuniti","Italy","Raclette Courdavault","Dairy Products",55,6,0.05,313.5,"Nancy Davolio"]
[10276,"2016-01-15","Tortuga Restaurante","Mexico","Ikura","Seafood",31,15,0,465,"Laura Callahan"]
[10276,"2016-01-15","Tortuga Restaurante","Mexico","Konbu","Seafood",6,10,0,60,"Laura Callahan"]
[10277,"2016-01-16","Morgenstern Gesundkost","Germany","Rössle Sauerkraut","Produce",45.6,20,0,912,"Andrew Fuller"]
[10277,"2016-01-16","Morgenstern Gesundkost","Germany","Tarte au sucre","Confections",49.3,12,0,591.6,"Andrew Fuller"]
[10278,"2016-01-19","Berglunds snabbköp","Sweden","Raclette Courdavault","Dairy Products",55,15,0,825,"Laura Callahan"]
[10278,"2016-01-19","Berglunds snabbköp","Sweden","Röd Kaviar","Seafood",15,25,0,375,"Laura Callahan"]
[10278,"2016-01-19","Berglunds snabbköp","Sweden","Gula Malacca","Condiments",19.45,16,0,311.2,"Laura Callahan"]
[10278,"2016-01-19","Berglunds snabbköp","Sweden","Vegie-spread","Condiments",43.9,8,0,351.2,"Laura Callahan"]
[10279,"2016-01-20","Lehmanns Marktstand","Germany","Alice Mutton","Meat/Poultry",39,15,0.25,438.75,"Laura Callahan"]
[10280,"2016-01-21","Berglunds snabbköp","Sweden","Pâté chinois","Meat/Poultry",24,20,0,480,"Andrew Fuller"]
[10280,"2016-01-21","Berglunds snabbköp","Sweden","Rhönbräu Klosterbier","Beverages",7.75,30,0,232.5,"Andrew Fuller"]
[10280,"2016-01-21","Berglunds snabbköp","Sweden","Guaraná Fantástica","Beverages",4.5,12,0,54,"Andrew Fuller"]
[10281,"2016-01-21","Romero y tomillo","Spain","Guaraná Fantástica","Beverages",4.5,6,0,27,"Margaret Peacock"]
[10281,"2016-01-21","Romero y tomillo","Spain","Steeleye Stout","Beverages",18,4,0,72,"Margaret Peacock"]
[10281,"2016-01-21","Romero y tomillo","Spain","Teatime Chocolate Biscuits","Confections",9.1999999999999993,1,0,9.1999999999999993,"Margaret Peacock"]
[10282,"2016-01-22","Romero y tomillo","Spain","Ravioli Angelo","Grains/Cereals",19.5,2,0,39,"Margaret Peacock"]
[10282,"2016-01-22","Romero y tomillo","Spain","Nord-Ost Matjeshering","Seafood",25.89,6,0,155.34,"Margaret Peacock"]
[10283,"2016-01-23","LILA-Supermercado","Venezuela","Teatime Chocolate Biscuits","Confections",9.1999999999999993,18,0,165.6,"Janet Leverling"]
[10283,"2016-01-23","LILA-Supermercado","Venezuela","Camembert Pierrot","Dairy Products",34,35,0,1190,"Janet Leverling"]
[10283,"2016-01-23","LILA-Supermercado","Venezuela","Genen Shouyu","Condiments",15.5,20,0,310,"Janet Leverling"]
[10283,"2016-01-23","LILA-Supermercado","Venezuela","Mozzarella di Giovanni","Dairy Products",34.799999999999997,3,0,104.4,"Janet Leverling"]
[10284,"2016-01-26","Lehmanns Marktstand","Germany","Laughing Lumberjack Lager","Beverages",14,5,0.25,52.5,"Margaret Peacock"]
[10284,"2016-01-26","Lehmanns Marktstand","Germany","Gula Malacca","Condiments",19.45,21,0,408.45,"Margaret Peacock"]
[10284,"2016-01-26","Lehmanns Marktstand","Germany","Camembert Pierrot","Dairy Products",34,20,0.25,510,"Margaret Peacock"]
[10284,"2016-01-26","Lehmanns Marktstand","Germany","Schoggi Schokolade","Confections",43.9,15,0.25,493.88,"Margaret Peacock"]
[10285,"2016-01-27","QUICK-Stop","Germany","Chai","Beverages",18,45,0.2,648,"Nancy Davolio"]
[10285,"2016-01-27","QUICK-Stop","Germany","Boston Crab Meat","Seafood",18.399999999999999,40,0.2,588.79999999999995,"Nancy Davolio"]
[10285,"2016-01-27","QUICK-Stop","Germany","Perth Pasties","Meat/Poultry",32.799999999999997,36,0.2,944.64,"Nancy Davolio"]
[10286,"2016-01-28","QUICK-Stop","Germany","Tarte au sucre","Confections",49.3,40,0,1972,"Laura Callahan"]
[10286,"2016-01-28","QUICK-Stop","Germany","Steeleye Stout","Beverages",18,100,0,1800,"Laura Callahan"]
[10287,"2016-01-29","Ricardo Adocicados","Brazil","Spegesild","Seafood",12,15,0.15,153,"Laura Callahan"]
[10287,"2016-01-29","Ricardo Adocicados","Brazil","Pavlova","Confections",17.45,40,0.15,593.29999999999995,"Laura Callahan"]
[10287,"2016-01-29","Ricardo Adocicados","Brazil","Sasquatch Ale","Beverages",14,20,0,280,"Laura Callahan"]
[10288,"2016-01-30","Reggiani Caseifici","Italy","Scottish Longbreads","Confections",12.5,3,0.1,33.75,"Margaret Peacock"]
[10288,"2016-01-30","Reggiani Caseifici","Italy","Tourtière","Meat/Poultry",7.45,10,0.1,67.05,"Margaret Peacock"]
[10289,"2016-02-02","B's Beverages","UK","Aniseed Syrup","Condiments",10,30,0,300,"Robert King"]
[10289,"2016-02-02","B's Beverages","UK","Wimmers gute Semmelknödel","Grains/Cereals",33.25,9,0,299.25,"Robert King"]
[10290,"2016-02-03","Comércio Mineiro","Brazil","Original Frankfurter grüne Soße","Condiments",13,10,0,130,"Laura Callahan"]
[10290,"2016-02-03","Comércio Mineiro","Brazil","Thüringer Rostbratwurst","Meat/Poultry",123.79,15,0,1856.85,"Laura Callahan"]
[10290,"2016-02-03","Comércio Mineiro","Brazil","Maxilaku","Confections",20,15,0,300,"Laura Callahan"]
[10290,"2016-02-03","Comércio Mineiro","Brazil","Chef Anton's Gumbo Mix","Condiments",21.35,20,0,427,"Laura Callahan"]
[10291,"2016-02-03","Que Delícia","Brazil","Gula Malacca","Condiments",19.45,24,0.1,420.12,"Michael Suyama"]
[10291,"2016-02-03","Que Delícia","Brazil","Konbu","Seafood",6,20,0.1,108,"Michael Suyama"]
[10291,"2016-02-03","Que Delícia","Brazil","Manjimup Dried Apples","Produce",53,2,0.1,95.4,"Michael Suyama"]
[10292,"2016-02-04","Tradição Hipermercados","Brazil","Sir Rodney's Marmalade","Confections",81,20,0,1620,"Nancy Davolio"]
[10293,"2016-02-05","Tortuga Restaurante","Mexico","Carnarvon Tigers","Seafood",62.5,12,0,750,"Nancy Davolio"]
[10293,"2016-02-05","Tortuga Restaurante","Mexico","Rhönbräu Klosterbier","Beverages",7.75,6,0,46.5,"Nancy Davolio"]
[10293,"2016-02-05","Tortuga Restaurante","Mexico","Guaraná Fantástica","Beverages",4.5,10,0,45,"Nancy Davolio"]
[10293,"2016-02-05","Tortuga Restaurante","Mexico","Vegie-spread","Condiments",43.9,5,0,219.5,"Nancy Davolio"]
[10294,"2016-02-06","Rattlesnake Canyon Grocery","USA","Camembert Pierrot","Dairy Products",34,21,0,714,"Margaret Peacock"]
[10294,"2016-02-06","Rattlesnake Canyon Grocery","USA","Rhönbräu Klosterbier","Beverages",7.75,6,0,46.5,"Margaret Peacock"]
[10294,"2016-02-06","Rattlesnake Canyon Grocery","USA","Chai","Beverages",18,18,0,324,"Margaret Peacock"]
[10294,"2016-02-06","Rattlesnake Canyon Grocery","USA","Ipoh Coffee","Beverages",46,15,0,690,"Margaret Peacock"]
[10294,"2016-02-06","Rattlesnake Canyon Grocery","USA","Alice Mutton","Meat/Poultry",39,15,0,585,"Margaret Peacock"]
[10295,"2016-02-09","Vins et alcools Chevalier","France","Gnocchi di nonna Alice","Grains/Cereals",38,4,0,152,"Andrew Fuller"]
[10296,"2016-02-10","LILA-Supermercado","Venezuela","Gudbrandsdalsost","Dairy Products",36,15,0,{"$f":"ROUND((G131*H131)*(1-I131),2)","v":540},"Michael Suyama"]
[10296,"2016-02-10","LILA-Supermercado","Venezuela","Queso Cabrales","Dairy Products",21,12,0,252,"Michael Suyama"]
[10296,"2016-02-10","LILA-Supermercado","Venezuela","Pavlova","Confections",17.45,30,0,523.5,"Michael Suyama"]
[10297,"2016-02-11","Blondel père et fils","France","Mozzarella di Giovanni","Dairy Products",34.799999999999997,20,0,696,"Steven Buchanan"]
[10297,"2016-02-11","Blondel père et fils","France","Chartreuse verte","Beverages",18,60,0,1080,"Steven Buchanan"]
[10298,"2016-02-12","Hungry Owl All-Night Grocers","Ireland","Chang","Beverages",19,40,0,760,"Michael Suyama"]
[10298,"2016-02-12","Hungry Owl All-Night Grocers","Ireland","Inlagd Sill","Seafood",19,40,0.25,570,"Michael Suyama"]
[10298,"2016-02-12","Hungry Owl All-Night Grocers","Ireland","Tarte au sucre","Confections",49.3,15,0,739.5,"Michael Suyama"]
[10298,"2016-02-12","Hungry Owl All-Night Grocers","Ireland","Raclette Courdavault","Dairy Products",55,30,0.25,1237.5,"Michael Suyama"]
[10299,"2016-02-13","Ricardo Adocicados","Brazil","Outback Lager","Beverages",15,20,0,300,"Margaret Peacock"]
[10299,"2016-02-13","Ricardo Adocicados","Brazil","Teatime Chocolate Biscuits","Confections",9.1999999999999993,15,0,138,"Margaret Peacock"]
[10300,"2016-02-16","Magazzini Alimentari Riuniti","Italy","Scottish Longbreads","Confections",12.5,20,0,250,"Andrew Fuller"]
[10300,"2016-02-16","Magazzini Alimentari Riuniti","Italy","Louisiana Hot Spiced Okra","Condiments",17,30,0,510,"Andrew Fuller"]
[10301,"2016-02-16","Die Wandernde Kuh","Germany","Gnocchi di nonna Alice","Grains/Cereals",38,20,0,760,"Laura Callahan"]
[10301,"2016-02-16","Die Wandernde Kuh","Germany","Boston Crab Meat","Seafood",18.399999999999999,10,0,184,"Laura Callahan"]
[10302,"2016-02-17","Suprêmes délices","Belgium","Ipoh Coffee","Beverages",46,12,0,552,"Margaret Peacock"]
[10302,"2016-02-17","Suprêmes délices","Belgium","Rössle Sauerkraut","Produce",45.6,28,0,1276.8,"Margaret Peacock"]
[10302,"2016-02-17","Suprêmes délices","Belgium","Alice Mutton","Meat/Poultry",39,40,0,1560,"Margaret Peacock"]
[10303,"2016-02-18","Godos Cocina Típica","Spain","Louisiana Fiery Hot Pepper Sauce","Condiments",21.05,30,0.1,568.35,"Robert King"]
[10303,"2016-02-18","Godos Cocina Típica","Spain","Boston Crab Meat","Seafood",18.399999999999999,40,0.1,662.4,"Robert King"]
[10303,"2016-02-18","Godos Cocina Típica","Spain","Scottish Longbreads","Confections",12.5,15,0.1,168.75,"Robert King"]
[10304,"2016-02-19","Tortuga Restaurante","Mexico","Maxilaku","Confections",20,30,0,600,"Nancy Davolio"]
[10304,"2016-02-19","Tortuga Restaurante","Mexico","Raclette Courdavault","Dairy Products",55,10,0,550,"Nancy Davolio"]
[10304,"2016-02-19","Tortuga Restaurante","Mexico","Fløtemysost","Dairy Products",21.5,2,0,43,"Nancy Davolio"]
[10305,"2016-02-20","Old World Delicatessen","USA","Chartreuse verte","Beverages",18,30,0.1,486,"Laura Callahan"]
[10305,"2016-02-20","Old World Delicatessen","USA","Thüringer Rostbratwurst","Meat/Poultry",123.79,25,0.1,2785.28,"Laura Callahan"]
[10305,"2016-02-20","Old World Delicatessen","USA","Carnarvon Tigers","Seafood",62.5,25,0.1,1406.25,"Laura Callahan"]
[10306,"2016-02-23","Romero y tomillo","Spain","Nord-Ost Matjeshering","Seafood",25.89,10,0,258.89999999999998,"Nancy Davolio"]
[10306,"2016-02-23","Romero y tomillo","Spain","Perth Pasties","Meat/Poultry",32.799999999999997,10,0,328,"Nancy Davolio"]
[10306,"2016-02-23","Romero y tomillo","Spain","Tourtière","Meat/Poultry",7.45,5,0,37.25,"Nancy Davolio"]
[10307,"2016-02-24","Lonesome Pine Restaurant","USA","Tarte au sucre","Confections",49.3,10,0,493,"Andrew Fuller"]
[10307,"2016-02-24","Lonesome Pine Restaurant","USA","Scottish Longbreads","Confections",12.5,3,0,37.5,"Andrew Fuller"]
[10308,"2016-02-25","Ana Trujillo Emparedados y helados","Mexico","Outback Lager","Beverages",15,5,0,75,"Robert King"]
[10308,"2016-02-25","Ana Trujillo Emparedados y helados","Mexico","Gudbrandsdalsost","Dairy Products",36,1,0,36,"Robert King"]
[10309,"2016-02-26","Hungry Owl All-Night Grocers","Ireland","Singaporean Hokkien Fried Mee","Grains/Cereals",14,2,0,28,"Janet Leverling"]
[10309,"2016-02-26","Hungry Owl All-Night Grocers","Ireland","Ipoh Coffee","Beverages",46,20,0,920,"Janet Leverling"]
[10309,"2016-02-26","Hungry Owl All-Night Grocers","Ireland","Grandma's Boysenberry Spread","Condiments",25,30,0,750,"Janet Leverling"]
[10309,"2016-02-26","Hungry Owl All-Night Grocers","Ireland","Chef Anton's Cajun Seasoning","Condiments",22,20,0,440,"Janet Leverling"]
[10309,"2016-02-26","Hungry Owl All-Night Grocers","Ireland","Fløtemysost","Dairy Products",21.5,3,0,64.5,"Janet Leverling"]
[10310,"2016-02-27","The Big Cheese","USA","Pavlova","Confections",17.45,10,0,174.5,"Laura Callahan"]
[10310,"2016-02-27","The Big Cheese","USA","Tarte au sucre","Confections",49.3,5,0,246.5,"Laura Callahan"]
[10311,"2016-02-27","Du monde entier","France","Gudbrandsdalsost","Dairy Products",36,7,0,252,"Nancy Davolio"]
[10311,"2016-02-27","Du monde entier","France","Singaporean Hokkien Fried Mee","Grains/Cereals",14,6,0,84,"Nancy Davolio"]
[10312,"2016-03-01","Die Wandernde Kuh","Germany","Rhönbräu Klosterbier","Beverages",7.75,10,0,77.5,"Andrew Fuller"]
[10312,"2016-03-01","Die Wandernde Kuh","Germany","Rössle Sauerkraut","Produce",45.6,4,0,182.4,"Andrew Fuller"]
[10312,"2016-03-01","Die Wandernde Kuh","Germany","Ipoh Coffee","Beverages",46,24,0,1104,"Andrew Fuller"]
[10312,"2016-03-01","Die Wandernde Kuh","Germany","Perth Pasties","Meat/Poultry",32.799999999999997,20,0,656,"Andrew Fuller"]
[10313,"2016-03-02","QUICK-Stop","Germany","Inlagd Sill","Seafood",19,12,0,228,"Andrew Fuller"]
[10314,"2016-03-03","Rattlesnake Canyon Grocery","USA","Tarte au sucre","Confections",49.3,25,0.1,1109.25,"Nancy Davolio"]
[10314,"2016-03-03","Rattlesnake Canyon Grocery","USA","Escargots de Bourgogne","Seafood",13.25,30,0.1,357.75,"Nancy Davolio"]
[10314,"2016-03-03","Rattlesnake Canyon Grocery","USA","Mascarpone Fabioli","Dairy Products",32,40,0.1,1152,"Nancy Davolio"]
[10315,"2016-03-04","Island Trading","UK","Outback Lager","Beverages",15,30,0,450,"Margaret Peacock"]
[10315,"2016-03-04","Island Trading","UK","Sasquatch Ale","Beverages",14,14,0,196,"Margaret Peacock"]
[10316,"2016-03-05","Rattlesnake Canyon Grocery","USA","Tarte au sucre","Confections",49.3,70,0,3451,"Nancy Davolio"]
[10316,"2016-03-05","Rattlesnake Canyon Grocery","USA","Jack's New England Clam Chowder","Seafood",9.65,10,0,96.5,"Nancy Davolio"]
[10317,"2016-03-08","Lonesome Pine Restaurant","USA","Chai","Beverages",18,20,0,360,"Michael Suyama"]
[10318,"2016-03-09","Island Trading","UK","Jack's New England Clam Chowder","Seafood",9.65,20,0,193,"Laura Callahan"]
[10318,"2016-03-09","Island Trading","UK","Lakkalikööri","Beverages",18,6,0,108,"Laura Callahan"]
[10319,"2016-03-10","Tortuga Restaurante","Mexico","Alice Mutton","Meat/Poultry",39,8,0,312,"Robert King"]
[10319,"2016-03-10","Tortuga Restaurante","Mexico","Rössle Sauerkraut","Produce",45.6,14,0,638.4,"Robert King"]
[10319,"2016-03-10","Tortuga Restaurante","Mexico","Lakkalikööri","Beverages",18,30,0,540,"Robert King"]
[10320,"2016-03-11","Wartian Herkku","Finland","Fløtemysost","Dairy Products",21.5,30,0,645,"Steven Buchanan"]
[10321,"2016-03-11","Island Trading","UK","Steeleye Stout","Beverages",18,10,0,180,"Janet Leverling"]
[10322,"2016-03-12","Pericles Comidas clásicas","Mexico","Filo Mix","Grains/Cereals",7,20,0,140,"Robert King"]
[10323,"2016-03-15","Königlich Essen","Germany","NuNuCa Nuß-Nougat-Creme","Confections",14,4,0,{"$f":"ROUND((G195*H195)*(1-I195),2)","v":56},"Margaret Peacock"]
[10323,"2016-03-15","Königlich Essen","Germany","Genen Shouyu","Condiments",15.5,5,0,77.5,"Margaret Peacock"]
[10323,"2016-03-15","Königlich Essen","Germany","Chartreuse verte","Beverages",18,4,0,72,"Margaret Peacock"]
[10324,"2016-03-16","Save-a-lot Markets","USA","Spegesild","Seafood",12,30,0,360,"Anne Dodsworth"]
[10324,"2016-03-16","Save-a-lot Markets","USA","Vegie-spread","Condiments",43.9,80,0.15,2985.2,"Anne Dodsworth"]
[10324,"2016-03-16","Save-a-lot Markets","USA","Raclette Courdavault","Dairy Products",55,40,0.15,1870,"Anne Dodsworth"]
[10324,"2016-03-16","Save-a-lot Markets","USA","Pavlova","Confections",17.45,21,0.15,311.48,"Anne Dodsworth"]
[10324,"2016-03-16","Save-a-lot Markets","USA","Steeleye Stout","Beverages",18,70,0.15,1071,"Anne Dodsworth"]
[10325,"2016-03-17","Königlich Essen","Germany","Tofu","Produce",23.25,9,0,209.25,"Nancy Davolio"]
[10325,"2016-03-17","Königlich Essen","Germany","Grandma's Boysenberry Spread","Condiments",25,6,0,150,"Nancy Davolio"]
[10325,"2016-03-17","Königlich Essen","Germany","Mozzarella di Giovanni","Dairy Products",34.799999999999997,40,0,1392,"Nancy Davolio"]
[10325,"2016-03-17","Königlich Essen","Germany","Gorgonzola Telino","Dairy Products",12.5,4,0,50,"Nancy Davolio"]
[10325,"2016-03-17","Königlich Essen","Germany","Konbu","Seafood",6,12,0,72,"Nancy Davolio"]
[10326,"2016-03-18","Bólido Comidas preparadas","Spain","Ravioli Angelo","Grains/Cereals",19.5,16,0,312,"Margaret Peacock"]
[10326,"2016-03-18","Bólido Comidas preparadas","Spain","Chef Anton's Cajun Seasoning","Condiments",22,24,0,528,"Margaret Peacock"]
[10326,"2016-03-18","Bólido Comidas preparadas","Spain","Rhönbräu Klosterbier","Beverages",7.75,50,0,387.5,"Margaret Peacock"]
[10327,"2016-03-19","Folk och fä HB","Sweden","Queso Cabrales","Dairy Products",21,50,0.2,840,"Andrew Fuller"]
[10327,"2016-03-19","Folk och fä HB","Sweden","Chang","Beverages",19,25,0.2,380,"Andrew Fuller"]
[10327,"2016-03-19","Folk och fä HB","Sweden","Nord-Ost Matjeshering","Seafood",25.89,35,0.2,724.92,"Andrew Fuller"]
[10327,"2016-03-19","Folk och fä HB","Sweden","Escargots de Bourgogne","Seafood",13.25,30,0.2,318,"Andrew Fuller"]
[10328,"2016-03-22","Furia Bacalhau e Frutos do Mar","Portugal","Raclette Courdavault","Dairy Products",55,9,0,495,"Margaret Peacock"]
[10328,"2016-03-22","Furia Bacalhau e Frutos do Mar","Portugal","Louisiana Fiery Hot Pepper Sauce","Condiments",21.05,40,0,842,"Margaret Peacock"]
[10328,"2016-03-22","Furia Bacalhau e Frutos do Mar","Portugal","Scottish Longbreads","Confections",12.5,10,0,125,"Margaret Peacock"]
[10329,"2016-03-23","Split Rail Beer & Ale","USA","Gnocchi di nonna Alice","Grains/Cereals",38,12,0.05,433.2,"Margaret Peacock"]
[10329,"2016-03-23","Split Rail Beer & Ale","USA","Côte de Blaye","Beverages",263.5,20,0.05,5006.5,"Margaret Peacock"]
[10329,"2016-03-23","Split Rail Beer & Ale","USA","Nord-Ost Matjeshering","Seafood",25.89,8,0.05,196.76,"Margaret Peacock"]
[10329,"2016-03-23","Split Rail Beer & Ale","USA","Teatime Chocolate Biscuits","Confections",9.1999999999999993,10,0.05,87.4,"Margaret Peacock"]
[10330,"2016-03-24","LILA-Supermercado","Venezuela","Gumbär Gummibärchen","Confections",31.23,50,0.15,1327.28,"Janet Leverling"]
[10330,"2016-03-24","LILA-Supermercado","Venezuela","Mozzarella di Giovanni","Dairy Products",34.799999999999997,25,0.15,739.5,"Janet Leverling"]
[10331,"2016-03-24","Bon app'","France","Tourtière","Meat/Poultry",7.45,15,0,111.75,"Anne Dodsworth"]
[10332,"2016-03-25","Mère Paillarde","Canada","Zaanse koeken","Confections",9.5,16,0.2,121.6,"Janet Leverling"]
[10332,"2016-03-25","Mère Paillarde","Canada","Singaporean Hokkien Fried Mee","Grains/Cereals",14,10,0.2,112,"Janet Leverling"]
[10332,"2016-03-25","Mère Paillarde","Canada","Carnarvon Tigers","Seafood",62.5,40,0.2,2000,"Janet Leverling"]
[10333,"2016-03-26","Wartian Herkku","Finland","Fløtemysost","Dairy Products",21.5,40,0.1,774,"Steven Buchanan"]
[10333,"2016-03-26","Wartian Herkku","Finland","Tofu","Produce",23.25,10,0,232.5,"Steven Buchanan"]
[10333,"2016-03-26","Wartian Herkku","Finland","Sir Rodney's Scones","Confections",10,10,0.1,90,"Steven Buchanan"]
[10334,"2016-03-29","Victuailles en stock","France","Filo Mix","Grains/Cereals",7,8,0,56,"Laura Callahan"]
[10334,"2016-03-29","Victuailles en stock","France","Scottish Longbreads","Confections",12.5,10,0,125,"Laura Callahan"]
[10335,"2016-03-30","Hungry Owl All-Night Grocers","Ireland","Mascarpone Fabioli","Dairy Products",32,6,0.2,153.6,"Robert King"]
[10335,"2016-03-30","Hungry Owl All-Night Grocers","Ireland","Gorgonzola Telino","Dairy Products",12.5,25,0.2,250,"Robert King"]
[10335,"2016-03-30","Hungry Owl All-Night Grocers","Ireland","Chang","Beverages",19,7,0.2,106.4,"Robert King"]
[10335,"2016-03-30","Hungry Owl All-Night Grocers","Ireland","Manjimup Dried Apples","Produce",53,48,0.2,2035.2,"Robert King"]
[10336,"2016-03-31","Princesa Isabel Vinhos","Portugal","Chef Anton's Cajun Seasoning","Condiments",22,18,0.1,356.4,"Robert King"]
[10337,"2016-04-01","Frankenversand","Germany","Tunnbröd","Grains/Cereals",9,40,0,360,"Margaret Peacock"]
[10337,"2016-04-01","Frankenversand","Germany","Gumbär Gummibärchen","Confections",31.23,24,0,749.52,"Margaret Peacock"]
[10337,"2016-04-01","Frankenversand","Germany","Inlagd Sill","Seafood",19,20,0,380,"Margaret Peacock"]
[10337,"2016-04-01","Frankenversand","Germany","Gravad lax","Seafood",26,28,0,728,"Margaret Peacock"]
[10337,"2016-04-01","Frankenversand","Germany","Mozzarella di Giovanni","Dairy Products",34.799999999999997,25,0,870,"Margaret Peacock"]
[10338,"2016-04-02","Old World Delicatessen","USA","Nord-Ost Matjeshering","Seafood",25.89,15,0,388.35,"Margaret Peacock"]
[10338,"2016-04-02","Old World Delicatessen","USA","Alice Mutton","Meat/Poultry",39,20,0,780,"Margaret Peacock"]
[10339,"2016-04-05","Mère Paillarde","Canada","Alice Mutton","Meat/Poultry",39,70,0.05,2593.5,"Andrew Fuller"]
[10339,"2016-04-05","Mère Paillarde","Canada","Tarte au sucre","Confections",49.3,28,0,1380.4,"Andrew Fuller"]
[10339,"2016-04-05","Mère Paillarde","Canada","Chef Anton's Cajun Seasoning","Condiments",22,10,0,220,"Andrew Fuller"]
[10340,"2016-04-06","Bon app'","France","Carnarvon Tigers","Seafood",62.5,20,0.05,1187.5,"Nancy Davolio"]
[10340,"2016-04-06","Bon app'","France","Ipoh Coffee","Beverages",46,40,0.05,1748,"Nancy Davolio"]
[10340,"2016-04-06","Bon app'","France","Jack's New England Clam Chowder","Seafood",9.65,12,0.05,110.01,"Nancy Davolio"]
[10341,"2016-04-06","Simons bistro","Denmark","Raclette Courdavault","Dairy Products",55,9,0.15,420.75,"Robert King"]
[10341,"2016-04-06","Simons bistro","Denmark","Geitost","Dairy Products",2.5,8,0,20,"Robert King"]
[10342,"2016-04-07","Frankenversand","Germany","Pâté chinois","Meat/Poultry",24,40,0.2,768,"Margaret Peacock"]
[10342,"2016-04-07","Frankenversand","Germany","Chang","Beverages",19,24,0.2,364.8,"Margaret Peacock"]
[10342,"2016-04-07","Frankenversand","Germany","Inlagd Sill","Seafood",19,40,0.2,608,"Margaret Peacock"]
[10342,"2016-04-07","Frankenversand","Germany","Gorgonzola Telino","Dairy Products",12.5,56,0.2,560,"Margaret Peacock"]
[10343,"2016-04-08","Lehmanns Marktstand","Germany","Lakkalikööri","Beverages",18,15,0,270,"Margaret Peacock"]
[10343,"2016-04-08","Lehmanns Marktstand","Germany","Scottish Longbreads","Confections",12.5,4,0.05,47.5,"Margaret Peacock"]
[10343,"2016-04-08","Lehmanns Marktstand","Germany","Wimmers gute Semmelknödel","Grains/Cereals",33.25,50,0,{"$f":"ROUND((G259*H259)*(1-I259),2)","v":1662.5},"Margaret Peacock"]
[10344,"2016-04-09","White Clover Markets","USA","Chef Anton's Cajun Seasoning","Condiments",22,35,0,770,"Margaret Peacock"]
[10344,"2016-04-09","White Clover Markets","USA","Northwoods Cranberry Sauce","Condiments",40,70,0.25,2100,"Margaret Peacock"]
[10345,"2016-04-12","QUICK-Stop","Germany","Northwoods Cranberry Sauce","Condiments",40,70,0,2800,"Andrew Fuller"]
[10345,"2016-04-12","QUICK-Stop","Germany","Teatime Chocolate Biscuits","Confections",9.1999999999999993,80,0,736,"Andrew Fuller"]
[10345,"2016-04-12","QUICK-Stop","Germany","Singaporean Hokkien Fried Mee","Grains/Cereals",14,9,0,126,"Andrew Fuller"]
[10346,"2016-04-13","Rattlesnake Canyon Grocery","USA","Alice Mutton","Meat/Poultry",39,36,0.1,1263.5999999999999,"Janet Leverling"]
[10346,"2016-04-13","Rattlesnake Canyon Grocery","USA","Gnocchi di nonna Alice","Grains/Cereals",38,20,0,760,"Janet Leverling"]
[10347,"2016-04-14","Familia Arquibaldo","Brazil","NuNuCa Nuß-Nougat-Creme","Confections",14,10,0,140,"Margaret Peacock"]
[10347,"2016-04-14","Familia Arquibaldo","Brazil","Rhönbräu Klosterbier","Beverages",7.75,6,0.15,39.53,"Margaret Peacock"]
[10347,"2016-04-14","Familia Arquibaldo","Brazil","Boston Crab Meat","Seafood",18.399999999999999,4,0,73.599999999999994,"Margaret Peacock"]
[10347,"2016-04-14","Familia Arquibaldo","Brazil","Chartreuse verte","Beverages",18,50,0.15,765,"Margaret Peacock"]
[10348,"2016-04-15","Die Wandernde Kuh","Germany","Chai","Beverages",18,15,0.15,229.5,"Margaret Peacock"]
[10348,"2016-04-15","Die Wandernde Kuh","Germany","Tunnbröd","Grains/Cereals",9,25,0,225,"Margaret Peacock"]
[10349,"2016-04-16","Split Rail Beer & Ale","USA","Tourtière","Meat/Poultry",7.45,24,0,178.8,"Robert King"]
[10350,"2016-04-19","La maison d'Asie","France","Valkoinen suklaa","Confections",16.25,15,0.1,219.38,"Michael Suyama"]
[10350,"2016-04-19","La maison d'Asie","France","Gudbrandsdalsost","Dairy Products",36,18,0.1,583.20000000000005,"Michael Suyama"]
[10351,"2016-04-19","Ernst Handel","Austria","Côte de Blaye","Beverages",263.5,20,0.05,5006.5,"Nancy Davolio"]
[10351,"2016-04-19","Ernst Handel","Austria","Gula Malacca","Condiments",19.45,77,0.05,1422.77,"Nancy Davolio"]
[10351,"2016-04-19","Ernst Handel","Austria","Louisiana Fiery Hot Pepper Sauce","Condiments",21.05,10,0.05,199.98,"Nancy Davolio"]
[10351,"2016-04-19","Ernst Handel","Austria","Jack's New England Clam Chowder","Seafood",9.65,13,0,125.45,"Nancy Davolio"]
[10352,"2016-04-20","Furia Bacalhau e Frutos do Mar","Portugal","Tourtière","Meat/Poultry",7.45,20,0.15,126.65,"Janet Leverling"]
[10352,"2016-04-20","Furia Bacalhau e Frutos do Mar","Portugal","Guaraná Fantástica","Beverages",4.5,10,0,45,"Janet Leverling"]
[10353,"2016-04-21","Piccolo und mehr","Austria","Côte de Blaye","Beverages",263.5,50,0.2,10540,"Robert King"]
[10353,"2016-04-21","Piccolo und mehr","Austria","Queso Cabrales","Dairy Products",21,12,0.2,201.6,"Robert King"]
[10354,"2016-04-22","Pericles Comidas clásicas","Mexico","Thüringer Rostbratwurst","Meat/Poultry",123.79,4,0,495.16,"Laura Callahan"]
[10354,"2016-04-22","Pericles Comidas clásicas","Mexico","Chai","Beverages",18,12,0,216,"Laura Callahan"]
[10355,"2016-04-23","Around the Horn","UK","Guaraná Fantástica","Beverages",4.5,25,0,112.5,"Michael Suyama"]
[10355,"2016-04-23","Around the Horn","UK","Ravioli Angelo","Grains/Cereals",19.5,25,0,487.5,"Michael Suyama"]
[10356,"2016-04-26","Die Wandernde Kuh","Germany","Gorgonzola Telino","Dairy Products",12.5,30,0,375,"Michael Suyama"]
[10356,"2016-04-26","Die Wandernde Kuh","Germany","Gudbrandsdalsost","Dairy Products",36,20,0,720,"Michael Suyama"]
[10356,"2016-04-26","Die Wandernde Kuh","Germany","Pâté chinois","Meat/Poultry",24,12,0,288,"Michael Suyama"]
[10357,"2016-04-27","LILA-Supermercado","Venezuela","Camembert Pierrot","Dairy Products",34,8,0.2,217.6,"Nancy Davolio"]
[10357,"2016-04-27","LILA-Supermercado","Venezuela","Gumbär Gummibärchen","Confections",31.23,16,0,499.68,"Nancy Davolio"]
[10357,"2016-04-27","LILA-Supermercado","Venezuela","Ikura","Seafood",31,30,0.2,744,"Nancy Davolio"]
[10358,"2016-04-28","La maison d'Asie","France","Inlagd Sill","Seafood",19,20,0.05,361,"Steven Buchanan"]
[10358,"2016-04-28","La maison d'Asie","France","Sasquatch Ale","Beverages",14,10,0.05,133,"Steven Buchanan"]
[10358,"2016-04-28","La maison d'Asie","France","Guaraná Fantástica","Beverages",4.5,10,0.05,42.75,"Steven Buchanan"]
[10359,"2016-04-29","Seven Seas Imports","UK","Pavlova","Confections",17.45,56,0.05,928.34,"Steven Buchanan"]
[10359,"2016-04-29","Seven Seas Imports","UK","Camembert Pierrot","Dairy Products",34,80,0.05,2584,"Steven Buchanan"]
[10359,"2016-04-29","Seven Seas Imports","UK","Gorgonzola Telino","Dairy Products",12.5,70,0.05,831.25,"Steven Buchanan"]
[10360,"2016-04-30","Blondel père et fils","France","Maxilaku","Confections",20,35,0,700,"Margaret Peacock"]
[10360,"2016-04-30","Blondel père et fils","France","Côte de Blaye","Beverages",263.5,10,0,2635,"Margaret Peacock"]
[10360,"2016-04-30","Blondel père et fils","France","Rössle Sauerkraut","Produce",45.6,30,0,1368,"Margaret Peacock"]
[10360,"2016-04-30","Blondel père et fils","France","Thüringer Rostbratwurst","Meat/Poultry",123.79,35,0,4332.6499999999996,"Margaret Peacock"]
[10360,"2016-04-30","Blondel père et fils","France","Tourtière","Meat/Poultry",7.45,28,0,208.6,"Margaret Peacock"]
[10361,"2016-04-30","QUICK-Stop","Germany","Camembert Pierrot","Dairy Products",34,55,0.1,1683,"Nancy Davolio"]
[10361,"2016-04-30","QUICK-Stop","Germany","Chartreuse verte","Beverages",18,54,0.1,874.8,"Nancy Davolio"]
[10362,"2016-05-03","Bon app'","France","Tourtière","Meat/Poultry",7.45,24,0,178.8,"Janet Leverling"]
[10362,"2016-05-03","Bon app'","France","Manjimup Dried Apples","Produce",53,20,0,1060,"Janet Leverling"]
[10362,"2016-05-03","Bon app'","France","NuNuCa Nuß-Nougat-Creme","Confections",14,50,0,700,"Janet Leverling"]
[10363,"2016-05-04","Drachenblut Delikatessen","Germany","Gorgonzola Telino","Dairy Products",12.5,20,0,250,"Margaret Peacock"]
[10363,"2016-05-04","Drachenblut Delikatessen","Germany","Lakkalikööri","Beverages",18,12,0,216,"Margaret Peacock"]
[10363,"2016-05-04","Drachenblut Delikatessen","Germany","Rhönbräu Klosterbier","Beverages",7.75,12,0,93,"Margaret Peacock"]
[10364,"2016-05-04","Eastern Connection","UK","Gudbrandsdalsost","Dairy Products",36,30,0,1080,"Nancy Davolio"]
[10364,"2016-05-04","Eastern Connection","UK","Fløtemysost","Dairy Products",21.5,5,0,107.5,"Nancy Davolio"]
[10365,"2016-05-05","Antonio Moreno Taquería","Mexico","Queso Cabrales","Dairy Products",21,24,0,504,"Janet Leverling"]
[10366,"2016-05-06","Galería del gastrónomo","Spain","Louisiana Fiery Hot Pepper Sauce","Condiments",21.05,5,0,105.25,"Laura Callahan"]
[10366,"2016-05-06","Galería del gastrónomo","Spain","Original Frankfurter grüne Soße","Condiments",13,5,0,65,"Laura Callahan"]
[10367,"2016-05-06","Vaffeljernet","Denmark","Original Frankfurter grüne Soße","Condiments",13,7,0,91,"Robert King"]
[10367,"2016-05-06","Vaffeljernet","Denmark","Louisiana Fiery Hot Pepper Sauce","Condiments",21.05,15,0,315.75,"Robert King"]
[10367,"2016-05-06","Vaffeljernet","Denmark","Sasquatch Ale","Beverages",14,36,0,504,"Robert King"]
[10367,"2016-05-06","Vaffeljernet","Denmark","Tourtière","Meat/Poultry",7.45,18,0,134.1,"Robert King"]
[10368,"2016-05-07","Ernst Handel","Austria","Wimmers gute Semmelknödel","Grains/Cereals",33.25,35,0.1,1047.3800000000001,"Andrew Fuller"]
[10368,"2016-05-07","Ernst Handel","Austria","Rössle Sauerkraut","Produce",45.6,13,0.1,{"$f":"ROUND((G323*H323)*(1-I323),2)","v":533.52},"Andrew Fuller"]
[10368,"2016-05-07","Ernst Handel","Austria","Ravioli Angelo","Grains/Cereals",19.5,25,0,487.5,"Andrew Fuller"]
[10368,"2016-05-07","Ernst Handel","Austria","Sir Rodney's Scones","Confections",10,5,0.1,45,"Andrew Fuller"]
[10369,"2016-05-10","Split Rail Beer & Ale","USA","Gnocchi di nonna Alice","Grains/Cereals",38,18,0.25,513,"Laura Callahan"]
[10369,"2016-05-10","Split Rail Beer & Ale","USA","Thüringer Rostbratwurst","Meat/Poultry",123.79,20,0,2475.8000000000002,"Laura Callahan"]
[10370,"2016-05-11","Chop-suey Chinese","Switzerland","Longlife Tofu","Produce",10,20,0.15,170,"Michael Suyama"]
[10370,"2016-05-11","Chop-suey Chinese","Switzerland","Chai","Beverages",18,15,0.15,229.5,"Michael Suyama"]
[10370,"2016-05-11","Chop-suey Chinese","Switzerland","Wimmers gute Semmelknödel","Grains/Cereals",33.25,30,0,997.5,"Michael Suyama"]
[10371,"2016-05-11","La maison d'Asie","France","Inlagd Sill","Seafood",19,6,0.2,91.2,"Nancy Davolio"]
[10372,"2016-05-12","Queen Cozinha","Brazil","Côte de Blaye","Beverages",263.5,40,0.25,7905,"Steven Buchanan"]
[10372,"2016-05-12","Queen Cozinha","Brazil","Mozzarella di Giovanni","Dairy Products",34.799999999999997,42,0.25,1096.2,"Steven Buchanan"]
[10372,"2016-05-12","Queen Cozinha","Brazil","Camembert Pierrot","Dairy Products",34,70,0.25,1785,"Steven Buchanan"]
[10372,"2016-05-12","Queen Cozinha","Brazil","Sir Rodney's Marmalade","Confections",81,12,0.25,729,"Steven Buchanan"]
[10373,"2016-05-13","Hungry Owl All-Night Grocers","Ireland","Fløtemysost","Dairy Products",21.5,50,0.2,860,"Margaret Peacock"]
[10373,"2016-05-13","Hungry Owl All-Night Grocers","Ireland","Escargots de Bourgogne","Seafood",13.25,80,0.2,848,"Margaret Peacock"]
[10374,"2016-05-13","Wolski  Zajazd","Poland","Escargots de Bourgogne","Seafood",13.25,15,0,198.75,"Nancy Davolio"]
[10374,"2016-05-13","Wolski  Zajazd","Poland","Gorgonzola Telino","Dairy Products",12.5,30,0,375,"Nancy Davolio"]
[10375,"2016-05-14","Hungry Coyote Import Store","USA","Tourtière","Meat/Poultry",7.45,10,0,74.5,"Janet Leverling"]
[10375,"2016-05-14","Hungry Coyote Import Store","USA","Tofu","Produce",23.25,15,0,348.75,"Janet Leverling"]
[10376,"2016-05-17","Mère Paillarde","Canada","Gorgonzola Telino","Dairy Products",12.5,42,0.05,498.75,"Nancy Davolio"]
[10377,"2016-05-17","Seven Seas Imports","UK","Chartreuse verte","Beverages",18,20,0.15,306,"Nancy Davolio"]
[10377,"2016-05-17","Seven Seas Imports","UK","Rössle Sauerkraut","Produce",45.6,20,0.15,775.2,"Nancy Davolio"]
[10378,"2016-05-18","Folk och fä HB","Sweden","Fløtemysost","Dairy Products",21.5,6,0,129,"Steven Buchanan"]
[10379,"2016-05-19","Que Delícia","Brazil","Jack's New England Clam Chowder","Seafood",9.65,8,0.1,69.48,"Andrew Fuller"]
[10379,"2016-05-19","Que Delícia","Brazil","Louisiana Fiery Hot Pepper Sauce","Condiments",21.05,20,0.1,378.9,"Andrew Fuller"]
[10379,"2016-05-19","Que Delícia","Brazil","Vegie-spread","Condiments",43.9,16,0.1,632.16,"Andrew Fuller"]
[10380,"2016-05-20","Hungry Owl All-Night Grocers","Ireland","Nord-Ost Matjeshering","Seafood",25.89,18,0.1,419.42,"Laura Callahan"]
[10380,"2016-05-20","Hungry Owl All-Night Grocers","Ireland","Camembert Pierrot","Dairy Products",34,6,0.1,183.6,"Laura Callahan"]
[10380,"2016-05-20","Hungry Owl All-Night Grocers","Ireland","Perth Pasties","Meat/Poultry",32.799999999999997,20,0.1,590.4,"Laura Callahan"]
[10380,"2016-05-20","Hungry Owl All-Night Grocers","Ireland","Outback Lager","Beverages",15,30,0,450,"Laura Callahan"]
[10381,"2016-05-20","LILA-Supermercado","Venezuela","Longlife Tofu","Produce",10,14,0,140,"Janet Leverling"]
[10382,"2016-05-21","Ernst Handel","Austria","Geitost","Dairy Products",2.5,60,0,150,"Margaret Peacock"]
[10382,"2016-05-21","Ernst Handel","Austria","Thüringer Rostbratwurst","Meat/Poultry",123.79,14,0,1733.06,"Margaret Peacock"]
[10382,"2016-05-21","Ernst Handel","Austria","Chef Anton's Gumbo Mix","Condiments",21.35,32,0,683.2,"Margaret Peacock"]
[10382,"2016-05-21","Ernst Handel","Austria","Longlife Tofu","Produce",10,50,0,500,"Margaret Peacock"]
[10382,"2016-05-21","Ernst Handel","Austria","Carnarvon Tigers","Seafood",62.5,9,0,562.5,"Margaret Peacock"]
[10383,"2016-05-24","Around the Horn","UK","Valkoinen suklaa","Confections",16.25,15,0,243.75,"Laura Callahan"]
[10383,"2016-05-24","Around the Horn","UK","Gnocchi di nonna Alice","Grains/Cereals",38,20,0,760,"Laura Callahan"]
[10383,"2016-05-24","Around the Horn","UK","Konbu","Seafood",6,20,0,120,"Laura Callahan"]
[10384,"2016-05-24","Berglunds snabbköp","Sweden","Camembert Pierrot","Dairy Products",34,15,0,510,"Janet Leverling"]
[10384,"2016-05-24","Berglunds snabbköp","Sweden","Sir Rodney's Marmalade","Confections",81,28,0,2268,"Janet Leverling"]
[10385,"2016-05-25","Split Rail Beer & Ale","USA","Scottish Longbreads","Confections",12.5,8,0.2,80,"Nancy Davolio"]
[10385,"2016-05-25","Split Rail Beer & Ale","USA","Uncle Bob's Organic Dried Pears","Produce",30,10,0.2,240,"Nancy Davolio"]
[10385,"2016-05-25","Split Rail Beer & Ale","USA","Camembert Pierrot","Dairy Products",34,20,0.2,544,"Nancy Davolio"]
[10386,"2016-05-26","Familia Arquibaldo","Brazil","Sasquatch Ale","Beverages",14,10,0,140,"Anne Dodsworth"]
[10386,"2016-05-26","Familia Arquibaldo","Brazil","Guaraná Fantástica","Beverages",4.5,15,0,67.5,"Anne Dodsworth"]
[10387,"2016-05-26","Santé Gourmet","Norway","Fløtemysost","Dairy Products",21.5,15,0,322.5,"Nancy Davolio"]
[10387,"2016-05-26","Santé Gourmet","Norway","Rössle Sauerkraut","Produce",45.6,6,0,273.60000000000002,"Nancy Davolio"]
[10387,"2016-05-26","Santé Gourmet","Norway","Guaraná Fantástica","Beverages",4.5,15,0,67.5,"Nancy Davolio"]
[10387,"2016-05-26","Santé Gourmet","Norway","Raclette Courdavault","Dairy Products",55,12,0,660,"Nancy Davolio"]
[10388,"2016-05-27","Seven Seas Imports","UK","Filo Mix","Grains/Cereals",7,20,0.2,112,"Andrew Fuller"]
[10388,"2016-05-27","Seven Seas Imports","UK","Røgede sild","Seafood",9.5,15,0.2,114,"Andrew Fuller"]
[10388,"2016-05-27","Seven Seas Imports","UK","Perth Pasties","Meat/Poultry",32.799999999999997,40,0,1312,"Andrew Fuller"]
[10389,"2016-05-28","Bottom-Dollar Markets","Canada","Tarte au sucre","Confections",49.3,20,0,986,"Margaret Peacock"]
[10389,"2016-05-28","Bottom-Dollar Markets","Canada","Outback Lager","Beverages",15,30,0,450,"Margaret Peacock"]
[10389,"2016-05-28","Bottom-Dollar Markets","Canada","Ikura","Seafood",31,16,0,496,"Margaret Peacock"]
[10389,"2016-05-28","Bottom-Dollar Markets","Canada","Pâté chinois","Meat/Poultry",24,15,0,360,"Margaret Peacock"]
[10390,"2016-05-31","Ernst Handel","Austria","Mozzarella di Giovanni","Dairy Products",34.799999999999997,24,0.1,751.68,"Michael Suyama"]
[10390,"2016-05-31","Ernst Handel","Austria","Steeleye Stout","Beverages",18,40,0.1,648,"Michael Suyama"]
[10390,"2016-05-31","Ernst Handel","Austria","Spegesild","Seafood",12,45,0,540,"Michael Suyama"]
[10390,"2016-05-31","Ernst Handel","Austria","Gorgonzola Telino","Dairy Products",12.5,60,0.1,675,"Michael Suyama"]
[10391,"2016-05-31","Drachenblut Delikatessen","Germany","Konbu","Seafood",6,18,0,108,"Janet Leverling"]
[10392,"2016-06-01","Piccolo und mehr","Austria","Gudbrandsdalsost","Dairy Products",36,50,0,1800,"Andrew Fuller"]
[10393,"2016-06-02","Save-a-lot Markets","USA","Gorgonzola Telino","Dairy Products",12.5,32,0,400,"Nancy Davolio"]
[10393,"2016-06-02","Save-a-lot Markets","USA","NuNuCa Nuß-Nougat-Creme","Confections",14,7,0.25,{"$f":"ROUND((G387*H387)*(1-I387),2)","v":73.5},"Nancy Davolio"]
[10393,"2016-06-02","Save-a-lot Markets","USA","Gumbär Gummibärchen","Confections",31.23,70,0.25,1639.58,"Nancy Davolio"]
[10393,"2016-06-02","Save-a-lot Markets","USA","Tofu","Produce",23.25,42,0.25,732.38,"Nancy Davolio"]
[10393,"2016-06-02","Save-a-lot Markets","USA","Chang","Beverages",19,25,0.25,356.25,"Nancy Davolio"]
[10394,"2016-06-02","Hungry Coyote Import Store","USA","Konbu","Seafood",6,10,0,60,"Nancy Davolio"]
[10394,"2016-06-02","Hungry Coyote Import Store","USA","Tarte au sucre","Confections",49.3,10,0,493,"Nancy Davolio"]
[10395,"2016-06-03","HILARIÓN-Abastos","Venezuela","Perth Pasties","Meat/Poultry",32.799999999999997,70,0.1,2066.4,"Michael Suyama"]
[10395,"2016-06-03","HILARIÓN-Abastos","Venezuela","Spegesild","Seafood",12,28,0.1,302.39999999999998,"Michael Suyama"]
[10395,"2016-06-03","HILARIÓN-Abastos","Venezuela","Gudbrandsdalsost","Dairy Products",36,8,0,288,"Michael Suyama"]
[10396,"2016-06-04","Frankenversand","Germany","Tunnbröd","Grains/Cereals",9,40,0,360,"Nancy Davolio"]
[10396,"2016-06-04","Frankenversand","Germany","Mozzarella di Giovanni","Dairy Products",34.799999999999997,21,0,730.8,"Nancy Davolio"]
[10396,"2016-06-04","Frankenversand","Germany","Fløtemysost","Dairy Products",21.5,60,0,1290,"Nancy Davolio"]
[10397,"2016-06-04","Princesa Isabel Vinhos","Portugal","Sir Rodney's Scones","Confections",10,10,0.15,85,"Steven Buchanan"]
[10397,"2016-06-04","Princesa Isabel Vinhos","Portugal","Manjimup Dried Apples","Produce",53,18,0.15,810.9,"Steven Buchanan"]
[10398,"2016-06-07","Save-a-lot Markets","USA","Steeleye Stout","Beverages",18,30,0,540,"Andrew Fuller"]
[10398,"2016-06-07","Save-a-lot Markets","USA","Pâté chinois","Meat/Poultry",24,120,0.1,2592,"Andrew Fuller"]
[10399,"2016-06-08","Vaffeljernet","Denmark","Scottish Longbreads","Confections",12.5,60,0,750,"Laura Callahan"]
[10399,"2016-06-08","Vaffeljernet","Denmark","Lakkalikööri","Beverages",18,35,0,630,"Laura Callahan"]
[10399,"2016-06-08","Vaffeljernet","Denmark","Original Frankfurter grüne Soße","Condiments",13,14,0,182,"Laura Callahan"]
[10399,"2016-06-08","Vaffeljernet","Denmark","Fløtemysost","Dairy Products",21.5,30,0,645,"Laura Callahan"]
[10400,"2016-06-09","Eastern Connection","UK","Maxilaku","Confections",20,30,0,600,"Nancy Davolio"]
[10400,"2016-06-09","Eastern Connection","UK","Steeleye Stout","Beverages",18,35,0,630,"Nancy Davolio"]
[10400,"2016-06-09","Eastern Connection","UK","Thüringer Rostbratwurst","Meat/Poultry",123.79,21,0,2599.59,"Nancy Davolio"]
[10401,"2016-06-09","Rattlesnake Canyon Grocery","USA","Nord-Ost Matjeshering","Seafood",25.89,18,0,466.02,"Nancy Davolio"]
[10401,"2016-06-09","Rattlesnake Canyon Grocery","USA","Gnocchi di nonna Alice","Grains/Cereals",38,70,0,2660,"Nancy Davolio"]
[10401,"2016-06-09","Rattlesnake Canyon Grocery","USA","Fløtemysost","Dairy Products",21.5,60,0,1290,"Nancy Davolio"]
[10401,"2016-06-09","Rattlesnake Canyon Grocery","USA","Louisiana Fiery Hot Pepper Sauce","Condiments",21.05,20,0,421,"Nancy Davolio"]
[10402,"2016-06-10","Ernst Handel","Austria","Tunnbröd","Grains/Cereals",9,60,0,540,"Laura Callahan"]
[10402,"2016-06-10","Ernst Handel","Austria","Vegie-spread","Condiments",43.9,65,0,2853.5,"Laura Callahan"]
[10403,"2016-06-11","Ernst Handel","Austria","Pavlova","Confections",17.45,21,0.15,311.48,"Margaret Peacock"]
[10403,"2016-06-11","Ernst Handel","Austria","Chocolade","Confections",12.75,70,0.15,758.63,"Margaret Peacock"]
[10404,"2016-06-11","Magazzini Alimentari Riuniti","Italy","Singaporean Hokkien Fried Mee","Grains/Cereals",14,40,0.05,532,"Andrew Fuller"]
[10404,"2016-06-11","Magazzini Alimentari Riuniti","Italy","Gumbär Gummibärchen","Confections",31.23,30,0.05,890.06,"Andrew Fuller"]
[10404,"2016-06-11","Magazzini Alimentari Riuniti","Italy","Maxilaku","Confections",20,30,0.05,570,"Andrew Fuller"]
[10405,"2016-06-14","LINO-Delicateses","Venezuela","Aniseed Syrup","Condiments",10,50,0,500,"Nancy Davolio"]
[10406,"2016-06-15","Queen Cozinha","Brazil","Inlagd Sill","Seafood",19,5,0.1,85.5,"Robert King"]
[10406,"2016-06-15","Queen Cozinha","Brazil","Sir Rodney's Scones","Confections",10,30,0.1,270,"Robert King"]
[10406,"2016-06-15","Queen Cozinha","Brazil","Chai","Beverages",18,10,0,180,"Robert King"]
[10406,"2016-06-15","Queen Cozinha","Brazil","Boston Crab Meat","Seafood",18.399999999999999,2,0.1,33.119999999999997,"Robert King"]
[10406,"2016-06-15","Queen Cozinha","Brazil","Rössle Sauerkraut","Produce",45.6,42,0.1,1723.68,"Robert King"]
[10407,"2016-06-15","Ottilies Käseladen","Germany","Gudbrandsdalsost","Dairy Products",36,15,0,540,"Andrew Fuller"]
[10407,"2016-06-15","Ottilies Käseladen","Germany","Fløtemysost","Dairy Products",21.5,15,0,322.5,"Andrew Fuller"]
[10407,"2016-06-15","Ottilies Käseladen","Germany","Queso Cabrales","Dairy Products",21,30,0,630,"Andrew Fuller"]
[10408,"2016-06-16","Folies gourmandes","France","Gravad lax","Seafood",26,10,0,260,"Laura Callahan"]
[10408,"2016-06-16","Folies gourmandes","France","Tourtière","Meat/Poultry",7.45,6,0,44.7,"Laura Callahan"]
[10408,"2016-06-16","Folies gourmandes","France","Tarte au sucre","Confections",49.3,35,0,1725.5,"Laura Callahan"]
[10409,"2016-06-17","Océano Atlántico Ltda.","Argentina","Sir Rodney's Scones","Confections",10,12,0,120,"Janet Leverling"]
[10409,"2016-06-17","Océano Atlántico Ltda.","Argentina","Tofu","Produce",23.25,12,0,279,"Janet Leverling"]
[10410,"2016-06-18","Bottom-Dollar Markets","Canada","Raclette Courdavault","Dairy Products",55,16,0,880,"Janet Leverling"]
[10410,"2016-06-18","Bottom-Dollar Markets","Canada","Geitost","Dairy Products",2.5,49,0,122.5,"Janet Leverling"]
[10411,"2016-06-18","Bottom-Dollar Markets","Canada","Gula Malacca","Condiments",19.45,40,0.2,622.4,"Anne Dodsworth"]
[10411,"2016-06-18","Bottom-Dollar Markets","Canada","Jack's New England Clam Chowder","Seafood",9.65,25,0.2,193,"Anne Dodsworth"]
[10411,"2016-06-18","Bottom-Dollar Markets","Canada","Raclette Courdavault","Dairy Products",55,9,0.2,396,"Anne Dodsworth"]
[10412,"2016-06-21","Wartian Herkku","Finland","Tofu","Produce",23.25,20,0.1,418.5,"Laura Callahan"]
[10413,"2016-06-22","La maison d'Asie","France","Tarte au sucre","Confections",49.3,40,0,1972,"Janet Leverling"]
[10413,"2016-06-22","La maison d'Asie","France","Chai","Beverages",18,24,0,432,"Janet Leverling"]
[10413,"2016-06-22","La maison d'Asie","France","Lakkalikööri","Beverages",18,14,0,252,"Janet Leverling"]
[10414,"2016-06-22","Familia Arquibaldo","Brazil","Geitost","Dairy Products",2.5,50,0,125,"Andrew Fuller"]
[10414,"2016-06-22","Familia Arquibaldo","Brazil","Teatime Chocolate Biscuits","Confections",9.1999999999999993,18,0.05,157.32,"Andrew Fuller"]
[10415,"2016-06-23","Hungry Coyote Import Store","USA","Alice Mutton","Meat/Poultry",39,2,0,78,"Janet Leverling"]
[10415,"2016-06-23","Hungry Coyote Import Store","USA","Geitost","Dairy Products",2.5,20,0,50,"Janet Leverling"]
[10416,"2016-06-24","Wartian Herkku","Finland","Perth Pasties","Meat/Poultry",32.799999999999997,10,0,328,"Laura Callahan"]
[10416,"2016-06-24","Wartian Herkku","Finland","Teatime Chocolate Biscuits","Confections",9.1999999999999993,20,0,184,"Laura Callahan"]
[10416,"2016-06-24","Wartian Herkku","Finland","Ravioli Angelo","Grains/Cereals",19.5,20,0,390,"Laura Callahan"]
[10417,"2016-06-24","Simons bistro","Denmark","Scottish Longbreads","Confections",12.5,36,0.25,{"$f":"ROUND((G451*H451)*(1-I451),2)","v":337.5},"Margaret Peacock"]
[10417,"2016-06-24","Simons bistro","Denmark","Original Frankfurter grüne Soße","Condiments",13,35,0,455,"Margaret Peacock"]
[10417,"2016-06-24","Simons bistro","Denmark","Côte de Blaye","Beverages",263.5,50,0,13175,"Margaret Peacock"]
[10417,"2016-06-24","Simons bistro","Denmark","Spegesild","Seafood",12,2,0.25,18,"Margaret Peacock"]
[10418,"2016-06-25","QUICK-Stop","Germany","Sirop d'érable","Condiments",28.5,16,0,456,"Margaret Peacock"]
[10418,"2016-06-25","QUICK-Stop","Germany","Chang","Beverages",19,60,0,1140,"Margaret Peacock"]
[10418,"2016-06-25","QUICK-Stop","Germany","Longlife Tofu","Produce",10,15,0,150,"Margaret Peacock"]
[10418,"2016-06-25","QUICK-Stop","Germany","Zaanse koeken","Confections",9.5,55,0,522.5,"Margaret Peacock"]
[10419,"2016-06-28","Richter Supermarkt","Switzerland","Camembert Pierrot","Dairy Products",34,60,0.05,1938,"Margaret Peacock"]
[10419,"2016-06-28","Richter Supermarkt","Switzerland","Gudbrandsdalsost","Dairy Products",36,20,0.05,684,"Margaret Peacock"]
[10420,"2016-06-29","Wellington Importadora","Brazil","Mishi Kobe Niku","Meat/Poultry",97,20,0.1,1746,"Janet Leverling"]
[10420,"2016-06-29","Wellington Importadora","Brazil","Outback Lager","Beverages",15,8,0.1,108,"Janet Leverling"]
[10420,"2016-06-29","Wellington Importadora","Brazil","Konbu","Seafood",6,2,0.1,10.8,"Janet Leverling"]
[10420,"2016-06-29","Wellington Importadora","Brazil","Röd Kaviar","Seafood",15,20,0.1,270,"Janet Leverling"]
[10421,"2016-06-29","Que Delícia","Brazil","Perth Pasties","Meat/Poultry",32.799999999999997,15,0.15,418.2,"Laura Callahan"]
[10421,"2016-06-29","Que Delícia","Brazil","Original Frankfurter grüne Soße","Condiments",13,10,0.15,110.5,"Laura Callahan"]
[10421,"2016-06-29","Que Delícia","Brazil","Gumbär Gummibärchen","Confections",31.23,30,0,936.9,"Laura Callahan"]
[10421,"2016-06-29","Que Delícia","Brazil","Teatime Chocolate Biscuits","Confections",9.1999999999999993,4,0.15,31.28,"Laura Callahan"]
[10422,"2016-06-30","Franchi S.p.A.","Italy","Gumbär Gummibärchen","Confections",31.23,2,0,62.46,"Andrew Fuller"]
[10423,"2016-07-01","Gourmet Lanchonetes","Brazil","Gorgonzola Telino","Dairy Products",12.5,14,0,175,"Michael Suyama"]
[10423,"2016-07-01","Gourmet Lanchonetes","Brazil","Raclette Courdavault","Dairy Products",55,20,0,1100,"Michael Suyama"]
[10424,"2016-07-01","Mère Paillarde","Canada","Côte de Blaye","Beverages",263.5,49,0.2,10329.200000000001,"Robert King"]
[10424,"2016-07-01","Mère Paillarde","Canada","Steeleye Stout","Beverages",18,60,0.2,864,"Robert King"]
[10424,"2016-07-01","Mère Paillarde","Canada","Scottish Longbreads","Confections",12.5,30,0.2,300,"Robert King"]
[10425,"2016-07-02","La maison d'Asie","France","Pâté chinois","Meat/Poultry",24,10,0.25,180,"Michael Suyama"]
[10425,"2016-07-02","La maison d'Asie","France","Lakkalikööri","Beverages",18,20,0.25,270,"Michael Suyama"]
[10426,"2016-07-05","Galería del gastrónomo","Spain","Gnocchi di nonna Alice","Grains/Cereals",38,5,0,190,"Margaret Peacock"]
[10426,"2016-07-05","Galería del gastrónomo","Spain","Wimmers gute Semmelknödel","Grains/Cereals",33.25,7,0,232.75,"Margaret Peacock"]
[10427,"2016-07-05","Piccolo und mehr","Austria","Tofu","Produce",23.25,35,0,813.75,"Margaret Peacock"]
[10428,"2016-07-06","Reggiani Caseifici","Italy","Spegesild","Seafood",12,20,0,240,"Robert King"]
[10429,"2016-07-07","Hungry Owl All-Night Grocers","Ireland","Valkoinen suklaa","Confections",16.25,40,0,650,"Janet Leverling"]
[10429,"2016-07-07","Hungry Owl All-Night Grocers","Ireland","Vegie-spread","Condiments",43.9,35,0.25,1152.3800000000001,"Janet Leverling"]
[10430,"2016-07-08","Ernst Handel","Austria","Sir Rodney's Scones","Confections",10,50,0,500,"Margaret Peacock"]
[10430,"2016-07-08","Ernst Handel","Austria","Raclette Courdavault","Dairy Products",55,70,0.2,3080,"Margaret Peacock"]
[10430,"2016-07-08","Ernst Handel","Austria","Alice Mutton","Meat/Poultry",39,45,0.2,1404,"Margaret Peacock"]
[10430,"2016-07-08","Ernst Handel","Austria","Gnocchi di nonna Alice","Grains/Cereals",38,30,0,1140,"Margaret Peacock"]
[10431,"2016-07-08","Bottom-Dollar Markets","Canada","Alice Mutton","Meat/Poultry",39,50,0.25,1462.5,"Margaret Peacock"]
[10431,"2016-07-08","Bottom-Dollar Markets","Canada","Boston Crab Meat","Seafood",18.399999999999999,50,0.25,690,"Margaret Peacock"]
[10431,"2016-07-08","Bottom-Dollar Markets","Canada","Zaanse koeken","Confections",9.5,30,0.25,213.75,"Margaret Peacock"]
[10432,"2016-07-09","Split Rail Beer & Ale","USA","Gumbär Gummibärchen","Confections",31.23,10,0,312.3,"Janet Leverling"]
[10432,"2016-07-09","Split Rail Beer & Ale","USA","Tourtière","Meat/Poultry",7.45,40,0,298,"Janet Leverling"]
[10433,"2016-07-12","Princesa Isabel Vinhos","Portugal","Gnocchi di nonna Alice","Grains/Cereals",38,28,0,1064,"Janet Leverling"]
[10434,"2016-07-12","Folk och fä HB","Sweden","Queso Cabrales","Dairy Products",21,6,0,126,"Janet Leverling"]
[10434,"2016-07-12","Folk och fä HB","Sweden","Lakkalikööri","Beverages",18,18,0.15,275.39999999999998,"Janet Leverling"]
[10435,"2016-07-13","Consolidated Holdings","UK","Mozzarella di Giovanni","Dairy Products",34.799999999999997,10,0,348,"Laura Callahan"]
[10435,"2016-07-13","Consolidated Holdings","UK","Gustaf's Knäckebröd","Grains/Cereals",21,12,0,252,"Laura Callahan"]
[10435,"2016-07-13","Consolidated Holdings","UK","Chang","Beverages",19,10,0,190,"Laura Callahan"]
[10436,"2016-07-14","Blondel père et fils","France","Wimmers gute Semmelknödel","Grains/Cereals",33.25,30,0.1,897.75,"Janet Leverling"]
[10436,"2016-07-14","Blondel père et fils","France","Spegesild","Seafood",12,5,0,60,"Janet Leverling"]
[10436,"2016-07-14","Blondel père et fils","France","Rhönbräu Klosterbier","Beverages",7.75,24,0.1,167.4,"Janet Leverling"]
[10436,"2016-07-14","Blondel père et fils","France","Gnocchi di nonna Alice","Grains/Cereals",38,40,0.1,1368,"Janet Leverling"]
[10437,"2016-07-14","Wartian Herkku","Finland","Perth Pasties","Meat/Poultry",32.799999999999997,15,0,492,"Laura Callahan"]
[10438,"2016-07-15","Toms Spezialitäten","Germany","Ravioli Angelo","Grains/Cereals",19.5,15,0.2,234,"Janet Leverling"]
[10438,"2016-07-15","Toms Spezialitäten","Germany","Sasquatch Ale","Beverages",14,20,0.2,224,"Janet Leverling"]
[10438,"2016-07-15","Toms Spezialitäten","Germany","Teatime Chocolate Biscuits","Confections",9.1999999999999993,15,0.2,110.4,"Janet Leverling"]
[10439,"2016-07-16","Mère Paillarde","Canada","Queso Manchego La Pastora","Dairy Products",38,15,0,570,"Michael Suyama"]
[10439,"2016-07-16","Mère Paillarde","Canada","Longlife Tofu","Produce",10,30,0,300,"Michael Suyama"]
[10439,"2016-07-16","Mère Paillarde","Canada","Wimmers gute Semmelknödel","Grains/Cereals",33.25,6,0,199.5,"Michael Suyama"]
[10439,"2016-07-16","Mère Paillarde","Canada","Pavlova","Confections",17.45,16,0,279.2,"Michael Suyama"]
[10440,"2016-07-19","Save-a-lot Markets","USA","Sirop d'érable","Condiments",28.5,90,0.15,2180.25,"Margaret Peacock"]
[10440,"2016-07-19","Save-a-lot Markets","USA","Chang","Beverages",19,45,0.15,726.75,"Margaret Peacock"]
[10440,"2016-07-19","Save-a-lot Markets","USA","Pavlova","Confections",17.45,49,0.15,726.79,"Margaret Peacock"]
[10440,"2016-07-19","Save-a-lot Markets","USA","Thüringer Rostbratwurst","Meat/Poultry",123.79,24,0.15,2525.3200000000002,"Margaret Peacock"]
[10441,"2016-07-19","Old World Delicatessen","USA","Schoggi Schokolade","Confections",43.9,50,0,2195,"Janet Leverling"]
[10442,"2016-07-20","Ernst Handel","Austria","Louisiana Hot Spiced Okra","Condiments",17,60,0,{"$f":"ROUND((G515*H515)*(1-I515),2)","v":1020},"Janet Leverling"]
[10442,"2016-07-20","Ernst Handel","Austria","Queso Cabrales","Dairy Products",21,30,0,630,"Janet Leverling"]
[10442,"2016-07-20","Ernst Handel","Austria","Tourtière","Meat/Poultry",7.45,80,0,596,"Janet Leverling"]
[10443,"2016-07-21","Reggiani Caseifici","Italy","Rössle Sauerkraut","Produce",45.6,12,0,547.20000000000005,"Laura Callahan"]
[10443,"2016-07-21","Reggiani Caseifici","Italy","Queso Cabrales","Dairy Products",21,6,0.2,100.8,"Laura Callahan"]
[10444,"2016-07-21","Berglunds snabbköp","Sweden","Steeleye Stout","Beverages",18,8,0,144,"Janet Leverling"]
[10444,"2016-07-21","Berglunds snabbköp","Sweden","Alice Mutton","Meat/Poultry",39,10,0,390,"Janet Leverling"]
[10444,"2016-07-21","Berglunds snabbköp","Sweden","Jack's New England Clam Chowder","Seafood",9.65,30,0,289.5,"Janet Leverling"]
[10444,"2016-07-21","Berglunds snabbköp","Sweden","Gumbär Gummibärchen","Confections",31.23,15,0,468.45,"Janet Leverling"]
[10445,"2016-07-22","Berglunds snabbköp","Sweden","Tourtière","Meat/Poultry",7.45,15,0,111.75,"Janet Leverling"]
[10445,"2016-07-22","Berglunds snabbköp","Sweden","Chartreuse verte","Beverages",18,6,0,108,"Janet Leverling"]
[10446,"2016-07-23","Toms Spezialitäten","Germany","Guaraná Fantástica","Beverages",4.5,20,0.1,81,"Michael Suyama"]
[10446,"2016-07-23","Toms Spezialitäten","Germany","Teatime Chocolate Biscuits","Confections",9.1999999999999993,12,0.1,99.36,"Michael Suyama"]
[10446,"2016-07-23","Toms Spezialitäten","Germany","Filo Mix","Grains/Cereals",7,15,0.1,94.5,"Michael Suyama"]
[10446,"2016-07-23","Toms Spezialitäten","Germany","Gorgonzola Telino","Dairy Products",12.5,3,0.1,33.75,"Michael Suyama"]
[10447,"2016-07-23","Ricardo Adocicados","Brazil","Fløtemysost","Dairy Products",21.5,2,0,43,"Margaret Peacock"]
[10447,"2016-07-23","Ricardo Adocicados","Brazil","Teatime Chocolate Biscuits","Confections",9.1999999999999993,40,0,368,"Margaret Peacock"]
[10447,"2016-07-23","Ricardo Adocicados","Brazil","Louisiana Fiery Hot Pepper Sauce","Condiments",21.05,35,0,736.75,"Margaret Peacock"]
[10448,"2016-07-26","Rancho grande","Argentina","Gumbär Gummibärchen","Confections",31.23,6,0,187.38,"Margaret Peacock"]
[10448,"2016-07-26","Rancho grande","Argentina","Boston Crab Meat","Seafood",18.399999999999999,20,0,368,"Margaret Peacock"]
[10449,"2016-07-27","Blondel père et fils","France","Filo Mix","Grains/Cereals",7,20,0,140,"Janet Leverling"]
[10449,"2016-07-27","Blondel père et fils","France","Ikura","Seafood",31,14,0,434,"Janet Leverling"]
[10449,"2016-07-27","Blondel père et fils","France","Tarte au sucre","Confections",49.3,35,0,1725.5,"Janet Leverling"]
[10450,"2016-07-28","Victuailles en stock","France","Ikura","Seafood",31,20,0.2,496,"Laura Callahan"]
[10450,"2016-07-28","Victuailles en stock","France","Tourtière","Meat/Poultry",7.45,6,0.2,35.76,"Laura Callahan"]
[10451,"2016-07-28","QUICK-Stop","Germany","Pâté chinois","Meat/Poultry",24,120,0.1,2592,"Margaret Peacock"]
[10451,"2016-07-28","QUICK-Stop","Germany","Wimmers gute Semmelknödel","Grains/Cereals",33.25,35,0.1,1047.3800000000001,"Margaret Peacock"]
[10451,"2016-07-28","QUICK-Stop","Germany","Louisiana Fiery Hot Pepper Sauce","Condiments",21.05,28,0.1,530.46,"Margaret Peacock"]
[10451,"2016-07-28","QUICK-Stop","Germany","Original Frankfurter grüne Soße","Condiments",13,55,0.1,643.5,"Margaret Peacock"]
[10452,"2016-07-29","Save-a-lot Markets","USA","Rössle Sauerkraut","Produce",45.6,15,0,684,"Laura Callahan"]
[10452,"2016-07-29","Save-a-lot Markets","USA","Gula Malacca","Condiments",19.45,100,0.05,1847.75,"Laura Callahan"]
[10453,"2016-07-30","Around the Horn","UK","Outback Lager","Beverages",15,25,0.1,337.5,"Nancy Davolio"]
[10453,"2016-07-30","Around the Horn","UK","Chocolade","Confections",12.75,15,0.1,172.13,"Nancy Davolio"]
[10454,"2016-07-30","La maison d'Asie","France","Pavlova","Confections",17.45,20,0.2,279.2,"Margaret Peacock"]
[10454,"2016-07-30","La maison d'Asie","France","Geitost","Dairy Products",2.5,20,0.2,40,"Margaret Peacock"]
[10454,"2016-07-30","La maison d'Asie","France","Spegesild","Seafood",12,10,0.2,96,"Margaret Peacock"]
[10455,"2016-08-02","Wartian Herkku","Finland","Fløtemysost","Dairy Products",21.5,30,0,645,"Laura Callahan"]
[10455,"2016-08-02","Wartian Herkku","Finland","Chartreuse verte","Beverages",18,20,0,360,"Laura Callahan"]
[10455,"2016-08-02","Wartian Herkku","Finland","Sirop d'érable","Condiments",28.5,25,0,712.5,"Laura Callahan"]
[10455,"2016-08-02","Wartian Herkku","Finland","Perth Pasties","Meat/Poultry",32.799999999999997,50,0,1640,"Laura Callahan"]
[10456,"2016-08-03","Königlich Essen","Germany","Maxilaku","Confections",20,21,0.15,357,"Laura Callahan"]
[10456,"2016-08-03","Königlich Essen","Germany","Sir Rodney's Scones","Confections",10,40,0.15,340,"Laura Callahan"]
[10457,"2016-08-03","Königlich Essen","Germany","Raclette Courdavault","Dairy Products",55,36,0,1980,"Andrew Fuller"]
[10458,"2016-08-04","Suprêmes délices","Belgium","Gnocchi di nonna Alice","Grains/Cereals",38,15,0,570,"Robert King"]
[10458,"2016-08-04","Suprêmes délices","Belgium","Ipoh Coffee","Beverages",46,20,0,920,"Robert King"]
[10458,"2016-08-04","Suprêmes délices","Belgium","Gumbär Gummibärchen","Confections",31.23,30,0,936.9,"Robert King"]
[10458,"2016-08-04","Suprêmes délices","Belgium","Fløtemysost","Dairy Products",21.5,50,0,1075,"Robert King"]
[10458,"2016-08-04","Suprêmes délices","Belgium","Rössle Sauerkraut","Produce",45.6,30,0,1368,"Robert King"]
[10459,"2016-08-05","Victuailles en stock","France","Uncle Bob's Organic Dried Pears","Produce",30,16,0.05,456,"Margaret Peacock"]
[10459,"2016-08-05","Victuailles en stock","France","Spegesild","Seafood",12,20,0.05,228,"Margaret Peacock"]
[10459,"2016-08-05","Victuailles en stock","France","Mozzarella di Giovanni","Dairy Products",34.799999999999997,40,0,1392,"Margaret Peacock"]
[10460,"2016-08-06","Folk och fä HB","Sweden","Scottish Longbreads","Confections",12.5,21,0.25,196.88,"Laura Callahan"]
[10460,"2016-08-06","Folk och fä HB","Sweden","Rhönbräu Klosterbier","Beverages",7.75,4,0.25,23.25,"Laura Callahan"]
[10461,"2016-08-06","LILA-Supermercado","Venezuela","Sir Rodney's Scones","Confections",10,40,0.25,300,"Nancy Davolio"]
[10461,"2016-08-06","LILA-Supermercado","Venezuela","Nord-Ost Matjeshering","Seafood",25.89,28,0.25,543.69000000000005,"Nancy Davolio"]
[10461,"2016-08-06","LILA-Supermercado","Venezuela","Pâté chinois","Meat/Poultry",24,60,0.25,1080,"Nancy Davolio"]
[10462,"2016-08-09","Consolidated Holdings","UK","Konbu","Seafood",6,1,0,6,"Andrew Fuller"]
[10462,"2016-08-09","Consolidated Holdings","UK","Tunnbröd","Grains/Cereals",9,21,0,189,"Andrew Fuller"]
[10463,"2016-08-10","Suprêmes délices","Belgium","Singaporean Hokkien Fried Mee","Grains/Cereals",14,50,0,700,"Steven Buchanan"]
[10463,"2016-08-10","Suprêmes délices","Belgium","Teatime Chocolate Biscuits","Confections",9.1999999999999993,21,0,193.2,"Steven Buchanan"]
[10464,"2016-08-10","Furia Bacalhau e Frutos do Mar","Portugal","Chef Anton's Cajun Seasoning","Condiments",22,16,0.2,281.60000000000002,"Margaret Peacock"]
[10464,"2016-08-10","Furia Bacalhau e Frutos do Mar","Portugal","Gnocchi di nonna Alice","Grains/Cereals",38,30,0.2,912,"Margaret Peacock"]
[10464,"2016-08-10","Furia Bacalhau e Frutos do Mar","Portugal","Camembert Pierrot","Dairy Products",34,20,0,680,"Margaret Peacock"]
[10464,"2016-08-10","Furia Bacalhau e Frutos do Mar","Portugal","Ipoh Coffee","Beverages",46,3,0,138,"Margaret Peacock"]
[10465,"2016-08-11","Vaffeljernet","Denmark","Guaraná Fantástica","Beverages",4.5,25,0,{"$f":"ROUND((G579*H579)*(1-I579),2)","v":112.5},"Nancy Davolio"]
[10465,"2016-08-11","Vaffeljernet","Denmark","Røgede sild","Seafood",9.5,30,0.1,256.5,"Nancy Davolio"]
[10465,"2016-08-11","Vaffeljernet","Denmark","Valkoinen suklaa","Confections",16.25,25,0,406.25,"Nancy Davolio"]
[10465,"2016-08-11","Vaffeljernet","Denmark","Boston Crab Meat","Seafood",18.399999999999999,20,0,368,"Nancy Davolio"]
[10465,"2016-08-11","Vaffeljernet","Denmark","Thüringer Rostbratwurst","Meat/Poultry",123.79,18,0.1,2005.4,"Nancy Davolio"]
[10466,"2016-08-12","Comércio Mineiro","Brazil","Spegesild","Seafood",12,5,0,60,"Margaret Peacock"]
[10466,"2016-08-12","Comércio Mineiro","Brazil","Queso Cabrales","Dairy Products",21,10,0,210,"Margaret Peacock"]
[10467,"2016-08-12","Magazzini Alimentari Riuniti","Italy","NuNuCa Nuß-Nougat-Creme","Confections",14,12,0,168,"Laura Callahan"]
[10467,"2016-08-12","Magazzini Alimentari Riuniti","Italy","Guaraná Fantástica","Beverages",4.5,28,0,126,"Laura Callahan"]
[10468,"2016-08-13","Königlich Essen","Germany","Ipoh Coffee","Beverages",46,15,0,690,"Janet Leverling"]
[10468,"2016-08-13","Königlich Essen","Germany","Nord-Ost Matjeshering","Seafood",25.89,8,0,207.12,"Janet Leverling"]
[10469,"2016-08-16","White Clover Markets","USA","Pavlova","Confections",17.45,35,0.15,519.14,"Nancy Davolio"]
[10469,"2016-08-16","White Clover Markets","USA","Chang","Beverages",19,40,0.15,646,"Nancy Davolio"]
[10469,"2016-08-16","White Clover Markets","USA","Gula Malacca","Condiments",19.45,2,0.15,33.07,"Nancy Davolio"]
[10470,"2016-08-17","Bon app'","France","Tunnbröd","Grains/Cereals",9,15,0,135,"Margaret Peacock"]
[10470,"2016-08-17","Bon app'","France","Wimmers gute Semmelknödel","Grains/Cereals",33.25,8,0,266,"Margaret Peacock"]
[10470,"2016-08-17","Bon app'","France","Carnarvon Tigers","Seafood",62.5,30,0,1875,"Margaret Peacock"]
[10471,"2016-08-17","B's Beverages","UK","Uncle Bob's Organic Dried Pears","Produce",30,30,0,900,"Andrew Fuller"]
[10471,"2016-08-17","B's Beverages","UK","Gnocchi di nonna Alice","Grains/Cereals",38,20,0,760,"Andrew Fuller"]
[10472,"2016-08-18","Seven Seas Imports","UK","Manjimup Dried Apples","Produce",53,18,0,954,"Laura Callahan"]
[10472,"2016-08-18","Seven Seas Imports","UK","Guaraná Fantástica","Beverages",4.5,80,0.05,342,"Laura Callahan"]
[10473,"2016-08-19","Island Trading","UK","Fløtemysost","Dairy Products",21.5,12,0,258,"Nancy Davolio"]
[10473,"2016-08-19","Island Trading","UK","Geitost","Dairy Products",2.5,12,0,30,"Nancy Davolio"]
[10474,"2016-08-19","Pericles Comidas clásicas","Mexico","Rhönbräu Klosterbier","Beverages",7.75,10,0,77.5,"Steven Buchanan"]
[10474,"2016-08-19","Pericles Comidas clásicas","Mexico","Tofu","Produce",23.25,12,0,279,"Steven Buchanan"]
[10474,"2016-08-19","Pericles Comidas clásicas","Mexico","Rössle Sauerkraut","Produce",45.6,18,0,820.8,"Steven Buchanan"]
[10474,"2016-08-19","Pericles Comidas clásicas","Mexico","Boston Crab Meat","Seafood",18.399999999999999,21,0,386.4,"Steven Buchanan"]
[10475,"2016-08-20","Suprêmes délices","Belgium","Louisiana Hot Spiced Okra","Condiments",17,60,0.15,867,"Anne Dodsworth"]
[10475,"2016-08-20","Suprêmes délices","Belgium","Gorgonzola Telino","Dairy Products",12.5,35,0.15,371.88,"Anne Dodsworth"]
[10475,"2016-08-20","Suprêmes délices","Belgium","Lakkalikööri","Beverages",18,42,0.15,642.6,"Anne Dodsworth"]
[10476,"2016-08-23","HILARIÓN-Abastos","Venezuela","Pâté chinois","Meat/Poultry",24,2,0.05,45.6,"Laura Callahan"]
[10476,"2016-08-23","HILARIÓN-Abastos","Venezuela","Outback Lager","Beverages",15,12,0,180,"Laura Callahan"]
[10477,"2016-08-23","Princesa Isabel Vinhos","Portugal","Chai","Beverages",18,15,0,270,"Steven Buchanan"]
[10477,"2016-08-23","Princesa Isabel Vinhos","Portugal","Chartreuse verte","Beverages",18,20,0.25,270,"Steven Buchanan"]
[10477,"2016-08-23","Princesa Isabel Vinhos","Portugal","Sir Rodney's Scones","Confections",10,21,0.25,157.5,"Steven Buchanan"]
[10478,"2016-08-24","Victuailles en stock","France","Ikura","Seafood",31,20,0.05,589,"Andrew Fuller"]
[10479,"2016-08-25","Rattlesnake Canyon Grocery","USA","Perth Pasties","Meat/Poultry",32.799999999999997,28,0,918.4,"Janet Leverling"]
[10479,"2016-08-25","Rattlesnake Canyon Grocery","USA","Raclette Courdavault","Dairy Products",55,60,0,3300,"Janet Leverling"]
[10479,"2016-08-25","Rattlesnake Canyon Grocery","USA","Côte de Blaye","Beverages",263.5,30,0,7905,"Janet Leverling"]
[10479,"2016-08-25","Rattlesnake Canyon Grocery","USA","Wimmers gute Semmelknödel","Grains/Cereals",33.25,30,0,997.5,"Janet Leverling"]
[10480,"2016-08-26","Folies gourmandes","France","Zaanse koeken","Confections",9.5,30,0,285,"Michael Suyama"]
[10480,"2016-08-26","Folies gourmandes","France","Raclette Courdavault","Dairy Products",55,12,0,660,"Michael Suyama"]
[10481,"2016-08-26","Ricardo Adocicados","Brazil","Maxilaku","Confections",20,24,0,480,"Laura Callahan"]
[10481,"2016-08-26","Ricardo Adocicados","Brazil","Camembert Pierrot","Dairy Products",34,40,0,1360,"Laura Callahan"]
[10482,"2016-08-27","Lazy K Kountry Store","USA","Boston Crab Meat","Seafood",18.399999999999999,10,0,184,"Nancy Davolio"]
[10483,"2016-08-30","White Clover Markets","USA","Original Frankfurter grüne Soße","Condiments",13,30,0.05,370.5,"Robert King"]
[10483,"2016-08-30","White Clover Markets","USA","Sasquatch Ale","Beverages",14,35,0.05,465.5,"Robert King"]
[10484,"2016-08-30","B's Beverages","UK","Manjimup Dried Apples","Produce",53,3,0,159,"Janet Leverling"]
[10484,"2016-08-30","B's Beverages","UK","Sir Rodney's Scones","Confections",10,14,0,140,"Janet Leverling"]
[10484,"2016-08-30","B's Beverages","UK","Boston Crab Meat","Seafood",18.399999999999999,10,0,184,"Janet Leverling"]
[10485,"2016-08-31","LINO-Delicateses","Venezuela","Pâté chinois","Meat/Poultry",24,30,0.1,648,"Margaret Peacock"]
[10485,"2016-08-31","LINO-Delicateses","Venezuela","Chang","Beverages",19,20,0.1,342,"Margaret Peacock"]
[10485,"2016-08-31","LINO-Delicateses","Venezuela","Aniseed Syrup","Condiments",10,20,0.1,180,"Margaret Peacock"]
[10485,"2016-08-31","LINO-Delicateses","Venezuela","Outback Lager","Beverages",15,60,0.1,810,"Margaret Peacock"]
[10486,"2016-09-01","HILARIÓN-Abastos","Venezuela","Longlife Tofu","Produce",10,16,0,160,"Nancy Davolio"]
[10486,"2016-09-01","HILARIÓN-Abastos","Venezuela","Queso Cabrales","Dairy Products",21,5,0,105,"Nancy Davolio"]
[10486,"2016-09-01","HILARIÓN-Abastos","Venezuela","Manjimup Dried Apples","Produce",53,25,0,1325,"Nancy Davolio"]
[10487,"2016-09-01","Queen Cozinha","Brazil","Gumbär Gummibärchen","Confections",31.23,30,0,936.9,"Andrew Fuller"]
[10487,"2016-09-01","Queen Cozinha","Brazil","Tourtière","Meat/Poultry",7.45,24,0.25,134.1,"Andrew Fuller"]
[10487,"2016-09-01","Queen Cozinha","Brazil","Teatime Chocolate Biscuits","Confections",9.1999999999999993,5,0,46,"Andrew Fuller"]
[10488,"2016-09-02","Frankenversand","Germany","Raclette Courdavault","Dairy Products",55,30,0,1650,"Laura Callahan"]
[10488,"2016-09-02","Frankenversand","Germany","Röd Kaviar","Seafood",15,20,0.2,240,"Laura Callahan"]
[10489,"2016-09-03","Piccolo und mehr","Austria","Queso Cabrales","Dairy Products",21,15,0.25,236.25,"Michael Suyama"]
[10489,"2016-09-03","Piccolo und mehr","Austria","Pavlova","Confections",17.45,18,0,314.10000000000002,"Michael Suyama"]
[10490,"2016-09-06","HILARIÓN-Abastos","Venezuela","Raclette Courdavault","Dairy Products",55,60,0,{"$f":"ROUND((G643*H643)*(1-I643),2)","v":3300},"Robert King"]
[10490,"2016-09-06","HILARIÓN-Abastos","Venezuela","Scottish Longbreads","Confections",12.5,30,0,375,"Robert King"]
[10490,"2016-09-06","HILARIÓN-Abastos","Venezuela","Rhönbräu Klosterbier","Beverages",7.75,36,0,279,"Robert King"]
[10491,"2016-09-06","Furia Bacalhau e Frutos do Mar","Portugal","Gula Malacca","Condiments",19.45,15,0.15,247.99,"Laura Callahan"]
[10491,"2016-09-06","Furia Bacalhau e Frutos do Mar","Portugal","Original Frankfurter grüne Soße","Condiments",13,7,0.15,77.349999999999994,"Laura Callahan"]
[10492,"2016-09-07","Bottom-Dollar Markets","Canada","Singaporean Hokkien Fried Mee","Grains/Cereals",14,20,0.05,266,"Janet Leverling"]
[10492,"2016-09-07","Bottom-Dollar Markets","Canada","NuNuCa Nuß-Nougat-Creme","Confections",14,60,0.05,798,"Janet Leverling"]
[10493,"2016-09-08","La maison d'Asie","France","Louisiana Fiery Hot Pepper Sauce","Condiments",21.05,15,0.1,284.18,"Margaret Peacock"]
[10493,"2016-09-08","La maison d'Asie","France","Louisiana Hot Spiced Okra","Condiments",17,10,0.1,153,"Margaret Peacock"]
[10493,"2016-09-08","La maison d'Asie","France","Gudbrandsdalsost","Dairy Products",36,10,0.1,324,"Margaret Peacock"]
[10494,"2016-09-08","Comércio Mineiro","Brazil","Gnocchi di nonna Alice","Grains/Cereals",38,30,0,1140,"Margaret Peacock"]
[10495,"2016-09-09","Laughing Bacchus Wine Cellars","Canada","Original Frankfurter grüne Soße","Condiments",13,5,0,65,"Janet Leverling"]
[10495,"2016-09-09","Laughing Bacchus Wine Cellars","Canada","Jack's New England Clam Chowder","Seafood",9.65,20,0,193,"Janet Leverling"]
[10495,"2016-09-09","Laughing Bacchus Wine Cellars","Canada","Tunnbröd","Grains/Cereals",9,10,0,90,"Janet Leverling"]
[10496,"2016-09-10","Tradição Hipermercados","Brazil","Gorgonzola Telino","Dairy Products",12.5,20,0.05,237.5,"Robert King"]
[10497,"2016-09-10","Lehmanns Marktstand","Germany","Mozzarella di Giovanni","Dairy Products",34.799999999999997,25,0,870,"Robert King"]
[10497,"2016-09-10","Lehmanns Marktstand","Germany","Gnocchi di nonna Alice","Grains/Cereals",38,14,0,532,"Robert King"]
[10497,"2016-09-10","Lehmanns Marktstand","Germany","Original Frankfurter grüne Soße","Condiments",13,25,0,325,"Robert King"]
[10498,"2016-09-13","HILARIÓN-Abastos","Venezuela","Guaraná Fantástica","Beverages",4.5,14,0,63,"Laura Callahan"]
[10498,"2016-09-13","HILARIÓN-Abastos","Venezuela","Boston Crab Meat","Seafood",18.399999999999999,5,0,92,"Laura Callahan"]
[10498,"2016-09-13","HILARIÓN-Abastos","Venezuela","Singaporean Hokkien Fried Mee","Grains/Cereals",14,30,0,420,"Laura Callahan"]
[10499,"2016-09-14","LILA-Supermercado","Venezuela","Maxilaku","Confections",20,25,0,500,"Margaret Peacock"]
[10499,"2016-09-14","LILA-Supermercado","Venezuela","Rössle Sauerkraut","Produce",45.6,20,0,912,"Margaret Peacock"]
[10500,"2016-09-15","La maison d'Asie","France","Genen Shouyu","Condiments",15.5,12,0.05,176.7,"Michael Suyama"]
[10500,"2016-09-15","La maison d'Asie","France","Rössle Sauerkraut","Produce",45.6,8,0.05,346.56,"Michael Suyama"]
[10501,"2016-09-15","Blauer See Delikatessen","Germany","Tourtière","Meat/Poultry",7.45,20,0,149,"Anne Dodsworth"]
[10502,"2016-09-16","Pericles Comidas clásicas","Mexico","Perth Pasties","Meat/Poultry",32.799999999999997,6,0,196.8,"Andrew Fuller"]
[10502,"2016-09-16","Pericles Comidas clásicas","Mexico","Røgede sild","Seafood",9.5,21,0,199.5,"Andrew Fuller"]
[10502,"2016-09-16","Pericles Comidas clásicas","Mexico","Laughing Lumberjack Lager","Beverages",14,30,0,420,"Andrew Fuller"]
[10503,"2016-09-17","Hungry Owl All-Night Grocers","Ireland","Louisiana Fiery Hot Pepper Sauce","Condiments",21.05,20,0,421,"Michael Suyama"]
[10503,"2016-09-17","Hungry Owl All-Night Grocers","Ireland","Tofu","Produce",23.25,70,0,1627.5,"Michael Suyama"]
[10504,"2016-09-17","White Clover Markets","USA","Perth Pasties","Meat/Poultry",32.799999999999997,10,0,328,"Margaret Peacock"]
[10504,"2016-09-17","White Clover Markets","USA","Sirop d'érable","Condiments",28.5,25,0,712.5,"Margaret Peacock"]
[10504,"2016-09-17","White Clover Markets","USA","Sir Rodney's Scones","Confections",10,12,0,120,"Margaret Peacock"]
[10504,"2016-09-17","White Clover Markets","USA","Chang","Beverages",19,12,0,228,"Margaret Peacock"]
[10505,"2016-09-20","Mère Paillarde","Canada","Tarte au sucre","Confections",49.3,3,0,147.9,"Janet Leverling"]
[10506,"2016-09-21","Königlich Essen","Germany","NuNuCa Nuß-Nougat-Creme","Confections",14,18,0.1,226.8,"Anne Dodsworth"]
[10506,"2016-09-21","Königlich Essen","Germany","Outback Lager","Beverages",15,14,0.1,189,"Anne Dodsworth"]
[10507,"2016-09-21","Antonio Moreno Taquería","Mexico","Ipoh Coffee","Beverages",46,15,0.15,586.5,"Robert King"]
[10507,"2016-09-21","Antonio Moreno Taquería","Mexico","Chocolade","Confections",12.75,15,0.15,162.56,"Robert King"]
[10508,"2016-09-22","Ottilies Käseladen","Germany","Konbu","Seafood",6,10,0,60,"Nancy Davolio"]
[10508,"2016-09-22","Ottilies Käseladen","Germany","Chartreuse verte","Beverages",18,10,0,180,"Nancy Davolio"]
[10509,"2016-09-23","Blauer See Delikatessen","Germany","Rössle Sauerkraut","Produce",45.6,3,0,136.80000000000001,"Margaret Peacock"]
[10510,"2016-09-24","Save-a-lot Markets","USA","Rhönbräu Klosterbier","Beverages",7.75,36,0.1,251.1,"Michael Suyama"]
[10510,"2016-09-24","Save-a-lot Markets","USA","Thüringer Rostbratwurst","Meat/Poultry",123.79,36,0,4456.4399999999996,"Michael Suyama"]
[10511,"2016-09-24","Bon app'","France","Uncle Bob's Organic Dried Pears","Produce",30,50,0.15,1275,"Margaret Peacock"]
[10511,"2016-09-24","Bon app'","France","Chef Anton's Cajun Seasoning","Condiments",22,50,0.15,935,"Margaret Peacock"]
[10511,"2016-09-24","Bon app'","France","Northwoods Cranberry Sauce","Condiments",40,10,0.15,340,"Margaret Peacock"]
[10512,"2016-09-27","Familia Arquibaldo","Brazil","Guaraná Fantástica","Beverages",4.5,10,0.15,38.25,"Robert King"]
[10512,"2016-09-27","Familia Arquibaldo","Brazil","Camembert Pierrot","Dairy Products",34,12,0.15,346.8,"Robert King"]
[10512,"2016-09-27","Familia Arquibaldo","Brazil","Spegesild","Seafood",12,9,0.15,91.8,"Robert King"]
[10512,"2016-09-27","Familia Arquibaldo","Brazil","Zaanse koeken","Confections",9.5,6,0.15,48.45,"Robert King"]
[10513,"2016-09-28","Die Wandernde Kuh","Germany","Mascarpone Fabioli","Dairy Products",32,50,0.2,1280,"Robert King"]
[10513,"2016-09-28","Die Wandernde Kuh","Germany","Sirop d'érable","Condiments",28.5,15,0.2,342,"Robert King"]
[10513,"2016-09-28","Die Wandernde Kuh","Germany","Sir Rodney's Scones","Confections",10,40,0.2,320,"Robert King"]
[10514,"2016-09-28","Ernst Handel","Austria","Sir Rodney's Marmalade","Confections",81,39,0,3159,"Janet Leverling"]
[10514,"2016-09-28","Ernst Handel","Austria","Rhönbräu Klosterbier","Beverages",7.75,50,0,387.5,"Janet Leverling"]
[10514,"2016-09-28","Ernst Handel","Austria","Rössle Sauerkraut","Produce",45.6,35,0,1596,"Janet Leverling"]
[10514,"2016-09-28","Ernst Handel","Austria","Gnocchi di nonna Alice","Grains/Cereals",38,70,0,2660,"Janet Leverling"]
[10514,"2016-09-28","Ernst Handel","Austria","Louisiana Fiery Hot Pepper Sauce","Condiments",21.05,39,0,820.95,"Janet Leverling"]
[10515,"2016-09-29","QUICK-Stop","Germany","Schoggi Schokolade","Confections",43.9,120,0,5268,"Andrew Fuller"]
[10515,"2016-09-29","QUICK-Stop","Germany","Camembert Pierrot","Dairy Products",34,84,0.15,2427.6,"Andrew Fuller"]
[10515,"2016-09-29","QUICK-Stop","Germany","Pavlova","Confections",17.45,50,0,872.5,"Andrew Fuller"]
[10515,"2016-09-29","QUICK-Stop","Germany","Mishi Kobe Niku","Meat/Poultry",97,16,0.15,1319.2,"Andrew Fuller"]
[10515,"2016-09-29","QUICK-Stop","Germany","Geitost","Dairy Products",2.5,16,0.15,{"$f":"ROUND((G707*H707)*(1-I707),2)","v":34},"Andrew Fuller"]
[10516,"2016-09-30","Hungry Owl All-Night Grocers","Ireland","Singaporean Hokkien Fried Mee","Grains/Cereals",14,20,0,280,"Andrew Fuller"]
[10516,"2016-09-30","Hungry Owl All-Night Grocers","Ireland","Jack's New England Clam Chowder","Seafood",9.65,80,0.1,694.8,"Andrew Fuller"]
[10516,"2016-09-30","Hungry Owl All-Night Grocers","Ireland","Carnarvon Tigers","Seafood",62.5,25,0.1,1406.25,"Andrew Fuller"]
[10517,"2016-09-30","North/South","UK","Filo Mix","Grains/Cereals",7,6,0,42,"Janet Leverling"]
[10517,"2016-09-30","North/South","UK","Outback Lager","Beverages",15,6,0,90,"Janet Leverling"]
[10517,"2016-09-30","North/South","UK","Raclette Courdavault","Dairy Products",55,4,0,220,"Janet Leverling"]
[10518,"2016-10-01","Tortuga Restaurante","Mexico","Gula Malacca","Condiments",19.45,9,0,175.05,"Margaret Peacock"]
[10518,"2016-10-01","Tortuga Restaurante","Mexico","Guaraná Fantástica","Beverages",4.5,5,0,22.5,"Margaret Peacock"]
[10518,"2016-10-01","Tortuga Restaurante","Mexico","Côte de Blaye","Beverages",263.5,15,0,3952.5,"Margaret Peacock"]
[10519,"2016-10-04","Chop-suey Chinese","Switzerland","Ikura","Seafood",31,16,0.05,471.2,"Michael Suyama"]
[10519,"2016-10-04","Chop-suey Chinese","Switzerland","Gnocchi di nonna Alice","Grains/Cereals",38,40,0,1520,"Michael Suyama"]
[10519,"2016-10-04","Chop-suey Chinese","Switzerland","Camembert Pierrot","Dairy Products",34,10,0.05,323,"Michael Suyama"]
[10520,"2016-10-05","Santé Gourmet","Norway","Guaraná Fantástica","Beverages",4.5,8,0,36,"Robert King"]
[10520,"2016-10-05","Santé Gourmet","Norway","Perth Pasties","Meat/Poultry",32.799999999999997,5,0,164,"Robert King"]
[10521,"2016-10-05","Cactus Comidas para llevar","Argentina","Steeleye Stout","Beverages",18,3,0,54,"Laura Callahan"]
[10521,"2016-10-05","Cactus Comidas para llevar","Argentina","Scottish Longbreads","Confections",12.5,6,0,75,"Laura Callahan"]
[10521,"2016-10-05","Cactus Comidas para llevar","Argentina","Jack's New England Clam Chowder","Seafood",9.65,10,0,96.5,"Laura Callahan"]
[10522,"2016-10-06","Lehmanns Marktstand","Germany","Chai","Beverages",18,40,0.2,576,"Margaret Peacock"]
[10522,"2016-10-06","Lehmanns Marktstand","Germany","Nord-Ost Matjeshering","Seafood",25.89,20,0.2,414.24,"Margaret Peacock"]
[10522,"2016-10-06","Lehmanns Marktstand","Germany","Northwoods Cranberry Sauce","Condiments",40,24,0,960,"Margaret Peacock"]
[10522,"2016-10-06","Lehmanns Marktstand","Germany","Boston Crab Meat","Seafood",18.399999999999999,25,0.2,368,"Margaret Peacock"]
[10523,"2016-10-07","Seven Seas Imports","UK","Gravad lax","Seafood",26,18,0.1,421.2,"Robert King"]
[10523,"2016-10-07","Seven Seas Imports","UK","Jack's New England Clam Chowder","Seafood",9.65,6,0.1,52.11,"Robert King"]
[10523,"2016-10-07","Seven Seas Imports","UK","Alice Mutton","Meat/Poultry",39,25,0.1,877.5,"Robert King"]
[10523,"2016-10-07","Seven Seas Imports","UK","Sir Rodney's Marmalade","Confections",81,15,0.1,1093.5,"Robert King"]
[10524,"2016-10-07","Berglunds snabbköp","Sweden","Tourtière","Meat/Poultry",7.45,15,0,111.75,"Nancy Davolio"]
[10524,"2016-10-07","Berglunds snabbköp","Sweden","Ipoh Coffee","Beverages",46,60,0,2760,"Nancy Davolio"]
[10524,"2016-10-07","Berglunds snabbköp","Sweden","Nord-Ost Matjeshering","Seafood",25.89,10,0,258.89999999999998,"Nancy Davolio"]
[10524,"2016-10-07","Berglunds snabbköp","Sweden","Ikura","Seafood",31,2,0,62,"Nancy Davolio"]
[10525,"2016-10-08","Bon app'","France","Inlagd Sill","Seafood",19,30,0,570,"Nancy Davolio"]
[10525,"2016-10-08","Bon app'","France","Boston Crab Meat","Seafood",18.399999999999999,15,0.1,248.4,"Nancy Davolio"]
[10526,"2016-10-11","Wartian Herkku","Finland","Konbu","Seafood",6,10,0,60,"Margaret Peacock"]
[10526,"2016-10-11","Wartian Herkku","Finland","Chai","Beverages",18,8,0.15,122.4,"Margaret Peacock"]
[10526,"2016-10-11","Wartian Herkku","Finland","Gnocchi di nonna Alice","Grains/Cereals",38,30,0.15,969,"Margaret Peacock"]
[10527,"2016-10-11","QUICK-Stop","Germany","Chef Anton's Cajun Seasoning","Condiments",22,50,0.1,990,"Robert King"]
[10527,"2016-10-11","QUICK-Stop","Germany","Inlagd Sill","Seafood",19,30,0.1,513,"Robert King"]
[10528,"2016-10-12","Great Lakes Food Market","USA","Queso Cabrales","Dairy Products",21,3,0,63,"Michael Suyama"]
[10528,"2016-10-12","Great Lakes Food Market","USA","Mozzarella di Giovanni","Dairy Products",34.799999999999997,9,0,313.2,"Michael Suyama"]
[10528,"2016-10-12","Great Lakes Food Market","USA","Geitost","Dairy Products",2.5,8,0.2,16,"Michael Suyama"]
[10529,"2016-10-13","Maison Dewey","Belgium","Scottish Longbreads","Confections",12.5,20,0,250,"Steven Buchanan"]
[10529,"2016-10-13","Maison Dewey","Belgium","Gudbrandsdalsost","Dairy Products",36,10,0,360,"Steven Buchanan"]
[10529,"2016-10-13","Maison Dewey","Belgium","Pâté chinois","Meat/Poultry",24,14,0,336,"Steven Buchanan"]
[10530,"2016-10-14","Piccolo und mehr","Austria","Ipoh Coffee","Beverages",46,25,0,1150,"Janet Leverling"]
[10530,"2016-10-14","Piccolo und mehr","Austria","Alice Mutton","Meat/Poultry",39,40,0,1560,"Janet Leverling"]
[10530,"2016-10-14","Piccolo und mehr","Austria","Sirop d'érable","Condiments",28.5,20,0,570,"Janet Leverling"]
[10530,"2016-10-14","Piccolo und mehr","Austria","Lakkalikööri","Beverages",18,50,0,900,"Janet Leverling"]
[10531,"2016-10-14","Océano Atlántico Ltda.","Argentina","Raclette Courdavault","Dairy Products",55,2,0,110,"Robert King"]
[10532,"2016-10-15","Eastern Connection","UK","Louisiana Hot Spiced Okra","Condiments",17,24,0,408,"Robert King"]
[10532,"2016-10-15","Eastern Connection","UK","Nord-Ost Matjeshering","Seafood",25.89,15,0,388.35,"Robert King"]
[10533,"2016-10-18","Folk och fä HB","Sweden","Röd Kaviar","Seafood",15,24,0.05,342,"Laura Callahan"]
[10533,"2016-10-18","Folk och fä HB","Sweden","Chef Anton's Cajun Seasoning","Condiments",22,50,0.05,1045,"Laura Callahan"]
[10533,"2016-10-18","Folk och fä HB","Sweden","Mozzarella di Giovanni","Dairy Products",34.799999999999997,24,0,835.2,"Laura Callahan"]
[10534,"2016-10-18","Lehmanns Marktstand","Germany","Nord-Ost Matjeshering","Seafood",25.89,10,0,258.89999999999998,"Laura Callahan"]
[10534,"2016-10-18","Lehmanns Marktstand","Germany","Tourtière","Meat/Poultry",7.45,10,0.2,59.6,"Laura Callahan"]
[10534,"2016-10-18","Lehmanns Marktstand","Germany","Boston Crab Meat","Seafood",18.399999999999999,10,0.2,147.19999999999999,"Laura Callahan"]
[10535,"2016-10-19","Antonio Moreno Taquería","Mexico","Ravioli Angelo","Grains/Cereals",19.5,5,0.1,87.75,"Margaret Peacock"]
[10535,"2016-10-19","Antonio Moreno Taquería","Mexico","Raclette Courdavault","Dairy Products",55,15,0.1,742.5,"Margaret Peacock"]
[10535,"2016-10-19","Antonio Moreno Taquería","Mexico","Queso Cabrales","Dairy Products",21,50,0.1,945,"Margaret Peacock"]
[10535,"2016-10-19","Antonio Moreno Taquería","Mexico","Boston Crab Meat","Seafood",18.399999999999999,10,0.1,165.6,"Margaret Peacock"]
[10536,"2016-10-20","Lehmanns Marktstand","Germany","Geitost","Dairy Products",2.5,30,0,75,"Janet Leverling"]
[10536,"2016-10-20","Lehmanns Marktstand","Germany","Gorgonzola Telino","Dairy Products",12.5,20,0,250,"Janet Leverling"]

{"sheet":"Newcastle","index":6,"n_rows":276,"n_cols":11,"rows_kept":276,"cut":false,"hidden":false,"merged":[]}
["Order ID","Order Date","Customer Name","Country","Product Name","Product Category","Unit Price","Units Sold","Discount","Total Sales Value","Sales Rep"]
[10248,"2015-12-11","Vins et alcools Chevalier","France","Mozzarella di Giovanni","Dairy Products",34.799999999999997,5,0,{"$f":"ROUND((G2*H2)*(1-I2),2)","v":174},"Steven Buchanan"]
[10248,"2015-12-11","Vins et alcools Chevalier","France","Singaporean Hokkien Fried Mee","Grains/Cereals",14,10,0,{"$f":"ROUND((G3*H3)*(1-I3),2)","v":140},"Steven Buchanan"]
[10248,"2015-12-11","Vins et alcools Chevalier","France","Queso Cabrales","Dairy Products",21,12,0,252,"Steven Buchanan"]
[10249,"2015-12-12","Toms Spezialitäten","Germany","Manjimup Dried Apples","Produce",53,40,0,2120,"Michael Suyama"]
[10249,"2015-12-12","Toms Spezialitäten","Germany","Tofu","Produce",23.25,9,0,209.25,"Michael Suyama"]
[10250,"2015-12-15","Hanari Carnes","Brazil","Manjimup Dried Apples","Produce",53,35,0.15,1576.75,"Margaret Peacock"]
[10250,"2015-12-15","Hanari Carnes","Brazil","Jack's New England Clam Chowder","Seafood",9.65,10,0,96.5,"Margaret Peacock"]
[10250,"2015-12-15","Hanari Carnes","Brazil","Louisiana Fiery Hot Pepper Sauce","Condiments",21.05,15,0.15,268.39,"Margaret Peacock"]
[10251,"2015-12-15","Victuailles en stock","France","Gustaf's Knäckebröd","Grains/Cereals",21,6,0.05,119.7,"Janet Leverling"]
[10251,"2015-12-15","Victuailles en stock","France","Louisiana Fiery Hot Pepper Sauce","Condiments",21.05,20,0,421,"Janet Leverling"]
[10251,"2015-12-15","Victuailles en stock","France","Ravioli Angelo","Grains/Cereals",19.5,15,0.05,277.88,"Janet Leverling"]
[10252,"2015-12-16","Suprêmes délices","Belgium","Geitost","Dairy Products",2.5,25,0.05,59.38,"Margaret Peacock"]
[10252,"2015-12-16","Suprêmes délices","Belgium","Camembert Pierrot","Dairy Products",34,40,0,1360,"Margaret Peacock"]
[10252,"2015-12-16","Suprêmes délices","Belgium","Sir Rodney's Marmalade","Confections",81,40,0.05,3078,"Margaret Peacock"]
[10253,"2015-12-17","Hanari Carnes","Brazil","Chartreuse verte","Beverages",18,42,0,756,"Janet Leverling"]
[10253,"2015-12-17","Hanari Carnes","Brazil","Gorgonzola Telino","Dairy Products",12.5,20,0,250,"Janet Leverling"]
[10253,"2015-12-17","Hanari Carnes","Brazil","Maxilaku","Confections",20,40,0,800,"Janet Leverling"]
[10254,"2015-12-18","Chop-suey Chinese","Switzerland","Longlife Tofu","Produce",10,21,0,210,"Steven Buchanan"]
[10254,"2015-12-18","Chop-suey Chinese","Switzerland","Pâté chinois","Meat/Poultry",24,21,0.15,428.4,"Steven Buchanan"]
[10254,"2015-12-18","Chop-suey Chinese","Switzerland","Guaraná Fantástica","Beverages",4.5,15,0.15,57.38,"Steven Buchanan"]
[10255,"2015-12-19","Richter Supermarkt","Switzerland","Chang","Beverages",19,20,0,380,"Anne Dodsworth"]
[10255,"2015-12-19","Richter Supermarkt","Switzerland","Raclette Courdavault","Dairy Products",55,30,0,1650,"Anne Dodsworth"]
[10255,"2015-12-19","Richter Supermarkt","Switzerland","Pavlova","Confections",17.45,35,0,610.75,"Anne Dodsworth"]
[10255,"2015-12-19","Richter Supermarkt","Switzerland","Inlagd Sill","Seafood",19,25,0,475,"Anne Dodsworth"]
[10256,"2015-12-22","Wellington Importadora","Brazil","Perth Pasties","Meat/Poultry",32.799999999999997,15,0,492,"Janet Leverling"]
[10256,"2015-12-22","Wellington Importadora","Brazil","Original Frankfurter grüne Soße","Condiments",13,12,0,156,"Janet Leverling"]
[10257,"2015-12-23","HILARIÓN-Abastos","Venezuela","Schoggi Schokolade","Confections",43.9,25,0,1097.5,"Margaret Peacock"]
[10257,"2015-12-23","HILARIÓN-Abastos","Venezuela","Chartreuse verte","Beverages",18,6,0,108,"Margaret Peacock"]
[10257,"2015-12-23","HILARIÓN-Abastos","Venezuela","Original Frankfurter grüne Soße","Condiments",13,15,0,195,"Margaret Peacock"]
[10258,"2015-12-24","Ernst Handel","Austria","Chef Anton's Gumbo Mix","Condiments",21.35,65,0.2,1110.2,"Nancy Davolio"]
[10258,"2015-12-24","Ernst Handel","Austria","Chang","Beverages",19,50,0.2,760,"Nancy Davolio"]
[10258,"2015-12-24","Ernst Handel","Austria","Mascarpone Fabioli","Dairy Products",32,6,0.2,153.6,"Nancy Davolio"]
[10259,"2015-12-25","Centro comercial Moctezuma","Mexico","Sir Rodney's Scones","Confections",10,10,0,100,"Margaret Peacock"]
[10259,"2015-12-25","Centro comercial Moctezuma","Mexico","Gravad lax","Seafood",26,1,0,26,"Margaret Peacock"]
[10260,"2015-12-26","Ottilies Käseladen","Germany","Outback Lager","Beverages",15,21,0.25,236.25,"Margaret Peacock"]
[10260,"2015-12-26","Ottilies Käseladen","Germany","Ravioli Angelo","Grains/Cereals",19.5,50,0,975,"Margaret Peacock"]
[10260,"2015-12-26","Ottilies Käseladen","Germany","Tarte au sucre","Confections",49.3,15,0.25,554.63,"Margaret Peacock"]
[10260,"2015-12-26","Ottilies Käseladen","Germany","Jack's New England Clam Chowder","Seafood",9.65,16,0.25,115.8,"Margaret Peacock"]
[10261,"2015-12-26","Que Delícia","Brazil","Steeleye Stout","Beverages",18,20,0,360,"Margaret Peacock"]
[10261,"2015-12-26","Que Delícia","Brazil","Sir Rodney's Scones","Confections",10,20,0,200,"Margaret Peacock"]
[10262,"2015-12-29","Rattlesnake Canyon Grocery","USA","Chef Anton's Gumbo Mix","Condiments",21.35,12,0.2,204.96,"Laura Callahan"]
[10262,"2015-12-29","Rattlesnake Canyon Grocery","USA","Uncle Bob's Organic Dried Pears","Produce",30,15,0,450,"Laura Callahan"]
[10262,"2015-12-29","Rattlesnake Canyon Grocery","USA","Gnocchi di nonna Alice","Grains/Cereals",38,2,0,76,"Laura Callahan"]
[10263,"2015-12-30","Ernst Handel","Austria","Pavlova","Confections",17.45,60,0.25,785.25,"Anne Dodsworth"]
[10263,"2015-12-30","Ernst Handel","Austria","Nord-Ost Matjeshering","Seafood",25.89,60,0.25,1165.05,"Anne Dodsworth"]
[10263,"2015-12-30","Ernst Handel","Austria","Guaraná Fantástica","Beverages",4.5,28,0,126,"Anne Dodsworth"]
[10263,"2015-12-30","Ernst Handel","Austria","Longlife Tofu","Produce",10,36,0.25,270,"Anne Dodsworth"]
[10264,"2015-12-31","Folk och fä HB","Sweden","Chang","Beverages",19,35,0,665,"Michael Suyama"]
[10264,"2015-12-31","Folk och fä HB","Sweden","Jack's New England Clam Chowder","Seafood",9.65,25,0.15,205.06,"Michael Suyama"]
[10265,"2016-01-01","Blondel père et fils","France","Alice Mutton","Meat/Poultry",39,30,0,1170,"Andrew Fuller"]
[10265,"2016-01-01","Blondel père et fils","France","Outback Lager","Beverages",15,20,0,300,"Andrew Fuller"]
[10266,"2016-01-02","Wartian Herkku","Finland","Queso Manchego La Pastora","Dairy Products",38,12,0.05,433.2,"Janet Leverling"]
[10267,"2016-01-05","Frankenversand","Germany","Lakkalikööri","Beverages",18,15,0.15,229.5,"Margaret Peacock"]
[10267,"2016-01-05","Frankenversand","Germany","Boston Crab Meat","Seafood",18.399999999999999,50,0,920,"Margaret Peacock"]
[10267,"2016-01-05","Frankenversand","Germany","Raclette Courdavault","Dairy Products",55,70,0.15,3272.5,"Margaret Peacock"]
[10268,"2016-01-06","GROSELLA-Restaurante","Venezuela","Mozzarella di Giovanni","Dairy Products",34.799999999999997,4,0,139.19999999999999,"Laura Callahan"]
[10268,"2016-01-06","GROSELLA-Restaurante","Venezuela","Thüringer Rostbratwurst","Meat/Poultry",123.79,10,0,1237.9000000000001,"Laura Callahan"]
[10269,"2016-01-07","White Clover Markets","USA","Mozzarella di Giovanni","Dairy Products",34.799999999999997,20,0.05,661.2,"Steven Buchanan"]
[10269,"2016-01-07","White Clover Markets","USA","Geitost","Dairy Products",2.5,60,0.05,142.5,"Steven Buchanan"]
[10270,"2016-01-08","Wartian Herkku","Finland","Inlagd Sill","Seafood",19,30,0,570,"Nancy Davolio"]
[10270,"2016-01-08","Wartian Herkku","Finland","Ipoh Coffee","Beverages",46,25,0,1150,"Nancy Davolio"]
[10271,"2016-01-08","Split Rail Beer & Ale","USA","Geitost","Dairy Products",2.5,24,0,60,"Michael Suyama"]
[10272,"2016-01-09","Rattlesnake Canyon Grocery","USA","Gorgonzola Telino","Dairy Products",12.5,40,0,500,"Michael Suyama"]
[10272,"2016-01-09","Rattlesnake Canyon Grocery","USA","Sir Rodney's Marmalade","Confections",81,6,0,486,"Michael Suyama"]
[10272,"2016-01-09","Rattlesnake Canyon Grocery","USA","Mozzarella di Giovanni","Dairy Products",34.799999999999997,24,0,835.2,"Michael Suyama"]
[10273,"2016-01-12","QUICK-Stop","Germany","Boston Crab Meat","Seafood",18.399999999999999,60,0.05,{"$f":"ROUND((G67*H67)*(1-I67),2)","v":1048.8},"Janet Leverling"]
[10273,"2016-01-12","QUICK-Stop","Germany","Geitost","Dairy Products",2.5,20,0,50,"Janet Leverling"]
[10273,"2016-01-12","QUICK-Stop","Germany","Gorgonzola Telino","Dairy Products",12.5,15,0.05,178.13,"Janet Leverling"]
[10273,"2016-01-12","QUICK-Stop","Germany","Ikura","Seafood",31,24,0.05,706.8,"Janet Leverling"]
[10273,"2016-01-12","QUICK-Stop","Germany","Lakkalikööri","Beverages",18,33,0.05,564.29999999999995,"Janet Leverling"]
[10274,"2016-01-13","Vins et alcools Chevalier","France","Fløtemysost","Dairy Products",21.5,20,0,430,"Michael Suyama"]
[10274,"2016-01-13","Vins et alcools Chevalier","France","Mozzarella di Giovanni","Dairy Products",34.799999999999997,7,0,243.6,"Michael Suyama"]
[10275,"2016-01-14","Magazzini Alimentari Riuniti","Italy","Guaraná Fantástica","Beverages",4.5,12,0.05,51.3,"Nancy Davolio"]
[10275,"2016-01-14","Magazzini Alimentari Riuniti","Italy","Raclette Courdavault","Dairy Products",55,6,0.05,313.5,"Nancy Davolio"]
[10276,"2016-01-15","Tortuga Restaurante","Mexico","Ikura","Seafood",31,15,0,465,"Laura Callahan"]
[10276,"2016-01-15","Tortuga Restaurante","Mexico","Konbu","Seafood",6,10,0,60,"Laura Callahan"]
[10277,"2016-01-16","Morgenstern Gesundkost","Germany","Rössle Sauerkraut","Produce",45.6,20,0,912,"Andrew Fuller"]
[10277,"2016-01-16","Morgenstern Gesundkost","Germany","Tarte au sucre","Confections",49.3,12,0,591.6,"Andrew Fuller"]
[10278,"2016-01-19","Berglunds snabbköp","Sweden","Raclette Courdavault","Dairy Products",55,15,0,825,"Laura Callahan"]
[10278,"2016-01-19","Berglunds snabbköp","Sweden","Röd Kaviar","Seafood",15,25,0,375,"Laura Callahan"]
[10278,"2016-01-19","Berglunds snabbköp","Sweden","Gula Malacca","Condiments",19.45,16,0,311.2,"Laura Callahan"]
[10278,"2016-01-19","Berglunds snabbköp","Sweden","Vegie-spread","Condiments",43.9,8,0,351.2,"Laura Callahan"]
[10279,"2016-01-20","Lehmanns Marktstand","Germany","Alice Mutton","Meat/Poultry",39,15,0.25,438.75,"Laura Callahan"]
[10280,"2016-01-21","Berglunds snabbköp","Sweden","Pâté chinois","Meat/Poultry",24,20,0,480,"Andrew Fuller"]
[10280,"2016-01-21","Berglunds snabbköp","Sweden","Rhönbräu Klosterbier","Beverages",7.75,30,0,232.5,"Andrew Fuller"]
[10280,"2016-01-21","Berglunds snabbköp","Sweden","Guaraná Fantástica","Beverages",4.5,12,0,54,"Andrew Fuller"]
[10281,"2016-01-21","Romero y tomillo","Spain","Guaraná Fantástica","Beverages",4.5,6,0,27,"Margaret Peacock"]
[10281,"2016-01-21","Romero y tomillo","Spain","Steeleye Stout","Beverages",18,4,0,72,"Margaret Peacock"]
[10281,"2016-01-21","Romero y tomillo","Spain","Teatime Chocolate Biscuits","Confections",9.1999999999999993,1,0,9.1999999999999993,"Margaret Peacock"]
[10282,"2016-01-22","Romero y tomillo","Spain","Ravioli Angelo","Grains/Cereals",19.5,2,0,39,"Margaret Peacock"]
[10282,"2016-01-22","Romero y tomillo","Spain","Nord-Ost Matjeshering","Seafood",25.89,6,0,155.34,"Margaret Peacock"]
[10283,"2016-01-23","LILA-Supermercado","Venezuela","Teatime Chocolate Biscuits","Confections",9.1999999999999993,18,0,165.6,"Janet Leverling"]
[10283,"2016-01-23","LILA-Supermercado","Venezuela","Camembert Pierrot","Dairy Products",34,35,0,1190,"Janet Leverling"]
[10283,"2016-01-23","LILA-Supermercado","Venezuela","Genen Shouyu","Condiments",15.5,20,0,310,"Janet Leverling"]
[10283,"2016-01-23","LILA-Supermercado","Venezuela","Mozzarella di Giovanni","Dairy Products",34.799999999999997,3,0,104.4,"Janet Leverling"]
[10284,"2016-01-26","Lehmanns Marktstand","Germany","Laughing Lumberjack Lager","Beverages",14,5,0.25,52.5,"Margaret Peacock"]
[10284,"2016-01-26","Lehmanns Marktstand","Germany","Gula Malacca","Condiments",19.45,21,0,408.45,"Margaret Peacock"]
[10284,"2016-01-26","Lehmanns Marktstand","Germany","Camembert Pierrot","Dairy Products",34,20,0.25,510,"Margaret Peacock"]
[10284,"2016-01-26","Lehmanns Marktstand","Germany","Schoggi Schokolade","Confections",43.9,15,0.25,493.88,"Margaret Peacock"]
[10285,"2016-01-27","QUICK-Stop","Germany","Chai","Beverages",18,45,0.2,648,"Nancy Davolio"]
[10285,"2016-01-27","QUICK-Stop","Germany","Boston Crab Meat","Seafood",18.399999999999999,40,0.2,588.79999999999995,"Nancy Davolio"]
[10285,"2016-01-27","QUICK-Stop","Germany","Perth Pasties","Meat/Poultry",32.799999999999997,36,0.2,944.64,"Nancy Davolio"]
[10286,"2016-01-28","QUICK-Stop","Germany","Tarte au sucre","Confections",49.3,40,0,1972,"Laura Callahan"]
[10286,"2016-01-28","QUICK-Stop","Germany","Steeleye Stout","Beverages",18,100,0,1800,"Laura Callahan"]
[10287,"2016-01-29","Ricardo Adocicados","Brazil","Spegesild","Seafood",12,15,0.15,153,"Laura Callahan"]
[10287,"2016-01-29","Ricardo Adocicados","Brazil","Pavlova","Confections",17.45,40,0.15,593.29999999999995,"Laura Callahan"]
[10287,"2016-01-29","Ricardo Adocicados","Brazil","Sasquatch Ale","Beverages",14,20,0,280,"Laura Callahan"]
[10288,"2016-01-30","Reggiani Caseifici","Italy","Scottish Longbreads","Confections",12.5,3,0.1,33.75,"Margaret Peacock"]
[10288,"2016-01-30","Reggiani Caseifici","Italy","Tourtière","Meat/Poultry",7.45,10,0.1,67.05,"Margaret Peacock"]
[10289,"2016-02-02","B's Beverages","UK","Aniseed Syrup","Condiments",10,30,0,300,"Robert King"]
[10289,"2016-02-02","B's Beverages","UK","Wimmers gute Semmelknödel","Grains/Cereals",33.25,9,0,299.25,"Robert King"]
[10290,"2016-02-03","Comércio Mineiro","Brazil","Original Frankfurter grüne Soße","Condiments",13,10,0,130,"Laura Callahan"]
[10290,"2016-02-03","Comércio Mineiro","Brazil","Thüringer Rostbratwurst","Meat/Poultry",123.79,15,0,1856.85,"Laura Callahan"]
[10290,"2016-02-03","Comércio Mineiro","Brazil","Maxilaku","Confections",20,15,0,300,"Laura Callahan"]
[10290,"2016-02-03","Comércio Mineiro","Brazil","Chef Anton's Gumbo Mix","Condiments",21.35,20,0,427,"Laura Callahan"]
[10291,"2016-02-03","Que Delícia","Brazil","Gula Malacca","Condiments",19.45,24,0.1,420.12,"Michael Suyama"]
[10291,"2016-02-03","Que Delícia","Brazil","Konbu","Seafood",6,20,0.1,108,"Michael Suyama"]
[10291,"2016-02-03","Que Delícia","Brazil","Manjimup Dried Apples","Produce",53,2,0.1,95.4,"Michael Suyama"]
[10292,"2016-02-04","Tradição Hipermercados","Brazil","Sir Rodney's Marmalade","Confections",81,20,0,1620,"Nancy Davolio"]
[10293,"2016-02-05","Tortuga Restaurante","Mexico","Carnarvon Tigers","Seafood",62.5,12,0,750,"Nancy Davolio"]
[10293,"2016-02-05","Tortuga Restaurante","Mexico","Rhönbräu Klosterbier","Beverages",7.75,6,0,46.5,"Nancy Davolio"]
[10293,"2016-02-05","Tortuga Restaurante","Mexico","Guaraná Fantástica","Beverages",4.5,10,0,45,"Nancy Davolio"]
[10293,"2016-02-05","Tortuga Restaurante","Mexico","Vegie-spread","Condiments",43.9,5,0,219.5,"Nancy Davolio"]
[10294,"2016-02-06","Rattlesnake Canyon Grocery","USA","Camembert Pierrot","Dairy Products",34,21,0,714,"Margaret Peacock"]
[10294,"2016-02-06","Rattlesnake Canyon Grocery","USA","Rhönbräu Klosterbier","Beverages",7.75,6,0,46.5,"Margaret Peacock"]
[10294,"2016-02-06","Rattlesnake Canyon Grocery","USA","Chai","Beverages",18,18,0,324,"Margaret Peacock"]
[10294,"2016-02-06","Rattlesnake Canyon Grocery","USA","Ipoh Coffee","Beverages",46,15,0,690,"Margaret Peacock"]
[10294,"2016-02-06","Rattlesnake Canyon Grocery","USA","Alice Mutton","Meat/Poultry",39,15,0,585,"Margaret Peacock"]
[10295,"2016-02-09","Vins et alcools Chevalier","France","Gnocchi di nonna Alice","Grains/Cereals",38,4,0,152,"Andrew Fuller"]
[10296,"2016-02-10","LILA-Supermercado","Venezuela","Gudbrandsdalsost","Dairy Products",36,15,0,{"$f":"ROUND((G131*H131)*(1-I131),2)","v":540},"Michael Suyama"]
[10296,"2016-02-10","LILA-Supermercado","Venezuela","Queso Cabrales","Dairy Products",21,12,0,252,"Michael Suyama"]
[10296,"2016-02-10","LILA-Supermercado","Venezuela","Pavlova","Confections",17.45,30,0,523.5,"Michael Suyama"]
[10297,"2016-02-11","Blondel père et fils","France","Mozzarella di Giovanni","Dairy Products",34.799999999999997,20,0,696,"Steven Buchanan"]
[10297,"2016-02-11","Blondel père et fils","France","Chartreuse verte","Beverages",18,60,0,1080,"Steven Buchanan"]
[10298,"2016-02-12","Hungry Owl All-Night Grocers","Ireland","Chang","Beverages",19,40,0,760,"Michael Suyama"]
[10298,"2016-02-12","Hungry Owl All-Night Grocers","Ireland","Inlagd Sill","Seafood",19,40,0.25,570,"Michael Suyama"]
[10298,"2016-02-12","Hungry Owl All-Night Grocers","Ireland","Tarte au sucre","Confections",49.3,15,0,739.5,"Michael Suyama"]
[10298,"2016-02-12","Hungry Owl All-Night Grocers","Ireland","Raclette Courdavault","Dairy Products",55,30,0.25,1237.5,"Michael Suyama"]
[10299,"2016-02-13","Ricardo Adocicados","Brazil","Outback Lager","Beverages",15,20,0,300,"Margaret Peacock"]
[10299,"2016-02-13","Ricardo Adocicados","Brazil","Teatime Chocolate Biscuits","Confections",9.1999999999999993,15,0,138,"Margaret Peacock"]
[10300,"2016-02-16","Magazzini Alimentari Riuniti","Italy","Scottish Longbreads","Confections",12.5,20,0,250,"Andrew Fuller"]
[10300,"2016-02-16","Magazzini Alimentari Riuniti","Italy","Louisiana Hot Spiced Okra","Condiments",17,30,0,510,"Andrew Fuller"]
[10301,"2016-02-16","Die Wandernde Kuh","Germany","Gnocchi di nonna Alice","Grains/Cereals",38,20,0,760,"Laura Callahan"]
[10301,"2016-02-16","Die Wandernde Kuh","Germany","Boston Crab Meat","Seafood",18.399999999999999,10,0,184,"Laura Callahan"]
[10302,"2016-02-17","Suprêmes délices","Belgium","Ipoh Coffee","Beverages",46,12,0,552,"Margaret Peacock"]
[10302,"2016-02-17","Suprêmes délices","Belgium","Rössle Sauerkraut","Produce",45.6,28,0,1276.8,"Margaret Peacock"]
[10302,"2016-02-17","Suprêmes délices","Belgium","Alice Mutton","Meat/Poultry",39,40,0,1560,"Margaret Peacock"]
[10303,"2016-02-18","Godos Cocina Típica","Spain","Louisiana Fiery Hot Pepper Sauce","Condiments",21.05,30,0.1,568.35,"Robert King"]
[10303,"2016-02-18","Godos Cocina Típica","Spain","Boston Crab Meat","Seafood",18.399999999999999,40,0.1,662.4,"Robert King"]
[10303,"2016-02-18","Godos Cocina Típica","Spain","Scottish Longbreads","Confections",12.5,15,0.1,168.75,"Robert King"]
[10304,"2016-02-19","Tortuga Restaurante","Mexico","Maxilaku","Confections",20,30,0,600,"Nancy Davolio"]
[10304,"2016-02-19","Tortuga Restaurante","Mexico","Raclette Courdavault","Dairy Products",55,10,0,550,"Nancy Davolio"]
[10304,"2016-02-19","Tortuga Restaurante","Mexico","Fløtemysost","Dairy Products",21.5,2,0,43,"Nancy Davolio"]
[10305,"2016-02-20","Old World Delicatessen","USA","Chartreuse verte","Beverages",18,30,0.1,486,"Laura Callahan"]
[10305,"2016-02-20","Old World Delicatessen","USA","Thüringer Rostbratwurst","Meat/Poultry",123.79,25,0.1,2785.28,"Laura Callahan"]
[10305,"2016-02-20","Old World Delicatessen","USA","Carnarvon Tigers","Seafood",62.5,25,0.1,1406.25,"Laura Callahan"]
[10306,"2016-02-23","Romero y tomillo","Spain","Nord-Ost Matjeshering","Seafood",25.89,10,0,258.89999999999998,"Nancy Davolio"]
[10306,"2016-02-23","Romero y tomillo","Spain","Perth Pasties","Meat/Poultry",32.799999999999997,10,0,328,"Nancy Davolio"]
[10306,"2016-02-23","Romero y tomillo","Spain","Tourtière","Meat/Poultry",7.45,5,0,37.25,"Nancy Davolio"]
[10307,"2016-02-24","Lonesome Pine Restaurant","USA","Tarte au sucre","Confections",49.3,10,0,493,"Andrew Fuller"]
[10307,"2016-02-24","Lonesome Pine Restaurant","USA","Scottish Longbreads","Confections",12.5,3,0,37.5,"Andrew Fuller"]
[10308,"2016-02-25","Ana Trujillo Emparedados y helados","Mexico","Outback Lager","Beverages",15,5,0,75,"Robert King"]
[10308,"2016-02-25","Ana Trujillo Emparedados y helados","Mexico","Gudbrandsdalsost","Dairy Products",36,1,0,36,"Robert King"]
[10309,"2016-02-26","Hungry Owl All-Night Grocers","Ireland","Singaporean Hokkien Fried Mee","Grains/Cereals",14,2,0,28,"Janet Leverling"]
[10309,"2016-02-26","Hungry Owl All-Night Grocers","Ireland","Ipoh Coffee","Beverages",46,20,0,920,"Janet Leverling"]
[10309,"2016-02-26","Hungry Owl All-Night Grocers","Ireland","Grandma's Boysenberry Spread","Condiments",25,30,0,750,"Janet Leverling"]
[10309,"2016-02-26","Hungry Owl All-Night Grocers","Ireland","Chef Anton's Cajun Seasoning","Condiments",22,20,0,440,"Janet Leverling"]
[10309,"2016-02-26","Hungry Owl All-Night Grocers","Ireland","Fløtemysost","Dairy Products",21.5,3,0,64.5,"Janet Leverling"]
[10310,"2016-02-27","The Big Cheese","USA","Pavlova","Confections",17.45,10,0,174.5,"Laura Callahan"]
[10310,"2016-02-27","The Big Cheese","USA","Tarte au sucre","Confections",49.3,5,0,246.5,"Laura Callahan"]
[10311,"2016-02-27","Du monde entier","France","Gudbrandsdalsost","Dairy Products",36,7,0,252,"Nancy Davolio"]
[10311,"2016-02-27","Du monde entier","France","Singaporean Hokkien Fried Mee","Grains/Cereals",14,6,0,84,"Nancy Davolio"]
[10312,"2016-03-01","Die Wandernde Kuh","Germany","Rhönbräu Klosterbier","Beverages",7.75,10,0,77.5,"Andrew Fuller"]
[10312,"2016-03-01","Die Wandernde Kuh","Germany","Rössle Sauerkraut","Produce",45.6,4,0,182.4,"Andrew Fuller"]
[10312,"2016-03-01","Die Wandernde Kuh","Germany","Ipoh Coffee","Beverages",46,24,0,1104,"Andrew Fuller"]
[10312,"2016-03-01","Die Wandernde Kuh","Germany","Perth Pasties","Meat/Poultry",32.799999999999997,20,0,656,"Andrew Fuller"]
[10313,"2016-03-02","QUICK-Stop","Germany","Inlagd Sill","Seafood",19,12,0,228,"Andrew Fuller"]
[10314,"2016-03-03","Rattlesnake Canyon Grocery","USA","Tarte au sucre","Confections",49.3,25,0.1,1109.25,"Nancy Davolio"]
[10314,"2016-03-03","Rattlesnake Canyon Grocery","USA","Escargots de Bourgogne","Seafood",13.25,30,0.1,357.75,"Nancy Davolio"]
[10314,"2016-03-03","Rattlesnake Canyon Grocery","USA","Mascarpone Fabioli","Dairy Products",32,40,0.1,1152,"Nancy Davolio"]
[10315,"2016-03-04","Island Trading","UK","Outback Lager","Beverages",15,30,0,450,"Margaret Peacock"]
[10315,"2016-03-04","Island Trading","UK","Sasquatch Ale","Beverages",14,14,0,196,"Margaret Peacock"]
[10316,"2016-03-05","Rattlesnake Canyon Grocery","USA","Tarte au sucre","Confections",49.3,70,0,3451,"Nancy Davolio"]
[10316,"2016-03-05","Rattlesnake Canyon Grocery","USA","Jack's New England Clam Chowder","Seafood",9.65,10,0,96.5,"Nancy Davolio"]
[10317,"2016-03-08","Lonesome Pine Restaurant","USA","Chai","Beverages",18,20,0,360,"Michael Suyama"]
[10318,"2016-03-09","Island Trading","UK","Jack's New England Clam Chowder","Seafood",9.65,20,0,193,"Laura Callahan"]
[10318,"2016-03-09","Island Trading","UK","Lakkalikööri","Beverages",18,6,0,108,"Laura Callahan"]
[10319,"2016-03-10","Tortuga Restaurante","Mexico","Alice Mutton","Meat/Poultry",39,8,0,312,"Robert King"]
[10319,"2016-03-10","Tortuga Restaurante","Mexico","Rössle Sauerkraut","Produce",45.6,14,0,638.4,"Robert King"]
[10319,"2016-03-10","Tortuga Restaurante","Mexico","Lakkalikööri","Beverages",18,30,0,540,"Robert King"]
[10320,"2016-03-11","Wartian Herkku","Finland","Fløtemysost","Dairy Products",21.5,30,0,645,"Steven Buchanan"]
[10321,"2016-03-11","Island Trading","UK","Steeleye Stout","Beverages",18,10,0,180,"Janet Leverling"]
[10322,"2016-03-12","Pericles Comidas clásicas","Mexico","Filo Mix","Grains/Cereals",7,20,0,140,"Robert King"]
[10323,"2016-03-15","Königlich Essen","Germany","NuNuCa Nuß-Nougat-Creme","Confections",14,4,0,{"$f":"ROUND((G195*H195)*(1-I195),2)","v":56},"Margaret Peacock"]
[10323,"2016-03-15","Königlich Essen","Germany","Genen Shouyu","Condiments",15.5,5,0,77.5,"Margaret Peacock"]
[10323,"2016-03-15","Königlich Essen","Germany","Chartreuse verte","Beverages",18,4,0,72,"Margaret Peacock"]
[10324,"2016-03-16","Save-a-lot Markets","USA","Spegesild","Seafood",12,30,0,360,"Anne Dodsworth"]
[10324,"2016-03-16","Save-a-lot Markets","USA","Vegie-spread","Condiments",43.9,80,0.15,2985.2,"Anne Dodsworth"]
[10324,"2016-03-16","Save-a-lot Markets","USA","Raclette Courdavault","Dairy Products",55,40,0.15,1870,"Anne Dodsworth"]
[10324,"2016-03-16","Save-a-lot Markets","USA","Pavlova","Confections",17.45,21,0.15,311.48,"Anne Dodsworth"]
[10324,"2016-03-16","Save-a-lot Markets","USA","Steeleye Stout","Beverages",18,70,0.15,1071,"Anne Dodsworth"]
[10325,"2016-03-17","Königlich Essen","Germany","Tofu","Produce",23.25,9,0,209.25,"Nancy Davolio"]
[10325,"2016-03-17","Königlich Essen","Germany","Grandma's Boysenberry Spread","Condiments",25,6,0,150,"Nancy Davolio"]
[10325,"2016-03-17","Königlich Essen","Germany","Mozzarella di Giovanni","Dairy Products",34.799999999999997,40,0,1392,"Nancy Davolio"]
[10325,"2016-03-17","Königlich Essen","Germany","Gorgonzola Telino","Dairy Products",12.5,4,0,50,"Nancy Davolio"]
[10325,"2016-03-17","Königlich Essen","Germany","Konbu","Seafood",6,12,0,72,"Nancy Davolio"]
[10326,"2016-03-18","Bólido Comidas preparadas","Spain","Ravioli Angelo","Grains/Cereals",19.5,16,0,312,"Margaret Peacock"]
[10326,"2016-03-18","Bólido Comidas preparadas","Spain","Chef Anton's Cajun Seasoning","Condiments",22,24,0,528,"Margaret Peacock"]
[10326,"2016-03-18","Bólido Comidas preparadas","Spain","Rhönbräu Klosterbier","Beverages",7.75,50,0,387.5,"Margaret Peacock"]
[10327,"2016-03-19","Folk och fä HB","Sweden","Queso Cabrales","Dairy Products",21,50,0.2,840,"Andrew Fuller"]
[10327,"2016-03-19","Folk och fä HB","Sweden","Chang","Beverages",19,25,0.2,380,"Andrew Fuller"]
[10327,"2016-03-19","Folk och fä HB","Sweden","Nord-Ost Matjeshering","Seafood",25.89,35,0.2,724.92,"Andrew Fuller"]
[10327,"2016-03-19","Folk och fä HB","Sweden","Escargots de Bourgogne","Seafood",13.25,30,0.2,318,"Andrew Fuller"]
[10328,"2016-03-22","Furia Bacalhau e Frutos do Mar","Portugal","Raclette Courdavault","Dairy Products",55,9,0,495,"Margaret Peacock"]
[10328,"2016-03-22","Furia Bacalhau e Frutos do Mar","Portugal","Louisiana Fiery Hot Pepper Sauce","Condiments",21.05,40,0,842,"Margaret Peacock"]
[10328,"2016-03-22","Furia Bacalhau e Frutos do Mar","Portugal","Scottish Longbreads","Confections",12.5,10,0,125,"Margaret Peacock"]
[10329,"2016-03-23","Split Rail Beer & Ale","USA","Gnocchi di nonna Alice","Grains/Cereals",38,12,0.05,433.2,"Margaret Peacock"]
[10329,"2016-03-23","Split Rail Beer & Ale","USA","Côte de Blaye","Beverages",263.5,20,0.05,5006.5,"Margaret Peacock"]
[10329,"2016-03-23","Split Rail Beer & Ale","USA","Nord-Ost Matjeshering","Seafood",25.89,8,0.05,196.76,"Margaret Peacock"]
[10329,"2016-03-23","Split Rail Beer & Ale","USA","Teatime Chocolate Biscuits","Confections",9.1999999999999993,10,0.05,87.4,"Margaret Peacock"]
[10330,"2016-03-24","LILA-Supermercado","Venezuela","Gumbär Gummibärchen","Confections",31.23,50,0.15,1327.28,"Janet Leverling"]
[10330,"2016-03-24","LILA-Supermercado","Venezuela","Mozzarella di Giovanni","Dairy Products",34.799999999999997,25,0.15,739.5,"Janet Leverling"]
[10331,"2016-03-24","Bon app'","France","Tourtière","Meat/Poultry",7.45,15,0,111.75,"Anne Dodsworth"]
[10332,"2016-03-25","Mère Paillarde","Canada","Zaanse koeken","Confections",9.5,16,0.2,121.6,"Janet Leverling"]
[10332,"2016-03-25","Mère Paillarde","Canada","Singaporean Hokkien Fried Mee","Grains/Cereals",14,10,0.2,112,"Janet Leverling"]
[10332,"2016-03-25","Mère Paillarde","Canada","Carnarvon Tigers","Seafood",62.5,40,0.2,2000,"Janet Leverling"]
[10333,"2016-03-26","Wartian Herkku","Finland","Fløtemysost","Dairy Products",21.5,40,0.1,774,"Steven Buchanan"]
[10333,"2016-03-26","Wartian Herkku","Finland","Tofu","Produce",23.25,10,0,232.5,"Steven Buchanan"]
[10333,"2016-03-26","Wartian Herkku","Finland","Sir Rodney's Scones","Confections",10,10,0.1,90,"Steven Buchanan"]
[10334,"2016-03-29","Victuailles en stock","France","Filo Mix","Grains/Cereals",7,8,0,56,"Laura Callahan"]
[10334,"2016-03-29","Victuailles en stock","France","Scottish Longbreads","Confections",12.5,10,0,125,"Laura Callahan"]
[10335,"2016-03-30","Hungry Owl All-Night Grocers","Ireland","Mascarpone Fabioli","Dairy Products",32,6,0.2,153.6,"Robert King"]
[10335,"2016-03-30","Hungry Owl All-Night Grocers","Ireland","Gorgonzola Telino","Dairy Products",12.5,25,0.2,250,"Robert King"]
[10335,"2016-03-30","Hungry Owl All-Night Grocers","Ireland","Chang","Beverages",19,7,0.2,106.4,"Robert King"]
[10335,"2016-03-30","Hungry Owl All-Night Grocers","Ireland","Manjimup Dried Apples","Produce",53,48,0.2,2035.2,"Robert King"]
[10336,"2016-03-31","Princesa Isabel Vinhos","Portugal","Chef Anton's Cajun Seasoning","Condiments",22,18,0.1,356.4,"Robert King"]
[10337,"2016-04-01","Frankenversand","Germany","Tunnbröd","Grains/Cereals",9,40,0,360,"Margaret Peacock"]
[10337,"2016-04-01","Frankenversand","Germany","Gumbär Gummibärchen","Confections",31.23,24,0,749.52,"Margaret Peacock"]
[10337,"2016-04-01","Frankenversand","Germany","Inlagd Sill","Seafood",19,20,0,380,"Margaret Peacock"]
[10337,"2016-04-01","Frankenversand","Germany","Gravad lax","Seafood",26,28,0,728,"Margaret Peacock"]
[10337,"2016-04-01","Frankenversand","Germany","Mozzarella di Giovanni","Dairy Products",34.799999999999997,25,0,870,"Margaret Peacock"]
[10338,"2016-04-02","Old World Delicatessen","USA","Nord-Ost Matjeshering","Seafood",25.89,15,0,388.35,"Margaret Peacock"]
[10338,"2016-04-02","Old World Delicatessen","USA","Alice Mutton","Meat/Poultry",39,20,0,780,"Margaret Peacock"]
[10339,"2016-04-05","Mère Paillarde","Canada","Alice Mutton","Meat/Poultry",39,70,0.05,2593.5,"Andrew Fuller"]
[10339,"2016-04-05","Mère Paillarde","Canada","Tarte au sucre","Confections",49.3,28,0,1380.4,"Andrew Fuller"]
[10339,"2016-04-05","Mère Paillarde","Canada","Chef Anton's Cajun Seasoning","Condiments",22,10,0,220,"Andrew Fuller"]
[10340,"2016-04-06","Bon app'","France","Carnarvon Tigers","Seafood",62.5,20,0.05,1187.5,"Nancy Davolio"]
[10340,"2016-04-06","Bon app'","France","Ipoh Coffee","Beverages",46,40,0.05,1748,"Nancy Davolio"]
[10340,"2016-04-06","Bon app'","France","Jack's New England Clam Chowder","Seafood",9.65,12,0.05,110.01,"Nancy Davolio"]
[10341,"2016-04-06","Simons bistro","Denmark","Raclette Courdavault","Dairy Products",55,9,0.15,420.75,"Robert King"]
[10341,"2016-04-06","Simons bistro","Denmark","Geitost","Dairy Products",2.5,8,0,20,"Robert King"]
[10342,"2016-04-07","Frankenversand","Germany","Pâté chinois","Meat/Poultry",24,40,0.2,768,"Margaret Peacock"]
[10342,"2016-04-07","Frankenversand","Germany","Chang","Beverages",19,24,0.2,364.8,"Margaret Peacock"]
[10342,"2016-04-07","Frankenversand","Germany","Inlagd Sill","Seafood",19,40,0.2,608,"Margaret Peacock"]
[10342,"2016-04-07","Frankenversand","Germany","Gorgonzola Telino","Dairy Products",12.5,56,0.2,560,"Margaret Peacock"]
[10343,"2016-04-08","Lehmanns Marktstand","Germany","Lakkalikööri","Beverages",18,15,0,270,"Margaret Peacock"]
[10343,"2016-04-08","Lehmanns Marktstand","Germany","Scottish Longbreads","Confections",12.5,4,0.05,47.5,"Margaret Peacock"]
[10343,"2016-04-08","Lehmanns Marktstand","Germany","Wimmers gute Semmelknödel","Grains/Cereals",33.25,50,0,{"$f":"ROUND((G259*H259)*(1-I259),2)","v":1662.5},"Margaret Peacock"]
[10344,"2016-04-09","White Clover Markets","USA","Chef Anton's Cajun Seasoning","Condiments",22,35,0,770,"Margaret Peacock"]
[10344,"2016-04-09","White Clover Markets","USA","Northwoods Cranberry Sauce","Condiments",40,70,0.25,2100,"Margaret Peacock"]
[10345,"2016-04-12","QUICK-Stop","Germany","Northwoods Cranberry Sauce","Condiments",40,70,0,2800,"Andrew Fuller"]
[10345,"2016-04-12","QUICK-Stop","Germany","Teatime Chocolate Biscuits","Confections",9.1999999999999993,80,0,736,"Andrew Fuller"]
[10345,"2016-04-12","QUICK-Stop","Germany","Singaporean Hokkien Fried Mee","Grains/Cereals",14,9,0,126,"Andrew Fuller"]
[10346,"2016-04-13","Rattlesnake Canyon Grocery","USA","Alice Mutton","Meat/Poultry",39,36,0.1,1263.5999999999999,"Janet Leverling"]
[10346,"2016-04-13","Rattlesnake Canyon Grocery","USA","Gnocchi di nonna Alice","Grains/Cereals",38,20,0,760,"Janet Leverling"]
[10347,"2016-04-14","Familia Arquibaldo","Brazil","NuNuCa Nuß-Nougat-Creme","Confections",14,10,0,140,"Margaret Peacock"]
[10347,"2016-04-14","Familia Arquibaldo","Brazil","Rhönbräu Klosterbier","Beverages",7.75,6,0.15,39.53,"Margaret Peacock"]
[10347,"2016-04-14","Familia Arquibaldo","Brazil","Boston Crab Meat","Seafood",18.399999999999999,4,0,73.599999999999994,"Margaret Peacock"]
[10347,"2016-04-14","Familia Arquibaldo","Brazil","Chartreuse verte","Beverages",18,50,0.15,765,"Margaret Peacock"]
[10348,"2016-04-15","Die Wandernde Kuh","Germany","Chai","Beverages",18,15,0.15,229.5,"Margaret Peacock"]
[10348,"2016-04-15","Die Wandernde Kuh","Germany","Tunnbröd","Grains/Cereals",9,25,0,225,"Margaret Peacock"]
[10349,"2016-04-16","Split Rail Beer & Ale","USA","Tourtière","Meat/Poultry",7.45,24,0,178.8,"Robert King"]
[10350,"2016-04-19","La maison d'Asie","France","Valkoinen suklaa","Confections",16.25,15,0.1,219.38,"Michael Suyama"]
[10350,"2016-04-19","La maison d'Asie","France","Gudbrandsdalsost","Dairy Products",36,18,0.1,583.20000000000005,"Michael Suyama"]
[10351,"2016-04-19","Ernst Handel","Austria","Côte de Blaye","Beverages",263.5,20,0.05,5006.5,"Nancy Davolio"]

{"sheet":"Portsmouth","index":7,"n_rows":684,"n_cols":11,"rows_kept":684,"cut":false,"hidden":false,"merged":[]}
["Order ID","Order Date","Customer Name","Country","Product Name","Product Category","Unit Price","Units Sold","Discount","Total Sales Value","Sales Rep"]
[10248,"2015-12-11","Vins et alcools Chevalier","France","Mozzarella di Giovanni","Dairy Products",34.799999999999997,5,0,{"$f":"ROUND((G2*H2)*(1-I2),2)","v":174},"Steven Buchanan"]
[10248,"2015-12-11","Vins et alcools Chevalier","France","Singaporean Hokkien Fried Mee","Grains/Cereals",14,10,0,{"$f":"ROUND((G3*H3)*(1-I3),2)","v":140},"Steven Buchanan"]
[10248,"2015-12-11","Vins et alcools Chevalier","France","Queso Cabrales","Dairy Products",21,12,0,252,"Steven Buchanan"]
[10249,"2015-12-12","Toms Spezialitäten","Germany","Manjimup Dried Apples","Produce",53,40,0,2120,"Michael Suyama"]
[10249,"2015-12-12","Toms Spezialitäten","Germany","Tofu","Produce",23.25,9,0,209.25,"Michael Suyama"]
[10250,"2015-12-15","Hanari Carnes","Brazil","Manjimup Dried Apples","Produce",53,35,0.15,1576.75,"Margaret Peacock"]
[10250,"2015-12-15","Hanari Carnes","Brazil","Jack's New England Clam Chowder","Seafood",9.65,10,0,96.5,"Margaret Peacock"]
[10250,"2015-12-15","Hanari Carnes","Brazil","Louisiana Fiery Hot Pepper Sauce","Condiments",21.05,15,0.15,268.39,"Margaret Peacock"]
[10251,"2015-12-15","Victuailles en stock","France","Gustaf's Knäckebröd","Grains/Cereals",21,6,0.05,119.7,"Janet Leverling"]
[10251,"2015-12-15","Victuailles en stock","France","Louisiana Fiery Hot Pepper Sauce","Condiments",21.05,20,0,421,"Janet Leverling"]
[10251,"2015-12-15","Victuailles en stock","France","Ravioli Angelo","Grains/Cereals",19.5,15,0.05,277.88,"Janet Leverling"]
[10252,"2015-12-16","Suprêmes délices","Belgium","Geitost","Dairy Products",2.5,25,0.05,59.38,"Margaret Peacock"]
[10252,"2015-12-16","Suprêmes délices","Belgium","Camembert Pierrot","Dairy Products",34,40,0,1360,"Margaret Peacock"]
[10252,"2015-12-16","Suprêmes délices","Belgium","Sir Rodney's Marmalade","Confections",81,40,0.05,3078,"Margaret Peacock"]
[10253,"2015-12-17","Hanari Carnes","Brazil","Chartreuse verte","Beverages",18,42,0,756,"Janet Leverling"]
[10253,"2015-12-17","Hanari Carnes","Brazil","Gorgonzola Telino","Dairy Products",12.5,20,0,250,"Janet Leverling"]
[10253,"2015-12-17","Hanari Carnes","Brazil","Maxilaku","Confections",20,40,0,800,"Janet Leverling"]
[10254,"2015-12-18","Chop-suey Chinese","Switzerland","Longlife Tofu","Produce",10,21,0,210,"Steven Buchanan"]
[10254,"2015-12-18","Chop-suey Chinese","Switzerland","Pâté chinois","Meat/Poultry",24,21,0.15,428.4,"Steven Buchanan"]
[10254,"2015-12-18","Chop-suey Chinese","Switzerland","Guaraná Fantástica","Beverages",4.5,15,0.15,57.38,"Steven Buchanan"]
[10255,"2015-12-19","Richter Supermarkt","Switzerland","Chang","Beverages",19,20,0,380,"Anne Dodsworth"]
[10255,"2015-12-19","Richter Supermarkt","Switzerland","Raclette Courdavault","Dairy Products",55,30,0,1650,"Anne Dodsworth"]
[10255,"2015-12-19","Richter Supermarkt","Switzerland","Pavlova","Confections",17.45,35,0,610.75,"Anne Dodsworth"]
[10255,"2015-12-19","Richter Supermarkt","Switzerland","Inlagd Sill","Seafood",19,25,0,475,"Anne Dodsworth"]
[10256,"2015-12-22","Wellington Importadora","Brazil","Perth Pasties","Meat/Poultry",32.799999999999997,15,0,492,"Janet Leverling"]
[10256,"2015-12-22","Wellington Importadora","Brazil","Original Frankfurter grüne Soße","Condiments",13,12,0,156,"Janet Leverling"]
[10257,"2015-12-23","HILARIÓN-Abastos","Venezuela","Schoggi Schokolade","Confections",43.9,25,0,1097.5,"Margaret Peacock"]
[10257,"2015-12-23","HILARIÓN-Abastos","Venezuela","Chartreuse verte","Beverages",18,6,0,108,"Margaret Peacock"]
[10257,"2015-12-23","HILARIÓN-Abastos","Venezuela","Original Frankfurter grüne Soße","Condiments",13,15,0,195,"Margaret Peacock"]
[10258,"2015-12-24","Ernst Handel","Austria","Chef Anton's Gumbo Mix","Condiments",21.35,65,0.2,1110.2,"Nancy Davolio"]
[10258,"2015-12-24","Ernst Handel","Austria","Chang","Beverages",19,50,0.2,760,"Nancy Davolio"]
[10258,"2015-12-24","Ernst Handel","Austria","Mascarpone Fabioli","Dairy Products",32,6,0.2,153.6,"Nancy Davolio"]
[10259,"2015-12-25","Centro comercial Moctezuma","Mexico","Sir Rodney's Scones","Confections",10,10,0,100,"Margaret Peacock"]
[10259,"2015-12-25","Centro comercial Moctezuma","Mexico","Gravad lax","Seafood",26,1,0,26,"Margaret Peacock"]
[10260,"2015-12-26","Ottilies Käseladen","Germany","Outback Lager","Beverages",15,21,0.25,236.25,"Margaret Peacock"]
[10260,"2015-12-26","Ottilies Käseladen","Germany","Ravioli Angelo","Grains/Cereals",19.5,50,0,975,"Margaret Peacock"]
[10260,"2015-12-26","Ottilies Käseladen","Germany","Tarte au sucre","Confections",49.3,15,0.25,554.63,"Margaret Peacock"]
[10260,"2015-12-26","Ottilies Käseladen","Germany","Jack's New England Clam Chowder","Seafood",9.65,16,0.25,115.8,"Margaret Peacock"]
[10261,"2015-12-26","Que Delícia","Brazil","Steeleye Stout","Beverages",18,20,0,360,"Margaret Peacock"]
[10261,"2015-12-26","Que Delícia","Brazil","Sir Rodney's Scones","Confections",10,20,0,200,"Margaret Peacock"]
[10262,"2015-12-29","Rattlesnake Canyon Grocery","USA","Chef Anton's Gumbo Mix","Condiments",21.35,12,0.2,204.96,"Laura Callahan"]
[10262,"2015-12-29","Rattlesnake Canyon Grocery","USA","Uncle Bob's Organic Dried Pears","Produce",30,15,0,450,"Laura Callahan"]
[10262,"2015-12-29","Rattlesnake Canyon Grocery","USA","Gnocchi di nonna Alice","Grains/Cereals",38,2,0,76,"Laura Callahan"]
[10263,"2015-12-30","Ernst Handel","Austria","Pavlova","Confections",17.45,60,0.25,785.25,"Anne Dodsworth"]
[10263,"2015-12-30","Ernst Handel","Austria","Nord-Ost Matjeshering","Seafood",25.89,60,0.25,1165.05,"Anne Dodsworth"]
[10263,"2015-12-30","Ernst Handel","Austria","Guaraná Fantástica","Beverages",4.5,28,0,126,"Anne Dodsworth"]
[10263,"2015-12-30","Ernst Handel","Austria","Longlife Tofu","Produce",10,36,0.25,270,"Anne Dodsworth"]
[10264,"2015-12-31","Folk och fä HB","Sweden","Chang","Beverages",19,35,0,665,"Michael Suyama"]
[10264,"2015-12-31","Folk och fä HB","Sweden","Jack's New England Clam Chowder","Seafood",9.65,25,0.15,205.06,"Michael Suyama"]
[10265,"2016-01-01","Blondel père et fils","France","Alice Mutton","Meat/Poultry",39,30,0,1170,"Andrew Fuller"]
[10265,"2016-01-01","Blondel père et fils","France","Outback Lager","Beverages",15,20,0,300,"Andrew Fuller"]
[10266,"2016-01-02","Wartian Herkku","Finland","Queso Manchego La Pastora","Dairy Products",38,12,0.05,433.2,"Janet Leverling"]
[10267,"2016-01-05","Frankenversand","Germany","Lakkalikööri","Beverages",18,15,0.15,229.5,"Margaret Peacock"]
[10267,"2016-01-05","Frankenversand","Germany","Boston Crab Meat","Seafood",18.399999999999999,50,0,920,"Margaret Peacock"]
[10267,"2016-01-05","Frankenversand","Germany","Raclette Courdavault","Dairy Products",55,70,0.15,3272.5,"Margaret Peacock"]
[10268,"2016-01-06","GROSELLA-Restaurante","Venezuela","Mozzarella di Giovanni","Dairy Products",34.799999999999997,4,0,139.19999999999999,"Laura Callahan"]
[10268,"2016-01-06","GROSELLA-Restaurante","Venezuela","Thüringer Rostbratwurst","Meat/Poultry",123.79,10,0,1237.9000000000001,"Laura Callahan"]
[10269,"2016-01-07","White Clover Markets","USA","Mozzarella di Giovanni","Dairy Products",34.799999999999997,20,0.05,661.2,"Steven Buchanan"]
[10269,"2016-01-07","White Clover Markets","USA","Geitost","Dairy Products",2.5,60,0.05,142.5,"Steven Buchanan"]
[10270,"2016-01-08","Wartian Herkku","Finland","Inlagd Sill","Seafood",19,30,0,570,"Nancy Davolio"]
[10270,"2016-01-08","Wartian Herkku","Finland","Ipoh Coffee","Beverages",46,25,0,1150,"Nancy Davolio"]
[10271,"2016-01-08","Split Rail Beer & Ale","USA","Geitost","Dairy Products",2.5,24,0,60,"Michael Suyama"]
[10272,"2016-01-09","Rattlesnake Canyon Grocery","USA","Gorgonzola Telino","Dairy Products",12.5,40,0,500,"Michael Suyama"]
[10272,"2016-01-09","Rattlesnake Canyon Grocery","USA","Sir Rodney's Marmalade","Confections",81,6,0,486,"Michael Suyama"]
[10272,"2016-01-09","Rattlesnake Canyon Grocery","USA","Mozzarella di Giovanni","Dairy Products",34.799999999999997,24,0,835.2,"Michael Suyama"]
[10273,"2016-01-12","QUICK-Stop","Germany","Boston Crab Meat","Seafood",18.399999999999999,60,0.05,{"$f":"ROUND((G67*H67)*(1-I67),2)","v":1048.8},"Janet Leverling"]
[10273,"2016-01-12","QUICK-Stop","Germany","Geitost","Dairy Products",2.5,20,0,50,"Janet Leverling"]
[10273,"2016-01-12","QUICK-Stop","Germany","Gorgonzola Telino","Dairy Products",12.5,15,0.05,178.13,"Janet Leverling"]
[10273,"2016-01-12","QUICK-Stop","Germany","Ikura","Seafood",31,24,0.05,706.8,"Janet Leverling"]
[10273,"2016-01-12","QUICK-Stop","Germany","Lakkalikööri","Beverages",18,33,0.05,564.29999999999995,"Janet Leverling"]
[10274,"2016-01-13","Vins et alcools Chevalier","France","Fløtemysost","Dairy Products",21.5,20,0,430,"Michael Suyama"]
[10274,"2016-01-13","Vins et alcools Chevalier","France","Mozzarella di Giovanni","Dairy Products",34.799999999999997,7,0,243.6,"Michael Suyama"]
[10275,"2016-01-14","Magazzini Alimentari Riuniti","Italy","Guaraná Fantástica","Beverages",4.5,12,0.05,51.3,"Nancy Davolio"]
[10275,"2016-01-14","Magazzini Alimentari Riuniti","Italy","Raclette Courdavault","Dairy Products",55,6,0.05,313.5,"Nancy Davolio"]
[10276,"2016-01-15","Tortuga Restaurante","Mexico","Ikura","Seafood",31,15,0,465,"Laura Callahan"]
[10276,"2016-01-15","Tortuga Restaurante","Mexico","Konbu","Seafood",6,10,0,60,"Laura Callahan"]
[10277,"2016-01-16","Morgenstern Gesundkost","Germany","Rössle Sauerkraut","Produce",45.6,20,0,912,"Andrew Fuller"]
[10277,"2016-01-16","Morgenstern Gesundkost","Germany","Tarte au sucre","Confections",49.3,12,0,591.6,"Andrew Fuller"]
[10278,"2016-01-19","Berglunds snabbköp","Sweden","Raclette Courdavault","Dairy Products",55,15,0,825,"Laura Callahan"]
[10278,"2016-01-19","Berglunds snabbköp","Sweden","Röd Kaviar","Seafood",15,25,0,375,"Laura Callahan"]
[10278,"2016-01-19","Berglunds snabbköp","Sweden","Gula Malacca","Condiments",19.45,16,0,311.2,"Laura Callahan"]
[10278,"2016-01-19","Berglunds snabbköp","Sweden","Vegie-spread","Condiments",43.9,8,0,351.2,"Laura Callahan"]
[10279,"2016-01-20","Lehmanns Marktstand","Germany","Alice Mutton","Meat/Poultry",39,15,0.25,438.75,"Laura Callahan"]
[10280,"2016-01-21","Berglunds snabbköp","Sweden","Pâté chinois","Meat/Poultry",24,20,0,480,"Andrew Fuller"]
[10280,"2016-01-21","Berglunds snabbköp","Sweden","Rhönbräu Klosterbier","Beverages",7.75,30,0,232.5,"Andrew Fuller"]
[10280,"2016-01-21","Berglunds snabbköp","Sweden","Guaraná Fantástica","Beverages",4.5,12,0,54,"Andrew Fuller"]
[10281,"2016-01-21","Romero y tomillo","Spain","Guaraná Fantástica","Beverages",4.5,6,0,27,"Margaret Peacock"]
[10281,"2016-01-21","Romero y tomillo","Spain","Steeleye Stout","Beverages",18,4,0,72,"Margaret Peacock"]
[10281,"2016-01-21","Romero y tomillo","Spain","Teatime Chocolate Biscuits","Confections",9.1999999999999993,1,0,9.1999999999999993,"Margaret Peacock"]
[10282,"2016-01-22","Romero y tomillo","Spain","Ravioli Angelo","Grains/Cereals",19.5,2,0,39,"Margaret Peacock"]
[10282,"2016-01-22","Romero y tomillo","Spain","Nord-Ost Matjeshering","Seafood",25.89,6,0,155.34,"Margaret Peacock"]
[10283,"2016-01-23","LILA-Supermercado","Venezuela","Teatime Chocolate Biscuits","Confections",9.1999999999999993,18,0,165.6,"Janet Leverling"]
[10283,"2016-01-23","LILA-Supermercado","Venezuela","Camembert Pierrot","Dairy Products",34,35,0,1190,"Janet Leverling"]
[10283,"2016-01-23","LILA-Supermercado","Venezuela","Genen Shouyu","Condiments",15.5,20,0,310,"Janet Leverling"]
[10283,"2016-01-23","LILA-Supermercado","Venezuela","Mozzarella di Giovanni","Dairy Products",34.799999999999997,3,0,104.4,"Janet Leverling"]
[10284,"2016-01-26","Lehmanns Marktstand","Germany","Laughing Lumberjack Lager","Beverages",14,5,0.25,52.5,"Margaret Peacock"]
[10284,"2016-01-26","Lehmanns Marktstand","Germany","Gula Malacca","Condiments",19.45,21,0,408.45,"Margaret Peacock"]
[10284,"2016-01-26","Lehmanns Marktstand","Germany","Camembert Pierrot","Dairy Products",34,20,0.25,510,"Margaret Peacock"]
[10284,"2016-01-26","Lehmanns Marktstand","Germany","Schoggi Schokolade","Confections",43.9,15,0.25,493.88,"Margaret Peacock"]
[10285,"2016-01-27","QUICK-Stop","Germany","Chai","Beverages",18,45,0.2,648,"Nancy Davolio"]
[10285,"2016-01-27","QUICK-Stop","Germany","Boston Crab Meat","Seafood",18.399999999999999,40,0.2,588.79999999999995,"Nancy Davolio"]
[10285,"2016-01-27","QUICK-Stop","Germany","Perth Pasties","Meat/Poultry",32.799999999999997,36,0.2,944.64,"Nancy Davolio"]
[10286,"2016-01-28","QUICK-Stop","Germany","Tarte au sucre","Confections",49.3,40,0,1972,"Laura Callahan"]
[10286,"2016-01-28","QUICK-Stop","Germany","Steeleye Stout","Beverages",18,100,0,1800,"Laura Callahan"]
[10287,"2016-01-29","Ricardo Adocicados","Brazil","Spegesild","Seafood",12,15,0.15,153,"Laura Callahan"]
[10287,"2016-01-29","Ricardo Adocicados","Brazil","Pavlova","Confections",17.45,40,0.15,593.29999999999995,"Laura Callahan"]
[10287,"2016-01-29","Ricardo Adocicados","Brazil","Sasquatch Ale","Beverages",14,20,0,280,"Laura Callahan"]
[10288,"2016-01-30","Reggiani Caseifici","Italy","Scottish Longbreads","Confections",12.5,3,0.1,33.75,"Margaret Peacock"]
[10288,"2016-01-30","Reggiani Caseifici","Italy","Tourtière","Meat/Poultry",7.45,10,0.1,67.05,"Margaret Peacock"]
[10289,"2016-02-02","B's Beverages","UK","Aniseed Syrup","Condiments",10,30,0,300,"Robert King"]
[10289,"2016-02-02","B's Beverages","UK","Wimmers gute Semmelknödel","Grains/Cereals",33.25,9,0,299.25,"Robert King"]
[10290,"2016-02-03","Comércio Mineiro","Brazil","Original Frankfurter grüne Soße","Condiments",13,10,0,130,"Laura Callahan"]
[10290,"2016-02-03","Comércio Mineiro","Brazil","Thüringer Rostbratwurst","Meat/Poultry",123.79,15,0,1856.85,"Laura Callahan"]
[10290,"2016-02-03","Comércio Mineiro","Brazil","Maxilaku","Confections",20,15,0,300,"Laura Callahan"]
[10290,"2016-02-03","Comércio Mineiro","Brazil","Chef Anton's Gumbo Mix","Condiments",21.35,20,0,427,"Laura Callahan"]
[10291,"2016-02-03","Que Delícia","Brazil","Gula Malacca","Condiments",19.45,24,0.1,420.12,"Michael Suyama"]
[10291,"2016-02-03","Que Delícia","Brazil","Konbu","Seafood",6,20,0.1,108,"Michael Suyama"]
[10291,"2016-02-03","Que Delícia","Brazil","Manjimup Dried Apples","Produce",53,2,0.1,95.4,"Michael Suyama"]
[10292,"2016-02-04","Tradição Hipermercados","Brazil","Sir Rodney's Marmalade","Confections",81,20,0,1620,"Nancy Davolio"]
[10293,"2016-02-05","Tortuga Restaurante","Mexico","Carnarvon Tigers","Seafood",62.5,12,0,750,"Nancy Davolio"]
[10293,"2016-02-05","Tortuga Restaurante","Mexico","Rhönbräu Klosterbier","Beverages",7.75,6,0,46.5,"Nancy Davolio"]
[10293,"2016-02-05","Tortuga Restaurante","Mexico","Guaraná Fantástica","Beverages",4.5,10,0,45,"Nancy Davolio"]
[10293,"2016-02-05","Tortuga Restaurante","Mexico","Vegie-spread","Condiments",43.9,5,0,219.5,"Nancy Davolio"]
[10294,"2016-02-06","Rattlesnake Canyon Grocery","USA","Camembert Pierrot","Dairy Products",34,21,0,714,"Margaret Peacock"]
[10294,"2016-02-06","Rattlesnake Canyon Grocery","USA","Rhönbräu Klosterbier","Beverages",7.75,6,0,46.5,"Margaret Peacock"]
[10294,"2016-02-06","Rattlesnake Canyon Grocery","USA","Chai","Beverages",18,18,0,324,"Margaret Peacock"]
[10294,"2016-02-06","Rattlesnake Canyon Grocery","USA","Ipoh Coffee","Beverages",46,15,0,690,"Margaret Peacock"]
[10294,"2016-02-06","Rattlesnake Canyon Grocery","USA","Alice Mutton","Meat/Poultry",39,15,0,585,"Margaret Peacock"]
[10295,"2016-02-09","Vins et alcools Chevalier","France","Gnocchi di nonna Alice","Grains/Cereals",38,4,0,152,"Andrew Fuller"]
[10296,"2016-02-10","LILA-Supermercado","Venezuela","Gudbrandsdalsost","Dairy Products",36,15,0,{"$f":"ROUND((G131*H131)*(1-I131),2)","v":540},"Michael Suyama"]
[10296,"2016-02-10","LILA-Supermercado","Venezuela","Queso Cabrales","Dairy Products",21,12,0,252,"Michael Suyama"]
[10296,"2016-02-10","LILA-Supermercado","Venezuela","Pavlova","Confections",17.45,30,0,523.5,"Michael Suyama"]
[10297,"2016-02-11","Blondel père et fils","France","Mozzarella di Giovanni","Dairy Products",34.799999999999997,20,0,696,"Steven Buchanan"]
[10297,"2016-02-11","Blondel père et fils","France","Chartreuse verte","Beverages",18,60,0,1080,"Steven Buchanan"]
[10298,"2016-02-12","Hungry Owl All-Night Grocers","Ireland","Chang","Beverages",19,40,0,760,"Michael Suyama"]
[10298,"2016-02-12","Hungry Owl All-Night Grocers","Ireland","Inlagd Sill","Seafood",19,40,0.25,570,"Michael Suyama"]
[10298,"2016-02-12","Hungry Owl All-Night Grocers","Ireland","Tarte au sucre","Confections",49.3,15,0,739.5,"Michael Suyama"]
[10298,"2016-02-12","Hungry Owl All-Night Grocers","Ireland","Raclette Courdavault","Dairy Products",55,30,0.25,1237.5,"Michael Suyama"]
[10299,"2016-02-13","Ricardo Adocicados","Brazil","Outback Lager","Beverages",15,20,0,300,"Margaret Peacock"]
[10299,"2016-02-13","Ricardo Adocicados","Brazil","Teatime Chocolate Biscuits","Confections",9.1999999999999993,15,0,138,"Margaret Peacock"]
[10300,"2016-02-16","Magazzini Alimentari Riuniti","Italy","Scottish Longbreads","Confections",12.5,20,0,250,"Andrew Fuller"]
[10300,"2016-02-16","Magazzini Alimentari Riuniti","Italy","Louisiana Hot Spiced Okra","Condiments",17,30,0,510,"Andrew Fuller"]
[10301,"2016-02-16","Die Wandernde Kuh","Germany","Gnocchi di nonna Alice","Grains/Cereals",38,20,0,760,"Laura Callahan"]
[10301,"2016-02-16","Die Wandernde Kuh","Germany","Boston Crab Meat","Seafood",18.399999999999999,10,0,184,"Laura Callahan"]
[10302,"2016-02-17","Suprêmes délices","Belgium","Ipoh Coffee","Beverages",46,12,0,552,"Margaret Peacock"]
[10302,"2016-02-17","Suprêmes délices","Belgium","Rössle Sauerkraut","Produce",45.6,28,0,1276.8,"Margaret Peacock"]
[10302,"2016-02-17","Suprêmes délices","Belgium","Alice Mutton","Meat/Poultry",39,40,0,1560,"Margaret Peacock"]
[10303,"2016-02-18","Godos Cocina Típica","Spain","Louisiana Fiery Hot Pepper Sauce","Condiments",21.05,30,0.1,568.35,"Robert King"]
[10303,"2016-02-18","Godos Cocina Típica","Spain","Boston Crab Meat","Seafood",18.399999999999999,40,0.1,662.4,"Robert King"]
[10303,"2016-02-18","Godos Cocina Típica","Spain","Scottish Longbreads","Confections",12.5,15,0.1,168.75,"Robert King"]
[10304,"2016-02-19","Tortuga Restaurante","Mexico","Maxilaku","Confections",20,30,0,600,"Nancy Davolio"]
[10304,"2016-02-19","Tortuga Restaurante","Mexico","Raclette Courdavault","Dairy Products",55,10,0,550,"Nancy Davolio"]
[10304,"2016-02-19","Tortuga Restaurante","Mexico","Fløtemysost","Dairy Products",21.5,2,0,43,"Nancy Davolio"]
[10305,"2016-02-20","Old World Delicatessen","USA","Chartreuse verte","Beverages",18,30,0.1,486,"Laura Callahan"]
[10305,"2016-02-20","Old World Delicatessen","USA","Thüringer Rostbratwurst","Meat/Poultry",123.79,25,0.1,2785.28,"Laura Callahan"]
[10305,"2016-02-20","Old World Delicatessen","USA","Carnarvon Tigers","Seafood",62.5,25,0.1,1406.25,"Laura Callahan"]
[10306,"2016-02-23","Romero y tomillo","Spain","Nord-Ost Matjeshering","Seafood",25.89,10,0,258.89999999999998,"Nancy Davolio"]
[10306,"2016-02-23","Romero y tomillo","Spain","Perth Pasties","Meat/Poultry",32.799999999999997,10,0,328,"Nancy Davolio"]
[10306,"2016-02-23","Romero y tomillo","Spain","Tourtière","Meat/Poultry",7.45,5,0,37.25,"Nancy Davolio"]
[10307,"2016-02-24","Lonesome Pine Restaurant","USA","Tarte au sucre","Confections",49.3,10,0,493,"Andrew Fuller"]
[10307,"2016-02-24","Lonesome Pine Restaurant","USA","Scottish Longbreads","Confections",12.5,3,0,37.5,"Andrew Fuller"]
[10308,"2016-02-25","Ana Trujillo Emparedados y helados","Mexico","Outback Lager","Beverages",15,5,0,75,"Robert King"]
[10308,"2016-02-25","Ana Trujillo Emparedados y helados","Mexico","Gudbrandsdalsost","Dairy Products",36,1,0,36,"Robert King"]
[10309,"2016-02-26","Hungry Owl All-Night Grocers","Ireland","Singaporean Hokkien Fried Mee","Grains/Cereals",14,2,0,28,"Janet Leverling"]
[10309,"2016-02-26","Hungry Owl All-Night Grocers","Ireland","Ipoh Coffee","Beverages",46,20,0,920,"Janet Leverling"]
[10309,"2016-02-26","Hungry Owl All-Night Grocers","Ireland","Grandma's Boysenberry Spread","Condiments",25,30,0,750,"Janet Leverling"]
[10309,"2016-02-26","Hungry Owl All-Night Grocers","Ireland","Chef Anton's Cajun Seasoning","Condiments",22,20,0,440,"Janet Leverling"]
[10309,"2016-02-26","Hungry Owl All-Night Grocers","Ireland","Fløtemysost","Dairy Products",21.5,3,0,64.5,"Janet Leverling"]
[10310,"2016-02-27","The Big Cheese","USA","Pavlova","Confections",17.45,10,0,174.5,"Laura Callahan"]
[10310,"2016-02-27","The Big Cheese","USA","Tarte au sucre","Confections",49.3,5,0,246.5,"Laura Callahan"]
[10311,"2016-02-27","Du monde entier","France","Gudbrandsdalsost","Dairy Products",36,7,0,252,"Nancy Davolio"]
[10311,"2016-02-27","Du monde entier","France","Singaporean Hokkien Fried Mee","Grains/Cereals",14,6,0,84,"Nancy Davolio"]
[10312,"2016-03-01","Die Wandernde Kuh","Germany","Rhönbräu Klosterbier","Beverages",7.75,10,0,77.5,"Andrew Fuller"]
[10312,"2016-03-01","Die Wandernde Kuh","Germany","Rössle Sauerkraut","Produce",45.6,4,0,182.4,"Andrew Fuller"]
[10312,"2016-03-01","Die Wandernde Kuh","Germany","Ipoh Coffee","Beverages",46,24,0,1104,"Andrew Fuller"]
[10312,"2016-03-01","Die Wandernde Kuh","Germany","Perth Pasties","Meat/Poultry",32.799999999999997,20,0,656,"Andrew Fuller"]
[10313,"2016-03-02","QUICK-Stop","Germany","Inlagd Sill","Seafood",19,12,0,228,"Andrew Fuller"]
[10314,"2016-03-03","Rattlesnake Canyon Grocery","USA","Tarte au sucre","Confections",49.3,25,0.1,1109.25,"Nancy Davolio"]
[10314,"2016-03-03","Rattlesnake Canyon Grocery","USA","Escargots de Bourgogne","Seafood",13.25,30,0.1,357.75,"Nancy Davolio"]
[10314,"2016-03-03","Rattlesnake Canyon Grocery","USA","Mascarpone Fabioli","Dairy Products",32,40,0.1,1152,"Nancy Davolio"]
[10315,"2016-03-04","Island Trading","UK","Outback Lager","Beverages",15,30,0,450,"Margaret Peacock"]
[10315,"2016-03-04","Island Trading","UK","Sasquatch Ale","Beverages",14,14,0,196,"Margaret Peacock"]
[10316,"2016-03-05","Rattlesnake Canyon Grocery","USA","Tarte au sucre","Confections",49.3,70,0,3451,"Nancy Davolio"]
[10316,"2016-03-05","Rattlesnake Canyon Grocery","USA","Jack's New England Clam Chowder","Seafood",9.65,10,0,96.5,"Nancy Davolio"]
[10317,"2016-03-08","Lonesome Pine Restaurant","USA","Chai","Beverages",18,20,0,360,"Michael Suyama"]
[10318,"2016-03-09","Island Trading","UK","Jack's New England Clam Chowder","Seafood",9.65,20,0,193,"Laura Callahan"]
[10318,"2016-03-09","Island Trading","UK","Lakkalikööri","Beverages",18,6,0,108,"Laura Callahan"]
[10319,"2016-03-10","Tortuga Restaurante","Mexico","Alice Mutton","Meat/Poultry",39,8,0,312,"Robert King"]
[10319,"2016-03-10","Tortuga Restaurante","Mexico","Rössle Sauerkraut","Produce",45.6,14,0,638.4,"Robert King"]
[10319,"2016-03-10","Tortuga Restaurante","Mexico","Lakkalikööri","Beverages",18,30,0,540,"Robert King"]
[10320,"2016-03-11","Wartian Herkku","Finland","Fløtemysost","Dairy Products",21.5,30,0,645,"Steven Buchanan"]
[10321,"2016-03-11","Island Trading","UK","Steeleye Stout","Beverages",18,10,0,180,"Janet Leverling"]
[10322,"2016-03-12","Pericles Comidas clásicas","Mexico","Filo Mix","Grains/Cereals",7,20,0,140,"Robert King"]
[10323,"2016-03-15","Königlich Essen","Germany","NuNuCa Nuß-Nougat-Creme","Confections",14,4,0,{"$f":"ROUND((G195*H195)*(1-I195),2)","v":56},"Margaret Peacock"]
[10323,"2016-03-15","Königlich Essen","Germany","Genen Shouyu","Condiments",15.5,5,0,77.5,"Margaret Peacock"]
[10323,"2016-03-15","Königlich Essen","Germany","Chartreuse verte","Beverages",18,4,0,72,"Margaret Peacock"]
[10324,"2016-03-16","Save-a-lot Markets","USA","Spegesild","Seafood",12,30,0,360,"Anne Dodsworth"]
[10324,"2016-03-16","Save-a-lot Markets","USA","Vegie-spread","Condiments",43.9,80,0.15,2985.2,"Anne Dodsworth"]
[10324,"2016-03-16","Save-a-lot Markets","USA","Raclette Courdavault","Dairy Products",55,40,0.15,1870,"Anne Dodsworth"]
[10324,"2016-03-16","Save-a-lot Markets","USA","Pavlova","Confections",17.45,21,0.15,311.48,"Anne Dodsworth"]
[10324,"2016-03-16","Save-a-lot Markets","USA","Steeleye Stout","Beverages",18,70,0.15,1071,"Anne Dodsworth"]
[10325,"2016-03-17","Königlich Essen","Germany","Tofu","Produce",23.25,9,0,209.25,"Nancy Davolio"]
[10325,"2016-03-17","Königlich Essen","Germany","Grandma's Boysenberry Spread","Condiments",25,6,0,150,"Nancy Davolio"]
[10325,"2016-03-17","Königlich Essen","Germany","Mozzarella di Giovanni","Dairy Products",34.799999999999997,40,0,1392,"Nancy Davolio"]
[10325,"2016-03-17","Königlich Essen","Germany","Gorgonzola Telino","Dairy Products",12.5,4,0,50,"Nancy Davolio"]
[10325,"2016-03-17","Königlich Essen","Germany","Konbu","Seafood",6,12,0,72,"Nancy Davolio"]
[10326,"2016-03-18","Bólido Comidas preparadas","Spain","Ravioli Angelo","Grains/Cereals",19.5,16,0,312,"Margaret Peacock"]
[10326,"2016-03-18","Bólido Comidas preparadas","Spain","Chef Anton's Cajun Seasoning","Condiments",22,24,0,528,"Margaret Peacock"]
[10326,"2016-03-18","Bólido Comidas preparadas","Spain","Rhönbräu Klosterbier","Beverages",7.75,50,0,387.5,"Margaret Peacock"]
[10327,"2016-03-19","Folk och fä HB","Sweden","Queso Cabrales","Dairy Products",21,50,0.2,840,"Andrew Fuller"]
[10327,"2016-03-19","Folk och fä HB","Sweden","Chang","Beverages",19,25,0.2,380,"Andrew Fuller"]
[10327,"2016-03-19","Folk och fä HB","Sweden","Nord-Ost Matjeshering","Seafood",25.89,35,0.2,724.92,"Andrew Fuller"]
[10327,"2016-03-19","Folk och fä HB","Sweden","Escargots de Bourgogne","Seafood",13.25,30,0.2,318,"Andrew Fuller"]
[10328,"2016-03-22","Furia Bacalhau e Frutos do Mar","Portugal","Raclette Courdavault","Dairy Products",55,9,0,495,"Margaret Peacock"]
[10328,"2016-03-22","Furia Bacalhau e Frutos do Mar","Portugal","Louisiana Fiery Hot Pepper Sauce","Condiments",21.05,40,0,842,"Margaret Peacock"]
[10328,"2016-03-22","Furia Bacalhau e Frutos do Mar","Portugal","Scottish Longbreads","Confections",12.5,10,0,125,"Margaret Peacock"]
[10329,"2016-03-23","Split Rail Beer & Ale","USA","Gnocchi di nonna Alice","Grains/Cereals",38,12,0.05,433.2,"Margaret Peacock"]
[10329,"2016-03-23","Split Rail Beer & Ale","USA","Côte de Blaye","Beverages",263.5,20,0.05,5006.5,"Margaret Peacock"]
[10329,"2016-03-23","Split Rail Beer & Ale","USA","Nord-Ost Matjeshering","Seafood",25.89,8,0.05,196.76,"Margaret Peacock"]
[10329,"2016-03-23","Split Rail Beer & Ale","USA","Teatime Chocolate Biscuits","Confections",9.1999999999999993,10,0.05,87.4,"Margaret Peacock"]
[10330,"2016-03-24","LILA-Supermercado","Venezuela","Gumbär Gummibärchen","Confections",31.23,50,0.15,1327.28,"Janet Leverling"]
[10330,"2016-03-24","LILA-Supermercado","Venezuela","Mozzarella di Giovanni","Dairy Products",34.799999999999997,25,0.15,739.5,"Janet Leverling"]
[10331,"2016-03-24","Bon app'","France","Tourtière","Meat/Poultry",7.45,15,0,111.75,"Anne Dodsworth"]
[10332,"2016-03-25","Mère Paillarde","Canada","Zaanse koeken","Confections",9.5,16,0.2,121.6,"Janet Leverling"]
[10332,"2016-03-25","Mère Paillarde","Canada","Singaporean Hokkien Fried Mee","Grains/Cereals",14,10,0.2,112,"Janet Leverling"]
[10332,"2016-03-25","Mère Paillarde","Canada","Carnarvon Tigers","Seafood",62.5,40,0.2,2000,"Janet Leverling"]
[10333,"2016-03-26","Wartian Herkku","Finland","Fløtemysost","Dairy Products",21.5,40,0.1,774,"Steven Buchanan"]
[10333,"2016-03-26","Wartian Herkku","Finland","Tofu","Produce",23.25,10,0,232.5,"Steven Buchanan"]
[10333,"2016-03-26","Wartian Herkku","Finland","Sir Rodney's Scones","Confections",10,10,0.1,90,"Steven Buchanan"]
[10334,"2016-03-29","Victuailles en stock","France","Filo Mix","Grains/Cereals",7,8,0,56,"Laura Callahan"]
[10334,"2016-03-29","Victuailles en stock","France","Scottish Longbreads","Confections",12.5,10,0,125,"Laura Callahan"]
[10335,"2016-03-30","Hungry Owl All-Night Grocers","Ireland","Mascarpone Fabioli","Dairy Products",32,6,0.2,153.6,"Robert King"]
[10335,"2016-03-30","Hungry Owl All-Night Grocers","Ireland","Gorgonzola Telino","Dairy Products",12.5,25,0.2,250,"Robert King"]
[10335,"2016-03-30","Hungry Owl All-Night Grocers","Ireland","Chang","Beverages",19,7,0.2,106.4,"Robert King"]
[10335,"2016-03-30","Hungry Owl All-Night Grocers","Ireland","Manjimup Dried Apples","Produce",53,48,0.2,2035.2,"Robert King"]
[10336,"2016-03-31","Princesa Isabel Vinhos","Portugal","Chef Anton's Cajun Seasoning","Condiments",22,18,0.1,356.4,"Robert King"]
[10337,"2016-04-01","Frankenversand","Germany","Tunnbröd","Grains/Cereals",9,40,0,360,"Margaret Peacock"]
[10337,"2016-04-01","Frankenversand","Germany","Gumbär Gummibärchen","Confections",31.23,24,0,749.52,"Margaret Peacock"]
[10337,"2016-04-01","Frankenversand","Germany","Inlagd Sill","Seafood",19,20,0,380,"Margaret Peacock"]
[10337,"2016-04-01","Frankenversand","Germany","Gravad lax","Seafood",26,28,0,728,"Margaret Peacock"]
[10337,"2016-04-01","Frankenversand","Germany","Mozzarella di Giovanni","Dairy Products",34.799999999999997,25,0,870,"Margaret Peacock"]
[10338,"2016-04-02","Old World Delicatessen","USA","Nord-Ost Matjeshering","Seafood",25.89,15,0,388.35,"Margaret Peacock"]
[10338,"2016-04-02","Old World Delicatessen","USA","Alice Mutton","Meat/Poultry",39,20,0,780,"Margaret Peacock"]
[10339,"2016-04-05","Mère Paillarde","Canada","Alice Mutton","Meat/Poultry",39,70,0.05,2593.5,"Andrew Fuller"]
[10339,"2016-04-05","Mère Paillarde","Canada","Tarte au sucre","Confections",49.3,28,0,1380.4,"Andrew Fuller"]
[10339,"2016-04-05","Mère Paillarde","Canada","Chef Anton's Cajun Seasoning","Condiments",22,10,0,220,"Andrew Fuller"]
[10340,"2016-04-06","Bon app'","France","Carnarvon Tigers","Seafood",62.5,20,0.05,1187.5,"Nancy Davolio"]
[10340,"2016-04-06","Bon app'","France","Ipoh Coffee","Beverages",46,40,0.05,1748,"Nancy Davolio"]
[10340,"2016-04-06","Bon app'","France","Jack's New England Clam Chowder","Seafood",9.65,12,0.05,110.01,"Nancy Davolio"]
[10341,"2016-04-06","Simons bistro","Denmark","Raclette Courdavault","Dairy Products",55,9,0.15,420.75,"Robert King"]
[10341,"2016-04-06","Simons bistro","Denmark","Geitost","Dairy Products",2.5,8,0,20,"Robert King"]
[10342,"2016-04-07","Frankenversand","Germany","Pâté chinois","Meat/Poultry",24,40,0.2,768,"Margaret Peacock"]
[10342,"2016-04-07","Frankenversand","Germany","Chang","Beverages",19,24,0.2,364.8,"Margaret Peacock"]
[10342,"2016-04-07","Frankenversand","Germany","Inlagd Sill","Seafood",19,40,0.2,608,"Margaret Peacock"]
[10342,"2016-04-07","Frankenversand","Germany","Gorgonzola Telino","Dairy Products",12.5,56,0.2,560,"Margaret Peacock"]
[10343,"2016-04-08","Lehmanns Marktstand","Germany","Lakkalikööri","Beverages",18,15,0,270,"Margaret Peacock"]
[10343,"2016-04-08","Lehmanns Marktstand","Germany","Scottish Longbreads","Confections",12.5,4,0.05,47.5,"Margaret Peacock"]
[10343,"2016-04-08","Lehmanns Marktstand","Germany","Wimmers gute Semmelknödel","Grains/Cereals",33.25,50,0,{"$f":"ROUND((G259*H259)*(1-I259),2)","v":1662.5},"Margaret Peacock"]
[10344,"2016-04-09","White Clover Markets","USA","Chef Anton's Cajun Seasoning","Condiments",22,35,0,770,"Margaret Peacock"]
[10344,"2016-04-09","White Clover Markets","USA","Northwoods Cranberry Sauce","Condiments",40,70,0.25,2100,"Margaret Peacock"]
[10345,"2016-04-12","QUICK-Stop","Germany","Northwoods Cranberry Sauce","Condiments",40,70,0,2800,"Andrew Fuller"]
[10345,"2016-04-12","QUICK-Stop","Germany","Teatime Chocolate Biscuits","Confections",9.1999999999999993,80,0,736,"Andrew Fuller"]
[10345,"2016-04-12","QUICK-Stop","Germany","Singaporean Hokkien Fried Mee","Grains/Cereals",14,9,0,126,"Andrew Fuller"]
[10346,"2016-04-13","Rattlesnake Canyon Grocery","USA","Alice Mutton","Meat/Poultry",39,36,0.1,1263.5999999999999,"Janet Leverling"]
[10346,"2016-04-13","Rattlesnake Canyon Grocery","USA","Gnocchi di nonna Alice","Grains/Cereals",38,20,0,760,"Janet Leverling"]
[10347,"2016-04-14","Familia Arquibaldo","Brazil","NuNuCa Nuß-Nougat-Creme","Confections",14,10,0,140,"Margaret Peacock"]
[10347,"2016-04-14","Familia Arquibaldo","Brazil","Rhönbräu Klosterbier","Beverages",7.75,6,0.15,39.53,"Margaret Peacock"]
[10347,"2016-04-14","Familia Arquibaldo","Brazil","Boston Crab Meat","Seafood",18.399999999999999,4,0,73.599999999999994,"Margaret Peacock"]
[10347,"2016-04-14","Familia Arquibaldo","Brazil","Chartreuse verte","Beverages",18,50,0.15,765,"Margaret Peacock"]
[10348,"2016-04-15","Die Wandernde Kuh","Germany","Chai","Beverages",18,15,0.15,229.5,"Margaret Peacock"]
[10348,"2016-04-15","Die Wandernde Kuh","Germany","Tunnbröd","Grains/Cereals",9,25,0,225,"Margaret Peacock"]
[10349,"2016-04-16","Split Rail Beer & Ale","USA","Tourtière","Meat/Poultry",7.45,24,0,178.8,"Robert King"]
[10350,"2016-04-19","La maison d'Asie","France","Valkoinen suklaa","Confections",16.25,15,0.1,219.38,"Michael Suyama"]
[10350,"2016-04-19","La maison d'Asie","France","Gudbrandsdalsost","Dairy Products",36,18,0.1,583.20000000000005,"Michael Suyama"]
[10351,"2016-04-19","Ernst Handel","Austria","Côte de Blaye","Beverages",263.5,20,0.05,5006.5,"Nancy Davolio"]
[10351,"2016-04-19","Ernst Handel","Austria","Gula Malacca","Condiments",19.45,77,0.05,1422.77,"Nancy Davolio"]
[10351,"2016-04-19","Ernst Handel","Austria","Louisiana Fiery Hot Pepper Sauce","Condiments",21.05,10,0.05,199.98,"Nancy Davolio"]
[10351,"2016-04-19","Ernst Handel","Austria","Jack's New England Clam Chowder","Seafood",9.65,13,0,125.45,"Nancy Davolio"]
[10352,"2016-04-20","Furia Bacalhau e Frutos do Mar","Portugal","Tourtière","Meat/Poultry",7.45,20,0.15,126.65,"Janet Leverling"]
[10352,"2016-04-20","Furia Bacalhau e Frutos do Mar","Portugal","Guaraná Fantástica","Beverages",4.5,10,0,45,"Janet Leverling"]
[10353,"2016-04-21","Piccolo und mehr","Austria","Côte de Blaye","Beverages",263.5,50,0.2,10540,"Robert King"]
[10353,"2016-04-21","Piccolo und mehr","Austria","Queso Cabrales","Dairy Products",21,12,0.2,201.6,"Robert King"]
[10354,"2016-04-22","Pericles Comidas clásicas","Mexico","Thüringer Rostbratwurst","Meat/Poultry",123.79,4,0,495.16,"Laura Callahan"]
[10354,"2016-04-22","Pericles Comidas clásicas","Mexico","Chai","Beverages",18,12,0,216,"Laura Callahan"]
[10355,"2016-04-23","Around the Horn","UK","Guaraná Fantástica","Beverages",4.5,25,0,112.5,"Michael Suyama"]
[10355,"2016-04-23","Around the Horn","UK","Ravioli Angelo","Grains/Cereals",19.5,25,0,487.5,"Michael Suyama"]
[10356,"2016-04-26","Die Wandernde Kuh","Germany","Gorgonzola Telino","Dairy Products",12.5,30,0,375,"Michael Suyama"]
[10356,"2016-04-26","Die Wandernde Kuh","Germany","Gudbrandsdalsost","Dairy Products",36,20,0,720,"Michael Suyama"]
[10356,"2016-04-26","Die Wandernde Kuh","Germany","Pâté chinois","Meat/Poultry",24,12,0,288,"Michael Suyama"]
[10357,"2016-04-27","LILA-Supermercado","Venezuela","Camembert Pierrot","Dairy Products",34,8,0.2,217.6,"Nancy Davolio"]
[10357,"2016-04-27","LILA-Supermercado","Venezuela","Gumbär Gummibärchen","Confections",31.23,16,0,499.68,"Nancy Davolio"]
[10357,"2016-04-27","LILA-Supermercado","Venezuela","Ikura","Seafood",31,30,0.2,744,"Nancy Davolio"]
[10358,"2016-04-28","La maison d'Asie","France","Inlagd Sill","Seafood",19,20,0.05,361,"Steven Buchanan"]
[10358,"2016-04-28","La maison d'Asie","France","Sasquatch Ale","Beverages",14,10,0.05,133,"Steven Buchanan"]
[10358,"2016-04-28","La maison d'Asie","France","Guaraná Fantástica","Beverages",4.5,10,0.05,42.75,"Steven Buchanan"]
[10359,"2016-04-29","Seven Seas Imports","UK","Pavlova","Confections",17.45,56,0.05,928.34,"Steven Buchanan"]
[10359,"2016-04-29","Seven Seas Imports","UK","Camembert Pierrot","Dairy Products",34,80,0.05,2584,"Steven Buchanan"]
[10359,"2016-04-29","Seven Seas Imports","UK","Gorgonzola Telino","Dairy Products",12.5,70,0.05,831.25,"Steven Buchanan"]
[10360,"2016-04-30","Blondel père et fils","France","Maxilaku","Confections",20,35,0,700,"Margaret Peacock"]
[10360,"2016-04-30","Blondel père et fils","France","Côte de Blaye","Beverages",263.5,10,0,2635,"Margaret Peacock"]
[10360,"2016-04-30","Blondel père et fils","France","Rössle Sauerkraut","Produce",45.6,30,0,1368,"Margaret Peacock"]
[10360,"2016-04-30","Blondel père et fils","France","Thüringer Rostbratwurst","Meat/Poultry",123.79,35,0,4332.6499999999996,"Margaret Peacock"]
[10360,"2016-04-30","Blondel père et fils","France","Tourtière","Meat/Poultry",7.45,28,0,208.6,"Margaret Peacock"]
[10361,"2016-04-30","QUICK-Stop","Germany","Camembert Pierrot","Dairy Products",34,55,0.1,1683,"Nancy Davolio"]
[10361,"2016-04-30","QUICK-Stop","Germany","Chartreuse verte","Beverages",18,54,0.1,874.8,"Nancy Davolio"]
[10362,"2016-05-03","Bon app'","France","Tourtière","Meat/Poultry",7.45,24,0,178.8,"Janet Leverling"]
[10362,"2016-05-03","Bon app'","France","Manjimup Dried Apples","Produce",53,20,0,1060,"Janet Leverling"]
[10362,"2016-05-03","Bon app'","France","NuNuCa Nuß-Nougat-Creme","Confections",14,50,0,700,"Janet Leverling"]
[10363,"2016-05-04","Drachenblut Delikatessen","Germany","Gorgonzola Telino","Dairy Products",12.5,20,0,250,"Margaret Peacock"]
[10363,"2016-05-04","Drachenblut Delikatessen","Germany","Lakkalikööri","Beverages",18,12,0,216,"Margaret Peacock"]
[10363,"2016-05-04","Drachenblut Delikatessen","Germany","Rhönbräu Klosterbier","Beverages",7.75,12,0,93,"Margaret Peacock"]
[10364,"2016-05-04","Eastern Connection","UK","Gudbrandsdalsost","Dairy Products",36,30,0,1080,"Nancy Davolio"]
[10364,"2016-05-04","Eastern Connection","UK","Fløtemysost","Dairy Products",21.5,5,0,107.5,"Nancy Davolio"]
[10365,"2016-05-05","Antonio Moreno Taquería","Mexico","Queso Cabrales","Dairy Products",21,24,0,504,"Janet Leverling"]
[10366,"2016-05-06","Galería del gastrónomo","Spain","Louisiana Fiery Hot Pepper Sauce","Condiments",21.05,5,0,105.25,"Laura Callahan"]
[10366,"2016-05-06","Galería del gastrónomo","Spain","Original Frankfurter grüne Soße","Condiments",13,5,0,65,"Laura Callahan"]
[10367,"2016-05-06","Vaffeljernet","Denmark","Original Frankfurter grüne Soße","Condiments",13,7,0,91,"Robert King"]
[10367,"2016-05-06","Vaffeljernet","Denmark","Louisiana Fiery Hot Pepper Sauce","Condiments",21.05,15,0,315.75,"Robert King"]
[10367,"2016-05-06","Vaffeljernet","Denmark","Sasquatch Ale","Beverages",14,36,0,504,"Robert King"]
[10367,"2016-05-06","Vaffeljernet","Denmark","Tourtière","Meat/Poultry",7.45,18,0,134.1,"Robert King"]
[10368,"2016-05-07","Ernst Handel","Austria","Wimmers gute Semmelknödel","Grains/Cereals",33.25,35,0.1,1047.3800000000001,"Andrew Fuller"]
[10368,"2016-05-07","Ernst Handel","Austria","Rössle Sauerkraut","Produce",45.6,13,0.1,{"$f":"ROUND((G323*H323)*(1-I323),2)","v":533.52},"Andrew Fuller"]
[10368,"2016-05-07","Ernst Handel","Austria","Ravioli Angelo","Grains/Cereals",19.5,25,0,487.5,"Andrew Fuller"]
[10368,"2016-05-07","Ernst Handel","Austria","Sir Rodney's Scones","Confections",10,5,0.1,45,"Andrew Fuller"]
[10369,"2016-05-10","Split Rail Beer & Ale","USA","Gnocchi di nonna Alice","Grains/Cereals",38,18,0.25,513,"Laura Callahan"]
[10369,"2016-05-10","Split Rail Beer & Ale","USA","Thüringer Rostbratwurst","Meat/Poultry",123.79,20,0,2475.8000000000002,"Laura Callahan"]
[10370,"2016-05-11","Chop-suey Chinese","Switzerland","Longlife Tofu","Produce",10,20,0.15,170,"Michael Suyama"]
[10370,"2016-05-11","Chop-suey Chinese","Switzerland","Chai","Beverages",18,15,0.15,229.5,"Michael Suyama"]
[10370,"2016-05-11","Chop-suey Chinese","Switzerland","Wimmers gute Semmelknödel","Grains/Cereals",33.25,30,0,997.5,"Michael Suyama"]
[10371,"2016-05-11","La maison d'Asie","France","Inlagd Sill","Seafood",19,6,0.2,91.2,"Nancy Davolio"]
[10372,"2016-05-12","Queen Cozinha","Brazil","Côte de Blaye","Beverages",263.5,40,0.25,7905,"Steven Buchanan"]
[10372,"2016-05-12","Queen Cozinha","Brazil","Mozzarella di Giovanni","Dairy Products",34.799999999999997,42,0.25,1096.2,"Steven Buchanan"]
[10372,"2016-05-12","Queen Cozinha","Brazil","Camembert Pierrot","Dairy Products",34,70,0.25,1785,"Steven Buchanan"]
[10372,"2016-05-12","Queen Cozinha","Brazil","Sir Rodney's Marmalade","Confections",81,12,0.25,729,"Steven Buchanan"]
[10373,"2016-05-13","Hungry Owl All-Night Grocers","Ireland","Fløtemysost","Dairy Products",21.5,50,0.2,860,"Margaret Peacock"]
[10373,"2016-05-13","Hungry Owl All-Night Grocers","Ireland","Escargots de Bourgogne","Seafood",13.25,80,0.2,848,"Margaret Peacock"]
[10374,"2016-05-13","Wolski  Zajazd","Poland","Escargots de Bourgogne","Seafood",13.25,15,0,198.75,"Nancy Davolio"]
[10374,"2016-05-13","Wolski  Zajazd","Poland","Gorgonzola Telino","Dairy Products",12.5,30,0,375,"Nancy Davolio"]
[10375,"2016-05-14","Hungry Coyote Import Store","USA","Tourtière","Meat/Poultry",7.45,10,0,74.5,"Janet Leverling"]
[10375,"2016-05-14","Hungry Coyote Import Store","USA","Tofu","Produce",23.25,15,0,348.75,"Janet Leverling"]
[10376,"2016-05-17","Mère Paillarde","Canada","Gorgonzola Telino","Dairy Products",12.5,42,0.05,498.75,"Nancy Davolio"]
[10377,"2016-05-17","Seven Seas Imports","UK","Chartreuse verte","Beverages",18,20,0.15,306,"Nancy Davolio"]
[10377,"2016-05-17","Seven Seas Imports","UK","Rössle Sauerkraut","Produce",45.6,20,0.15,775.2,"Nancy Davolio"]
[10378,"2016-05-18","Folk och fä HB","Sweden","Fløtemysost","Dairy Products",21.5,6,0,129,"Steven Buchanan"]
[10379,"2016-05-19","Que Delícia","Brazil","Jack's New England Clam Chowder","Seafood",9.65,8,0.1,69.48,"Andrew Fuller"]
[10379,"2016-05-19","Que Delícia","Brazil","Louisiana Fiery Hot Pepper Sauce","Condiments",21.05,20,0.1,378.9,"Andrew Fuller"]
[10379,"2016-05-19","Que Delícia","Brazil","Vegie-spread","Condiments",43.9,16,0.1,632.16,"Andrew Fuller"]
[10380,"2016-05-20","Hungry Owl All-Night Grocers","Ireland","Nord-Ost Matjeshering","Seafood",25.89,18,0.1,419.42,"Laura Callahan"]
[10380,"2016-05-20","Hungry Owl All-Night Grocers","Ireland","Camembert Pierrot","Dairy Products",34,6,0.1,183.6,"Laura Callahan"]
[10380,"2016-05-20","Hungry Owl All-Night Grocers","Ireland","Perth Pasties","Meat/Poultry",32.799999999999997,20,0.1,590.4,"Laura Callahan"]
[10380,"2016-05-20","Hungry Owl All-Night Grocers","Ireland","Outback Lager","Beverages",15,30,0,450,"Laura Callahan"]
[10381,"2016-05-20","LILA-Supermercado","Venezuela","Longlife Tofu","Produce",10,14,0,140,"Janet Leverling"]
[10382,"2016-05-21","Ernst Handel","Austria","Geitost","Dairy Products",2.5,60,0,150,"Margaret Peacock"]
[10382,"2016-05-21","Ernst Handel","Austria","Thüringer Rostbratwurst","Meat/Poultry",123.79,14,0,1733.06,"Margaret Peacock"]
[10382,"2016-05-21","Ernst Handel","Austria","Chef Anton's Gumbo Mix","Condiments",21.35,32,0,683.2,"Margaret Peacock"]
[10382,"2016-05-21","Ernst Handel","Austria","Longlife Tofu","Produce",10,50,0,500,"Margaret Peacock"]
[10382,"2016-05-21","Ernst Handel","Austria","Carnarvon Tigers","Seafood",62.5,9,0,562.5,"Margaret Peacock"]
[10383,"2016-05-24","Around the Horn","UK","Valkoinen suklaa","Confections",16.25,15,0,243.75,"Laura Callahan"]
[10383,"2016-05-24","Around the Horn","UK","Gnocchi di nonna Alice","Grains/Cereals",38,20,0,760,"Laura Callahan"]
[10383,"2016-05-24","Around the Horn","UK","Konbu","Seafood",6,20,0,120,"Laura Callahan"]
[10384,"2016-05-24","Berglunds snabbköp","Sweden","Camembert Pierrot","Dairy Products",34,15,0,510,"Janet Leverling"]
[10384,"2016-05-24","Berglunds snabbköp","Sweden","Sir Rodney's Marmalade","Confections",81,28,0,2268,"Janet Leverling"]
[10385,"2016-05-25","Split Rail Beer & Ale","USA","Scottish Longbreads","Confections",12.5,8,0.2,80,"Nancy Davolio"]
[10385,"2016-05-25","Split Rail Beer & Ale","USA","Uncle Bob's Organic Dried Pears","Produce",30,10,0.2,240,"Nancy Davolio"]
[10385,"2016-05-25","Split Rail Beer & Ale","USA","Camembert Pierrot","Dairy Products",34,20,0.2,544,"Nancy Davolio"]
[10386,"2016-05-26","Familia Arquibaldo","Brazil","Sasquatch Ale","Beverages",14,10,0,140,"Anne Dodsworth"]
[10386,"2016-05-26","Familia Arquibaldo","Brazil","Guaraná Fantástica","Beverages",4.5,15,0,67.5,"Anne Dodsworth"]
[10387,"2016-05-26","Santé Gourmet","Norway","Fløtemysost","Dairy Products",21.5,15,0,322.5,"Nancy Davolio"]
[10387,"2016-05-26","Santé Gourmet","Norway","Rössle Sauerkraut","Produce",45.6,6,0,273.60000000000002,"Nancy Davolio"]
[10387,"2016-05-26","Santé Gourmet","Norway","Guaraná Fantástica","Beverages",4.5,15,0,67.5,"Nancy Davolio"]
[10387,"2016-05-26","Santé Gourmet","Norway","Raclette Courdavault","Dairy Products",55,12,0,660,"Nancy Davolio"]
[10388,"2016-05-27","Seven Seas Imports","UK","Filo Mix","Grains/Cereals",7,20,0.2,112,"Andrew Fuller"]
[10388,"2016-05-27","Seven Seas Imports","UK","Røgede sild","Seafood",9.5,15,0.2,114,"Andrew Fuller"]
[10388,"2016-05-27","Seven Seas Imports","UK","Perth Pasties","Meat/Poultry",32.799999999999997,40,0,1312,"Andrew Fuller"]
[10389,"2016-05-28","Bottom-Dollar Markets","Canada","Tarte au sucre","Confections",49.3,20,0,986,"Margaret Peacock"]
[10389,"2016-05-28","Bottom-Dollar Markets","Canada","Outback Lager","Beverages",15,30,0,450,"Margaret Peacock"]
[10389,"2016-05-28","Bottom-Dollar Markets","Canada","Ikura","Seafood",31,16,0,496,"Margaret Peacock"]
[10389,"2016-05-28","Bottom-Dollar Markets","Canada","Pâté chinois","Meat/Poultry",24,15,0,360,"Margaret Peacock"]
[10390,"2016-05-31","Ernst Handel","Austria","Mozzarella di Giovanni","Dairy Products",34.799999999999997,24,0.1,751.68,"Michael Suyama"]
[10390,"2016-05-31","Ernst Handel","Austria","Steeleye Stout","Beverages",18,40,0.1,648,"Michael Suyama"]
[10390,"2016-05-31","Ernst Handel","Austria","Spegesild","Seafood",12,45,0,540,"Michael Suyama"]
[10390,"2016-05-31","Ernst Handel","Austria","Gorgonzola Telino","Dairy Products",12.5,60,0.1,675,"Michael Suyama"]
[10391,"2016-05-31","Drachenblut Delikatessen","Germany","Konbu","Seafood",6,18,0,108,"Janet Leverling"]
[10392,"2016-06-01","Piccolo und mehr","Austria","Gudbrandsdalsost","Dairy Products",36,50,0,1800,"Andrew Fuller"]
[10393,"2016-06-02","Save-a-lot Markets","USA","Gorgonzola Telino","Dairy Products",12.5,32,0,400,"Nancy Davolio"]
[10393,"2016-06-02","Save-a-lot Markets","USA","NuNuCa Nuß-Nougat-Creme","Confections",14,7,0.25,{"$f":"ROUND((G387*H387)*(1-I387),2)","v":73.5},"Nancy Davolio"]
[10393,"2016-06-02","Save-a-lot Markets","USA","Gumbär Gummibärchen","Confections",31.23,70,0.25,1639.58,"Nancy Davolio"]
[10393,"2016-06-02","Save-a-lot Markets","USA","Tofu","Produce",23.25,42,0.25,732.38,"Nancy Davolio"]
[10393,"2016-06-02","Save-a-lot Markets","USA","Chang","Beverages",19,25,0.25,356.25,"Nancy Davolio"]
[10394,"2016-06-02","Hungry Coyote Import Store","USA","Konbu","Seafood",6,10,0,60,"Nancy Davolio"]
[10394,"2016-06-02","Hungry Coyote Import Store","USA","Tarte au sucre","Confections",49.3,10,0,493,"Nancy Davolio"]
[10395,"2016-06-03","HILARIÓN-Abastos","Venezuela","Perth Pasties","Meat/Poultry",32.799999999999997,70,0.1,2066.4,"Michael Suyama"]
[10395,"2016-06-03","HILARIÓN-Abastos","Venezuela","Spegesild","Seafood",12,28,0.1,302.39999999999998,"Michael Suyama"]
[10395,"2016-06-03","HILARIÓN-Abastos","Venezuela","Gudbrandsdalsost","Dairy Products",36,8,0,288,"Michael Suyama"]
[10396,"2016-06-04","Frankenversand","Germany","Tunnbröd","Grains/Cereals",9,40,0,360,"Nancy Davolio"]
[10396,"2016-06-04","Frankenversand","Germany","Mozzarella di Giovanni","Dairy Products",34.799999999999997,21,0,730.8,"Nancy Davolio"]
[10396,"2016-06-04","Frankenversand","Germany","Fløtemysost","Dairy Products",21.5,60,0,1290,"Nancy Davolio"]
[10397,"2016-06-04","Princesa Isabel Vinhos","Portugal","Sir Rodney's Scones","Confections",10,10,0.15,85,"Steven Buchanan"]
[10397,"2016-06-04","Princesa Isabel Vinhos","Portugal","Manjimup Dried Apples","Produce",53,18,0.15,810.9,"Steven Buchanan"]
[10398,"2016-06-07","Save-a-lot Markets","USA","Steeleye Stout","Beverages",18,30,0,540,"Andrew Fuller"]
[10398,"2016-06-07","Save-a-lot Markets","USA","Pâté chinois","Meat/Poultry",24,120,0.1,2592,"Andrew Fuller"]
[10399,"2016-06-08","Vaffeljernet","Denmark","Scottish Longbreads","Confections",12.5,60,0,750,"Laura Callahan"]
[10399,"2016-06-08","Vaffeljernet","Denmark","Lakkalikööri","Beverages",18,35,0,630,"Laura Callahan"]
[10399,"2016-06-08","Vaffeljernet","Denmark","Original Frankfurter grüne Soße","Condiments",13,14,0,182,"Laura Callahan"]
[10399,"2016-06-08","Vaffeljernet","Denmark","Fløtemysost","Dairy Products",21.5,30,0,645,"Laura Callahan"]
[10400,"2016-06-09","Eastern Connection","UK","Maxilaku","Confections",20,30,0,600,"Nancy Davolio"]
[10400,"2016-06-09","Eastern Connection","UK","Steeleye Stout","Beverages",18,35,0,630,"Nancy Davolio"]
[10400,"2016-06-09","Eastern Connection","UK","Thüringer Rostbratwurst","Meat/Poultry",123.79,21,0,2599.59,"Nancy Davolio"]
[10401,"2016-06-09","Rattlesnake Canyon Grocery","USA","Nord-Ost Matjeshering","Seafood",25.89,18,0,466.02,"Nancy Davolio"]
[10401,"2016-06-09","Rattlesnake Canyon Grocery","USA","Gnocchi di nonna Alice","Grains/Cereals",38,70,0,2660,"Nancy Davolio"]
[10401,"2016-06-09","Rattlesnake Canyon Grocery","USA","Fløtemysost","Dairy Products",21.5,60,0,1290,"Nancy Davolio"]
[10401,"2016-06-09","Rattlesnake Canyon Grocery","USA","Louisiana Fiery Hot Pepper Sauce","Condiments",21.05,20,0,421,"Nancy Davolio"]
[10402,"2016-06-10","Ernst Handel","Austria","Tunnbröd","Grains/Cereals",9,60,0,540,"Laura Callahan"]
[10402,"2016-06-10","Ernst Handel","Austria","Vegie-spread","Condiments",43.9,65,0,2853.5,"Laura Callahan"]
[10403,"2016-06-11","Ernst Handel","Austria","Pavlova","Confections",17.45,21,0.15,311.48,"Margaret Peacock"]
[10403,"2016-06-11","Ernst Handel","Austria","Chocolade","Confections",12.75,70,0.15,758.63,"Margaret Peacock"]
[10404,"2016-06-11","Magazzini Alimentari Riuniti","Italy","Singaporean Hokkien Fried Mee","Grains/Cereals",14,40,0.05,532,"Andrew Fuller"]
[10404,"2016-06-11","Magazzini Alimentari Riuniti","Italy","Gumbär Gummibärchen","Confections",31.23,30,0.05,890.06,"Andrew Fuller"]
[10404,"2016-06-11","Magazzini Alimentari Riuniti","Italy","Maxilaku","Confections",20,30,0.05,570,"Andrew Fuller"]
[10405,"2016-06-14","LINO-Delicateses","Venezuela","Aniseed Syrup","Condiments",10,50,0,500,"Nancy Davolio"]
[10406,"2016-06-15","Queen Cozinha","Brazil","Inlagd Sill","Seafood",19,5,0.1,85.5,"Robert King"]
[10406,"2016-06-15","Queen Cozinha","Brazil","Sir Rodney's Scones","Confections",10,30,0.1,270,"Robert King"]
[10406,"2016-06-15","Queen Cozinha","Brazil","Chai","Beverages",18,10,0,180,"Robert King"]
[10406,"2016-06-15","Queen Cozinha","Brazil","Boston Crab Meat","Seafood",18.399999999999999,2,0.1,33.119999999999997,"Robert King"]
[10406,"2016-06-15","Queen Cozinha","Brazil","Rössle Sauerkraut","Produce",45.6,42,0.1,1723.68,"Robert King"]
[10407,"2016-06-15","Ottilies Käseladen","Germany","Gudbrandsdalsost","Dairy Products",36,15,0,540,"Andrew Fuller"]
[10407,"2016-06-15","Ottilies Käseladen","Germany","Fløtemysost","Dairy Products",21.5,15,0,322.5,"Andrew Fuller"]
[10407,"2016-06-15","Ottilies Käseladen","Germany","Queso Cabrales","Dairy Products",21,30,0,630,"Andrew Fuller"]
[10408,"2016-06-16","Folies gourmandes","France","Gravad lax","Seafood",26,10,0,260,"Laura Callahan"]
[10408,"2016-06-16","Folies gourmandes","France","Tourtière","Meat/Poultry",7.45,6,0,44.7,"Laura Callahan"]
[10408,"2016-06-16","Folies gourmandes","France","Tarte au sucre","Confections",49.3,35,0,1725.5,"Laura Callahan"]
[10409,"2016-06-17","Océano Atlántico Ltda.","Argentina","Sir Rodney's Scones","Confections",10,12,0,120,"Janet Leverling"]
[10409,"2016-06-17","Océano Atlántico Ltda.","Argentina","Tofu","Produce",23.25,12,0,279,"Janet Leverling"]
[10410,"2016-06-18","Bottom-Dollar Markets","Canada","Raclette Courdavault","Dairy Products",55,16,0,880,"Janet Leverling"]
[10410,"2016-06-18","Bottom-Dollar Markets","Canada","Geitost","Dairy Products",2.5,49,0,122.5,"Janet Leverling"]
[10411,"2016-06-18","Bottom-Dollar Markets","Canada","Gula Malacca","Condiments",19.45,40,0.2,622.4,"Anne Dodsworth"]
[10411,"2016-06-18","Bottom-Dollar Markets","Canada","Jack's New England Clam Chowder","Seafood",9.65,25,0.2,193,"Anne Dodsworth"]
[10411,"2016-06-18","Bottom-Dollar Markets","Canada","Raclette Courdavault","Dairy Products",55,9,0.2,396,"Anne Dodsworth"]
[10412,"2016-06-21","Wartian Herkku","Finland","Tofu","Produce",23.25,20,0.1,418.5,"Laura Callahan"]
[10413,"2016-06-22","La maison d'Asie","France","Tarte au sucre","Confections",49.3,40,0,1972,"Janet Leverling"]
[10413,"2016-06-22","La maison d'Asie","France","Chai","Beverages",18,24,0,432,"Janet Leverling"]
[10413,"2016-06-22","La maison d'Asie","France","Lakkalikööri","Beverages",18,14,0,252,"Janet Leverling"]
[10414,"2016-06-22","Familia Arquibaldo","Brazil","Geitost","Dairy Products",2.5,50,0,125,"Andrew Fuller"]
[10414,"2016-06-22","Familia Arquibaldo","Brazil","Teatime Chocolate Biscuits","Confections",9.1999999999999993,18,0.05,157.32,"Andrew Fuller"]
[10415,"2016-06-23","Hungry Coyote Import Store","USA","Alice Mutton","Meat/Poultry",39,2,0,78,"Janet Leverling"]
[10415,"2016-06-23","Hungry Coyote Import Store","USA","Geitost","Dairy Products",2.5,20,0,50,"Janet Leverling"]
[10416,"2016-06-24","Wartian Herkku","Finland","Perth Pasties","Meat/Poultry",32.799999999999997,10,0,328,"Laura Callahan"]
[10416,"2016-06-24","Wartian Herkku","Finland","Teatime Chocolate Biscuits","Confections",9.1999999999999993,20,0,184,"Laura Callahan"]
[10416,"2016-06-24","Wartian Herkku","Finland","Ravioli Angelo","Grains/Cereals",19.5,20,0,390,"Laura Callahan"]
[10417,"2016-06-24","Simons bistro","Denmark","Scottish Longbreads","Confections",12.5,36,0.25,{"$f":"ROUND((G451*H451)*(1-I451),2)","v":337.5},"Margaret Peacock"]
[10417,"2016-06-24","Simons bistro","Denmark","Original Frankfurter grüne Soße","Condiments",13,35,0,455,"Margaret Peacock"]
[10417,"2016-06-24","Simons bistro","Denmark","Côte de Blaye","Beverages",263.5,50,0,13175,"Margaret Peacock"]
[10417,"2016-06-24","Simons bistro","Denmark","Spegesild","Seafood",12,2,0.25,18,"Margaret Peacock"]
[10418,"2016-06-25","QUICK-Stop","Germany","Sirop d'érable","Condiments",28.5,16,0,456,"Margaret Peacock"]
[10418,"2016-06-25","QUICK-Stop","Germany","Chang","Beverages",19,60,0,1140,"Margaret Peacock"]
[10418,"2016-06-25","QUICK-Stop","Germany","Longlife Tofu","Produce",10,15,0,150,"Margaret Peacock"]
[10418,"2016-06-25","QUICK-Stop","Germany","Zaanse koeken","Confections",9.5,55,0,522.5,"Margaret Peacock"]
[10419,"2016-06-28","Richter Supermarkt","Switzerland","Camembert Pierrot","Dairy Products",34,60,0.05,1938,"Margaret Peacock"]
[10419,"2016-06-28","Richter Supermarkt","Switzerland","Gudbrandsdalsost","Dairy Products",36,20,0.05,684,"Margaret Peacock"]
[10420,"2016-06-29","Wellington Importadora","Brazil","Mishi Kobe Niku","Meat/Poultry",97,20,0.1,1746,"Janet Leverling"]
[10420,"2016-06-29","Wellington Importadora","Brazil","Outback Lager","Beverages",15,8,0.1,108,"Janet Leverling"]
[10420,"2016-06-29","Wellington Importadora","Brazil","Konbu","Seafood",6,2,0.1,10.8,"Janet Leverling"]
[10420,"2016-06-29","Wellington Importadora","Brazil","Röd Kaviar","Seafood",15,20,0.1,270,"Janet Leverling"]
[10421,"2016-06-29","Que Delícia","Brazil","Perth Pasties","Meat/Poultry",32.799999999999997,15,0.15,418.2,"Laura Callahan"]
[10421,"2016-06-29","Que Delícia","Brazil","Original Frankfurter grüne Soße","Condiments",13,10,0.15,110.5,"Laura Callahan"]
[10421,"2016-06-29","Que Delícia","Brazil","Gumbär Gummibärchen","Confections",31.23,30,0,936.9,"Laura Callahan"]
[10421,"2016-06-29","Que Delícia","Brazil","Teatime Chocolate Biscuits","Confections",9.1999999999999993,4,0.15,31.28,"Laura Callahan"]
[10422,"2016-06-30","Franchi S.p.A.","Italy","Gumbär Gummibärchen","Confections",31.23,2,0,62.46,"Andrew Fuller"]
[10423,"2016-07-01","Gourmet Lanchonetes","Brazil","Gorgonzola Telino","Dairy Products",12.5,14,0,175,"Michael Suyama"]
[10423,"2016-07-01","Gourmet Lanchonetes","Brazil","Raclette Courdavault","Dairy Products",55,20,0,1100,"Michael Suyama"]
[10424,"2016-07-01","Mère Paillarde","Canada","Côte de Blaye","Beverages",263.5,49,0.2,10329.200000000001,"Robert King"]
[10424,"2016-07-01","Mère Paillarde","Canada","Steeleye Stout","Beverages",18,60,0.2,864,"Robert King"]
[10424,"2016-07-01","Mère Paillarde","Canada","Scottish Longbreads","Confections",12.5,30,0.2,300,"Robert King"]
[10425,"2016-07-02","La maison d'Asie","France","Pâté chinois","Meat/Poultry",24,10,0.25,180,"Michael Suyama"]
[10425,"2016-07-02","La maison d'Asie","France","Lakkalikööri","Beverages",18,20,0.25,270,"Michael Suyama"]
[10426,"2016-07-05","Galería del gastrónomo","Spain","Gnocchi di nonna Alice","Grains/Cereals",38,5,0,190,"Margaret Peacock"]
[10426,"2016-07-05","Galería del gastrónomo","Spain","Wimmers gute Semmelknödel","Grains/Cereals",33.25,7,0,232.75,"Margaret Peacock"]
[10427,"2016-07-05","Piccolo und mehr","Austria","Tofu","Produce",23.25,35,0,813.75,"Margaret Peacock"]
[10428,"2016-07-06","Reggiani Caseifici","Italy","Spegesild","Seafood",12,20,0,240,"Robert King"]
[10429,"2016-07-07","Hungry Owl All-Night Grocers","Ireland","Valkoinen suklaa","Confections",16.25,40,0,650,"Janet Leverling"]
[10429,"2016-07-07","Hungry Owl All-Night Grocers","Ireland","Vegie-spread","Condiments",43.9,35,0.25,1152.3800000000001,"Janet Leverling"]
[10430,"2016-07-08","Ernst Handel","Austria","Sir Rodney's Scones","Confections",10,50,0,500,"Margaret Peacock"]
[10430,"2016-07-08","Ernst Handel","Austria","Raclette Courdavault","Dairy Products",55,70,0.2,3080,"Margaret Peacock"]
[10430,"2016-07-08","Ernst Handel","Austria","Alice Mutton","Meat/Poultry",39,45,0.2,1404,"Margaret Peacock"]
[10430,"2016-07-08","Ernst Handel","Austria","Gnocchi di nonna Alice","Grains/Cereals",38,30,0,1140,"Margaret Peacock"]
[10431,"2016-07-08","Bottom-Dollar Markets","Canada","Alice Mutton","Meat/Poultry",39,50,0.25,1462.5,"Margaret Peacock"]
[10431,"2016-07-08","Bottom-Dollar Markets","Canada","Boston Crab Meat","Seafood",18.399999999999999,50,0.25,690,"Margaret Peacock"]
[10431,"2016-07-08","Bottom-Dollar Markets","Canada","Zaanse koeken","Confections",9.5,30,0.25,213.75,"Margaret Peacock"]
[10432,"2016-07-09","Split Rail Beer & Ale","USA","Gumbär Gummibärchen","Confections",31.23,10,0,312.3,"Janet Leverling"]
[10432,"2016-07-09","Split Rail Beer & Ale","USA","Tourtière","Meat/Poultry",7.45,40,0,298,"Janet Leverling"]
[10433,"2016-07-12","Princesa Isabel Vinhos","Portugal","Gnocchi di nonna Alice","Grains/Cereals",38,28,0,1064,"Janet Leverling"]
[10434,"2016-07-12","Folk och fä HB","Sweden","Queso Cabrales","Dairy Products",21,6,0,126,"Janet Leverling"]
[10434,"2016-07-12","Folk och fä HB","Sweden","Lakkalikööri","Beverages",18,18,0.15,275.39999999999998,"Janet Leverling"]
[10435,"2016-07-13","Consolidated Holdings","UK","Mozzarella di Giovanni","Dairy Products",34.799999999999997,10,0,348,"Laura Callahan"]
[10435,"2016-07-13","Consolidated Holdings","UK","Gustaf's Knäckebröd","Grains/Cereals",21,12,0,252,"Laura Callahan"]
[10435,"2016-07-13","Consolidated Holdings","UK","Chang","Beverages",19,10,0,190,"Laura Callahan"]
[10436,"2016-07-14","Blondel père et fils","France","Wimmers gute Semmelknödel","Grains/Cereals",33.25,30,0.1,897.75,"Janet Leverling"]
[10436,"2016-07-14","Blondel père et fils","France","Spegesild","Seafood",12,5,0,60,"Janet Leverling"]
[10436,"2016-07-14","Blondel père et fils","France","Rhönbräu Klosterbier","Beverages",7.75,24,0.1,167.4,"Janet Leverling"]
[10436,"2016-07-14","Blondel père et fils","France","Gnocchi di nonna Alice","Grains/Cereals",38,40,0.1,1368,"Janet Leverling"]
[10437,"2016-07-14","Wartian Herkku","Finland","Perth Pasties","Meat/Poultry",32.799999999999997,15,0,492,"Laura Callahan"]
[10438,"2016-07-15","Toms Spezialitäten","Germany","Ravioli Angelo","Grains/Cereals",19.5,15,0.2,234,"Janet Leverling"]
[10438,"2016-07-15","Toms Spezialitäten","Germany","Sasquatch Ale","Beverages",14,20,0.2,224,"Janet Leverling"]
[10438,"2016-07-15","Toms Spezialitäten","Germany","Teatime Chocolate Biscuits","Confections",9.1999999999999993,15,0.2,110.4,"Janet Leverling"]
[10439,"2016-07-16","Mère Paillarde","Canada","Queso Manchego La Pastora","Dairy Products",38,15,0,570,"Michael Suyama"]
[10439,"2016-07-16","Mère Paillarde","Canada","Longlife Tofu","Produce",10,30,0,300,"Michael Suyama"]
[10439,"2016-07-16","Mère Paillarde","Canada","Wimmers gute Semmelknödel","Grains/Cereals",33.25,6,0,199.5,"Michael Suyama"]
[10439,"2016-07-16","Mère Paillarde","Canada","Pavlova","Confections",17.45,16,0,279.2,"Michael Suyama"]
[10440,"2016-07-19","Save-a-lot Markets","USA","Sirop d'érable","Condiments",28.5,90,0.15,2180.25,"Margaret Peacock"]
[10440,"2016-07-19","Save-a-lot Markets","USA","Chang","Beverages",19,45,0.15,726.75,"Margaret Peacock"]
[10440,"2016-07-19","Save-a-lot Markets","USA","Pavlova","Confections",17.45,49,0.15,726.79,"Margaret Peacock"]
[10440,"2016-07-19","Save-a-lot Markets","USA","Thüringer Rostbratwurst","Meat/Poultry",123.79,24,0.15,2525.3200000000002,"Margaret Peacock"]
[10441,"2016-07-19","Old World Delicatessen","USA","Schoggi Schokolade","Confections",43.9,50,0,2195,"Janet Leverling"]
[10442,"2016-07-20","Ernst Handel","Austria","Louisiana Hot Spiced Okra","Condiments",17,60,0,{"$f":"ROUND((G515*H515)*(1-I515),2)","v":1020},"Janet Leverling"]
[10442,"2016-07-20","Ernst Handel","Austria","Queso Cabrales","Dairy Products",21,30,0,630,"Janet Leverling"]
[10442,"2016-07-20","Ernst Handel","Austria","Tourtière","Meat/Poultry",7.45,80,0,596,"Janet Leverling"]
[10443,"2016-07-21","Reggiani Caseifici","Italy","Rössle Sauerkraut","Produce",45.6,12,0,547.20000000000005,"Laura Callahan"]
[10443,"2016-07-21","Reggiani Caseifici","Italy","Queso Cabrales","Dairy Products",21,6,0.2,100.8,"Laura Callahan"]
[10444,"2016-07-21","Berglunds snabbköp","Sweden","Steeleye Stout","Beverages",18,8,0,144,"Janet Leverling"]
[10444,"2016-07-21","Berglunds snabbköp","Sweden","Alice Mutton","Meat/Poultry",39,10,0,390,"Janet Leverling"]
[10444,"2016-07-21","Berglunds snabbköp","Sweden","Jack's New England Clam Chowder","Seafood",9.65,30,0,289.5,"Janet Leverling"]
[10444,"2016-07-21","Berglunds snabbköp","Sweden","Gumbär Gummibärchen","Confections",31.23,15,0,468.45,"Janet Leverling"]
[10445,"2016-07-22","Berglunds snabbköp","Sweden","Tourtière","Meat/Poultry",7.45,15,0,111.75,"Janet Leverling"]
[10445,"2016-07-22","Berglunds snabbköp","Sweden","Chartreuse verte","Beverages",18,6,0,108,"Janet Leverling"]
[10446,"2016-07-23","Toms Spezialitäten","Germany","Guaraná Fantástica","Beverages",4.5,20,0.1,81,"Michael Suyama"]
[10446,"2016-07-23","Toms Spezialitäten","Germany","Teatime Chocolate Biscuits","Confections",9.1999999999999993,12,0.1,99.36,"Michael Suyama"]
[10446,"2016-07-23","Toms Spezialitäten","Germany","Filo Mix","Grains/Cereals",7,15,0.1,94.5,"Michael Suyama"]
[10446,"2016-07-23","Toms Spezialitäten","Germany","Gorgonzola Telino","Dairy Products",12.5,3,0.1,33.75,"Michael Suyama"]
[10447,"2016-07-23","Ricardo Adocicados","Brazil","Fløtemysost","Dairy Products",21.5,2,0,43,"Margaret Peacock"]
[10447,"2016-07-23","Ricardo Adocicados","Brazil","Teatime Chocolate Biscuits","Confections",9.1999999999999993,40,0,368,"Margaret Peacock"]
[10447,"2016-07-23","Ricardo Adocicados","Brazil","Louisiana Fiery Hot Pepper Sauce","Condiments",21.05,35,0,736.75,"Margaret Peacock"]
[10448,"2016-07-26","Rancho grande","Argentina","Gumbär Gummibärchen","Confections",31.23,6,0,187.38,"Margaret Peacock"]
[10448,"2016-07-26","Rancho grande","Argentina","Boston Crab Meat","Seafood",18.399999999999999,20,0,368,"Margaret Peacock"]
[10449,"2016-07-27","Blondel père et fils","France","Filo Mix","Grains/Cereals",7,20,0,140,"Janet Leverling"]
[10449,"2016-07-27","Blondel père et fils","France","Ikura","Seafood",31,14,0,434,"Janet Leverling"]
[10449,"2016-07-27","Blondel père et fils","France","Tarte au sucre","Confections",49.3,35,0,1725.5,"Janet Leverling"]
[10450,"2016-07-28","Victuailles en stock","France","Ikura","Seafood",31,20,0.2,496,"Laura Callahan"]
[10450,"2016-07-28","Victuailles en stock","France","Tourtière","Meat/Poultry",7.45,6,0.2,35.76,"Laura Callahan"]
[10451,"2016-07-28","QUICK-Stop","Germany","Pâté chinois","Meat/Poultry",24,120,0.1,2592,"Margaret Peacock"]
[10451,"2016-07-28","QUICK-Stop","Germany","Wimmers gute Semmelknödel","Grains/Cereals",33.25,35,0.1,1047.3800000000001,"Margaret Peacock"]
[10451,"2016-07-28","QUICK-Stop","Germany","Louisiana Fiery Hot Pepper Sauce","Condiments",21.05,28,0.1,530.46,"Margaret Peacock"]
[10451,"2016-07-28","QUICK-Stop","Germany","Original Frankfurter grüne Soße","Condiments",13,55,0.1,643.5,"Margaret Peacock"]
[10452,"2016-07-29","Save-a-lot Markets","USA","Rössle Sauerkraut","Produce",45.6,15,0,684,"Laura Callahan"]
[10452,"2016-07-29","Save-a-lot Markets","USA","Gula Malacca","Condiments",19.45,100,0.05,1847.75,"Laura Callahan"]
[10453,"2016-07-30","Around the Horn","UK","Outback Lager","Beverages",15,25,0.1,337.5,"Nancy Davolio"]
[10453,"2016-07-30","Around the Horn","UK","Chocolade","Confections",12.75,15,0.1,172.13,"Nancy Davolio"]
[10454,"2016-07-30","La maison d'Asie","France","Pavlova","Confections",17.45,20,0.2,279.2,"Margaret Peacock"]
[10454,"2016-07-30","La maison d'Asie","France","Geitost","Dairy Products",2.5,20,0.2,40,"Margaret Peacock"]
[10454,"2016-07-30","La maison d'Asie","France","Spegesild","Seafood",12,10,0.2,96,"Margaret Peacock"]
[10455,"2016-08-02","Wartian Herkku","Finland","Fløtemysost","Dairy Products",21.5,30,0,645,"Laura Callahan"]
[10455,"2016-08-02","Wartian Herkku","Finland","Chartreuse verte","Beverages",18,20,0,360,"Laura Callahan"]
[10455,"2016-08-02","Wartian Herkku","Finland","Sirop d'érable","Condiments",28.5,25,0,712.5,"Laura Callahan"]
[10455,"2016-08-02","Wartian Herkku","Finland","Perth Pasties","Meat/Poultry",32.799999999999997,50,0,1640,"Laura Callahan"]
[10456,"2016-08-03","Königlich Essen","Germany","Maxilaku","Confections",20,21,0.15,357,"Laura Callahan"]
[10456,"2016-08-03","Königlich Essen","Germany","Sir Rodney's Scones","Confections",10,40,0.15,340,"Laura Callahan"]
[10457,"2016-08-03","Königlich Essen","Germany","Raclette Courdavault","Dairy Products",55,36,0,1980,"Andrew Fuller"]
[10458,"2016-08-04","Suprêmes délices","Belgium","Gnocchi di nonna Alice","Grains/Cereals",38,15,0,570,"Robert King"]
[10458,"2016-08-04","Suprêmes délices","Belgium","Ipoh Coffee","Beverages",46,20,0,920,"Robert King"]
[10458,"2016-08-04","Suprêmes délices","Belgium","Gumbär Gummibärchen","Confections",31.23,30,0,936.9,"Robert King"]
[10458,"2016-08-04","Suprêmes délices","Belgium","Fløtemysost","Dairy Products",21.5,50,0,1075,"Robert King"]
[10458,"2016-08-04","Suprêmes délices","Belgium","Rössle Sauerkraut","Produce",45.6,30,0,1368,"Robert King"]
[10459,"2016-08-05","Victuailles en stock","France","Uncle Bob's Organic Dried Pears","Produce",30,16,0.05,456,"Margaret Peacock"]
[10459,"2016-08-05","Victuailles en stock","France","Spegesild","Seafood",12,20,0.05,228,"Margaret Peacock"]
[10459,"2016-08-05","Victuailles en stock","France","Mozzarella di Giovanni","Dairy Products",34.799999999999997,40,0,1392,"Margaret Peacock"]
[10460,"2016-08-06","Folk och fä HB","Sweden","Scottish Longbreads","Confections",12.5,21,0.25,196.88,"Laura Callahan"]
[10460,"2016-08-06","Folk och fä HB","Sweden","Rhönbräu Klosterbier","Beverages",7.75,4,0.25,23.25,"Laura Callahan"]
[10461,"2016-08-06","LILA-Supermercado","Venezuela","Sir Rodney's Scones","Confections",10,40,0.25,300,"Nancy Davolio"]
[10461,"2016-08-06","LILA-Supermercado","Venezuela","Nord-Ost Matjeshering","Seafood",25.89,28,0.25,543.69000000000005,"Nancy Davolio"]
[10461,"2016-08-06","LILA-Supermercado","Venezuela","Pâté chinois","Meat/Poultry",24,60,0.25,1080,"Nancy Davolio"]
[10462,"2016-08-09","Consolidated Holdings","UK","Konbu","Seafood",6,1,0,6,"Andrew Fuller"]
[10462,"2016-08-09","Consolidated Holdings","UK","Tunnbröd","Grains/Cereals",9,21,0,189,"Andrew Fuller"]
[10463,"2016-08-10","Suprêmes délices","Belgium","Singaporean Hokkien Fried Mee","Grains/Cereals",14,50,0,700,"Steven Buchanan"]
[10463,"2016-08-10","Suprêmes délices","Belgium","Teatime Chocolate Biscuits","Confections",9.1999999999999993,21,0,193.2,"Steven Buchanan"]
[10464,"2016-08-10","Furia Bacalhau e Frutos do Mar","Portugal","Chef Anton's Cajun Seasoning","Condiments",22,16,0.2,281.60000000000002,"Margaret Peacock"]
[10464,"2016-08-10","Furia Bacalhau e Frutos do Mar","Portugal","Gnocchi di nonna Alice","Grains/Cereals",38,30,0.2,912,"Margaret Peacock"]
[10464,"2016-08-10","Furia Bacalhau e Frutos do Mar","Portugal","Camembert Pierrot","Dairy Products",34,20,0,680,"Margaret Peacock"]
[10464,"2016-08-10","Furia Bacalhau e Frutos do Mar","Portugal","Ipoh Coffee","Beverages",46,3,0,138,"Margaret Peacock"]
[10465,"2016-08-11","Vaffeljernet","Denmark","Guaraná Fantástica","Beverages",4.5,25,0,{"$f":"ROUND((G579*H579)*(1-I579),2)","v":112.5},"Nancy Davolio"]
[10465,"2016-08-11","Vaffeljernet","Denmark","Røgede sild","Seafood",9.5,30,0.1,256.5,"Nancy Davolio"]
[10465,"2016-08-11","Vaffeljernet","Denmark","Valkoinen suklaa","Confections",16.25,25,0,406.25,"Nancy Davolio"]
[10465,"2016-08-11","Vaffeljernet","Denmark","Boston Crab Meat","Seafood",18.399999999999999,20,0,368,"Nancy Davolio"]
[10465,"2016-08-11","Vaffeljernet","Denmark","Thüringer Rostbratwurst","Meat/Poultry",123.79,18,0.1,2005.4,"Nancy Davolio"]
[10466,"2016-08-12","Comércio Mineiro","Brazil","Spegesild","Seafood",12,5,0,60,"Margaret Peacock"]
[10466,"2016-08-12","Comércio Mineiro","Brazil","Queso Cabrales","Dairy Products",21,10,0,210,"Margaret Peacock"]
[10467,"2016-08-12","Magazzini Alimentari Riuniti","Italy","NuNuCa Nuß-Nougat-Creme","Confections",14,12,0,168,"Laura Callahan"]
[10467,"2016-08-12","Magazzini Alimentari Riuniti","Italy","Guaraná Fantástica","Beverages",4.5,28,0,126,"Laura Callahan"]
[10468,"2016-08-13","Königlich Essen","Germany","Ipoh Coffee","Beverages",46,15,0,690,"Janet Leverling"]
[10468,"2016-08-13","Königlich Essen","Germany","Nord-Ost Matjeshering","Seafood",25.89,8,0,207.12,"Janet Leverling"]
[10469,"2016-08-16","White Clover Markets","USA","Pavlova","Confections",17.45,35,0.15,519.14,"Nancy Davolio"]
[10469,"2016-08-16","White Clover Markets","USA","Chang","Beverages",19,40,0.15,646,"Nancy Davolio"]
[10469,"2016-08-16","White Clover Markets","USA","Gula Malacca","Condiments",19.45,2,0.15,33.07,"Nancy Davolio"]
[10470,"2016-08-17","Bon app'","France","Tunnbröd","Grains/Cereals",9,15,0,135,"Margaret Peacock"]
[10470,"2016-08-17","Bon app'","France","Wimmers gute Semmelknödel","Grains/Cereals",33.25,8,0,266,"Margaret Peacock"]
[10470,"2016-08-17","Bon app'","France","Carnarvon Tigers","Seafood",62.5,30,0,1875,"Margaret Peacock"]
[10471,"2016-08-17","B's Beverages","UK","Uncle Bob's Organic Dried Pears","Produce",30,30,0,900,"Andrew Fuller"]
[10471,"2016-08-17","B's Beverages","UK","Gnocchi di nonna Alice","Grains/Cereals",38,20,0,760,"Andrew Fuller"]
[10472,"2016-08-18","Seven Seas Imports","UK","Manjimup Dried Apples","Produce",53,18,0,954,"Laura Callahan"]
[10472,"2016-08-18","Seven Seas Imports","UK","Guaraná Fantástica","Beverages",4.5,80,0.05,342,"Laura Callahan"]
[10473,"2016-08-19","Island Trading","UK","Fløtemysost","Dairy Products",21.5,12,0,258,"Nancy Davolio"]
[10473,"2016-08-19","Island Trading","UK","Geitost","Dairy Products",2.5,12,0,30,"Nancy Davolio"]
[10474,"2016-08-19","Pericles Comidas clásicas","Mexico","Rhönbräu Klosterbier","Beverages",7.75,10,0,77.5,"Steven Buchanan"]
[10474,"2016-08-19","Pericles Comidas clásicas","Mexico","Tofu","Produce",23.25,12,0,279,"Steven Buchanan"]
[10474,"2016-08-19","Pericles Comidas clásicas","Mexico","Rössle Sauerkraut","Produce",45.6,18,0,820.8,"Steven Buchanan"]
[10474,"2016-08-19","Pericles Comidas clásicas","Mexico","Boston Crab Meat","Seafood",18.399999999999999,21,0,386.4,"Steven Buchanan"]
[10475,"2016-08-20","Suprêmes délices","Belgium","Louisiana Hot Spiced Okra","Condiments",17,60,0.15,867,"Anne Dodsworth"]
[10475,"2016-08-20","Suprêmes délices","Belgium","Gorgonzola Telino","Dairy Products",12.5,35,0.15,371.88,"Anne Dodsworth"]
[10475,"2016-08-20","Suprêmes délices","Belgium","Lakkalikööri","Beverages",18,42,0.15,642.6,"Anne Dodsworth"]
[10476,"2016-08-23","HILARIÓN-Abastos","Venezuela","Pâté chinois","Meat/Poultry",24,2,0.05,45.6,"Laura Callahan"]
[10476,"2016-08-23","HILARIÓN-Abastos","Venezuela","Outback Lager","Beverages",15,12,0,180,"Laura Callahan"]
[10477,"2016-08-23","Princesa Isabel Vinhos","Portugal","Chai","Beverages",18,15,0,270,"Steven Buchanan"]
[10477,"2016-08-23","Princesa Isabel Vinhos","Portugal","Chartreuse verte","Beverages",18,20,0.25,270,"Steven Buchanan"]
[10477,"2016-08-23","Princesa Isabel Vinhos","Portugal","Sir Rodney's Scones","Confections",10,21,0.25,157.5,"Steven Buchanan"]
[10478,"2016-08-24","Victuailles en stock","France","Ikura","Seafood",31,20,0.05,589,"Andrew Fuller"]
[10479,"2016-08-25","Rattlesnake Canyon Grocery","USA","Perth Pasties","Meat/Poultry",32.799999999999997,28,0,918.4,"Janet Leverling"]
[10479,"2016-08-25","Rattlesnake Canyon Grocery","USA","Raclette Courdavault","Dairy Products",55,60,0,3300,"Janet Leverling"]
[10479,"2016-08-25","Rattlesnake Canyon Grocery","USA","Côte de Blaye","Beverages",263.5,30,0,7905,"Janet Leverling"]
[10479,"2016-08-25","Rattlesnake Canyon Grocery","USA","Wimmers gute Semmelknödel","Grains/Cereals",33.25,30,0,997.5,"Janet Leverling"]
[10480,"2016-08-26","Folies gourmandes","France","Zaanse koeken","Confections",9.5,30,0,285,"Michael Suyama"]
[10480,"2016-08-26","Folies gourmandes","France","Raclette Courdavault","Dairy Products",55,12,0,660,"Michael Suyama"]
[10481,"2016-08-26","Ricardo Adocicados","Brazil","Maxilaku","Confections",20,24,0,480,"Laura Callahan"]
[10481,"2016-08-26","Ricardo Adocicados","Brazil","Camembert Pierrot","Dairy Products",34,40,0,1360,"Laura Callahan"]
[10482,"2016-08-27","Lazy K Kountry Store","USA","Boston Crab Meat","Seafood",18.399999999999999,10,0,184,"Nancy Davolio"]
[10483,"2016-08-30","White Clover Markets","USA","Original Frankfurter grüne Soße","Condiments",13,30,0.05,370.5,"Robert King"]
[10483,"2016-08-30","White Clover Markets","USA","Sasquatch Ale","Beverages",14,35,0.05,465.5,"Robert King"]
[10484,"2016-08-30","B's Beverages","UK","Manjimup Dried Apples","Produce",53,3,0,159,"Janet Leverling"]
[10484,"2016-08-30","B's Beverages","UK","Sir Rodney's Scones","Confections",10,14,0,140,"Janet Leverling"]
[10484,"2016-08-30","B's Beverages","UK","Boston Crab Meat","Seafood",18.399999999999999,10,0,184,"Janet Leverling"]
[10485,"2016-08-31","LINO-Delicateses","Venezuela","Pâté chinois","Meat/Poultry",24,30,0.1,648,"Margaret Peacock"]
[10485,"2016-08-31","LINO-Delicateses","Venezuela","Chang","Beverages",19,20,0.1,342,"Margaret Peacock"]
[10485,"2016-08-31","LINO-Delicateses","Venezuela","Aniseed Syrup","Condiments",10,20,0.1,180,"Margaret Peacock"]
[10485,"2016-08-31","LINO-Delicateses","Venezuela","Outback Lager","Beverages",15,60,0.1,810,"Margaret Peacock"]
[10486,"2016-09-01","HILARIÓN-Abastos","Venezuela","Longlife Tofu","Produce",10,16,0,160,"Nancy Davolio"]
[10486,"2016-09-01","HILARIÓN-Abastos","Venezuela","Queso Cabrales","Dairy Products",21,5,0,105,"Nancy Davolio"]
[10486,"2016-09-01","HILARIÓN-Abastos","Venezuela","Manjimup Dried Apples","Produce",53,25,0,1325,"Nancy Davolio"]
[10487,"2016-09-01","Queen Cozinha","Brazil","Gumbär Gummibärchen","Confections",31.23,30,0,936.9,"Andrew Fuller"]
[10487,"2016-09-01","Queen Cozinha","Brazil","Tourtière","Meat/Poultry",7.45,24,0.25,134.1,"Andrew Fuller"]
[10487,"2016-09-01","Queen Cozinha","Brazil","Teatime Chocolate Biscuits","Confections",9.1999999999999993,5,0,46,"Andrew Fuller"]
[10488,"2016-09-02","Frankenversand","Germany","Raclette Courdavault","Dairy Products",55,30,0,1650,"Laura Callahan"]
[10488,"2016-09-02","Frankenversand","Germany","Röd Kaviar","Seafood",15,20,0.2,240,"Laura Callahan"]
[10489,"2016-09-03","Piccolo und mehr","Austria","Queso Cabrales","Dairy Products",21,15,0.25,236.25,"Michael Suyama"]
[10489,"2016-09-03","Piccolo und mehr","Austria","Pavlova","Confections",17.45,18,0,314.10000000000002,"Michael Suyama"]
[10490,"2016-09-06","HILARIÓN-Abastos","Venezuela","Raclette Courdavault","Dairy Products",55,60,0,{"$f":"ROUND((G643*H643)*(1-I643),2)","v":3300},"Robert King"]
[10490,"2016-09-06","HILARIÓN-Abastos","Venezuela","Scottish Longbreads","Confections",12.5,30,0,375,"Robert King"]
[10490,"2016-09-06","HILARIÓN-Abastos","Venezuela","Rhönbräu Klosterbier","Beverages",7.75,36,0,279,"Robert King"]
[10491,"2016-09-06","Furia Bacalhau e Frutos do Mar","Portugal","Gula Malacca","Condiments",19.45,15,0.15,247.99,"Laura Callahan"]
[10491,"2016-09-06","Furia Bacalhau e Frutos do Mar","Portugal","Original Frankfurter grüne Soße","Condiments",13,7,0.15,77.349999999999994,"Laura Callahan"]
[10492,"2016-09-07","Bottom-Dollar Markets","Canada","Singaporean Hokkien Fried Mee","Grains/Cereals",14,20,0.05,266,"Janet Leverling"]
[10492,"2016-09-07","Bottom-Dollar Markets","Canada","NuNuCa Nuß-Nougat-Creme","Confections",14,60,0.05,798,"Janet Leverling"]
[10493,"2016-09-08","La maison d'Asie","France","Louisiana Fiery Hot Pepper Sauce","Condiments",21.05,15,0.1,284.18,"Margaret Peacock"]
[10493,"2016-09-08","La maison d'Asie","France","Louisiana Hot Spiced Okra","Condiments",17,10,0.1,153,"Margaret Peacock"]
[10493,"2016-09-08","La maison d'Asie","France","Gudbrandsdalsost","Dairy Products",36,10,0.1,324,"Margaret Peacock"]
[10494,"2016-09-08","Comércio Mineiro","Brazil","Gnocchi di nonna Alice","Grains/Cereals",38,30,0,1140,"Margaret Peacock"]
[10495,"2016-09-09","Laughing Bacchus Wine Cellars","Canada","Original Frankfurter grüne Soße","Condiments",13,5,0,65,"Janet Leverling"]
[10495,"2016-09-09","Laughing Bacchus Wine Cellars","Canada","Jack's New England Clam Chowder","Seafood",9.65,20,0,193,"Janet Leverling"]
[10495,"2016-09-09","Laughing Bacchus Wine Cellars","Canada","Tunnbröd","Grains/Cereals",9,10,0,90,"Janet Leverling"]
[10496,"2016-09-10","Tradição Hipermercados","Brazil","Gorgonzola Telino","Dairy Products",12.5,20,0.05,237.5,"Robert King"]
[10497,"2016-09-10","Lehmanns Marktstand","Germany","Mozzarella di Giovanni","Dairy Products",34.799999999999997,25,0,870,"Robert King"]
[10497,"2016-09-10","Lehmanns Marktstand","Germany","Gnocchi di nonna Alice","Grains/Cereals",38,14,0,532,"Robert King"]
[10497,"2016-09-10","Lehmanns Marktstand","Germany","Original Frankfurter grüne Soße","Condiments",13,25,0,325,"Robert King"]
[10498,"2016-09-13","HILARIÓN-Abastos","Venezuela","Guaraná Fantástica","Beverages",4.5,14,0,63,"Laura Callahan"]
[10498,"2016-09-13","HILARIÓN-Abastos","Venezuela","Boston Crab Meat","Seafood",18.399999999999999,5,0,92,"Laura Callahan"]
[10498,"2016-09-13","HILARIÓN-Abastos","Venezuela","Singaporean Hokkien Fried Mee","Grains/Cereals",14,30,0,420,"Laura Callahan"]
[10499,"2016-09-14","LILA-Supermercado","Venezuela","Maxilaku","Confections",20,25,0,500,"Margaret Peacock"]
[10499,"2016-09-14","LILA-Supermercado","Venezuela","Rössle Sauerkraut","Produce",45.6,20,0,912,"Margaret Peacock"]
[10500,"2016-09-15","La maison d'Asie","France","Genen Shouyu","Condiments",15.5,12,0.05,176.7,"Michael Suyama"]
[10500,"2016-09-15","La maison d'Asie","France","Rössle Sauerkraut","Produce",45.6,8,0.05,346.56,"Michael Suyama"]
[10501,"2016-09-15","Blauer See Delikatessen","Germany","Tourtière","Meat/Poultry",7.45,20,0,149,"Anne Dodsworth"]
[10502,"2016-09-16","Pericles Comidas clásicas","Mexico","Perth Pasties","Meat/Poultry",32.799999999999997,6,0,196.8,"Andrew Fuller"]
[10502,"2016-09-16","Pericles Comidas clásicas","Mexico","Røgede sild","Seafood",9.5,21,0,199.5,"Andrew Fuller"]
[10502,"2016-09-16","Pericles Comidas clásicas","Mexico","Laughing Lumberjack Lager","Beverages",14,30,0,420,"Andrew Fuller"]
[10503,"2016-09-17","Hungry Owl All-Night Grocers","Ireland","Louisiana Fiery Hot Pepper Sauce","Condiments",21.05,20,0,421,"Michael Suyama"]
[10503,"2016-09-17","Hungry Owl All-Night Grocers","Ireland","Tofu","Produce",23.25,70,0,1627.5,"Michael Suyama"]
[10504,"2016-09-17","White Clover Markets","USA","Perth Pasties","Meat/Poultry",32.799999999999997,10,0,328,"Margaret Peacock"]
[10504,"2016-09-17","White Clover Markets","USA","Sirop d'érable","Condiments",28.5,25,0,712.5,"Margaret Peacock"]
[10504,"2016-09-17","White Clover Markets","USA","Sir Rodney's Scones","Confections",10,12,0,120,"Margaret Peacock"]
[10504,"2016-09-17","White Clover Markets","USA","Chang","Beverages",19,12,0,228,"Margaret Peacock"]
[10505,"2016-09-20","Mère Paillarde","Canada","Tarte au sucre","Confections",49.3,3,0,147.9,"Janet Leverling"]
[10506,"2016-09-21","Königlich Essen","Germany","NuNuCa Nuß-Nougat-Creme","Confections",14,18,0.1,226.8,"Anne Dodsworth"]
[10506,"2016-09-21","Königlich Essen","Germany","Outback Lager","Beverages",15,14,0.1,189,"Anne Dodsworth"]
[10507,"2016-09-21","Antonio Moreno Taquería","Mexico","Ipoh Coffee","Beverages",46,15,0.15,586.5,"Robert King"]
[10507,"2016-09-21","Antonio Moreno Taquería","Mexico","Chocolade","Confections",12.75,15,0.15,162.56,"Robert King"]
[10508,"2016-09-22","Ottilies Käseladen","Germany","Konbu","Seafood",6,10,0,60,"Nancy Davolio"]
[10508,"2016-09-22","Ottilies Käseladen","Germany","Chartreuse verte","Beverages",18,10,0,180,"Nancy Davolio"]